Workbook

Sheet General
B1: Módulo de Ingreso de Información
B5: Código | C5: 3
B6: Nombre | C6: Prueba 1 | E6: Permisos Ambiental obtenida | F6: NO
B7: Fecha Radicación | C7: 2022-02-08
B8: Hora Radicación | C8: 12:35:00
B9: Capacidad (MW) | C9: 50
B10: Tecnología | C10: Solar FV | E10: Costo Activos de Uso ($COP) | F10: 0
B11: Barra 1 | C11: Chinú | E11: Delta pérdidas (GWh) | F11: 100
B12: Código Asociado | E12: Reducción Marginal VPN ($COP) | F12: 1000000
B13: FPO | C13: 2025-12-31
B14: FPO 2 | C14: 2026-12-31
B15: Obligaciones | C15: NO
B16: Requiere Expansión | C16: NO
B17: Área Eléctrica | C17: Antioquia

Sheet Tablas
B1: Tecnologia | C1: Factor de planta | D1: Iflex | E1: IE-RP | F1: Factor ENFICC | G1: Factor emisiones | H1: Oferta promedio | I1: Comentarios | J1: Area Eléctrica | N1: FPO | P1: Fecha Radicacion | Q1: Hora Radicacion | S1: Gestion Ambiental | U1: Consulta Previa | W1: Permiso Arquelogico
B2: Solar FV | C2: 0.26 | D2: 0 | E2: 0.3190502279 | F2: 0.15 | G2: 0 | H2: 83577.2 | I2: Los parámetros fueron calculados conforme a la metodología presentada en la Circular UPME 057 de 2022. | J2: Altántico | L2: SI | N2: 2023-01-01 | P2: 2022-01-01 | Q2: 00:00:00 | S2: No hay avances | U2: No hay avances | W2: No hay avances
B3: Eólico Onshore | C3: 0.57 | D3: 0 | E3: 0.3190502279 | F3: 0.06 | G3: 0 | H3: 83577.2 | I3: Los parámetros fueron calculados conforme a la metodología presentada en la Circular UPME 057 de 2022. | J3: Bolívar | L3: NO | N3: 2037-12-31 | P3: 2022-03-31 | Q3: 23:59:59 | S3: EIA | U3: Resolución. No Procede | W3: Aprobado
B4: Eólico Offshore | C4: 0.57 | D4: 0 | E4: 0.3190502279 | F4: 0.06 | G4: 0 | H4: 83577.2 | I4: Los parámetros fueron calculados conforme a la metodología presentada en la Circular UPME 057 de 2022. | J4: Córdoba - Sucre, Chinú | S4: LA | U4: Resolución. Si Procede | W4: No Aplica
B5: Biomasa y Residuos | C5: 0.7 | D5: 0.25 | E5: 0.3190502279 | F5: 0.83 | G5: 0.37 | H5: 83577.2 | I5: Los parámetros fueron calculados conforme a la metodología presentada en la Circular UPME 057 de 2022. | J5: Córdoba - Sucre, Cerromatoso | S5: PA | U5: Finalizada
B6: Geotérmica | C6: 0.8 | D6: 0.25 | E6: 0.3190502279 | F6: 0.7 | G6: 0 | H6: 83577.2 | I6: Los parámetros fueron calculados conforme a la metodología presentada en la Circular UPME 057 de 2022. | J6: Guajira - Cesar - Madgalena | S6: No Aplica
B7: PCH | C7: 0.54 | D7: 0.61 | E7: 0.1550930337 | F7: 0.15 | G7: 0 | H7: 158280.5 | I7: Los parámetros fueron calculados conforme a la metodología presentada en la Circular UPME 057 de 2022. | J7: Santander
B8: Termica - Ciclo abierto | C8: 0.85 | D8: 0.4 | E8: -0.5761741581 | F8: 0.83 | G8: 0.95 | H8: 267152.5 | I8: Los parámetros fueron calculados conforme a la metodología presentada en la Circular UPME 057 de 2022. | J8: Norte de Santander
B9: Termica - Ciclo combinado | C9: 0.85 | D9: 0.27 | E9: -0.5761741581 | F9: 0.83 | G9: 0.95 | H9: 267152.5 | I9: Los parámetros fueron calculados conforme a la metodología presentada en la Circular UPME 057 de 2022. | J9: Boyacá - Casanare
B10: Termica a vapor | C10: 0.85 | D10: 0.25 | E10: -0.5761741581 | F10: 0.83 | G10: 0.37 | H10: 267152.5 | I10: Los parámetros fueron calculados conforme a la metodología presentada en la Circular UPME 057 de 2022. | J10: Arauca
B11: Termica - diesel | C11: 0.85 | D11: 0.6 | E11: -4.282826571 | F11: 0.83 | G11: 0.77 | H11: 709472.9 | I11: Los parámetros fueron calculados conforme a la metodología presentada en la Circular UPME 057 de 2022. | J11: Antioquia
B12: Hidraulica | C12: 0.6 | D12: 0.61 | E12: 0.1550930337 | F12: 0.31 | G12: 0 | H12: 158280.5 | I12: Los parámetros fueron calculados conforme a la metodología presentada en la Circular UPME 057 de 2022. | J12: Chocó
B13: Cogeneracion | C13: 0.85 | D13: 0.1 | E13: 0.3190502279 | F13: 0.83 | G13: 0.37 | H13: 83577.2 | I13: Los parámetros fueron calculados conforme a la metodología presentada en la Circular UPME 057 de 2022. | J13: Bogotá
J14: Meta - Guaviare
J15: Caldas - Quidio - Risaralda
J16: Valle
J17: Cauca - Nariño
J18: Tolima - Huila Caquetá
J19: Putumayo

Sheet InfoPro
A1: Código | B1: Nombre | C1: Fecha Radicación | D1: Hora Radicación | E1: Capacidad | F1: Tipo | G1: Barra 1 | H1: Código Asociado | I1: FPO | J1: FPO 2 | K1: Obligaciones | L1: Requiere Expansión | M1: Area Eléctrica | N1: Permisos Ambiental obtenida | O1: Costo Activos de Uso | P1: Pérdidas STN | R1: Orden
A2: SC_150_A1 | B2: La Estrella 80 MW | C2: 2022-04-12 | D2: 19:42:00 | E2: 80 | F2: Solar FV | G2: Mariquita 115 | H2: SC_150 | I2: 2026-12-31 | J2: 2026-12-31 | K2: NO | L2: NO | M2: 8 | N2: NO | O2: NA | P2: 16.283 | Q2: =C2+D2 -> 2022-04-12T19:42:00 | R2: 1
A3: SC_201_A1 | B3: PARQUE SOLAR PUERTA DE ORO - 300 MW | C3: 2022-05-09 | D3: 6:30 pm | E3: 300 | F3: Solar FV | G3: San Felipe 220 | H3: SC_201 | I3: 2025-12-31 | J3: 2025-12-31 | K3: NO | L3: NO | M3: 8 | N3: NO | O3: NA | P3: -5.2902 | Q3: 2022-05-09T18:30:00 | R3: 2
A4: SC_489_A1 | B4: PARQUE SOLAR VIRGINIA 300 MW | C4: 2022-05-22 | D4: 9:06 pm | E4: 300 | F4: Solar FV | G4: Virginia 500 | H4: SC_489 | I4: 2026-12-31 | J4: 2026-12-31 | K4: NO | L4: NO | M4: 8 | N4: NO | O4: NA | P4: -75.20519 | Q4: 2022-05-22T21:06:00 | R4: 3
A5: SC_564_A1 | B5: Marte 100 MW | C5: 2022-06-07 | D5: 5:24 pm | E5: 100 | F5: Solar FV | G5: San Felipe 220 | H5: SC_564 | I5: 2025-12-31 | J5: 2025-12-31 | K5: NO | L5: NO | M5: 8 | N5: NO | O5: N/A | P5: 13.936808 | Q5: 2022-06-07T17:24:00 | R5: 4
A6: SC_752_A1 | B6: El Triunfo 19,9MW | C6: 2022-07-06 | D6: 13:57:00 | E6: 19.9 | F6: Solar FV | G6: Mariquita 34.5 | H6: SC_752 | I6: 2025-12-31 | J6: 2025-12-31 | K6: NO | L6: NO | M6: 8 | N6: NO | O6: NA | P6: -1.39288 | Q6: 2022-07-06T13:57:00 | R6: 5
A7: SC_729_A1 | B7: PLANTA FV DOÑA JUANA_4.3MW | C7: 2022-07-12 | D7: 10:24 am | E7: 4.3 | F7: Solar FV | G7: DNorte 33 | H7: SC_729 | I7: 2025-06-30 | J7: 2025-06-30 | K7: NO | L7: NO | M7: 8 | N7: NO | O7: NA | P7: -5.3077 | Q7: 2022-07-12T10:24:00 | R7: 6
A8: SC_729_A2 | B8: PLANTA FV DOÑA JUANA_4.3MW | C8: 2022-07-12 | D8: 10:24 am | E8: 4.3 | F8: Solar FV | G8: Dorada 33 | H8: SC_729 | I8: 2025-06-30 | J8: 2025-06-30 | K8: NO | L8: NO | M8: 8 | N8: NO | O8: NA | P8: -2.50206 | Q8: 2022-07-12T10:24:00 | R8: 7
A9: SC_819_A1 | B9: PLANTA FV SAN FRANCISCO 4.9 MW | C9: 2022-07-12 | D9: 15:10:00 | E9: 4.9 | F9: Solar FV | G9: Insula 33 | H9: SC_819 | I9: 2024-12-31 | J9: 2024-12-31 | K9: NO | L9: NO | M9: 8 | N9: NO | O9: N/A | P9: 14.39476 | Q9: 2022-07-12T15:10:00 | R9: 8
A10: SC_819_A2 | B10: PLANTA FV SAN FRANCISCO 4.9 MW | C10: 2022-07-12 | D10: 15:10:00 | E10: 4.9 | F10: Solar FV | G10: Margarita 33 | H10: SC_819 | I10: 2024-12-31 | J10: 2024-12-31 | K10: NO | L10: NO | M10: 8 | N10: NO | O10: N/A | P10: 13.16558 | Q10: 2022-07-12T15:10:00 | R10: 9
A11: SC_804_A1 | B11: PLANTA FV MONTECRISTO 90 MW | C11: 2022-07-12 | D11: 5:24 pm | E11: 90 | F11: Solar FV | G11: Esmeralda CQR 115 | H11: SC_804 | I11: 2026-12-31 | J11: 2026-12-31 | K11: NO | L11: NO | M11: 8 | N11: NO | O11: N/A | P11: -4.20465 | Q11: 2022-07-12T17:24:00 | R11: 10
A12: SC_804_A2 | B12: PLANTA FV MONTECRISTO 90 MW | C12: 2022-07-12 | D12: 5:24 pm | E12: 90 | F12: Solar FV | G12: Insula CQR 115 | H12: SC_804 | I12: 2026-12-31 | J12: 2026-12-31 | K12: NO | L12: NO | M12: 8 | N12: NO | O12: N/A | P12: -12.88273 | Q12: 2022-07-12T17:24:00 | R12: 11
A13: SC_1125_A1 | B13: San Felipe Solar 80 MW | C13: 2022-07-14 | D13: 2:35 pm | E13: 80 | F13: Solar FV | G13: San Felipe 115 | H13: SC_1125 | I13: 2026-12-31 | J13: 2026-12-31 | K13: NO | L13: NO | M13: 8 | N13: NO | O13: NA | P13: -4.06 | Q13: 2022-07-14T14:35:00 | R13: 12
A14: SC_1013_A1 | B14: Amanecer | C14: 2022-07-15 | D14: 9:28 am | E14: 150 | F14: Solar FV | G14: Purnio 220 | H14: SC_1013 | I14: 2025-03-31 | J14: 2025-03-31 | K14: NO | L14: NO | M14: 8 | N14: NO | O14: NA | P14: -9.66212 | Q14: 2022-07-15T09:28:00 | R14: 13
A15: SC_2299_A1 | B15: Caribe | C15: 2022-07-15 | D15: 9:39 am | E15: 55 | F15: Solar FV | G15: Esmeralda 220 | H15: SC_2299 | I15: 2025-06-30 | J15: 2025-06-30 | K15: NO | L15: NO | M15: 8 | N15: NO | O15: 0 | P15: -8.75 | Q15: 2022-07-15T09:39:00 | R15: 14
A16: SC_2299_A2 | B16: Caribe | C16: 2022-07-15 | D16: 9:39 am | E16: 55 | F16: Solar FV | G16: Esmeralda CQR 115 | H16: SC_2299 | I16: 2025-06-30 | J16: 2025-06-30 | K16: NO | L16: NO | M16: 8 | N16: NO | O16: 0 | P16: -8.75 | Q16: 2022-07-15T09:39:00 | R16: 15
A17: SC_1138_A1 | B17: Parque Solar La Virginia | C17: 2022-07-15 | D17: 11:30 am | E17: 80 | F17: Solar FV | G17: Virginia 220 | H17: SC_1138 | I17: 2025-12-31 | J17: 2025-12-31 | K17: NO | L17: NO | M17: 8 | N17: NO | O17: NA | P17: -1.047 | Q17: 2022-07-15T11:30:00 | R17: 16
A18: SC_904_A2 | B18: Los Monos | C18: 2022-07-15 | D18: 2:28 pm | E18: 9.9 | F18: Solar FV | G18: San Felipe 13.2 | H18: SC_904 | I18: 2025-06-30 | J18: 2025-06-30 | K18: NO | L18: NO | M18: 8 | N18: NO | O18: NA | P18: -0.55116 | Q18: 2022-07-15T14:28:00 | R18: 17
A19: SC_521_A1 | B19: TR SOLAR 1 | C19: 2022-07-15 | D19: 4:23 pm | E19: 130 | F19: Solar FV | G19: San Felipe 220 | H19: SC_521 | I19: 2026-12-31 | J19: 2026-12-31 | K19: NO | L19: NO | M19: 8 | N19: NO | O19: N/A | P19: -18.49609293 | Q19: 2022-07-15T16:23:00 | R19: 18
A20: SC_521_A2 | B20: TR SOLAR 1 | C20: 2022-07-15 | D20: 4:23 pm | E20: 130 | F20: Solar FV | G20: Virginia 500 | H20: SC_521 | I20: 2026-12-31 | J20: 2026-12-31 | K20: NO | L20: NO | M20: 8 | N20: NO | O20: 35446.332 | P20: -10.62955869 | Q20: 2022-07-15T16:23:00 | R20: 19
A21: SC_621_A1 | B21: TR Solar 2 | C21: 2022-07-15 | D21: 4:32 pm | E21: 150 | F21: Solar FV | G21: Virginia 220 | H21: SC_621 | I21: 2026-12-31 | J21: 2026-12-31 | K21: NO | L21: NO | M21: 8 | N21: NO | O21: N/A | P21: -18.4293233 | Q21: 2022-07-15T16:32:00 | R21: 20
A22: SC_621_A2 | B22: TR Solar 2 | C22: 2022-07-15 | D22: 4:32 pm | E22: 150 | F22: Solar FV | G22: Virginia 500 | H22: SC_621 | I22: 2026-12-31 | J22: 2026-12-31 | K22: NO | L22: NO | M22: 8 | N22: NO | O22: N/A | P22: -12.32814218 | Q22: 2022-07-15T16:32:00 | R22: 21
A23: SC_1298_A1 | B23: Tucacas Solar | C23: 2022-07-15 | D23: 5:33 pm | E23: 150 | F23: Solar FV | G23: San Felipe 220 | H23: SC_1298 | I23: 2025-01-31 | J23: 2025-01-31 | K23: NO | L23: NO | M23: 8 | N23: NO | O23: 0 | P23: -1554.86 | Q23: 2022-07-15T17:33:00 | R23: 22
A24: SC_1362_A1 | B24: AES Solar 3_100MW | C24: 2022-07-15 | D24: 5:54 pm | E24: 100 | F24: Solar FV | G24: Mariquita 115 | H24: SC_1362 | I24: 2025-12-01 | J24: 2025-12-01 | K24: NO | L24: NO | M24: 8 | N24: NO | O24: NA | P24: -5.796 | Q24: 2022-07-15T17:54:00 | R24: 23
A25: SC_1362_A2 | B25: AES Solar 3_100MW | C25: 2022-07-15 | D25: 5:54 pm | E25: 100 | F25: Solar FV | G25: San Felipe 220 | H25: SC_1362 | I25: 2025-12-01 | J25: 2025-12-01 | K25: NO | L25: NO | M25: 8 | N25: NO | O25: NA | P25: -1.937 | Q25: 2022-07-15T17:54:00 | R25: 24
A26: SC_845_A1 | B26: Pijaos | C26: 2022-07-16 | D26: 11:24 am | E26: 19.9 | F26: Solar FV | G26: Mariquita 34.5 | H26: SC_845 | I26: 2026-12-31 | J26: 2026-12-31 | K26: NO | L26: NO | M26: 8 | N26: NO | O26: NA | P26: -1.38707 | Q26: 2022-07-16T11:24:00 | R26: 25
A27: SC_845_A2 | B27: Pijaos | C27: 2022-07-16 | D27: 11:24 am | E27: 19.9 | F27: Solar FV | G27: Mariquita 115 | H27: SC_845 | I27: 2026-12-31 | J27: 2026-12-31 | K27: NO | L27: NO | M27: 8 | N27: NO | O27: NA | P27: -1.26343 | Q27: 2022-07-16T11:24:00 | R27: 26
A28: SC_1413_A2 | B28: CSF CONTINUA LA VIRGINIA 120MW | C28: 2022-07-16 | D28: 12:15 pm | E28: 120 | F28: Solar FV | G28: Virginia 220 | H28: SC_1413 | I28: 2026-12-31 | J28: 2026-12-31 | K28: NO | L28: NO | M28: 8 | N28: NO | O28: NA | P28: 1.29 | Q28: 2022-07-16T12:15:00 | R28: 27
A29: SC_976_A2 | B29: Abirá | C29: 2022-07-16 | D29: 6:15 pm | E29: 9.9 | F29: Solar FV | G29: Guayabal 34.5 | H29: SC_976 | I29: 2026-12-31 | J29: 2026-12-31 | K29: NO | L29: NO | M29: 8 | N29: NO | O29: NA | P29: 0.421 | Q29: 2022-07-16T18:15:00 | R29: 28
A30: SC_1061_A1 | B30: Siatá 19.9 | C30: 2022-07-16 | D30: 6:45 pm | E30: 19.9 | F30: Solar FV | G30: Dorada 33 | H30: SC_1061 | I30: 2026-12-31 | J30: 2026-12-31 | K30: NO | L30: NO | M30: 8 | N30: NO | O30: NA | P30: -0.45 | Q30: 2022-07-16T18:45:00 | R30: 29
A31: SC_1061_A2 | B31: Siatá 19.9 | C31: 2022-07-16 | D31: 6:45 pm | E31: 19.9 | F31: Solar FV | G31: DNorte 33 | H31: SC_1061 | I31: 2026-12-31 | J31: 2026-12-31 | K31: NO | L31: NO | M31: 8 | N31: NO | O31: NA | P31: -0.42 | Q31: 2022-07-16T18:45:00 | R31: 30
A32: SC_848_A1 | B32: PCH QUINCHIA | C32: 2022-07-16 | D32: 8:11 pm | E32: 2.4 | F32: Hidraulica | G32: Quinchia 33 | H32: SC_848 | I32: 2023-06-30 | J32: 2023-06-30 | K32: NO | L32: NO | M32: 8 | N32: SI | O32: NA | P32: -0.06335 | Q32: 2022-07-16T20:11:00 | R32: 31
A33: SC_848_A2 | B33: PCH QUINCHIA | C33: 2022-07-16 | D33: 8:11 pm | E33: 2.4 | F33: Hidraulica | G33: Quinchia 13.2 | H33: SC_848 | I33: 2023-06-30 | J33: 2023-06-30 | K33: NO | L33: NO | M33: 8 | N33: NO | O33: NA | P33: -0.05096 | Q33: 2022-07-16T20:11:00 | R33: 32
A34: SC_1612_A1 | B34: CSF CONTINUA ARMERO 90MW | C34: 2022-07-18 | D34: 11:41 am | E34: 90 | F34: Solar FV | G34: San Felipe 115 | H34: SC_1612 | I34: 2024-06-30 | J34: 2024-06-30 | K34: NO | L34: NO | M34: 8 | N34: NO | O34: NA | P34: -0.99 | Q34: =C34+D34 -> 2022-07-18T11:41:00 | R34: 33
A35: SC_1612_A2 | B35: CSF CONTINUA ARMERO 90MW | C35: 2022-07-18 | D35: 11:41 am | E35: 90 | F35: Solar FV | G35: San Felipe 220 | H35: SC_1612 | I35: 2024-06-30 | J35: 2024-06-30 | K35: NO | L35: NO | M35: 8 | N35: NO | O35: NA | P35: 0.12 | Q35: 2022-07-18T11:41:00 | R35: 34
A36: SC_753_A1 | B36: PCH Quinchia A | C36: 2022-07-18 | D36: 12:32 pm | E36: 2.9 | F36: Hidraulica | G36: Quinchia 33 | H36: SC_753 | I36: 2025-12-31 | J36: 2025-12-31 | K36: NO | L36: NO | M36: 8 | N36: NO | O36: NA | P36: -3.232072289 | Q36: 2022-07-18T12:32:00 | R36: 35
A37: SC_753_A2 | B37: PCH Quinchia A | C37: 2022-07-18 | D37: 12:32 pm | E37: 2.9 | F37: Hidraulica | G37: Irra 33 | H37: SC_753 | I37: 2025-12-31 | J37: 2025-12-31 | K37: NO | L37: NO | M37: 8 | N37: NO | O37: NA | P37: -2.986826892 | Q37: 2022-07-18T12:32:00 | R37: 36
A38: SC_751_A1 | B38: PCH Rico Medio | C38: 2022-07-18 | D38: 1:14 pm | E38: 12.8 | F38: Hidraulica | G38: PuebloRico 33 | H38: SC_751 | I38: 2025-12-31 | J38: 2025-12-31 | K38: NO | L38: NO | M38: 8 | N38: NO | O38: NA | P38: -2.4613045 | Q38: 2022-07-18T13:14:00 | R38: 37
A39: SC_1649_A1 | B39: Parque Solar Fotovoltaico La Virginia II | C39: 2022-07-18 | D39: 3:29 pm | E39: 100 | F39: Solar FV | G39: Virginia 220 | H39: SC_1649 | I39: 2027-12-31 | J39: 2027-12-31 | K39: NO | L39: NO | M39: 8 | N39: NO | O39: NA | P39: -1.90144 | Q39: 2022-07-18T15:29:00 | R39: 38
A40: SC_1658_A1 | B40: Parque Solar Fotovoltaico La Virginia I | C40: 2022-07-18 | D40: 16:32:00 | E40: 100 | F40: Solar FV | G40: Virginia 220 | H40: SC_1658 | I40: 2027-12-31 | J40: 2027-12-31 | K40: NO | L40: NO | M40: 8 | N40: NO | O40: NA | P40: -1.90144 | Q40: 2022-07-18T16:32:00 | R40: 39
A41: SC_1341_A1 | B41: COG.002.2022 ORQUIDEA_4.95MW | C41: 2022-07-18 | D41: 5:13 pm | E41: 4.95 | F41: Solar FV | G41: Dosquebradas 13.2 | H41: SC_1341 | I41: 2024-09-30 | J41: 2024-09-30 | K41: NO | L41: NO | M41: 8 | N41: NO | O41: 0 | P41: 0.25 | Q41: 2022-07-18T17:13:00 | R41: 40
A42: SC_1341_A2 | B42: COG.002.2022 ORQUIDEA_4.95MW | C42: 2022-07-18 | D42: 5:13 pm | E42: 4.95 | F42: Solar FV | G42: Pavas1 13.2 | H42: SC_1341 | I42: 2024-09-30 | J42: 2024-09-30 | K42: NO | L42: NO | M42: 8 | N42: NO | O42: 0 | P42: 0.05 | Q42: 2022-07-18T17:13:00 | R42: 41
A43: SC_1605_A1 | B43: Ocobo de 150 MW | C43: 2022-07-18 | D43: 17:44:00 | E43: 150 | F43: Solar FV | G43: Virginia 220 | H43: SC_1605 | I43: 2026-12-31 | J43: 2026-12-31 | K43: NO | L43: NO | M43: 8 | N43: NO | O43: 0 | P43: 0.3 | Q43: 2022-07-18T17:44:00 | R43: 42
A44: SC_1605_A2 | B44: Ocobo de 150 MW | C44: 2022-07-18 | D44: 17:44:00 | E44: 150 | F44: Solar FV | G44: Virginia 500 | H44: SC_1605 | I44: 2026-12-31 | J44: 2026-12-31 | K44: NO | L44: NO | M44: 8 | N44: NO | O44: 0 | P44: 0.13 | Q44: 2022-07-18T17:44:00 | R44: 43
A45: SC_1735_A1 | B45: TR SOLAR 15 | C45: 2022-07-18 | D45: 11:10 pm | E45: 150 | F45: Solar FV | G45: Virginia 220 | H45: SC_1735 | I45: 2026-12-31 | J45: 2026-12-31 | K45: NO | L45: NO | M45: 8 | N45: NO | O45: NA | P45: -0.050491 | Q45: 2022-07-18T23:10:00 | R45: 44
A46: SC_1735_A2 | B46: TR SOLAR 15 | C46: 2022-07-18 | D46: 11:10 pm | E46: 150 | F46: Solar FV | G46: Virginia 500 | H46: SC_1735 | I46: 2026-12-31 | J46: 2026-12-31 | K46: NO | L46: NO | M46: 8 | N46: NO | O46: NA | P46: -0.0524 | Q46: 2022-07-18T23:10:00 | R46: 45
A47: SC_1796_A1 | B47: COG.003.2022 TORREALBA 4.99 MW | C47: 2022-07-28 | D47: 06:30:00 | E47: 4.99 | F47: Solar FV | G47: Pavas1 13.2 | H47: SC_1796 | I47: 2024-12-31 | J47: 2024-12-31 | K47: NO | L47: NO | M47: 8 | N47: NO | O47: NA | P47: 0.28 | Q47: 2022-07-28T06:30:00 | R47: 46
A48: SC_1796_A2 | B48: COG.003.2022 TORREALBA 4.99 MW | C48: 2022-07-28 | D48: 06:30:00 | E48: 4.99 | F48: Solar FV | G48: Pavas1 13.2 | H48: SC_1796 | I48: 2024-12-31 | J48: 2024-12-31 | K48: NO | L48: NO | M48: 8 | N48: NO | O48: NA | P48: -0.04 | Q48: 2022-07-28T06:30:00 | R48: 47
A49: SC_1895_A1 | B49: Hatillo Solar | C49: 2022-08-02 | D49: 8:55 am | E49: 200 | F49: Solar FV | G49: Virginia 220 | H49: SC_1895 | I49: 2025-12-31 | J49: 2025-12-31 | K49: NO | L49: NO | M49: 8 | N49: NO | O49: NA | P49: 17.42700822 | Q49: 2022-08-02T08:55:00 | R49: 48
A50: SC_1895_A2 | B50: Hatillo Solar | C50: 2022-08-02 | D50: 8:55 am | E50: 200 | F50: Solar FV | G50: Virginia 500 | H50: SC_1895 | I50: 2025-12-31 | J50: 2025-12-31 | K50: NO | L50: NO | M50: 8 | N50: NO | O50: NA | P50: 21.17523483 | Q50: 2022-08-02T08:55:00 | R50: 49
A51: SC_1826_A1 | B51: Caldas Solar I 19,9 MW | C51: 2022-08-04 | D51: 09:47:00 | E51: 19.9 | F51: Solar FV | G51: Viterbo 33 | H51: SC_1826 | I51: 2024-12-31 | J51: 2024-12-31 | K51: NO | L51: NO | M51: 8 | N51: NO | O51: NA | P51: 0.75 | Q51: 2022-08-04T09:47:00 | R51: 50
A52: SC_1875_A1 | B52: La Estrella | C52: 2022-08-04 | D52: 9:53 am | E52: 60 | F52: Solar FV | G52: Victoria CQR 115 | H52: SC_1875 | I52: 2026-12-31 | J52: 2026-12-31 | K52: NO | L52: NO | M52: 8 | N52: NO | O52: NA | P52: -1.07 | Q52: 2022-08-04T09:53:00 | R52: 51
A53: SC_1875_A2 | B53: La Estrella | C53: 2022-08-04 | D53: 9:53 am | E53: 60 | F53: Solar FV | G53: Manzanares 115 | H53: SC_1875 | I53: 2026-12-31 | J53: 2026-12-31 | K53: NO | L53: NO | M53: 8 | N53: NO | O53: NA | P53: -3.06 | Q53: 2022-08-04T09:53:00 | R53: 52
A54: SC_2040_A1 | B54: Parque Solar Fotovoltaico Caldas Solar II 19,9 MW | C54: 2022-08-09 | D54: 4:54 pm | E54: 19.9 | F54: Solar FV | G54: Viterbo 33 | H54: SC_2040 | I54: 2025-12-31 | J54: 2025-12-31 | K54: NO | L54: NO | M54: 8 | N54: NO | O54: NA | P54: 0.28 | Q54: 2022-08-09T16:54:00 | R54: 53
A55: SC_1798_A1 | B55: Parque Solar El Capibara 130 MW | C55: 2022-08-10 | D55: 09:25:00 | E55: 130 | F55: Solar FV | G55: San Felipe 220 | H55: SC_1798 | I55: 2026-12-31 | J55: 2026-12-31 | K55: NO | L55: NO | M55: 8 | N55: NO | O55: NA | P55: -112.8688191 | Q55: 2022-08-10T09:25:00 | R55: 54
A56: SC_1798_A2 | B56: Parque Solar El Capibara 130 MW | C56: 2022-08-10 | D56: 09:25:00 | E56: 130 | F56: Solar FV | G56: Virginia 500 | H56: SC_1798 | I56: 2026-12-31 | J56: 2026-12-31 | K56: NO | L56: NO | M56: 8 | N56: NO | O56: NA | P56: -47.99936552 | Q56: 2022-08-10T09:25:00 | R56: 55
A57: SC_1802_A1 | B57: Parque Solar El Capibara II 130 MW | C57: 2022-08-10 | D57: 9:30 am | E57: 130 | F57: Solar FV | G57: San Felipe 220 | H57: SC_1802 | I57: 2026-12-31 | J57: 2026-12-31 | K57: NO | L57: NO | M57: 8 | N57: NO | O57: NA | P57: -112.8688191 | Q57: 2022-08-10T09:30:00 | R57: 56
A58: SC_1802_A2 | B58: Parque Solar El Capibara II 130 MW | C58: 2022-08-10 | D58: 9:30 am | E58: 130 | F58: Solar FV | G58: Virginia 500 | H58: SC_1802 | I58: 2026-12-31 | J58: 2026-12-31 | K58: NO | L58: NO | M58: 8 | N58: NO | O58: NA | P58: -47.99936552 | Q58: 2022-08-10T09:30:00 | R58: 57
A59: SC_1791_A1 | B59: COG.005.2022 GUANACASTE | C59: 2022-08-12 | D59: 11:42 am | E59: 9.9 | F59: Solar FV | G59: Pavas 33 | H59: SC_1791 | I59: 2024-12-31 | J59: 2024-12-31 | K59: NO | L59: NO | M59: 8 | N59: NO | O59: NA | P59: -0.43 | Q59: 2022-08-12T11:42:00 | R59: 58
A60: SC_1791_A2 | B60: COG.005.2022 GUANACASTE | C60: 2022-08-12 | D60: 11:42 am | E60: 9.9 | F60: Solar FV | G60: Pavas 33 | H60: SC_1791 | I60: 2024-12-31 | J60: 2024-12-31 | K60: NO | L60: NO | M60: 8 | N60: NO | O60: NA | P60: -0.04 | Q60: 2022-08-12T11:42:00 | R60: 59
A61: SC_2139_A1 | B61: LAS BRUJAS SOLAR_9.9MW | C61: 2022-08-13 | D61: 10:58 am | E61: 9.9 | F61: Solar FV | G61: Pavas 33 | H61: SC_2139 | I61: 2023-06-30 | J61: 2023-06-30 | K61: NO | L61: NO | M61: 8 | N61: NO | O61: NA | P61: -0.171 | Q61: 2022-08-13T10:58:00 | R61: 60
A62: SC_2139_A2 | B62: LAS BRUJAS SOLAR_9.9MW | C62: 2022-08-13 | D62: 10:58 am | E62: 9.9 | F62: Solar FV | G62: Pavas 33 | H62: SC_2139 | I62: 2023-06-30 | J62: 2023-06-30 | K62: NO | L62: NO | M62: 8 | N62: NO | O62: NA | P62: -0.093 | Q62: 2022-08-13T10:58:00 | R62: 61
A63: SC_1900_A2 | B63: PCH Salamina | C63: 2022-08-16 | D63: 09:40:00 | E63: 19.9 | F63: Hidraulica | G63: Salamina 115 | H63: SC_1900 | I63: 2026-12-31 | J63: 2026-12-31 | K63: NO | L63: NO | M63: 8 | N63: NO | O63: NA | P63: -2.8623 | Q63: 2022-08-16T09:40:00 | R63: 62
A64: SC_1911_A1 | B64: Heliconea | C64: 2022-08-16 | D64: 1:47 pm | E64: 60 | F64: Solar FV | G64: San Felipe 115 | H64: SC_1911 | I64: 2025-12-31 | J64: 2025-12-31 | K64: NO | L64: NO | M64: 8 | N64: NO | O64: NA | P64: -3.83506 | Q64: 2022-08-16T13:47:00 | R64: 63
A65: SC_1911_A2 | B65: Heliconea | C65: 2022-08-16 | D65: 1:47 pm | E65: 60 | F65: Solar FV | G65: Mariquita 115 | H65: SC_1911 | I65: 2025-12-31 | J65: 2025-12-31 | K65: NO | L65: NO | M65: 8 | N65: NO | O65: NA | P65: -4.05653 | Q65: 2022-08-16T13:47:00 | R65: 64
A66: SC_2090_A1 | B66: Autogenerador Solar Mariquita_5.1MW-0MW (AUTOGENERADOR) | C66: 2022-08-16 | D66: 3:04 pm | E66: 5.1 | F66: Solar FV | G66: Mariquita 34.5 | H66: SC_2090 | I66: 2024-12-31 | J66: 2024-12-31 | K66: NO | L66: NO | M66: 8 | N66: NO | O66: NA | P66: -0.268 | Q66: =C66+D66 -> 2022-08-16T15:04:00 | R66: 65
A67: SC_1917_A1 | B67: Parque Solar La Victoria | C67: 2022-08-16 | D67: 3:29 pm | E67: 40 | F67: Solar FV | G67: Victoria CQR 115 | H67: SC_1917 | I67: 2026-12-31 | J67: 2026-12-31 | K67: NO | L67: NO | M67: 8 | N67: NO | O67: NA | P67: -3.93489 | Q67: 2022-08-16T15:29:00 | R67: 66
A68: SC_1917_A2 | B68: Parque Solar La Victoria | C68: 2022-08-16 | D68: 3:29 pm | E68: 40 | F68: Solar FV | G68: Mariquita 115 | H68: SC_1917 | I68: 2026-12-31 | J68: 2026-12-31 | K68: NO | L68: NO | M68: 8 | N68: NO | O68: NA | P68: -3.19985 | Q68: 2022-08-16T15:29:00 | R68: 67
A69: SC_1817_A1 | B69: COG.006.2022 CATLEYA | C69: 2022-08-16 | D69: 8:35 pm | E69: 9.9 | F69: Solar FV | G69: Pavas 33 | H69: SC_1817 | I69: 2024-09-30 | J69: 2024-09-30 | K69: NO | L69: NO | M69: 8 | N69: NO | O69: NA | P69: -0.63 | Q69: 2022-08-16T20:35:00 | R69: 68
A70: SC_1817_A2 | B70: COG.006.2022 CATLEYA | C70: 2022-08-16 | D70: 8:35 pm | E70: 9.9 | F70: Solar FV | G70: Pavas 33 | H70: SC_1817 | I70: 2024-09-30 | J70: 2024-09-30 | K70: NO | L70: NO | M70: 8 | N70: NO | O70: NA | P70: -0.21 | Q70: 2022-08-16T20:35:00 | R70: 69
A71: SC_2177_A1 | B71: Parque Solar Fotovoltaico Camelia 9,9 MW | C71: 2022-08-17 | D71: 10:35 am | E71: 9.9 | F71: Solar FV | G71: Dorada 33 | H71: SC_2177 | I71: 2024-12-31 | J71: 2024-12-31 | K71: NO | L71: NO | M71: 8 | N71: NO | O71: NA | P71: -0.76 | Q71: 2022-08-17T10:35:00 | R71: 70
A72: SC_2177_A2 | B72: Parque Solar Fotovoltaico Camelia 9,9 MW | C72: 2022-08-17 | D72: 10:35 am | E72: 9.9 | F72: Solar FV | G72: DNorte 33 | H72: SC_2177 | I72: 2024-12-31 | J72: 2024-12-31 | K72: NO | L72: NO | M72: 8 | N72: NO | O72: NA | P72: -0.77 | Q72: 2022-08-17T10:35:00 | R72: 71
A73: SC_2062_A1 | B73: Puerto Solar | C73: 2022-08-18 | D73: 8:13 am | E73: 9.9 | F73: Solar FV | G73: Salamina Cund 33 | H73: SC_2062 | I73: 2024-12-31 | J73: 2024-12-31 | K73: NO | L73: NO | M73: 8 | N73: NO | O73: NA | P73: -1.45286 | Q73: 2022-08-18T08:13:00 | R73: 72
A74: SC_2062_A2 | B74: Puerto Solar | C74: 2022-08-18 | D74: 8:13 am | E74: 9.9 | F74: Solar FV | G74: Dorada 33 | H74: SC_2062 | I74: 2024-12-31 | J74: 2024-12-31 | K74: NO | L74: NO | M74: 8 | N74: NO | O74: NA | P74: -1.121 | Q74: 2022-08-18T08:13:00 | R74: 73
A75: SC_2178_A1 | B75: Parque Solar Fotovoltaico Dalia 9,9 MW | C75: 2022-08-18 | D75: 9:01 am | E75: 9.9 | F75: Solar FV | G75: Dorada 33 | H75: SC_2178 | I75: 2024-12-31 | J75: 2024-12-31 | K75: NO | L75: NO | M75: 8 | N75: NO | O75: NA | P75: -0.78 | Q75: 2022-08-18T09:01:00 | R75: 74
A76: SC_2178_A2 | B76: Parque Solar Fotovoltaico Dalia 9,9 MW | C76: 2022-08-18 | D76: 9:01 am | E76: 9.9 | F76: Solar FV | G76: DNorte 33 | H76: SC_2178 | I76: 2024-12-31 | J76: 2024-12-31 | K76: NO | L76: NO | M76: 8 | N76: NO | O76: NA | P76: -0.8 | Q76: 2022-08-18T09:01:00 | R76: 75
A77: SC_2102_A1 | B77: Parque Solar Beltran 9,9 MW | C77: 2022-08-22 | D77: 9:22 am | E77: 9.9 | F77: Solar FV | G77: Beltran 34.5 | H77: SC_2102 | I77: 2025-12-31 | J77: 2025-12-31 | K77: NO | L77: NO | M77: 8 | N77: NO | O77: 0 | P77: 0.63 | Q77: 2022-08-22T09:22:00 | R77: 76
A78: SC_2102_A2 | B78: Parque Solar Beltran 9,9 MW | C78: 2022-08-22 | D78: 9:22 am | E78: 9.9 | F78: Solar FV | G78: Ambalema 34.5 | H78: SC_2102 | I78: 2025-12-31 | J78: 2025-12-31 | K78: NO | L78: NO | M78: 8 | N78: NO | O78: 0 | P78: 0.76 | Q78: 2022-08-22T09:22:00 | R78: 77
A79: SC_2296_A1 | B79: Parque Solar San Mateo 80 MW | C79: 2022-08-22 | D79: 2:43 pm | E79: 80 | F79: Solar FV | G79: Virginia 220 | H79: SC_2296 | I79: 2025-12-31 | J79: 2025-12-31 | K79: NO | L79: NO | M79: 8 | N79: NO | O79: NA | P79: -1.047 | Q79: 2022-08-22T14:43:00 | R79: 78
A80: SC_2081_A1 | B80: Parque Solar Fotovoltaico El Encanto | C80: 2022-08-23 | D80: 8:59 am | E80: 50 | F80: Solar FV | G80: San Felipe 115 | H80: SC_2081 | I80: 2028-12-31 | J80: 2028-12-31 | K80: NO | L80: NO | M80: 8 | N80: NO | O80: NA | P80: 0.01 | Q80: 2022-08-23T08:59:00 | R80: 79
A81: SC_2081_A2 | B81: Parque Solar Fotovoltaico El Encanto | C81: 2022-08-23 | D81: 8:59 am | E81: 50 | F81: Solar FV | G81: San Felipe 220 | H81: SC_2081 | I81: 2028-12-31 | J81: 2028-12-31 | K81: NO | L81: NO | M81: 8 | N81: NO | O81: NA | P81: 0.12 | Q81: 2022-08-23T08:59:00 | R81: 80
A82: SC_1679_A2 | B82: PCH EL MOLINO | C82: 2022-08-23 | D82: 3:48 pm | E82: 19.9 | F82: Hidraulica | G82: Guayabal 34.5 | H82: SC_1679 | I82: 2026-12-31 | J82: 2026-12-31 | K82: NO | L82: NO | M82: 8 | N82: NO | O82: NA | P82: -4.9405 | Q82: 2022-08-23T15:48:00 | R82: 81
A83: SC_2229_A1 | B83: El Silencio 120MW y su línea de evacuación de220kV | C83: 2022-08-25 | D83: 4:39 pm | E83: 120 | F83: Solar FV | G83: San Felipe 220 | H83: SC_2229 | I83: 2027-06-30 | J83: 2027-06-30 | K83: NO | L83: NO | M83: 8 | N83: NO | O83: NA | P83: -37.81 | Q83: 2022-08-25T16:39:00 | R83: 82
A84: SC_1511_A1 | B84: Planta Solar FV Ambalema | C84: 2022-08-31 | D84: 10:32 pm | E84: 7 | F84: Solar FV | G84: Ambalema 13.2 | H84: SC_1511 | I84: 2024-12-31 | J84: 2024-12-31 | K84: NO | L84: NO | M84: 8 | N84: NO | O84: NA | P84: 0.152 | Q84: 2022-08-31T22:32:00 | R84: 83
A85: SC_1511_A2 | B85: Planta Solar FV Ambalema | C85: 2022-08-31 | D85: 10:32 pm | E85: 7 | F85: Solar FV | G85: Ambalema 34.5 | H85: SC_1511 | I85: 2024-12-31 | J85: 2024-12-31 | K85: NO | L85: NO | M85: 8 | N85: NO | O85: NA | P85: 0.213 | Q85: 2022-08-31T22:32:00 | R85: 84
A86: SC_1743_A1 | B86: SOLAR FOTOVOLTAICO FRESNOS 60 MW | C86: 2022-09-02 | D86: 11:33 am | E86: 60 | F86: Solar FV | G86: San Felipe 115 | H86: SC_1743 | I86: 2026-12-31 | J86: 2026-12-31 | K86: NO | L86: NO | M86: 8 | N86: NO | O86: NA | P86: -20.318 | Q86: 2022-09-02T11:33:00 | R86: 85
A87: SC_1743_A2 | B87: SOLAR FOTOVOLTAICO FRESNOS 60 MW | C87: 2022-09-02 | D87: 11:33 am | E87: 60 | F87: Solar FV | G87: San Felipe 220 | H87: SC_1743 | I87: 2026-12-31 | J87: 2026-12-31 | K87: NO | L87: NO | M87: 8 | N87: NO | O87: NA | P87: -16.833 | Q87: 2022-09-02T11:33:00 | R87: 86
A88: SC_1745_A2 | B88: PARQUE SOLAR FOTOVOLTAICO CERESOS 9,9 MW | C88: 2022-09-02 | D88: 12:04 pm | E88: 9.9 | F88: Solar FV | G88: Mariquita 34.5 | H88: SC_1745 | I88: 2026-12-31 | J88: 2026-12-31 | K88: NO | L88: NO | M88: 8 | N88: NO | O88: NA | P88: -3.261 | Q88: 2022-09-02T12:04:00 | R88: 87
A89: SC_1738_A1 | B89: Parque Solar La Ponderosa | C89: 2022-09-03 | D89: 6:45 pm | E89: 99.99 | F89: Solar FV | G89: Dorada 115 | H89: SC_1738 | I89: 2023-12-31 | J89: 2023-12-31 | K89: NO | L89: NO | M89: 8 | N89: NO | O89: NA | P89: -2.674 | Q89: 2022-09-03T18:45:00 | R89: 88
A90: SC_1738_A2 | B90: Parque Solar La Ponderosa | C90: 2022-09-03 | D90: 6:45 pm | E90: 99.99 | F90: Solar FV | G90: Purnio 115 | H90: SC_1738 | I90: 2023-12-31 | J90: 2023-12-31 | K90: NO | L90: NO | M90: 8 | N90: NO | O90: NA | P90: -2.439 | Q90: 2022-09-03T18:45:00 | R90: 89

Sheet IT-TA
B1: Codigo | C1: Nombre | D1: Capacidad | E1: Licencia Ambiental obtenida | F1: Año de entrada | G1: P | H1: Total | J1: Año de Referencia
B2: =IF(ISBLANK(InfoPro!A2),"",InfoPro!A2) -> SC_150_A1 | C2: =IF(ISBLANK(InfoPro!B2),"",InfoPro!B2) -> La Estrella 80 MW | D2: =IF(ISBLANK(InfoPro!E2),"",InfoPro!E2) -> 80 | E2: =IF(ISBLANK(InfoPro!N2),"",InfoPro!N2) -> NO | F2: =IF(ISBLANK(InfoPro!I2),"",YEAR(InfoPro!I2)-$J$2) -> 3 | G2: =IF(E2="SI",100,IF(E2="NO",0,"")) -> 0 | H2: =IF(G2="","",(G2)) -> 0 | J2: 2023
B3: =IF(ISBLANK(InfoPro!A3),"",InfoPro!A3) -> SC_201_A1 | C3: =IF(ISBLANK(InfoPro!B3),"",InfoPro!B3) -> PARQUE SOLAR PUERTA DE ORO - 300 MW | D3: =IF(ISBLANK(InfoPro!E3),"",InfoPro!E3) -> 300 | E3: =IF(ISBLANK(InfoPro!N3),"",InfoPro!N3) -> NO | F3: =IF(ISBLANK(InfoPro!I3),"",YEAR(InfoPro!I3)-$J$2) -> 2 | G3: =IF(E3="SI",100,IF(E3="NO",0,"")) -> 0 | H3: =IF(G3="","",(G3)) -> 0
B4: =IF(ISBLANK(InfoPro!A4),"",InfoPro!A4) -> SC_489_A1 | C4: =IF(ISBLANK(InfoPro!B4),"",InfoPro!B4) -> PARQUE SOLAR VIRGINIA 300 MW | D4: =IF(ISBLANK(InfoPro!E4),"",InfoPro!E4) -> 300 | E4: =IF(ISBLANK(InfoPro!N4),"",InfoPro!N4) -> NO | F4: =IF(ISBLANK(InfoPro!I4),"",YEAR(InfoPro!I4)-$J$2) -> 3 | G4: 0 | H4: 0
B5: =IF(ISBLANK(InfoPro!A5),"",InfoPro!A5) -> SC_564_A1 | C5: =IF(ISBLANK(InfoPro!B5),"",InfoPro!B5) -> Marte 100 MW | D5: =IF(ISBLANK(InfoPro!E5),"",InfoPro!E5) -> 100 | E5: =IF(ISBLANK(InfoPro!N5),"",InfoPro!N5) -> NO | F5: =IF(ISBLANK(InfoPro!I5),"",YEAR(InfoPro!I5)-$J$2) -> 2 | G5: 0 | H5: 0
B6: =IF(ISBLANK(InfoPro!A6),"",InfoPro!A6) -> SC_752_A1 | C6: =IF(ISBLANK(InfoPro!B6),"",InfoPro!B6) -> El Triunfo 19,9MW | D6: =IF(ISBLANK(InfoPro!E6),"",InfoPro!E6) -> 19.9 | E6: =IF(ISBLANK(InfoPro!N6),"",InfoPro!N6) -> NO | F6: =IF(ISBLANK(InfoPro!I6),"",YEAR(InfoPro!I6)-$J$2) -> 2 | G6: 0 | H6: 0
B7: =IF(ISBLANK(InfoPro!A7),"",InfoPro!A7) -> SC_729_A1 | C7: =IF(ISBLANK(InfoPro!B7),"",InfoPro!B7) -> PLANTA FV DOÑA JUANA_4.3MW | D7: =IF(ISBLANK(InfoPro!E7),"",InfoPro!E7) -> 4.3 | E7: =IF(ISBLANK(InfoPro!N7),"",InfoPro!N7) -> NO | F7: =IF(ISBLANK(InfoPro!I7),"",YEAR(InfoPro!I7)-$J$2) -> 2 | G7: 0 | H7: 0
B8: =IF(ISBLANK(InfoPro!A8),"",InfoPro!A8) -> SC_729_A2 | C8: =IF(ISBLANK(InfoPro!B8),"",InfoPro!B8) -> PLANTA FV DOÑA JUANA_4.3MW | D8: =IF(ISBLANK(InfoPro!E8),"",InfoPro!E8) -> 4.3 | E8: =IF(ISBLANK(InfoPro!N8),"",InfoPro!N8) -> NO | F8: =IF(ISBLANK(InfoPro!I8),"",YEAR(InfoPro!I8)-$J$2) -> 2 | G8: 0 | H8: 0
B9: =IF(ISBLANK(InfoPro!A9),"",InfoPro!A9) -> SC_819_A1 | C9: =IF(ISBLANK(InfoPro!B9),"",InfoPro!B9) -> PLANTA FV SAN FRANCISCO 4.9 MW | D9: =IF(ISBLANK(InfoPro!E9),"",InfoPro!E9) -> 4.9 | E9: =IF(ISBLANK(InfoPro!N9),"",InfoPro!N9) -> NO | F9: =IF(ISBLANK(InfoPro!I9),"",YEAR(InfoPro!I9)-$J$2) -> 1 | G9: 0 | H9: 0
B10: =IF(ISBLANK(InfoPro!A10),"",InfoPro!A10) -> SC_819_A2 | C10: =IF(ISBLANK(InfoPro!B10),"",InfoPro!B10) -> PLANTA FV SAN FRANCISCO 4.9 MW | D10: =IF(ISBLANK(InfoPro!E10),"",InfoPro!E10) -> 4.9 | E10: =IF(ISBLANK(InfoPro!N10),"",InfoPro!N10) -> NO | F10: =IF(ISBLANK(InfoPro!I10),"",YEAR(InfoPro!I10)-$J$2) -> 1 | G10: 0 | H10: 0
B11: =IF(ISBLANK(InfoPro!A11),"",InfoPro!A11) -> SC_804_A1 | C11: =IF(ISBLANK(InfoPro!B11),"",InfoPro!B11) -> PLANTA FV MONTECRISTO 90 MW | D11: =IF(ISBLANK(InfoPro!E11),"",InfoPro!E11) -> 90 | E11: =IF(ISBLANK(InfoPro!N11),"",InfoPro!N11) -> NO | F11: =IF(ISBLANK(InfoPro!I11),"",YEAR(InfoPro!I11)-$J$2) -> 3 | G11: 0 | H11: 0
B12: =IF(ISBLANK(InfoPro!A12),"",InfoPro!A12) -> SC_804_A2 | C12: =IF(ISBLANK(InfoPro!B12),"",InfoPro!B12) -> PLANTA FV MONTECRISTO 90 MW | D12: =IF(ISBLANK(InfoPro!E12),"",InfoPro!E12) -> 90 | E12: =IF(ISBLANK(InfoPro!N12),"",InfoPro!N12) -> NO | F12: =IF(ISBLANK(InfoPro!I12),"",YEAR(InfoPro!I12)-$J$2) -> 3 | G12: 0 | H12: 0
B13: =IF(ISBLANK(InfoPro!A13),"",InfoPro!A13) -> SC_1125_A1 | C13: =IF(ISBLANK(InfoPro!B13),"",InfoPro!B13) -> San Felipe Solar 80 MW | D13: =IF(ISBLANK(InfoPro!E13),"",InfoPro!E13) -> 80 | E13: =IF(ISBLANK(InfoPro!N13),"",InfoPro!N13) -> NO | F13: =IF(ISBLANK(InfoPro!I13),"",YEAR(InfoPro!I13)-$J$2) -> 3 | G13: 0 | H13: 0
B14: =IF(ISBLANK(InfoPro!A14),"",InfoPro!A14) -> SC_1013_A1 | C14: =IF(ISBLANK(InfoPro!B14),"",InfoPro!B14) -> Amanecer | D14: =IF(ISBLANK(InfoPro!E14),"",InfoPro!E14) -> 150 | E14: =IF(ISBLANK(InfoPro!N14),"",InfoPro!N14) -> NO | F14: =IF(ISBLANK(InfoPro!I14),"",YEAR(InfoPro!I14)-$J$2) -> 2 | G14: 0 | H14: 0
B15: =IF(ISBLANK(InfoPro!A15),"",InfoPro!A15) -> SC_2299_A1 | C15: =IF(ISBLANK(InfoPro!B15),"",InfoPro!B15) -> Caribe | D15: =IF(ISBLANK(InfoPro!E15),"",InfoPro!E15) -> 55 | E15: =IF(ISBLANK(InfoPro!N15),"",InfoPro!N15) -> NO | F15: =IF(ISBLANK(InfoPro!I15),"",YEAR(InfoPro!I15)-$J$2) -> 2 | G15: 0 | H15: 0
B16: =IF(ISBLANK(InfoPro!A16),"",InfoPro!A16) -> SC_2299_A2 | C16: =IF(ISBLANK(InfoPro!B16),"",InfoPro!B16) -> Caribe | D16: =IF(ISBLANK(InfoPro!E16),"",InfoPro!E16) -> 55 | E16: =IF(ISBLANK(InfoPro!N16),"",InfoPro!N16) -> NO | F16: =IF(ISBLANK(InfoPro!I16),"",YEAR(InfoPro!I16)-$J$2) -> 2 | G16: 0 | H16: 0
B17: =IF(ISBLANK(InfoPro!A17),"",InfoPro!A17) -> SC_1138_A1 | C17: =IF(ISBLANK(InfoPro!B17),"",InfoPro!B17) -> Parque Solar La Virginia | D17: =IF(ISBLANK(InfoPro!E17),"",InfoPro!E17) -> 80 | E17: =IF(ISBLANK(InfoPro!N17),"",InfoPro!N17) -> NO | F17: =IF(ISBLANK(InfoPro!I17),"",YEAR(InfoPro!I17)-$J$2) -> 2 | G17: 0 | H17: 0
B18: =IF(ISBLANK(InfoPro!A18),"",InfoPro!A18) -> SC_904_A2 | C18: =IF(ISBLANK(InfoPro!B18),"",InfoPro!B18) -> Los Monos | D18: =IF(ISBLANK(InfoPro!E18),"",InfoPro!E18) -> 9.9 | E18: =IF(ISBLANK(InfoPro!N18),"",InfoPro!N18) -> NO | F18: =IF(ISBLANK(InfoPro!I18),"",YEAR(InfoPro!I18)-$J$2) -> 2 | G18: 0 | H18: 0
B19: =IF(ISBLANK(InfoPro!A19),"",InfoPro!A19) -> SC_521_A1 | C19: =IF(ISBLANK(InfoPro!B19),"",InfoPro!B19) -> TR SOLAR 1 | D19: =IF(ISBLANK(InfoPro!E19),"",InfoPro!E19) -> 130 | E19: =IF(ISBLANK(InfoPro!N19),"",InfoPro!N19) -> NO | F19: =IF(ISBLANK(InfoPro!I19),"",YEAR(InfoPro!I19)-$J$2) -> 3 | G19: 0 | H19: 0
B20: =IF(ISBLANK(InfoPro!A20),"",InfoPro!A20) -> SC_521_A2 | C20: =IF(ISBLANK(InfoPro!B20),"",InfoPro!B20) -> TR SOLAR 1 | D20: =IF(ISBLANK(InfoPro!E20),"",InfoPro!E20) -> 130 | E20: =IF(ISBLANK(InfoPro!N20),"",InfoPro!N20) -> NO | F20: =IF(ISBLANK(InfoPro!I20),"",YEAR(InfoPro!I20)-$J$2) -> 3 | G20: 0 | H20: 0
B21: =IF(ISBLANK(InfoPro!A21),"",InfoPro!A21) -> SC_621_A1 | C21: =IF(ISBLANK(InfoPro!B21),"",InfoPro!B21) -> TR Solar 2 | D21: =IF(ISBLANK(InfoPro!E21),"",InfoPro!E21) -> 150 | E21: =IF(ISBLANK(InfoPro!N21),"",InfoPro!N21) -> NO | F21: =IF(ISBLANK(InfoPro!I21),"",YEAR(InfoPro!I21)-$J$2) -> 3 | G21: 0 | H21: 0
B22: =IF(ISBLANK(InfoPro!A22),"",InfoPro!A22) -> SC_621_A2 | C22: =IF(ISBLANK(InfoPro!B22),"",InfoPro!B22) -> TR Solar 2 | D22: =IF(ISBLANK(InfoPro!E22),"",InfoPro!E22) -> 150 | E22: =IF(ISBLANK(InfoPro!N22),"",InfoPro!N22) -> NO | F22: =IF(ISBLANK(InfoPro!I22),"",YEAR(InfoPro!I22)-$J$2) -> 3 | G22: 0 | H22: 0
B23: =IF(ISBLANK(InfoPro!A23),"",InfoPro!A23) -> SC_1298_A1 | C23: =IF(ISBLANK(InfoPro!B23),"",InfoPro!B23) -> Tucacas Solar | D23: =IF(ISBLANK(InfoPro!E23),"",InfoPro!E23) -> 150 | E23: =IF(ISBLANK(InfoPro!N23),"",InfoPro!N23) -> NO | F23: =IF(ISBLANK(InfoPro!I23),"",YEAR(InfoPro!I23)-$J$2) -> 2 | G23: 0 | H23: 0
B24: =IF(ISBLANK(InfoPro!A24),"",InfoPro!A24) -> SC_1362_A1 | C24: =IF(ISBLANK(InfoPro!B24),"",InfoPro!B24) -> AES Solar 3_100MW | D24: =IF(ISBLANK(InfoPro!E24),"",InfoPro!E24) -> 100 | E24: =IF(ISBLANK(InfoPro!N24),"",InfoPro!N24) -> NO | F24: =IF(ISBLANK(InfoPro!I24),"",YEAR(InfoPro!I24)-$J$2) -> 2 | G24: 0 | H24: 0
B25: =IF(ISBLANK(InfoPro!A25),"",InfoPro!A25) -> SC_1362_A2 | C25: =IF(ISBLANK(InfoPro!B25),"",InfoPro!B25) -> AES Solar 3_100MW | D25: =IF(ISBLANK(InfoPro!E25),"",InfoPro!E25) -> 100 | E25: =IF(ISBLANK(InfoPro!N25),"",InfoPro!N25) -> NO | F25: =IF(ISBLANK(InfoPro!I25),"",YEAR(InfoPro!I25)-$J$2) -> 2 | G25: 0 | H25: 0
B26: =IF(ISBLANK(InfoPro!A26),"",InfoPro!A26) -> SC_845_A1 | C26: =IF(ISBLANK(InfoPro!B26),"",InfoPro!B26) -> Pijaos | D26: =IF(ISBLANK(InfoPro!E26),"",InfoPro!E26) -> 19.9 | E26: =IF(ISBLANK(InfoPro!N26),"",InfoPro!N26) -> NO | F26: =IF(ISBLANK(InfoPro!I26),"",YEAR(InfoPro!I26)-$J$2) -> 3 | G26: 0 | H26: 0
B27: =IF(ISBLANK(InfoPro!A27),"",InfoPro!A27) -> SC_845_A2 | C27: =IF(ISBLANK(InfoPro!B27),"",InfoPro!B27) -> Pijaos | D27: =IF(ISBLANK(InfoPro!E27),"",InfoPro!E27) -> 19.9 | E27: =IF(ISBLANK(InfoPro!N27),"",InfoPro!N27) -> NO | F27: =IF(ISBLANK(InfoPro!I27),"",YEAR(InfoPro!I27)-$J$2) -> 3 | G27: 0 | H27: 0
B28: =IF(ISBLANK(InfoPro!A28),"",InfoPro!A28) -> SC_1413_A2 | C28: =IF(ISBLANK(InfoPro!B28),"",InfoPro!B28) -> CSF CONTINUA LA VIRGINIA 120MW | D28: =IF(ISBLANK(InfoPro!E28),"",InfoPro!E28) -> 120 | E28: =IF(ISBLANK(InfoPro!N28),"",InfoPro!N28) -> NO | F28: =IF(ISBLANK(InfoPro!I28),"",YEAR(InfoPro!I28)-$J$2) -> 3 | G28: 0 | H28: 0
B29: =IF(ISBLANK(InfoPro!A29),"",InfoPro!A29) -> SC_976_A2 | C29: =IF(ISBLANK(InfoPro!B29),"",InfoPro!B29) -> Abirá | D29: =IF(ISBLANK(InfoPro!E29),"",InfoPro!E29) -> 9.9 | E29: =IF(ISBLANK(InfoPro!N29),"",InfoPro!N29) -> NO | F29: =IF(ISBLANK(InfoPro!I29),"",YEAR(InfoPro!I29)-$J$2) -> 3 | G29: 0 | H29: 0
B30: =IF(ISBLANK(InfoPro!A30),"",InfoPro!A30) -> SC_1061_A1 | C30: =IF(ISBLANK(InfoPro!B30),"",InfoPro!B30) -> Siatá 19.9 | D30: =IF(ISBLANK(InfoPro!E30),"",InfoPro!E30) -> 19.9 | E30: =IF(ISBLANK(InfoPro!N30),"",InfoPro!N30) -> NO | F30: =IF(ISBLANK(InfoPro!I30),"",YEAR(InfoPro!I30)-$J$2) -> 3 | G30: 0 | H30: 0
B31: =IF(ISBLANK(InfoPro!A31),"",InfoPro!A31) -> SC_1061_A2 | C31: =IF(ISBLANK(InfoPro!B31),"",InfoPro!B31) -> Siatá 19.9 | D31: =IF(ISBLANK(InfoPro!E31),"",InfoPro!E31) -> 19.9 | E31: =IF(ISBLANK(InfoPro!N31),"",InfoPro!N31) -> NO | F31: =IF(ISBLANK(InfoPro!I31),"",YEAR(InfoPro!I31)-$J$2) -> 3 | G31: 0 | H31: 0
B32: =IF(ISBLANK(InfoPro!A32),"",InfoPro!A32) -> SC_848_A1 | C32: =IF(ISBLANK(InfoPro!B32),"",InfoPro!B32) -> PCH QUINCHIA | D32: =IF(ISBLANK(InfoPro!E32),"",InfoPro!E32) -> 2.4 | E32: =IF(ISBLANK(InfoPro!N32),"",InfoPro!N32) -> SI | F32: =IF(ISBLANK(InfoPro!I32),"",YEAR(InfoPro!I32)-$J$2) -> 0 | G32: 100 | H32: 100
B33: =IF(ISBLANK(InfoPro!A33),"",InfoPro!A33) -> SC_848_A2 | C33: =IF(ISBLANK(InfoPro!B33),"",InfoPro!B33) -> PCH QUINCHIA | D33: =IF(ISBLANK(InfoPro!E33),"",InfoPro!E33) -> 2.4 | E33: =IF(ISBLANK(InfoPro!N33),"",InfoPro!N33) -> NO | F33: =IF(ISBLANK(InfoPro!I33),"",YEAR(InfoPro!I33)-$J$2) -> 0 | G33: 0 | H33: 0
B34: =IF(ISBLANK(InfoPro!A34),"",InfoPro!A34) -> SC_1612_A1 | C34: =IF(ISBLANK(InfoPro!B34),"",InfoPro!B34) -> CSF CONTINUA ARMERO 90MW | D34: =IF(ISBLANK(InfoPro!E34),"",InfoPro!E34) -> 90 | E34: =IF(ISBLANK(InfoPro!N34),"",InfoPro!N34) -> NO | F34: =IF(ISBLANK(InfoPro!I34),"",YEAR(InfoPro!I34)-$J$2) -> 1 | G34: 0 | H34: 0
B35: =IF(ISBLANK(InfoPro!A35),"",InfoPro!A35) -> SC_1612_A2 | C35: =IF(ISBLANK(InfoPro!B35),"",InfoPro!B35) -> CSF CONTINUA ARMERO 90MW | D35: =IF(ISBLANK(InfoPro!E35),"",InfoPro!E35) -> 90 | E35: =IF(ISBLANK(InfoPro!N35),"",InfoPro!N35) -> NO | F35: =IF(ISBLANK(InfoPro!I35),"",YEAR(InfoPro!I35)-$J$2) -> 1 | G35: 0 | H35: 0
B36: =IF(ISBLANK(InfoPro!A36),"",InfoPro!A36) -> SC_753_A1 | C36: =IF(ISBLANK(InfoPro!B36),"",InfoPro!B36) -> PCH Quinchia A | D36: =IF(ISBLANK(InfoPro!E36),"",InfoPro!E36) -> 2.9 | E36: =IF(ISBLANK(InfoPro!N36),"",InfoPro!N36) -> NO | F36: =IF(ISBLANK(InfoPro!I36),"",YEAR(InfoPro!I36)-$J$2) -> 2 | G36: 0 | H36: 0
B37: =IF(ISBLANK(InfoPro!A37),"",InfoPro!A37) -> SC_753_A2 | C37: =IF(ISBLANK(InfoPro!B37),"",InfoPro!B37) -> PCH Quinchia A | D37: =IF(ISBLANK(InfoPro!E37),"",InfoPro!E37) -> 2.9 | E37: =IF(ISBLANK(InfoPro!N37),"",InfoPro!N37) -> NO | F37: =IF(ISBLANK(InfoPro!I37),"",YEAR(InfoPro!I37)-$J$2) -> 2 | G37: 0 | H37: 0
B38: =IF(ISBLANK(InfoPro!A38),"",InfoPro!A38) -> SC_751_A1 | C38: =IF(ISBLANK(InfoPro!B38),"",InfoPro!B38) -> PCH Rico Medio | D38: =IF(ISBLANK(InfoPro!E38),"",InfoPro!E38) -> 12.8 | E38: =IF(ISBLANK(InfoPro!N38),"",InfoPro!N38) -> NO | F38: =IF(ISBLANK(InfoPro!I38),"",YEAR(InfoPro!I38)-$J$2) -> 2 | G38: 0 | H38: 0
B39: =IF(ISBLANK(InfoPro!A39),"",InfoPro!A39) -> SC_1649_A1 | C39: =IF(ISBLANK(InfoPro!B39),"",InfoPro!B39) -> Parque Solar Fotovoltaico La Virginia II | D39: =IF(ISBLANK(InfoPro!E39),"",InfoPro!E39) -> 100 | E39: =IF(ISBLANK(InfoPro!N39),"",InfoPro!N39) -> NO | F39: =IF(ISBLANK(InfoPro!I39),"",YEAR(InfoPro!I39)-$J$2) -> 4 | G39: 0 | H39: 0
B40: =IF(ISBLANK(InfoPro!A40),"",InfoPro!A40) -> SC_1658_A1 | C40: =IF(ISBLANK(InfoPro!B40),"",InfoPro!B40) -> Parque Solar Fotovoltaico La Virginia I | D40: =IF(ISBLANK(InfoPro!E40),"",InfoPro!E40) -> 100 | E40: =IF(ISBLANK(InfoPro!N40),"",InfoPro!N40) -> NO | F40: =IF(ISBLANK(InfoPro!I40),"",YEAR(InfoPro!I40)-$J$2) -> 4 | G40: 0 | H40: 0
B41: =IF(ISBLANK(InfoPro!A41),"",InfoPro!A41) -> SC_1341_A1 | C41: =IF(ISBLANK(InfoPro!B41),"",InfoPro!B41) -> COG.002.2022 ORQUIDEA_4.95MW | D41: =IF(ISBLANK(InfoPro!E41),"",InfoPro!E41) -> 4.95 | E41: =IF(ISBLANK(InfoPro!N41),"",InfoPro!N41) -> NO | F41: =IF(ISBLANK(InfoPro!I41),"",YEAR(InfoPro!I41)-$J$2) -> 1 | G41: 0 | H41: 0
B42: =IF(ISBLANK(InfoPro!A42),"",InfoPro!A42) -> SC_1341_A2 | C42: =IF(ISBLANK(InfoPro!B42),"",InfoPro!B42) -> COG.002.2022 ORQUIDEA_4.95MW | D42: =IF(ISBLANK(InfoPro!E42),"",InfoPro!E42) -> 4.95 | E42: =IF(ISBLANK(InfoPro!N42),"",InfoPro!N42) -> NO | F42: =IF(ISBLANK(InfoPro!I42),"",YEAR(InfoPro!I42)-$J$2) -> 1 | G42: 0 | H42: 0
B43: =IF(ISBLANK(InfoPro!A43),"",InfoPro!A43) -> SC_1605_A1 | C43: =IF(ISBLANK(InfoPro!B43),"",InfoPro!B43) -> Ocobo de 150 MW | D43: =IF(ISBLANK(InfoPro!E43),"",InfoPro!E43) -> 150 | E43: =IF(ISBLANK(InfoPro!N43),"",InfoPro!N43) -> NO | F43: =IF(ISBLANK(InfoPro!I43),"",YEAR(InfoPro!I43)-$J$2) -> 3 | G43: 0 | H43: 0
B44: =IF(ISBLANK(InfoPro!A44),"",InfoPro!A44) -> SC_1605_A2 | C44: =IF(ISBLANK(InfoPro!B44),"",InfoPro!B44) -> Ocobo de 150 MW | D44: =IF(ISBLANK(InfoPro!E44),"",InfoPro!E44) -> 150 | E44: =IF(ISBLANK(InfoPro!N44),"",InfoPro!N44) -> NO | F44: =IF(ISBLANK(InfoPro!I44),"",YEAR(InfoPro!I44)-$J$2) -> 3 | G44: 0 | H44: 0
B45: =IF(ISBLANK(InfoPro!A45),"",InfoPro!A45) -> SC_1735_A1 | C45: =IF(ISBLANK(InfoPro!B45),"",InfoPro!B45) -> TR SOLAR 15 | D45: =IF(ISBLANK(InfoPro!E45),"",InfoPro!E45) -> 150 | E45: =IF(ISBLANK(InfoPro!N45),"",InfoPro!N45) -> NO | F45: =IF(ISBLANK(InfoPro!I45),"",YEAR(InfoPro!I45)-$J$2) -> 3 | G45: 0 | H45: 0
B46: =IF(ISBLANK(InfoPro!A46),"",InfoPro!A46) -> SC_1735_A2 | C46: =IF(ISBLANK(InfoPro!B46),"",InfoPro!B46) -> TR SOLAR 15 | D46: =IF(ISBLANK(InfoPro!E46),"",InfoPro!E46) -> 150 | E46: =IF(ISBLANK(InfoPro!N46),"",InfoPro!N46) -> NO | F46: =IF(ISBLANK(InfoPro!I46),"",YEAR(InfoPro!I46)-$J$2) -> 3 | G46: 0 | H46: 0
B47: =IF(ISBLANK(InfoPro!A47),"",InfoPro!A47) -> SC_1796_A1 | C47: =IF(ISBLANK(InfoPro!B47),"",InfoPro!B47) -> COG.003.2022 TORREALBA 4.99 MW | D47: =IF(ISBLANK(InfoPro!E47),"",InfoPro!E47) -> 4.99 | E47: =IF(ISBLANK(InfoPro!N47),"",InfoPro!N47) -> NO | F47: =IF(ISBLANK(InfoPro!I47),"",YEAR(InfoPro!I47)-$J$2) -> 1 | G47: 0 | H47: 0
B48: =IF(ISBLANK(InfoPro!A48),"",InfoPro!A48) -> SC_1796_A2 | C48: =IF(ISBLANK(InfoPro!B48),"",InfoPro!B48) -> COG.003.2022 TORREALBA 4.99 MW | D48: =IF(ISBLANK(InfoPro!E48),"",InfoPro!E48) -> 4.99 | E48: =IF(ISBLANK(InfoPro!N48),"",InfoPro!N48) -> NO | F48: =IF(ISBLANK(InfoPro!I48),"",YEAR(InfoPro!I48)-$J$2) -> 1 | G48: 0 | H48: 0
B49: =IF(ISBLANK(InfoPro!A49),"",InfoPro!A49) -> SC_1895_A1 | C49: =IF(ISBLANK(InfoPro!B49),"",InfoPro!B49) -> Hatillo Solar | D49: =IF(ISBLANK(InfoPro!E49),"",InfoPro!E49) -> 200 | E49: =IF(ISBLANK(InfoPro!N49),"",InfoPro!N49) -> NO | F49: =IF(ISBLANK(InfoPro!I49),"",YEAR(InfoPro!I49)-$J$2) -> 2 | G49: 0 | H49: 0
B50: =IF(ISBLANK(InfoPro!A50),"",InfoPro!A50) -> SC_1895_A2 | C50: =IF(ISBLANK(InfoPro!B50),"",InfoPro!B50) -> Hatillo Solar | D50: =IF(ISBLANK(InfoPro!E50),"",InfoPro!E50) -> 200 | E50: =IF(ISBLANK(InfoPro!N50),"",InfoPro!N50) -> NO | F50: =IF(ISBLANK(InfoPro!I50),"",YEAR(InfoPro!I50)-$J$2) -> 2 | G50: 0 | H50: 0
B51: =IF(ISBLANK(InfoPro!A51),"",InfoPro!A51) -> SC_1826_A1 | C51: =IF(ISBLANK(InfoPro!B51),"",InfoPro!B51) -> Caldas Solar I 19,9 MW | D51: =IF(ISBLANK(InfoPro!E51),"",InfoPro!E51) -> 19.9 | E51: =IF(ISBLANK(InfoPro!N51),"",InfoPro!N51) -> NO | F51: =IF(ISBLANK(InfoPro!I51),"",YEAR(InfoPro!I51)-$J$2) -> 1 | G51: 0 | H51: 0
B52: =IF(ISBLANK(InfoPro!A52),"",InfoPro!A52) -> SC_1875_A1 | C52: =IF(ISBLANK(InfoPro!B52),"",InfoPro!B52) -> La Estrella | D52: =IF(ISBLANK(InfoPro!E52),"",InfoPro!E52) -> 60 | E52: =IF(ISBLANK(InfoPro!N52),"",InfoPro!N52) -> NO | F52: =IF(ISBLANK(InfoPro!I52),"",YEAR(InfoPro!I52)-$J$2) -> 3 | G52: =IF(E52="SI",100,IF(E52="NO",0,"")) -> 0 | H52: =IF(G52="","",(G52)) -> 0
B53: =IF(ISBLANK(InfoPro!A53),"",InfoPro!A53) -> SC_1875_A2 | C53: =IF(ISBLANK(InfoPro!B53),"",InfoPro!B53) -> La Estrella | D53: =IF(ISBLANK(InfoPro!E53),"",InfoPro!E53) -> 60 | E53: =IF(ISBLANK(InfoPro!N53),"",InfoPro!N53) -> NO | F53: =IF(ISBLANK(InfoPro!I53),"",YEAR(InfoPro!I53)-$J$2) -> 3 | G53: 0 | H53: 0
B54: =IF(ISBLANK(InfoPro!A54),"",InfoPro!A54) -> SC_2040_A1 | C54: =IF(ISBLANK(InfoPro!B54),"",InfoPro!B54) -> Parque Solar Fotovoltaico Caldas Solar II 19,9 MW | D54: =IF(ISBLANK(InfoPro!E54),"",InfoPro!E54) -> 19.9 | E54: =IF(ISBLANK(InfoPro!N54),"",InfoPro!N54) -> NO | F54: =IF(ISBLANK(InfoPro!I54),"",YEAR(InfoPro!I54)-$J$2) -> 2 | G54: 0 | H54: 0
B55: =IF(ISBLANK(InfoPro!A55),"",InfoPro!A55) -> SC_1798_A1 | C55: =IF(ISBLANK(InfoPro!B55),"",InfoPro!B55) -> Parque Solar El Capibara 130 MW | D55: =IF(ISBLANK(InfoPro!E55),"",InfoPro!E55) -> 130 | E55: =IF(ISBLANK(InfoPro!N55),"",InfoPro!N55) -> NO | F55: =IF(ISBLANK(InfoPro!I55),"",YEAR(InfoPro!I55)-$J$2) -> 3 | G55: 0 | H55: 0
B56: =IF(ISBLANK(InfoPro!A56),"",InfoPro!A56) -> SC_1798_A2 | C56: =IF(ISBLANK(InfoPro!B56),"",InfoPro!B56) -> Parque Solar El Capibara 130 MW | D56: =IF(ISBLANK(InfoPro!E56),"",InfoPro!E56) -> 130 | E56: =IF(ISBLANK(InfoPro!N56),"",InfoPro!N56) -> NO | F56: =IF(ISBLANK(InfoPro!I56),"",YEAR(InfoPro!I56)-$J$2) -> 3 | G56: 0 | H56: 0
B57: =IF(ISBLANK(InfoPro!A57),"",InfoPro!A57) -> SC_1802_A1 | C57: =IF(ISBLANK(InfoPro!B57),"",InfoPro!B57) -> Parque Solar El Capibara II 130 MW | D57: =IF(ISBLANK(InfoPro!E57),"",InfoPro!E57) -> 130 | E57: =IF(ISBLANK(InfoPro!N57),"",InfoPro!N57) -> NO | F57: =IF(ISBLANK(InfoPro!I57),"",YEAR(InfoPro!I57)-$J$2) -> 3 | G57: 0 | H57: 0
B58: =IF(ISBLANK(InfoPro!A58),"",InfoPro!A58) -> SC_1802_A2 | C58: =IF(ISBLANK(InfoPro!B58),"",InfoPro!B58) -> Parque Solar El Capibara II 130 MW | D58: =IF(ISBLANK(InfoPro!E58),"",InfoPro!E58) -> 130 | E58: =IF(ISBLANK(InfoPro!N58),"",InfoPro!N58) -> NO | F58: =IF(ISBLANK(InfoPro!I58),"",YEAR(InfoPro!I58)-$J$2) -> 3 | G58: 0 | H58: 0
B59: =IF(ISBLANK(InfoPro!A59),"",InfoPro!A59) -> SC_1791_A1 | C59: =IF(ISBLANK(InfoPro!B59),"",InfoPro!B59) -> COG.005.2022 GUANACASTE | D59: =IF(ISBLANK(InfoPro!E59),"",InfoPro!E59) -> 9.9 | E59: =IF(ISBLANK(InfoPro!N59),"",InfoPro!N59) -> NO | F59: =IF(ISBLANK(InfoPro!I59),"",YEAR(InfoPro!I59)-$J$2) -> 1 | G59: 0 | H59: 0
B60: =IF(ISBLANK(InfoPro!A60),"",InfoPro!A60) -> SC_1791_A2 | C60: =IF(ISBLANK(InfoPro!B60),"",InfoPro!B60) -> COG.005.2022 GUANACASTE | D60: =IF(ISBLANK(InfoPro!E60),"",InfoPro!E60) -> 9.9 | E60: =IF(ISBLANK(InfoPro!N60),"",InfoPro!N60) -> NO | F60: =IF(ISBLANK(InfoPro!I60),"",YEAR(InfoPro!I60)-$J$2) -> 1 | G60: 0 | H60: 0
B61: =IF(ISBLANK(InfoPro!A61),"",InfoPro!A61) -> SC_2139_A1 | C61: =IF(ISBLANK(InfoPro!B61),"",InfoPro!B61) -> LAS BRUJAS SOLAR_9.9MW | D61: =IF(ISBLANK(InfoPro!E61),"",InfoPro!E61) -> 9.9 | E61: =IF(ISBLANK(InfoPro!N61),"",InfoPro!N61) -> NO | F61: =IF(ISBLANK(InfoPro!I61),"",YEAR(InfoPro!I61)-$J$2) -> 0 | G61: 0 | H61: 0
B62: =IF(ISBLANK(InfoPro!A62),"",InfoPro!A62) -> SC_2139_A2 | C62: =IF(ISBLANK(InfoPro!B62),"",InfoPro!B62) -> LAS BRUJAS SOLAR_9.9MW | D62: =IF(ISBLANK(InfoPro!E62),"",InfoPro!E62) -> 9.9 | E62: =IF(ISBLANK(InfoPro!N62),"",InfoPro!N62) -> NO | F62: =IF(ISBLANK(InfoPro!I62),"",YEAR(InfoPro!I62)-$J$2) -> 0 | G62: 0 | H62: 0
B63: =IF(ISBLANK(InfoPro!A63),"",InfoPro!A63) -> SC_1900_A2 | C63: =IF(ISBLANK(InfoPro!B63),"",InfoPro!B63) -> PCH Salamina | D63: =IF(ISBLANK(InfoPro!E63),"",InfoPro!E63) -> 19.9 | E63: =IF(ISBLANK(InfoPro!N63),"",InfoPro!N63) -> NO | F63: =IF(ISBLANK(InfoPro!I63),"",YEAR(InfoPro!I63)-$J$2) -> 3 | G63: 0 | H63: 0
B64: =IF(ISBLANK(InfoPro!A64),"",InfoPro!A64) -> SC_1911_A1 | C64: =IF(ISBLANK(InfoPro!B64),"",InfoPro!B64) -> Heliconea | D64: =IF(ISBLANK(InfoPro!E64),"",InfoPro!E64) -> 60 | E64: =IF(ISBLANK(InfoPro!N64),"",InfoPro!N64) -> NO | F64: =IF(ISBLANK(InfoPro!I64),"",YEAR(InfoPro!I64)-$J$2) -> 2 | G64: 0 | H64: 0
B65: =IF(ISBLANK(InfoPro!A65),"",InfoPro!A65) -> SC_1911_A2 | C65: =IF(ISBLANK(InfoPro!B65),"",InfoPro!B65) -> Heliconea | D65: =IF(ISBLANK(InfoPro!E65),"",InfoPro!E65) -> 60 | E65: =IF(ISBLANK(InfoPro!N65),"",InfoPro!N65) -> NO | F65: =IF(ISBLANK(InfoPro!I65),"",YEAR(InfoPro!I65)-$J$2) -> 2 | G65: 0 | H65: 0
B66: =IF(ISBLANK(InfoPro!A66),"",InfoPro!A66) -> SC_2090_A1 | C66: =IF(ISBLANK(InfoPro!B66),"",InfoPro!B66) -> Autogenerador Solar Mariquita_5.1MW-0MW (AUTOGENERADOR) | D66: =IF(ISBLANK(InfoPro!E66),"",InfoPro!E66) -> 5.1 | E66: =IF(ISBLANK(InfoPro!N66),"",InfoPro!N66) -> NO | F66: =IF(ISBLANK(InfoPro!I66),"",YEAR(InfoPro!I66)-$J$2) -> 1 | G66: 0 | H66: 0
B67: =IF(ISBLANK(InfoPro!A67),"",InfoPro!A67) -> SC_1917_A1 | C67: =IF(ISBLANK(InfoPro!B67),"",InfoPro!B67) -> Parque Solar La Victoria | D67: =IF(ISBLANK(InfoPro!E67),"",InfoPro!E67) -> 40 | E67: =IF(ISBLANK(InfoPro!N67),"",InfoPro!N67) -> NO | F67: =IF(ISBLANK(InfoPro!I67),"",YEAR(InfoPro!I67)-$J$2) -> 3 | G67: 0 | H67: 0
B68: =IF(ISBLANK(InfoPro!A68),"",InfoPro!A68) -> SC_1917_A2 | C68: =IF(ISBLANK(InfoPro!B68),"",InfoPro!B68) -> Parque Solar La Victoria | D68: =IF(ISBLANK(InfoPro!E68),"",InfoPro!E68) -> 40 | E68: =IF(ISBLANK(InfoPro!N68),"",InfoPro!N68) -> NO | F68: =IF(ISBLANK(InfoPro!I68),"",YEAR(InfoPro!I68)-$J$2) -> 3 | G68: 0 | H68: 0
B69: =IF(ISBLANK(InfoPro!A69),"",InfoPro!A69) -> SC_1817_A1 | C69: =IF(ISBLANK(InfoPro!B69),"",InfoPro!B69) -> COG.006.2022 CATLEYA | D69: =IF(ISBLANK(InfoPro!E69),"",InfoPro!E69) -> 9.9 | E69: =IF(ISBLANK(InfoPro!N69),"",InfoPro!N69) -> NO | F69: =IF(ISBLANK(InfoPro!I69),"",YEAR(InfoPro!I69)-$J$2) -> 1 | G69: 0 | H69: 0
B70: =IF(ISBLANK(InfoPro!A70),"",InfoPro!A70) -> SC_1817_A2 | C70: =IF(ISBLANK(InfoPro!B70),"",InfoPro!B70) -> COG.006.2022 CATLEYA | D70: =IF(ISBLANK(InfoPro!E70),"",InfoPro!E70) -> 9.9 | E70: =IF(ISBLANK(InfoPro!N70),"",InfoPro!N70) -> NO | F70: =IF(ISBLANK(InfoPro!I70),"",YEAR(InfoPro!I70)-$J$2) -> 1 | G70: 0 | H70: 0
B71: =IF(ISBLANK(InfoPro!A71),"",InfoPro!A71) -> SC_2177_A1 | C71: =IF(ISBLANK(InfoPro!B71),"",InfoPro!B71) -> Parque Solar Fotovoltaico Camelia 9,9 MW | D71: =IF(ISBLANK(InfoPro!E71),"",InfoPro!E71) -> 9.9 | E71: =IF(ISBLANK(InfoPro!N71),"",InfoPro!N71) -> NO | F71: =IF(ISBLANK(InfoPro!I71),"",YEAR(InfoPro!I71)-$J$2) -> 1 | G71: 0 | H71: 0
B72: =IF(ISBLANK(InfoPro!A72),"",InfoPro!A72) -> SC_2177_A2 | C72: =IF(ISBLANK(InfoPro!B72),"",InfoPro!B72) -> Parque Solar Fotovoltaico Camelia 9,9 MW | D72: =IF(ISBLANK(InfoPro!E72),"",InfoPro!E72) -> 9.9 | E72: =IF(ISBLANK(InfoPro!N72),"",InfoPro!N72) -> NO | F72: =IF(ISBLANK(InfoPro!I72),"",YEAR(InfoPro!I72)-$J$2) -> 1 | G72: 0 | H72: 0
B73: =IF(ISBLANK(InfoPro!A73),"",InfoPro!A73) -> SC_2062_A1 | C73: =IF(ISBLANK(InfoPro!B73),"",InfoPro!B73) -> Puerto Solar | D73: =IF(ISBLANK(InfoPro!E73),"",InfoPro!E73) -> 9.9 | E73: =IF(ISBLANK(InfoPro!N73),"",InfoPro!N73) -> NO | F73: =IF(ISBLANK(InfoPro!I73),"",YEAR(InfoPro!I73)-$J$2) -> 1 | G73: 0 | H73: 0
B74: =IF(ISBLANK(InfoPro!A74),"",InfoPro!A74) -> SC_2062_A2 | C74: =IF(ISBLANK(InfoPro!B74),"",InfoPro!B74) -> Puerto Solar | D74: =IF(ISBLANK(InfoPro!E74),"",InfoPro!E74) -> 9.9 | E74: =IF(ISBLANK(InfoPro!N74),"",InfoPro!N74) -> NO | F74: =IF(ISBLANK(InfoPro!I74),"",YEAR(InfoPro!I74)-$J$2) -> 1 | G74: 0 | H74: 0
B75: =IF(ISBLANK(InfoPro!A75),"",InfoPro!A75) -> SC_2178_A1 | C75: =IF(ISBLANK(InfoPro!B75),"",InfoPro!B75) -> Parque Solar Fotovoltaico Dalia 9,9 MW | D75: =IF(ISBLANK(InfoPro!E75),"",InfoPro!E75) -> 9.9 | E75: =IF(ISBLANK(InfoPro!N75),"",InfoPro!N75) -> NO | F75: =IF(ISBLANK(InfoPro!I75),"",YEAR(InfoPro!I75)-$J$2) -> 1 | G75: 0 | H75: 0
B76: =IF(ISBLANK(InfoPro!A76),"",InfoPro!A76) -> SC_2178_A2 | C76: =IF(ISBLANK(InfoPro!B76),"",InfoPro!B76) -> Parque Solar Fotovoltaico Dalia 9,9 MW | D76: =IF(ISBLANK(InfoPro!E76),"",InfoPro!E76) -> 9.9 | E76: =IF(ISBLANK(InfoPro!N76),"",InfoPro!N76) -> NO | F76: =IF(ISBLANK(InfoPro!I76),"",YEAR(InfoPro!I76)-$J$2) -> 1 | G76: 0 | H76: 0
B77: =IF(ISBLANK(InfoPro!A77),"",InfoPro!A77) -> SC_2102_A1 | C77: =IF(ISBLANK(InfoPro!B77),"",InfoPro!B77) -> Parque Solar Beltran 9,9 MW | D77: =IF(ISBLANK(InfoPro!E77),"",InfoPro!E77) -> 9.9 | E77: =IF(ISBLANK(InfoPro!N77),"",InfoPro!N77) -> NO | F77: =IF(ISBLANK(InfoPro!I77),"",YEAR(InfoPro!I77)-$J$2) -> 2 | G77: 0 | H77: 0
B78: =IF(ISBLANK(InfoPro!A78),"",InfoPro!A78) -> SC_2102_A2 | C78: =IF(ISBLANK(InfoPro!B78),"",InfoPro!B78) -> Parque Solar Beltran 9,9 MW | D78: =IF(ISBLANK(InfoPro!E78),"",InfoPro!E78) -> 9.9 | E78: =IF(ISBLANK(InfoPro!N78),"",InfoPro!N78) -> NO | F78: =IF(ISBLANK(InfoPro!I78),"",YEAR(InfoPro!I78)-$J$2) -> 2 | G78: 0 | H78: 0
B79: =IF(ISBLANK(InfoPro!A79),"",InfoPro!A79) -> SC_2296_A1 | C79: =IF(ISBLANK(InfoPro!B79),"",InfoPro!B79) -> Parque Solar San Mateo 80 MW | D79: =IF(ISBLANK(InfoPro!E79),"",InfoPro!E79) -> 80 | E79: =IF(ISBLANK(InfoPro!N79),"",InfoPro!N79) -> NO | F79: =IF(ISBLANK(InfoPro!I79),"",YEAR(InfoPro!I79)-$J$2) -> 2 | G79: 0 | H79: 0
B80: =IF(ISBLANK(InfoPro!A80),"",InfoPro!A80) -> SC_2081_A1 | C80: =IF(ISBLANK(InfoPro!B80),"",InfoPro!B80) -> Parque Solar Fotovoltaico El Encanto | D80: =IF(ISBLANK(InfoPro!E80),"",InfoPro!E80) -> 50 | E80: =IF(ISBLANK(InfoPro!N80),"",InfoPro!N80) -> NO | F80: =IF(ISBLANK(InfoPro!I80),"",YEAR(InfoPro!I80)-$J$2) -> 5 | G80: 0 | H80: 0
B81: =IF(ISBLANK(InfoPro!A81),"",InfoPro!A81) -> SC_2081_A2 | C81: =IF(ISBLANK(InfoPro!B81),"",InfoPro!B81) -> Parque Solar Fotovoltaico El Encanto | D81: =IF(ISBLANK(InfoPro!E81),"",InfoPro!E81) -> 50 | E81: =IF(ISBLANK(InfoPro!N81),"",InfoPro!N81) -> NO | F81: =IF(ISBLANK(InfoPro!I81),"",YEAR(InfoPro!I81)-$J$2) -> 5 | G81: 0 | H81: 0
B82: =IF(ISBLANK(InfoPro!A82),"",InfoPro!A82) -> SC_1679_A2 | C82: =IF(ISBLANK(InfoPro!B82),"",InfoPro!B82) -> PCH EL MOLINO | D82: =IF(ISBLANK(InfoPro!E82),"",InfoPro!E82) -> 19.9 | E82: =IF(ISBLANK(InfoPro!N82),"",InfoPro!N82) -> NO | F82: =IF(ISBLANK(InfoPro!I82),"",YEAR(InfoPro!I82)-$J$2) -> 3 | G82: 0 | H82: 0
B83: =IF(ISBLANK(InfoPro!A83),"",InfoPro!A83) -> SC_2229_A1 | C83: =IF(ISBLANK(InfoPro!B83),"",InfoPro!B83) -> El Silencio 120MW y su línea de evacuación de220kV | D83: =IF(ISBLANK(InfoPro!E83),"",InfoPro!E83) -> 120 | E83: =IF(ISBLANK(InfoPro!N83),"",InfoPro!N83) -> NO | F83: =IF(ISBLANK(InfoPro!I83),"",YEAR(InfoPro!I83)-$J$2) -> 4 | G83: 0 | H83: 0
B84: =IF(ISBLANK(InfoPro!A84),"",InfoPro!A84) -> SC_1511_A1 | C84: =IF(ISBLANK(InfoPro!B84),"",InfoPro!B84) -> Planta Solar FV Ambalema | D84: =IF(ISBLANK(InfoPro!E84),"",InfoPro!E84) -> 7 | E84: =IF(ISBLANK(InfoPro!N84),"",InfoPro!N84) -> NO | F84: =IF(ISBLANK(InfoPro!I84),"",YEAR(InfoPro!I84)-$J$2) -> 1 | G84: 0 | H84: 0
B85: =IF(ISBLANK(InfoPro!A85),"",InfoPro!A85) -> SC_1511_A2 | C85: =IF(ISBLANK(InfoPro!B85),"",InfoPro!B85) -> Planta Solar FV Ambalema | D85: =IF(ISBLANK(InfoPro!E85),"",InfoPro!E85) -> 7 | E85: =IF(ISBLANK(InfoPro!N85),"",InfoPro!N85) -> NO | F85: =IF(ISBLANK(InfoPro!I85),"",YEAR(InfoPro!I85)-$J$2) -> 1 | G85: 0 | H85: 0
B86: =IF(ISBLANK(InfoPro!A86),"",InfoPro!A86) -> SC_1743_A1 | C86: =IF(ISBLANK(InfoPro!B86),"",InfoPro!B86) -> SOLAR FOTOVOLTAICO FRESNOS 60 MW | D86: =IF(ISBLANK(InfoPro!E86),"",InfoPro!E86) -> 60 | E86: =IF(ISBLANK(InfoPro!N86),"",InfoPro!N86) -> NO | F86: =IF(ISBLANK(InfoPro!I86),"",YEAR(InfoPro!I86)-$J$2) -> 3 | G86: 0 | H86: 0
B87: =IF(ISBLANK(InfoPro!A87),"",InfoPro!A87) -> SC_1743_A2 | C87: =IF(ISBLANK(InfoPro!B87),"",InfoPro!B87) -> SOLAR FOTOVOLTAICO FRESNOS 60 MW | D87: =IF(ISBLANK(InfoPro!E87),"",InfoPro!E87) -> 60 | E87: =IF(ISBLANK(InfoPro!N87),"",InfoPro!N87) -> NO | F87: =IF(ISBLANK(InfoPro!I87),"",YEAR(InfoPro!I87)-$J$2) -> 3 | G87: 0 | H87: 0
B88: =IF(ISBLANK(InfoPro!A88),"",InfoPro!A88) -> SC_1745_A2 | C88: =IF(ISBLANK(InfoPro!B88),"",InfoPro!B88) -> PARQUE SOLAR FOTOVOLTAICO CERESOS 9,9 MW | D88: =IF(ISBLANK(InfoPro!E88),"",InfoPro!E88) -> 9.9 | E88: =IF(ISBLANK(InfoPro!N88),"",InfoPro!N88) -> NO | F88: =IF(ISBLANK(InfoPro!I88),"",YEAR(InfoPro!I88)-$J$2) -> 3 | G88: 0 | H88: 0
B89: =IF(ISBLANK(InfoPro!A89),"",InfoPro!A89) -> SC_1738_A1 | C89: =IF(ISBLANK(InfoPro!B89),"",InfoPro!B89) -> Parque Solar La Ponderosa | D89: =IF(ISBLANK(InfoPro!E89),"",InfoPro!E89) -> 99.99 | E89: =IF(ISBLANK(InfoPro!N89),"",InfoPro!N89) -> NO | F89: =IF(ISBLANK(InfoPro!I89),"",YEAR(InfoPro!I89)-$J$2) -> 0 | G89: 0 | H89: 0
B90: =IF(ISBLANK(InfoPro!A90),"",InfoPro!A90) -> SC_1738_A2 | C90: =IF(ISBLANK(InfoPro!B90),"",InfoPro!B90) -> Parque Solar La Ponderosa | D90: =IF(ISBLANK(InfoPro!E90),"",InfoPro!E90) -> 99.99 | E90: =IF(ISBLANK(InfoPro!N90),"",InfoPro!N90) -> NO | F90: =IF(ISBLANK(InfoPro!I90),"",YEAR(InfoPro!I90)-$J$2) -> 0 | G90: 0 | H90: 0
B91: =IF(ISBLANK(InfoPro!A91),"",InfoPro!A91) ->  | C91: =IF(ISBLANK(InfoPro!B91),"",InfoPro!B91) ->  | D91: =IF(ISBLANK(InfoPro!E91),"",InfoPro!E91) ->  | E91: =IF(ISBLANK(InfoPro!N91),"",InfoPro!N91) ->  | F91: =IF(ISBLANK(InfoPro!I91),"",YEAR(InfoPro!I91)-$J$2) -> 
B92: =IF(ISBLANK(InfoPro!A92),"",InfoPro!A92) ->  | C92: =IF(ISBLANK(InfoPro!B92),"",InfoPro!B92) ->  | D92: =IF(ISBLANK(InfoPro!E92),"",InfoPro!E92) ->  | E92: =IF(ISBLANK(InfoPro!N92),"",InfoPro!N92) ->  | F92: =IF(ISBLANK(InfoPro!I92),"",YEAR(InfoPro!I92)-$J$2) -> 
B93: =IF(ISBLANK(InfoPro!A93),"",InfoPro!A93) ->  | C93: =IF(ISBLANK(InfoPro!B93),"",InfoPro!B93) ->  | D93: =IF(ISBLANK(InfoPro!E93),"",InfoPro!E93) ->  | E93: =IF(ISBLANK(InfoPro!N93),"",InfoPro!N93) ->  | F93: =IF(ISBLANK(InfoPro!I93),"",YEAR(InfoPro!I93)-$J$2) -> 
B97: =IF(ISBLANK(InfoPro!A94),"",InfoPro!A94) ->  | C97: =IF(ISBLANK(InfoPro!B94),"",InfoPro!B94) ->  | D97: =IF(ISBLANK(InfoPro!E94),"",InfoPro!E94) ->  | E97: =IF(ISBLANK(InfoPro!N94),"",InfoPro!N94) ->  | F97: =IF(ISBLANK(InfoPro!I94),"",YEAR(InfoPro!I94)-$J$2) -> 
B98: =IF(ISBLANK(InfoPro!A95),"",InfoPro!A95) ->  | C98: =IF(ISBLANK(InfoPro!B95),"",InfoPro!B95) ->  | D98: =IF(ISBLANK(InfoPro!E95),"",InfoPro!E95) ->  | E98: =IF(ISBLANK(InfoPro!N95),"",InfoPro!N95) ->  | F98: =IF(ISBLANK(InfoPro!I95),"",YEAR(InfoPro!I95)-$J$2) -> 
B99: =IF(ISBLANK(InfoPro!A96),"",InfoPro!A96) ->  | C99: =IF(ISBLANK(InfoPro!B96),"",InfoPro!B96) ->  | D99: =IF(ISBLANK(InfoPro!E96),"",InfoPro!E96) ->  | E99: =IF(ISBLANK(InfoPro!N96),"",InfoPro!N96) ->  | F99: =IF(ISBLANK(InfoPro!I96),"",YEAR(InfoPro!I96)-$J$2) -> 
B100: =IF(ISBLANK(InfoPro!A97),"",InfoPro!A97) ->  | C100: =IF(ISBLANK(InfoPro!B97),"",InfoPro!B97) ->  | D100: =IF(ISBLANK(InfoPro!E97),"",InfoPro!E97) ->  | E100: =IF(ISBLANK(InfoPro!N97),"",InfoPro!N97) ->  | F100: =IF(ISBLANK(InfoPro!I97),"",YEAR(InfoPro!I97)-$J$2) -> 
B101: =IF(ISBLANK(InfoPro!A98),"",InfoPro!A98) ->  | C101: =IF(ISBLANK(InfoPro!B98),"",InfoPro!B98) ->  | D101: =IF(ISBLANK(InfoPro!E98),"",InfoPro!E98) ->  | E101: =IF(ISBLANK(InfoPro!N98),"",InfoPro!N98) ->  | F101: =IF(ISBLANK(InfoPro!I98),"",YEAR(InfoPro!I98)-$J$2) ->  | G101: =IF(E101="SI",100,IF(E101="NO",0,"")) ->  | H101: =IF(G101="","",(G101)) -> 
B102: =IF(ISBLANK(InfoPro!A99),"",InfoPro!A99) ->  | C102: =IF(ISBLANK(InfoPro!B99),"",InfoPro!B99) ->  | D102: =IF(ISBLANK(InfoPro!E99),"",InfoPro!E99) ->  | E102: =IF(ISBLANK(InfoPro!N99),"",InfoPro!N99) ->  | F102: =IF(ISBLANK(InfoPro!I99),"",YEAR(InfoPro!I99)-$J$2) -> 
B103: =IF(ISBLANK(InfoPro!A100),"",InfoPro!A100) ->  | C103: =IF(ISBLANK(InfoPro!B100),"",InfoPro!B100) ->  | D103: =IF(ISBLANK(InfoPro!E100),"",InfoPro!E100) ->  | E103: =IF(ISBLANK(InfoPro!N100),"",InfoPro!N100) ->  | F103: =IF(ISBLANK(InfoPro!I100),"",YEAR(InfoPro!I100)-$J$2) -> 
B104: =IF(ISBLANK(InfoPro!A101),"",InfoPro!A101) ->  | C104: =IF(ISBLANK(InfoPro!B101),"",InfoPro!B101) ->  | D104: =IF(ISBLANK(InfoPro!E101),"",InfoPro!E101) ->  | E104: =IF(ISBLANK(InfoPro!N101),"",InfoPro!N101) ->  | F104: =IF(ISBLANK(InfoPro!I101),"",YEAR(InfoPro!I101)-$J$2) -> 
B105: =IF(ISBLANK(InfoPro!A102),"",InfoPro!A102) ->  | C105: =IF(ISBLANK(InfoPro!B102),"",InfoPro!B102) ->  | D105: =IF(ISBLANK(InfoPro!E102),"",InfoPro!E102) ->  | E105: =IF(ISBLANK(InfoPro!N102),"",InfoPro!N102) ->  | F105: =IF(ISBLANK(InfoPro!I102),"",YEAR(InfoPro!I102)-$J$2) -> 
B106: =IF(ISBLANK(InfoPro!A103),"",InfoPro!A103) ->  | C106: =IF(ISBLANK(InfoPro!B103),"",InfoPro!B103) ->  | D106: =IF(ISBLANK(InfoPro!E103),"",InfoPro!E103) ->  | E106: =IF(ISBLANK(InfoPro!N103),"",InfoPro!N103) ->  | F106: =IF(ISBLANK(InfoPro!I103),"",YEAR(InfoPro!I103)-$J$2) -> 
B107: =IF(ISBLANK(InfoPro!A104),"",InfoPro!A104) ->  | C107: =IF(ISBLANK(InfoPro!B104),"",InfoPro!B104) ->  | D107: =IF(ISBLANK(InfoPro!E104),"",InfoPro!E104) ->  | E107: =IF(ISBLANK(InfoPro!N104),"",InfoPro!N104) ->  | F107: =IF(ISBLANK(InfoPro!I104),"",YEAR(InfoPro!I104)-$J$2) -> 
B108: =IF(ISBLANK(InfoPro!A105),"",InfoPro!A105) ->  | C108: =IF(ISBLANK(InfoPro!B105),"",InfoPro!B105) ->  | D108: =IF(ISBLANK(InfoPro!E105),"",InfoPro!E105) ->  | E108: =IF(ISBLANK(InfoPro!N105),"",InfoPro!N105) ->  | F108: =IF(ISBLANK(InfoPro!I105),"",YEAR(InfoPro!I105)-$J$2) -> 
B109: =IF(ISBLANK(InfoPro!A106),"",InfoPro!A106) ->  | C109: =IF(ISBLANK(InfoPro!B106),"",InfoPro!B106) ->  | D109: =IF(ISBLANK(InfoPro!E106),"",InfoPro!E106) ->  | E109: =IF(ISBLANK(InfoPro!N106),"",InfoPro!N106) ->  | F109: =IF(ISBLANK(InfoPro!I106),"",YEAR(InfoPro!I106)-$J$2) -> 
B110: =IF(ISBLANK(InfoPro!A107),"",InfoPro!A107) ->  | C110: =IF(ISBLANK(InfoPro!B107),"",InfoPro!B107) ->  | D110: =IF(ISBLANK(InfoPro!E107),"",InfoPro!E107) ->  | E110: =IF(ISBLANK(InfoPro!N107),"",InfoPro!N107) ->  | F110: =IF(ISBLANK(InfoPro!I107),"",YEAR(InfoPro!I107)-$J$2) -> 
B111: =IF(ISBLANK(InfoPro!A108),"",InfoPro!A108) ->  | C111: =IF(ISBLANK(InfoPro!B108),"",InfoPro!B108) ->  | D111: =IF(ISBLANK(InfoPro!E108),"",InfoPro!E108) ->  | E111: =IF(ISBLANK(InfoPro!N108),"",InfoPro!N108) ->  | F111: =IF(ISBLANK(InfoPro!I108),"",YEAR(InfoPro!I108)-$J$2) -> 
B112: =IF(ISBLANK(InfoPro!A109),"",InfoPro!A109) ->  | C112: =IF(ISBLANK(InfoPro!B109),"",InfoPro!B109) ->  | D112: =IF(ISBLANK(InfoPro!E109),"",InfoPro!E109) ->  | E112: =IF(ISBLANK(InfoPro!N109),"",InfoPro!N109) ->  | F112: =IF(ISBLANK(InfoPro!I109),"",YEAR(InfoPro!I109)-$J$2) -> 
B113: =IF(ISBLANK(InfoPro!A110),"",InfoPro!A110) ->  | C113: =IF(ISBLANK(InfoPro!B110),"",InfoPro!B110) ->  | D113: =IF(ISBLANK(InfoPro!E110),"",InfoPro!E110) ->  | E113: =IF(ISBLANK(InfoPro!N110),"",InfoPro!N110) ->  | F113: =IF(ISBLANK(InfoPro!I110),"",YEAR(InfoPro!I110)-$J$2) -> 
B114: =IF(ISBLANK(InfoPro!A111),"",InfoPro!A111) ->  | C114: =IF(ISBLANK(InfoPro!B111),"",InfoPro!B111) ->  | D114: =IF(ISBLANK(InfoPro!E111),"",InfoPro!E111) ->  | E114: =IF(ISBLANK(InfoPro!N111),"",InfoPro!N111) ->  | F114: =IF(ISBLANK(InfoPro!I111),"",YEAR(InfoPro!I111)-$J$2) -> 
B115: =IF(ISBLANK(InfoPro!A112),"",InfoPro!A112) ->  | C115: =IF(ISBLANK(InfoPro!B112),"",InfoPro!B112) ->  | D115: =IF(ISBLANK(InfoPro!E112),"",InfoPro!E112) ->  | E115: =IF(ISBLANK(InfoPro!N112),"",InfoPro!N112) ->  | F115: =IF(ISBLANK(InfoPro!I112),"",YEAR(InfoPro!I112)-$J$2) -> 
B116: =IF(ISBLANK(InfoPro!A113),"",InfoPro!A113) ->  | C116: =IF(ISBLANK(InfoPro!B113),"",InfoPro!B113) ->  | D116: =IF(ISBLANK(InfoPro!E113),"",InfoPro!E113) ->  | E116: =IF(ISBLANK(InfoPro!N113),"",InfoPro!N113) ->  | F116: =IF(ISBLANK(InfoPro!I113),"",YEAR(InfoPro!I113)-$J$2) -> 
B117: =IF(ISBLANK(InfoPro!A114),"",InfoPro!A114) ->  | C117: =IF(ISBLANK(InfoPro!B114),"",InfoPro!B114) ->  | D117: =IF(ISBLANK(InfoPro!E114),"",InfoPro!E114) ->  | E117: =IF(ISBLANK(InfoPro!N114),"",InfoPro!N114) ->  | F117: =IF(ISBLANK(InfoPro!I114),"",YEAR(InfoPro!I114)-$J$2) -> 
B118: =IF(ISBLANK(InfoPro!A115),"",InfoPro!A115) ->  | C118: =IF(ISBLANK(InfoPro!B115),"",InfoPro!B115) ->  | D118: =IF(ISBLANK(InfoPro!E115),"",InfoPro!E115) ->  | E118: =IF(ISBLANK(InfoPro!N115),"",InfoPro!N115) ->  | F118: =IF(ISBLANK(InfoPro!I115),"",YEAR(InfoPro!I115)-$J$2) -> 
B119: =IF(ISBLANK(InfoPro!A116),"",InfoPro!A116) ->  | C119: =IF(ISBLANK(InfoPro!B116),"",InfoPro!B116) ->  | D119: =IF(ISBLANK(InfoPro!E116),"",InfoPro!E116) ->  | E119: =IF(ISBLANK(InfoPro!N116),"",InfoPro!N116) ->  | F119: =IF(ISBLANK(InfoPro!I116),"",YEAR(InfoPro!I116)-$J$2) -> 
B120: =IF(ISBLANK(InfoPro!A117),"",InfoPro!A117) ->  | C120: =IF(ISBLANK(InfoPro!B117),"",InfoPro!B117) ->  | D120: =IF(ISBLANK(InfoPro!E117),"",InfoPro!E117) ->  | E120: =IF(ISBLANK(InfoPro!N117),"",InfoPro!N117) ->  | F120: =IF(ISBLANK(InfoPro!I117),"",YEAR(InfoPro!I117)-$J$2) -> 
B121: =IF(ISBLANK(InfoPro!A118),"",InfoPro!A118) ->  | C121: =IF(ISBLANK(InfoPro!B118),"",InfoPro!B118) ->  | D121: =IF(ISBLANK(InfoPro!E118),"",InfoPro!E118) ->  | E121: =IF(ISBLANK(InfoPro!N118),"",InfoPro!N118) ->  | F121: =IF(ISBLANK(InfoPro!I118),"",YEAR(InfoPro!I118)-$J$2) -> 
B122: =IF(ISBLANK(InfoPro!A103),"",InfoPro!A103) ->  | C122: =IF(ISBLANK(InfoPro!B103),"",InfoPro!B103) ->  | D122: =IF(ISBLANK(InfoPro!E103),"",InfoPro!E103) ->  | E122: =IF(ISBLANK(InfoPro!N103),"",InfoPro!N103) ->  | F122: =IF(ISBLANK(InfoPro!I103),"",YEAR(InfoPro!I103)-$J$2) ->  | G122: =IF(E122="SI",100,IF(E122="NO",0,"")) ->  | H122: =IF(G122="","",(G122)) -> 
B123: =IF(ISBLANK(InfoPro!A104),"",InfoPro!A104) ->  | C123: =IF(ISBLANK(InfoPro!B104),"",InfoPro!B104) ->  | D123: =IF(ISBLANK(InfoPro!E104),"",InfoPro!E104) ->  | E123: =IF(ISBLANK(InfoPro!N104),"",InfoPro!N104) ->  | F123: =IF(ISBLANK(InfoPro!I104),"",YEAR(InfoPro!I104)-$J$2) -> 
B124: =IF(ISBLANK(InfoPro!A105),"",InfoPro!A105) ->  | C124: =IF(ISBLANK(InfoPro!B105),"",InfoPro!B105) ->  | D124: =IF(ISBLANK(InfoPro!E105),"",InfoPro!E105) ->  | E124: =IF(ISBLANK(InfoPro!N105),"",InfoPro!N105) ->  | F124: =IF(ISBLANK(InfoPro!I105),"",YEAR(InfoPro!I105)-$J$2) -> 
B125: =IF(ISBLANK(InfoPro!A106),"",InfoPro!A106) ->  | C125: =IF(ISBLANK(InfoPro!B106),"",InfoPro!B106) ->  | D125: =IF(ISBLANK(InfoPro!E106),"",InfoPro!E106) ->  | E125: =IF(ISBLANK(InfoPro!N106),"",InfoPro!N106) ->  | F125: =IF(ISBLANK(InfoPro!I106),"",YEAR(InfoPro!I106)-$J$2) -> 
B126: =IF(ISBLANK(InfoPro!A107),"",InfoPro!A107) ->  | C126: =IF(ISBLANK(InfoPro!B107),"",InfoPro!B107) ->  | D126: =IF(ISBLANK(InfoPro!E107),"",InfoPro!E107) ->  | E126: =IF(ISBLANK(InfoPro!N107),"",InfoPro!N107) ->  | F126: =IF(ISBLANK(InfoPro!I107),"",YEAR(InfoPro!I107)-$J$2) -> 
B127: =IF(ISBLANK(InfoPro!A108),"",InfoPro!A108) ->  | C127: =IF(ISBLANK(InfoPro!B108),"",InfoPro!B108) ->  | D127: =IF(ISBLANK(InfoPro!E108),"",InfoPro!E108) ->  | E127: =IF(ISBLANK(InfoPro!N108),"",InfoPro!N108) ->  | F127: =IF(ISBLANK(InfoPro!I108),"",YEAR(InfoPro!I108)-$J$2) -> 
B128: =IF(ISBLANK(InfoPro!A109),"",InfoPro!A109) ->  | C128: =IF(ISBLANK(InfoPro!B109),"",InfoPro!B109) ->  | D128: =IF(ISBLANK(InfoPro!E109),"",InfoPro!E109) ->  | E128: =IF(ISBLANK(InfoPro!N109),"",InfoPro!N109) ->  | F128: =IF(ISBLANK(InfoPro!I109),"",YEAR(InfoPro!I109)-$J$2) -> 
B129: =IF(ISBLANK(InfoPro!A110),"",InfoPro!A110) ->  | C129: =IF(ISBLANK(InfoPro!B110),"",InfoPro!B110) ->  | D129: =IF(ISBLANK(InfoPro!E110),"",InfoPro!E110) ->  | E129: =IF(ISBLANK(InfoPro!N110),"",InfoPro!N110) ->  | F129: =IF(ISBLANK(InfoPro!I110),"",YEAR(InfoPro!I110)-$J$2) -> 
B130: =IF(ISBLANK(InfoPro!A111),"",InfoPro!A111) ->  | C130: =IF(ISBLANK(InfoPro!B111),"",InfoPro!B111) ->  | D130: =IF(ISBLANK(InfoPro!E111),"",InfoPro!E111) ->  | E130: =IF(ISBLANK(InfoPro!N111),"",InfoPro!N111) ->  | F130: =IF(ISBLANK(InfoPro!I111),"",YEAR(InfoPro!I111)-$J$2) -> 
B131: =IF(ISBLANK(InfoPro!A112),"",InfoPro!A112) ->  | C131: =IF(ISBLANK(InfoPro!B112),"",InfoPro!B112) ->  | D131: =IF(ISBLANK(InfoPro!E112),"",InfoPro!E112) ->  | E131: =IF(ISBLANK(InfoPro!N112),"",InfoPro!N112) ->  | F131: =IF(ISBLANK(InfoPro!I112),"",YEAR(InfoPro!I112)-$J$2) ->  | G131: =IF(E131="SI",100,IF(E131="NO",0,"")) ->  | H131: =IF(G131="","",(G131)) -> 
B132: =IF(ISBLANK(InfoPro!A113),"",InfoPro!A113) ->  | C132: =IF(ISBLANK(InfoPro!B113),"",InfoPro!B113) ->  | D132: =IF(ISBLANK(InfoPro!E113),"",InfoPro!E113) ->  | E132: =IF(ISBLANK(InfoPro!N113),"",InfoPro!N113) ->  | F132: =IF(ISBLANK(InfoPro!I113),"",YEAR(InfoPro!I113)-$J$2) -> 
B133: =IF(ISBLANK(InfoPro!A114),"",InfoPro!A114) ->  | C133: =IF(ISBLANK(InfoPro!B114),"",InfoPro!B114) ->  | D133: =IF(ISBLANK(InfoPro!E114),"",InfoPro!E114) ->  | E133: =IF(ISBLANK(InfoPro!N114),"",InfoPro!N114) ->  | F133: =IF(ISBLANK(InfoPro!I114),"",YEAR(InfoPro!I114)-$J$2) -> 
B134: =IF(ISBLANK(InfoPro!A115),"",InfoPro!A115) ->  | C134: =IF(ISBLANK(InfoPro!B115),"",InfoPro!B115) ->  | D134: =IF(ISBLANK(InfoPro!E115),"",InfoPro!E115) ->  | E134: =IF(ISBLANK(InfoPro!N115),"",InfoPro!N115) ->  | F134: =IF(ISBLANK(InfoPro!I115),"",YEAR(InfoPro!I115)-$J$2) -> 
B135: =IF(ISBLANK(InfoPro!A116),"",InfoPro!A116) ->  | C135: =IF(ISBLANK(InfoPro!B116),"",InfoPro!B116) ->  | D135: =IF(ISBLANK(InfoPro!E116),"",InfoPro!E116) ->  | E135: =IF(ISBLANK(InfoPro!N116),"",InfoPro!N116) ->  | F135: =IF(ISBLANK(InfoPro!I116),"",YEAR(InfoPro!I116)-$J$2) -> 
B136: =IF(ISBLANK(InfoPro!A117),"",InfoPro!A117) ->  | C136: =IF(ISBLANK(InfoPro!B117),"",InfoPro!B117) ->  | D136: =IF(ISBLANK(InfoPro!E117),"",InfoPro!E117) ->  | E136: =IF(ISBLANK(InfoPro!N117),"",InfoPro!N117) ->  | F136: =IF(ISBLANK(InfoPro!I117),"",YEAR(InfoPro!I117)-$J$2) -> 
B137: =IF(ISBLANK(InfoPro!A118),"",InfoPro!A118) ->  | C137: =IF(ISBLANK(InfoPro!B118),"",InfoPro!B118) ->  | D137: =IF(ISBLANK(InfoPro!E118),"",InfoPro!E118) ->  | E137: =IF(ISBLANK(InfoPro!N118),"",InfoPro!N118) ->  | F137: =IF(ISBLANK(InfoPro!I118),"",YEAR(InfoPro!I118)-$J$2) -> 
B138: =IF(ISBLANK(InfoPro!A119),"",InfoPro!A119) ->  | C138: =IF(ISBLANK(InfoPro!B119),"",InfoPro!B119) ->  | D138: =IF(ISBLANK(InfoPro!E119),"",InfoPro!E119) ->  | E138: =IF(ISBLANK(InfoPro!N119),"",InfoPro!N119) ->  | F138: =IF(ISBLANK(InfoPro!I119),"",YEAR(InfoPro!I119)-$J$2) -> 
B139: =IF(ISBLANK(InfoPro!A120),"",InfoPro!A120) ->  | C139: =IF(ISBLANK(InfoPro!B120),"",InfoPro!B120) ->  | D139: =IF(ISBLANK(InfoPro!E120),"",InfoPro!E120) ->  | E139: =IF(ISBLANK(InfoPro!N120),"",InfoPro!N120) ->  | F139: =IF(ISBLANK(InfoPro!I120),"",YEAR(InfoPro!I120)-$J$2) -> 
B140: =IF(ISBLANK(InfoPro!A121),"",InfoPro!A121) ->  | C140: =IF(ISBLANK(InfoPro!B121),"",InfoPro!B121) ->  | D140: =IF(ISBLANK(InfoPro!E121),"",InfoPro!E121) ->  | E140: =IF(ISBLANK(InfoPro!N121),"",InfoPro!N121) ->  | F140: =IF(ISBLANK(InfoPro!I121),"",YEAR(InfoPro!I121)-$J$2) -> 
B141: =IF(ISBLANK(InfoPro!A122),"",InfoPro!A122) ->  | C141: =IF(ISBLANK(InfoPro!B122),"",InfoPro!B122) ->  | D141: =IF(ISBLANK(InfoPro!E122),"",InfoPro!E122) ->  | E141: =IF(ISBLANK(InfoPro!N122),"",InfoPro!N122) ->  | F141: =IF(ISBLANK(InfoPro!I122),"",YEAR(InfoPro!I122)-$J$2) -> 
B142: =IF(ISBLANK(InfoPro!A123),"",InfoPro!A123) ->  | C142: =IF(ISBLANK(InfoPro!B123),"",InfoPro!B123) ->  | D142: =IF(ISBLANK(InfoPro!E123),"",InfoPro!E123) ->  | E142: =IF(ISBLANK(InfoPro!N123),"",InfoPro!N123) ->  | F142: =IF(ISBLANK(InfoPro!I123),"",YEAR(InfoPro!I123)-$J$2) -> 
B143: =IF(ISBLANK(InfoPro!A124),"",InfoPro!A124) ->  | C143: =IF(ISBLANK(InfoPro!B124),"",InfoPro!B124) ->  | D143: =IF(ISBLANK(InfoPro!E124),"",InfoPro!E124) ->  | E143: =IF(ISBLANK(InfoPro!N124),"",InfoPro!N124) ->  | F143: =IF(ISBLANK(InfoPro!I124),"",YEAR(InfoPro!I124)-$J$2) -> 
B144: =IF(ISBLANK(InfoPro!A125),"",InfoPro!A125) ->  | C144: =IF(ISBLANK(InfoPro!B125),"",InfoPro!B125) ->  | D144: =IF(ISBLANK(InfoPro!E125),"",InfoPro!E125) ->  | E144: =IF(ISBLANK(InfoPro!N125),"",InfoPro!N125) ->  | F144: =IF(ISBLANK(InfoPro!I125),"",YEAR(InfoPro!I125)-$J$2) -> 
B145: =IF(ISBLANK(InfoPro!A126),"",InfoPro!A126) ->  | C145: =IF(ISBLANK(InfoPro!B126),"",InfoPro!B126) ->  | D145: =IF(ISBLANK(InfoPro!E126),"",InfoPro!E126) ->  | E145: =IF(ISBLANK(InfoPro!N126),"",InfoPro!N126) ->  | F145: =IF(ISBLANK(InfoPro!I126),"",YEAR(InfoPro!I126)-$J$2) -> 
B146: =IF(ISBLANK(InfoPro!A127),"",InfoPro!A127) ->  | C146: =IF(ISBLANK(InfoPro!B127),"",InfoPro!B127) ->  | D146: =IF(ISBLANK(InfoPro!E127),"",InfoPro!E127) ->  | E146: =IF(ISBLANK(InfoPro!N127),"",InfoPro!N127) ->  | F146: =IF(ISBLANK(InfoPro!I127),"",YEAR(InfoPro!I127)-$J$2) -> 
B147: =IF(ISBLANK(InfoPro!A128),"",InfoPro!A128) ->  | C147: =IF(ISBLANK(InfoPro!B128),"",InfoPro!B128) ->  | D147: =IF(ISBLANK(InfoPro!E128),"",InfoPro!E128) ->  | E147: =IF(ISBLANK(InfoPro!N128),"",InfoPro!N128) ->  | F147: =IF(ISBLANK(InfoPro!I128),"",YEAR(InfoPro!I128)-$J$2) -> 
B148: =IF(ISBLANK(InfoPro!A129),"",InfoPro!A129) ->  | C148: =IF(ISBLANK(InfoPro!B129),"",InfoPro!B129) ->  | D148: =IF(ISBLANK(InfoPro!E129),"",InfoPro!E129) ->  | E148: =IF(ISBLANK(InfoPro!N129),"",InfoPro!N129) ->  | F148: =IF(ISBLANK(InfoPro!I129),"",YEAR(InfoPro!I129)-$J$2) -> 
B149: =IF(ISBLANK(InfoPro!A130),"",InfoPro!A130) ->  | C149: =IF(ISBLANK(InfoPro!B130),"",InfoPro!B130) ->  | D149: =IF(ISBLANK(InfoPro!E130),"",InfoPro!E130) ->  | E149: =IF(ISBLANK(InfoPro!N130),"",InfoPro!N130) ->  | F149: =IF(ISBLANK(InfoPro!I130),"",YEAR(InfoPro!I130)-$J$2) -> 
B150: =IF(ISBLANK(InfoPro!A131),"",InfoPro!A131) ->  | C150: =IF(ISBLANK(InfoPro!B131),"",InfoPro!B131) ->  | D150: =IF(ISBLANK(InfoPro!E131),"",InfoPro!E131) ->  | E150: =IF(ISBLANK(InfoPro!N131),"",InfoPro!N131) ->  | F150: =IF(ISBLANK(InfoPro!I131),"",YEAR(InfoPro!I131)-$J$2) -> 
B151: =IF(ISBLANK(InfoPro!A132),"",InfoPro!A132) ->  | C151: =IF(ISBLANK(InfoPro!B132),"",InfoPro!B132) ->  | D151: =IF(ISBLANK(InfoPro!E132),"",InfoPro!E132) ->  | E151: =IF(ISBLANK(InfoPro!N132),"",InfoPro!N132) ->  | F151: =IF(ISBLANK(InfoPro!I132),"",YEAR(InfoPro!I132)-$J$2) -> 
B152: =IF(ISBLANK(InfoPro!A133),"",InfoPro!A133) ->  | C152: =IF(ISBLANK(InfoPro!B133),"",InfoPro!B133) ->  | D152: =IF(ISBLANK(InfoPro!E133),"",InfoPro!E133) ->  | E152: =IF(ISBLANK(InfoPro!N133),"",InfoPro!N133) ->  | F152: =IF(ISBLANK(InfoPro!I133),"",YEAR(InfoPro!I133)-$J$2) -> 
B153: =IF(ISBLANK(InfoPro!A134),"",InfoPro!A134) ->  | C153: =IF(ISBLANK(InfoPro!B127),"",InfoPro!B127) ->  | D153: =IF(ISBLANK(InfoPro!E127),"",InfoPro!E127) ->  | E153: =IF(ISBLANK(InfoPro!N127),"",InfoPro!N127) ->  | F153: =IF(ISBLANK(InfoPro!I127),"",YEAR(InfoPro!I127)-$J$2) ->  | G153: =IF(E153="SI",100,IF(E153="NO",0,"")) ->  | H153: =IF(G153="","",(G153)) -> 
B154: =IF(ISBLANK(InfoPro!A135),"",InfoPro!A135) ->  | C154: =IF(ISBLANK(InfoPro!B128),"",InfoPro!B128) ->  | D154: =IF(ISBLANK(InfoPro!E128),"",InfoPro!E128) ->  | E154: =IF(ISBLANK(InfoPro!N128),"",InfoPro!N128) ->  | F154: =IF(ISBLANK(InfoPro!I128),"",YEAR(InfoPro!I128)-$J$2) -> 
B155: =IF(ISBLANK(InfoPro!A136),"",InfoPro!A136) ->  | C155: =IF(ISBLANK(InfoPro!B129),"",InfoPro!B129) ->  | D155: =IF(ISBLANK(InfoPro!E129),"",InfoPro!E129) ->  | E155: =IF(ISBLANK(InfoPro!N129),"",InfoPro!N129) ->  | F155: =IF(ISBLANK(InfoPro!I129),"",YEAR(InfoPro!I129)-$J$2) -> 
B156: =IF(ISBLANK(InfoPro!A137),"",InfoPro!A137) ->  | C156: =IF(ISBLANK(InfoPro!B130),"",InfoPro!B130) ->  | D156: =IF(ISBLANK(InfoPro!E130),"",InfoPro!E130) ->  | E156: =IF(ISBLANK(InfoPro!N130),"",InfoPro!N130) ->  | F156: =IF(ISBLANK(InfoPro!I130),"",YEAR(InfoPro!I130)-$J$2) -> 
B157: =IF(ISBLANK(InfoPro!A138),"",InfoPro!A138) ->  | C157: =IF(ISBLANK(InfoPro!B131),"",InfoPro!B131) ->  | D157: =IF(ISBLANK(InfoPro!E131),"",InfoPro!E131) ->  | E157: =IF(ISBLANK(InfoPro!N131),"",InfoPro!N131) ->  | F157: =IF(ISBLANK(InfoPro!I131),"",YEAR(InfoPro!I131)-$J$2) -> 
B158: =IF(ISBLANK(InfoPro!A139),"",InfoPro!A139) ->  | C158: =IF(ISBLANK(InfoPro!B132),"",InfoPro!B132) ->  | D158: =IF(ISBLANK(InfoPro!E132),"",InfoPro!E132) ->  | E158: =IF(ISBLANK(InfoPro!N132),"",InfoPro!N132) ->  | F158: =IF(ISBLANK(InfoPro!I132),"",YEAR(InfoPro!I132)-$J$2) -> 
B159: =IF(ISBLANK(InfoPro!A140),"",InfoPro!A140) ->  | C159: =IF(ISBLANK(InfoPro!B133),"",InfoPro!B133) ->  | D159: =IF(ISBLANK(InfoPro!E133),"",InfoPro!E133) ->  | E159: =IF(ISBLANK(InfoPro!N133),"",InfoPro!N133) ->  | F159: =IF(ISBLANK(InfoPro!I133),"",YEAR(InfoPro!I133)-$J$2) -> 
B160: =IF(ISBLANK(InfoPro!A141),"",InfoPro!A141) ->  | C160: =IF(ISBLANK(InfoPro!B134),"",InfoPro!B134) ->  | D160: =IF(ISBLANK(InfoPro!E134),"",InfoPro!E134) ->  | E160: =IF(ISBLANK(InfoPro!N134),"",InfoPro!N134) ->  | F160: =IF(ISBLANK(InfoPro!I134),"",YEAR(InfoPro!I134)-$J$2) -> 
B161: =IF(ISBLANK(InfoPro!A142),"",InfoPro!A142) ->  | C161: =IF(ISBLANK(InfoPro!B135),"",InfoPro!B135) ->  | D161: =IF(ISBLANK(InfoPro!E135),"",InfoPro!E135) ->  | E161: =IF(ISBLANK(InfoPro!N135),"",InfoPro!N135) ->  | F161: =IF(ISBLANK(InfoPro!I135),"",YEAR(InfoPro!I135)-$J$2) -> 
B162: =IF(ISBLANK(InfoPro!A143),"",InfoPro!A143) ->  | C162: =IF(ISBLANK(InfoPro!B136),"",InfoPro!B136) ->  | D162: =IF(ISBLANK(InfoPro!E136),"",InfoPro!E136) ->  | E162: =IF(ISBLANK(InfoPro!N136),"",InfoPro!N136) ->  | F162: =IF(ISBLANK(InfoPro!I136),"",YEAR(InfoPro!I136)-$J$2) -> 
B163: =IF(ISBLANK(InfoPro!A144),"",InfoPro!A144) ->  | C163: =IF(ISBLANK(InfoPro!B137),"",InfoPro!B137) ->  | D163: =IF(ISBLANK(InfoPro!E137),"",InfoPro!E137) ->  | E163: =IF(ISBLANK(InfoPro!N137),"",InfoPro!N137) ->  | F163: =IF(ISBLANK(InfoPro!I137),"",YEAR(InfoPro!I137)-$J$2) -> 
B164: =IF(ISBLANK(InfoPro!A145),"",InfoPro!A145) ->  | C164: =IF(ISBLANK(InfoPro!B138),"",InfoPro!B138) ->  | D164: =IF(ISBLANK(InfoPro!E138),"",InfoPro!E138) ->  | E164: =IF(ISBLANK(InfoPro!N138),"",InfoPro!N138) ->  | F164: =IF(ISBLANK(InfoPro!I138),"",YEAR(InfoPro!I138)-$J$2) -> 
B165: =IF(ISBLANK(InfoPro!A146),"",InfoPro!A146) ->  | C165: =IF(ISBLANK(InfoPro!B139),"",InfoPro!B139) ->  | D165: =IF(ISBLANK(InfoPro!E139),"",InfoPro!E139) ->  | E165: =IF(ISBLANK(InfoPro!N139),"",InfoPro!N139) ->  | F165: =IF(ISBLANK(InfoPro!I139),"",YEAR(InfoPro!I139)-$J$2) -> 
B166: =IF(ISBLANK(InfoPro!A147),"",InfoPro!A147) ->  | C166: =IF(ISBLANK(InfoPro!B140),"",InfoPro!B140) ->  | D166: =IF(ISBLANK(InfoPro!E140),"",InfoPro!E140) ->  | E166: =IF(ISBLANK(InfoPro!N140),"",InfoPro!N140) ->  | F166: =IF(ISBLANK(InfoPro!I140),"",YEAR(InfoPro!I140)-$J$2) -> 
B167: =IF(ISBLANK(InfoPro!A148),"",InfoPro!A148) ->  | C167: =IF(ISBLANK(InfoPro!B141),"",InfoPro!B141) ->  | D167: =IF(ISBLANK(InfoPro!E141),"",InfoPro!E141) ->  | E167: =IF(ISBLANK(InfoPro!N141),"",InfoPro!N141) ->  | F167: =IF(ISBLANK(InfoPro!I141),"",YEAR(InfoPro!I141)-$J$2) -> 
B168: =IF(ISBLANK(InfoPro!A149),"",InfoPro!A149) ->  | C168: =IF(ISBLANK(InfoPro!B142),"",InfoPro!B142) ->  | D168: =IF(ISBLANK(InfoPro!E142),"",InfoPro!E142) ->  | E168: =IF(ISBLANK(InfoPro!N142),"",InfoPro!N142) ->  | F168: =IF(ISBLANK(InfoPro!I142),"",YEAR(InfoPro!I142)-$J$2) ->  | G168: =IF(E168="SI",100,IF(E168="NO",0,"")) ->  | H168: =IF(G168="","",(G168)) -> 
B169: =IF(ISBLANK(InfoPro!A150),"",InfoPro!A150) ->  | C169: =IF(ISBLANK(InfoPro!B143),"",InfoPro!B143) ->  | D169: =IF(ISBLANK(InfoPro!E143),"",InfoPro!E143) ->  | E169: =IF(ISBLANK(InfoPro!N143),"",InfoPro!N143) ->  | F169: =IF(ISBLANK(InfoPro!I143),"",YEAR(InfoPro!I143)-$J$2) -> 
B170: =IF(ISBLANK(InfoPro!A151),"",InfoPro!A151) ->  | C170: =IF(ISBLANK(InfoPro!B144),"",InfoPro!B144) ->  | D170: =IF(ISBLANK(InfoPro!E144),"",InfoPro!E144) ->  | E170: =IF(ISBLANK(InfoPro!N144),"",InfoPro!N144) ->  | F170: =IF(ISBLANK(InfoPro!I144),"",YEAR(InfoPro!I144)-$J$2) -> 
B171: =IF(ISBLANK(InfoPro!A152),"",InfoPro!A152) ->  | C171: =IF(ISBLANK(InfoPro!B145),"",InfoPro!B145) ->  | D171: =IF(ISBLANK(InfoPro!E145),"",InfoPro!E145) ->  | E171: =IF(ISBLANK(InfoPro!N145),"",InfoPro!N145) ->  | F171: =IF(ISBLANK(InfoPro!I145),"",YEAR(InfoPro!I145)-$J$2) -> 
B172: =IF(ISBLANK(InfoPro!A153),"",InfoPro!A153) ->  | C172: =IF(ISBLANK(InfoPro!B146),"",InfoPro!B146) ->  | D172: =IF(ISBLANK(InfoPro!E146),"",InfoPro!E146) ->  | E172: =IF(ISBLANK(InfoPro!N146),"",InfoPro!N146) ->  | F172: =IF(ISBLANK(InfoPro!I146),"",YEAR(InfoPro!I146)-$J$2) -> 
B173: =IF(ISBLANK(InfoPro!A154),"",InfoPro!A154) ->  | C173: =IF(ISBLANK(InfoPro!B147),"",InfoPro!B147) ->  | D173: =IF(ISBLANK(InfoPro!E147),"",InfoPro!E147) ->  | E173: =IF(ISBLANK(InfoPro!N147),"",InfoPro!N147) ->  | F173: =IF(ISBLANK(InfoPro!I147),"",YEAR(InfoPro!I147)-$J$2) -> 
B174: =IF(ISBLANK(InfoPro!A155),"",InfoPro!A155) ->  | C174: =IF(ISBLANK(InfoPro!B148),"",InfoPro!B148) ->  | D174: =IF(ISBLANK(InfoPro!E148),"",InfoPro!E148) ->  | E174: =IF(ISBLANK(InfoPro!N148),"",InfoPro!N148) ->  | F174: =IF(ISBLANK(InfoPro!I148),"",YEAR(InfoPro!I148)-$J$2) -> 
B175: =IF(ISBLANK(InfoPro!A156),"",InfoPro!A156) ->  | C175: =IF(ISBLANK(InfoPro!B149),"",InfoPro!B149) ->  | D175: =IF(ISBLANK(InfoPro!E149),"",InfoPro!E149) ->  | E175: =IF(ISBLANK(InfoPro!N149),"",InfoPro!N149) ->  | F175: =IF(ISBLANK(InfoPro!I149),"",YEAR(InfoPro!I149)-$J$2) -> 
B176: =IF(ISBLANK(InfoPro!A157),"",InfoPro!A157) ->  | C176: =IF(ISBLANK(InfoPro!B150),"",InfoPro!B150) ->  | D176: =IF(ISBLANK(InfoPro!E150),"",InfoPro!E150) ->  | E176: =IF(ISBLANK(InfoPro!N150),"",InfoPro!N150) ->  | F176: =IF(ISBLANK(InfoPro!I150),"",YEAR(InfoPro!I150)-$J$2) -> 
B177: =IF(ISBLANK(InfoPro!A158),"",InfoPro!A158) ->  | C177: =IF(ISBLANK(InfoPro!B151),"",InfoPro!B151) ->  | D177: =IF(ISBLANK(InfoPro!E151),"",InfoPro!E151) ->  | E177: =IF(ISBLANK(InfoPro!N151),"",InfoPro!N151) ->  | F177: =IF(ISBLANK(InfoPro!I151),"",YEAR(InfoPro!I151)-$J$2) -> 
B178: =IF(ISBLANK(InfoPro!A159),"",InfoPro!A159) ->  | C178: =IF(ISBLANK(InfoPro!B152),"",InfoPro!B152) ->  | D178: =IF(ISBLANK(InfoPro!E152),"",InfoPro!E152) ->  | E178: =IF(ISBLANK(InfoPro!N152),"",InfoPro!N152) ->  | F178: =IF(ISBLANK(InfoPro!I152),"",YEAR(InfoPro!I152)-$J$2) -> 
B179: =IF(ISBLANK(InfoPro!A160),"",InfoPro!A160) ->  | C179: =IF(ISBLANK(InfoPro!B153),"",InfoPro!B153) ->  | D179: =IF(ISBLANK(InfoPro!E153),"",InfoPro!E153) ->  | E179: =IF(ISBLANK(InfoPro!N153),"",InfoPro!N153) ->  | F179: =IF(ISBLANK(InfoPro!I153),"",YEAR(InfoPro!I153)-$J$2) -> 
B180: =IF(ISBLANK(InfoPro!A161),"",InfoPro!A161) ->  | C180: =IF(ISBLANK(InfoPro!B154),"",InfoPro!B154) ->  | D180: =IF(ISBLANK(InfoPro!E154),"",InfoPro!E154) ->  | E180: =IF(ISBLANK(InfoPro!N154),"",InfoPro!N154) ->  | F180: =IF(ISBLANK(InfoPro!I154),"",YEAR(InfoPro!I154)-$J$2) -> 
B181: =IF(ISBLANK(InfoPro!A162),"",InfoPro!A162) ->  | C181: =IF(ISBLANK(InfoPro!B155),"",InfoPro!B155) ->  | D181: =IF(ISBLANK(InfoPro!E155),"",InfoPro!E155) ->  | E181: =IF(ISBLANK(InfoPro!N155),"",InfoPro!N155) ->  | F181: =IF(ISBLANK(InfoPro!I155),"",YEAR(InfoPro!I155)-$J$2) -> 
B182: =IF(ISBLANK(InfoPro!A163),"",InfoPro!A163) ->  | C182: =IF(ISBLANK(InfoPro!B156),"",InfoPro!B156) ->  | D182: =IF(ISBLANK(InfoPro!E156),"",InfoPro!E156) ->  | E182: =IF(ISBLANK(InfoPro!N156),"",InfoPro!N156) ->  | F182: =IF(ISBLANK(InfoPro!I156),"",YEAR(InfoPro!I156)-$J$2) -> 
B183: =IF(ISBLANK(InfoPro!A164),"",InfoPro!A164) ->  | C183: =IF(ISBLANK(InfoPro!B157),"",InfoPro!B157) ->  | D183: =IF(ISBLANK(InfoPro!E157),"",InfoPro!E157) ->  | E183: =IF(ISBLANK(InfoPro!N157),"",InfoPro!N157) ->  | F183: =IF(ISBLANK(InfoPro!I157),"",YEAR(InfoPro!I157)-$J$2) -> 
B184: =IF(ISBLANK(InfoPro!A165),"",InfoPro!A165) ->  | C184: =IF(ISBLANK(InfoPro!B158),"",InfoPro!B158) ->  | D184: =IF(ISBLANK(InfoPro!E158),"",InfoPro!E158) ->  | E184: =IF(ISBLANK(InfoPro!N158),"",InfoPro!N158) ->  | F184: =IF(ISBLANK(InfoPro!I158),"",YEAR(InfoPro!I158)-$J$2) -> 
B185: =IF(ISBLANK(InfoPro!A166),"",InfoPro!A166) ->  | C185: =IF(ISBLANK(InfoPro!B159),"",InfoPro!B159) ->  | D185: =IF(ISBLANK(InfoPro!E159),"",InfoPro!E159) ->  | E185: =IF(ISBLANK(InfoPro!N159),"",InfoPro!N159) ->  | F185: =IF(ISBLANK(InfoPro!I159),"",YEAR(InfoPro!I159)-$J$2) -> 
B186: =IF(ISBLANK(InfoPro!A167),"",InfoPro!A167) ->  | C186: =IF(ISBLANK(InfoPro!B160),"",InfoPro!B160) ->  | D186: =IF(ISBLANK(InfoPro!E160),"",InfoPro!E160) ->  | E186: =IF(ISBLANK(InfoPro!N160),"",InfoPro!N160) ->  | F186: =IF(ISBLANK(InfoPro!I160),"",YEAR(InfoPro!I160)-$J$2) -> 
B187: =IF(ISBLANK(InfoPro!A168),"",InfoPro!A168) ->  | C187: =IF(ISBLANK(InfoPro!B161),"",InfoPro!B161) ->  | D187: =IF(ISBLANK(InfoPro!E161),"",InfoPro!E161) ->  | E187: =IF(ISBLANK(InfoPro!N161),"",InfoPro!N161) ->  | F187: =IF(ISBLANK(InfoPro!I161),"",YEAR(InfoPro!I161)-$J$2) -> 
B188: =IF(ISBLANK(InfoPro!A169),"",InfoPro!A169) ->  | C188: =IF(ISBLANK(InfoPro!B162),"",InfoPro!B162) ->  | D188: =IF(ISBLANK(InfoPro!E162),"",InfoPro!E162) ->  | E188: =IF(ISBLANK(InfoPro!N162),"",InfoPro!N162) ->  | F188: =IF(ISBLANK(InfoPro!I162),"",YEAR(InfoPro!I162)-$J$2) -> 
B189: =IF(ISBLANK(InfoPro!A170),"",InfoPro!A170) ->  | C189: =IF(ISBLANK(InfoPro!B163),"",InfoPro!B163) ->  | D189: =IF(ISBLANK(InfoPro!E163),"",InfoPro!E163) ->  | E189: =IF(ISBLANK(InfoPro!N163),"",InfoPro!N163) ->  | F189: =IF(ISBLANK(InfoPro!I163),"",YEAR(InfoPro!I163)-$J$2) -> 

Sheet EC-RE
B3: Factor emisiones sistema | C3: 0.127283 | D3: Ton/MWh | F3: Año de Referencia | G3: 2023
B4: Tasa de descuento | C4: 0.118 | F4: Mínimo | G4: =MIN(Z:Z) -> 478007.9256
B5: Costo emisiones Ton | C5: 91.94 | D5: USD/Ton
B6: TRM | C6: 4070 | D6: COP/USD
J7: 0 | K7: 1 | L7: 2 | M7: 3 | N7: 4 | O7: 5 | P7: 6 | Q7: 7 | R7: 8 | S7: 9 | T7: 10 | U7: 11 | V7: 12 | W7: 13 | X7: 14
A8: Codigo | B8: Nombre | C8: capacidad | D8: tipo | E8: Año de entrada | F8: FP | G8: Factor emisiones | H8: Produccion media/a MWh/a | I8: Emisiones evitadas Ton/a | J8: Flujo Descontado 0 | K8: Flujo Descontado 1 | L8: Flujo Descontado 2 | M8: Flujo Descontado 3 | N8: Flujo Descontado 4 | O8: Flujo Descontado 5 | P8: Flujo Descontado 6 | Q8: Flujo Descontado 7 | R8: Flujo Descontado 8 | S8: Flujo Descontado 9 | T8: Flujo Descontado 10 | U8: Flujo Descontado 11 | V8: Flujo Descontado 12 | W8: Flujo Descontado 13 | X8: Flujo Descontado 14 | Y8: VPN | Z8: (Beneficio)/kW
A9: =IF(ISBLANK(InfoPro!A2),"",InfoPro!A2) -> SC_150_A1 | B9: =IF(ISBLANK(InfoPro!B2),"",InfoPro!B2) -> La Estrella 80 MW | C9: =IF(ISBLANK(InfoPro!E2),"",InfoPro!E2) -> 80 | D9: =IF(ISBLANK(InfoPro!F2),"",InfoPro!F2) -> Solar FV | E9: =IF(ISBLANK(InfoPro!I2),"",YEAR(InfoPro!I2)-$G$3) -> 3 | F9: =IF(B9="","",VLOOKUP(D9,Tablas!$B$2:$E$13,2,FALSE)) -> 0.26 | G9: =IF(B9="","",VLOOKUP(D9,Tablas!$B$2:$G$13,6,FALSE)) -> 0 | H9: =IF(C9="","",+C9*F9*24*365) -> 182208 | I9: =IF(H9="","",+H9*($C$3-G9)) -> 23191.98086 | J9: =IF($I9="","",(1/(1+$C$4)^(J$7+$E9))*$I9*$C$5) -> 1525867.886 | K9: =IF($I9="","",(1/(1+$C$4)^(K$7+$E9))*$I9*$C$5) -> 1364819.218 | L9: 1220768.531 | M9: 1091921.763 | N9: 976674.207 | O9: 873590.525 | P9: 781386.8739 | Q9: 698914.914 | R9: 625147.5081 | S9: 559165.9285 | T9: 500148.4155 | U9: 447359.9423 | V9: 400143.0611 | W9: 357909.7147 | X9: 320133.913 | Y9: =IF(X9="","",SUM(J9:X9)*$C$6) -> 4.779788628e+10 | Z9: =IF(C9=0,0,IF(Y9="","",Y9/(C9*1000))) -> 597473.5785
A10: =IF(ISBLANK(InfoPro!A3),"",InfoPro!A3) -> SC_201_A1 | B10: =IF(ISBLANK(InfoPro!B3),"",InfoPro!B3) -> PARQUE SOLAR PUERTA DE ORO - 300 MW | C10: =IF(ISBLANK(InfoPro!E3),"",InfoPro!E3) -> 300 | D10: =IF(ISBLANK(InfoPro!F3),"",InfoPro!F3) -> Solar FV | E10: =IF(ISBLANK(InfoPro!I3),"",YEAR(InfoPro!I3)-$G$3) -> 2 | F10: =IF(B10="","",VLOOKUP(D10,Tablas!$B$2:$E$13,2,FALSE)) -> 0.26 | G10: =IF(B10="","",VLOOKUP(D10,Tablas!$B$2:$G$13,6,FALSE)) -> 0 | H10: =IF(C10="","",+C10*F10*24*365) -> 683280 | I10: =IF(H10="","",+H10*($C$3-G10)) -> 86969.92824 | J10: =IF($I10="","",(1/(1+$C$4)^(J$7+$E10))*$I10*$C$5) -> 6397201.112 | K10: 5722004.572 | L10: 5118072.068 | M10: 4577881.993 | N10: 4094706.613 | O10: 3662528.276 | P10: 3275964.469 | Q10: 2930200.777 | R10: 2620930.928 | S10: 2344303.155 | T10: 2096872.232 | U10: 1875556.558 | V10: 1677599.784 | W10: 1500536.479 | X10: 1342161.43 | Y10: =IF(X10="","",SUM(J10:X10)*$C$6) -> 2.003926382e+11 | Z10: =IF(C10=0,0,IF(Y10="","",Y10/(C10*1000))) -> 667975.4607
A11: =IF(ISBLANK(InfoPro!A4),"",InfoPro!A4) -> SC_489_A1 | B11: =IF(ISBLANK(InfoPro!B4),"",InfoPro!B4) -> PARQUE SOLAR VIRGINIA 300 MW | C11: =IF(ISBLANK(InfoPro!E4),"",InfoPro!E4) -> 300 | D11: =IF(ISBLANK(InfoPro!F4),"",InfoPro!F4) -> Solar FV | E11: =IF(ISBLANK(InfoPro!I4),"",YEAR(InfoPro!I4)-$G$3) -> 3 | F11: =IF(B11="","",VLOOKUP(D11,Tablas!$B$2:$E$13,2,FALSE)) -> 0.26 | G11: =IF(B11="","",VLOOKUP(D11,Tablas!$B$2:$G$13,6,FALSE)) -> 0 | H11: 683280 | I11: 86969.92824 | J11: 5722004.572 | K11: 5118072.068 | L11: 4577881.993 | M11: 4094706.613 | N11: 3662528.276 | O11: 3275964.469 | P11: 2930200.777 | Q11: 2620930.928 | R11: 2344303.155 | S11: 2096872.232 | T11: 1875556.558 | U11: 1677599.784 | V11: 1500536.479 | W11: 1342161.43 | X11: 1200502.174 | Y11: 1.792420735e+11 | Z11: 597473.5785
A12: =IF(ISBLANK(InfoPro!A5),"",InfoPro!A5) -> SC_564_A1 | B12: =IF(ISBLANK(InfoPro!B5),"",InfoPro!B5) -> Marte 100 MW | C12: =IF(ISBLANK(InfoPro!E5),"",InfoPro!E5) -> 100 | D12: =IF(ISBLANK(InfoPro!F5),"",InfoPro!F5) -> Solar FV | E12: =IF(ISBLANK(InfoPro!I5),"",YEAR(InfoPro!I5)-$G$3) -> 2 | F12: =IF(B12="","",VLOOKUP(D12,Tablas!$B$2:$E$13,2,FALSE)) -> 0.26 | G12: =IF(B12="","",VLOOKUP(D12,Tablas!$B$2:$G$13,6,FALSE)) -> 0 | H12: 227760 | I12: 28989.97608 | J12: 2132400.371 | K12: 1907334.857 | L12: 1706024.023 | M12: 1525960.664 | N12: 1364902.204 | O12: 1220842.759 | P12: 1091988.156 | Q12: 976733.5924 | R12: 873643.6425 | S12: 781434.3851 | T12: 698957.4106 | U12: 625185.5194 | V12: 559199.9279 | W12: 500178.8264 | X12: 447387.1434 | Y12: 6.679754607e+10 | Z12: 667975.4607
A13: =IF(ISBLANK(InfoPro!A6),"",InfoPro!A6) -> SC_752_A1 | B13: =IF(ISBLANK(InfoPro!B6),"",InfoPro!B6) -> El Triunfo 19,9MW | C13: =IF(ISBLANK(InfoPro!E6),"",InfoPro!E6) -> 19.9 | D13: =IF(ISBLANK(InfoPro!F6),"",InfoPro!F6) -> Solar FV | E13: =IF(ISBLANK(InfoPro!I6),"",YEAR(InfoPro!I6)-$G$3) -> 2 | F13: =IF(B13="","",VLOOKUP(D13,Tablas!$B$2:$E$13,2,FALSE)) -> 0.26 | G13: =IF(B13="","",VLOOKUP(D13,Tablas!$B$2:$G$13,6,FALSE)) -> 0 | H13: 45324.24 | I13: 5769.00524 | J13: 424347.6737 | K13: 379559.6366 | L13: 339498.7805 | M13: 303666.1722 | N13: 271615.5386 | O13: 242947.709 | P13: 217305.6431 | Q13: 194369.9849 | R13: 173855.0849 | S13: 155505.4426 | T13: 139092.5247 | U13: 124411.9184 | V13: 111280.7856 | W13: 99535.58645 | X13: 89030.04154 | Y13: 1.329271167e+10 | Z13: 667975.4607
A14: =IF(ISBLANK(InfoPro!A7),"",InfoPro!A7) -> SC_729_A1 | B14: =IF(ISBLANK(InfoPro!B7),"",InfoPro!B7) -> PLANTA FV DOÑA JUANA_4.3MW | C14: =IF(ISBLANK(InfoPro!E7),"",InfoPro!E7) -> 4.3 | D14: =IF(ISBLANK(InfoPro!F7),"",InfoPro!F7) -> Solar FV | E14: =IF(ISBLANK(InfoPro!I7),"",YEAR(InfoPro!I7)-$G$3) -> 2 | F14: =IF(B14="","",VLOOKUP(D14,Tablas!$B$2:$E$13,2,FALSE)) -> 0.26 | G14: =IF(B14="","",VLOOKUP(D14,Tablas!$B$2:$G$13,6,FALSE)) -> 0 | H14: 9793.68 | I14: 1246.568971 | J14: 91693.21593 | K14: 82015.39887 | L14: 73359.03298 | M14: 65616.30857 | N14: 58690.79478 | O14: 52496.23862 | P14: 46955.49072 | Q14: 41999.54447 | R14: 37566.67663 | S14: 33601.67856 | T14: 30055.16866 | U14: 26882.97733 | V14: 24045.5969 | W14: 21507.68953 | X14: 19237.64717 | Y14: 2872294481 | Z14: 667975.4607
A15: =IF(ISBLANK(InfoPro!A8),"",InfoPro!A8) -> SC_729_A2 | B15: =IF(ISBLANK(InfoPro!B8),"",InfoPro!B8) -> PLANTA FV DOÑA JUANA_4.3MW | C15: =IF(ISBLANK(InfoPro!E8),"",InfoPro!E8) -> 4.3 | D15: =IF(ISBLANK(InfoPro!F8),"",InfoPro!F8) -> Solar FV | E15: =IF(ISBLANK(InfoPro!I8),"",YEAR(InfoPro!I8)-$G$3) -> 2 | F15: =IF(B15="","",VLOOKUP(D15,Tablas!$B$2:$E$13,2,FALSE)) -> 0.26 | G15: =IF(B15="","",VLOOKUP(D15,Tablas!$B$2:$G$13,6,FALSE)) -> 0 | H15: 9793.68 | I15: 1246.568971 | J15: 91693.21593 | K15: 82015.39887 | L15: 73359.03298 | M15: 65616.30857 | N15: 58690.79478 | O15: 52496.23862 | P15: 46955.49072 | Q15: 41999.54447 | R15: 37566.67663 | S15: 33601.67856 | T15: 30055.16866 | U15: 26882.97733 | V15: 24045.5969 | W15: 21507.68953 | X15: 19237.64717 | Y15: 2872294481 | Z15: 667975.4607
A16: =IF(ISBLANK(InfoPro!A9),"",InfoPro!A9) -> SC_819_A1 | B16: =IF(ISBLANK(InfoPro!B9),"",InfoPro!B9) -> PLANTA FV SAN FRANCISCO 4.9 MW | C16: =IF(ISBLANK(InfoPro!E9),"",InfoPro!E9) -> 4.9 | D16: =IF(ISBLANK(InfoPro!F9),"",InfoPro!F9) -> Solar FV | E16: =IF(ISBLANK(InfoPro!I9),"",YEAR(InfoPro!I9)-$G$3) -> 1 | F16: =IF(B16="","",VLOOKUP(D16,Tablas!$B$2:$E$13,2,FALSE)) -> 0.26 | G16: =IF(B16="","",VLOOKUP(D16,Tablas!$B$2:$G$13,6,FALSE)) -> 0 | H16: 11160.24 | I16: 1420.508828 | J16: 116817.1571 | K16: 104487.6182 | L16: 93459.40801 | M16: 83595.17711 | N16: 74772.07255 | O16: 66880.20801 | P16: 59821.29518 | Q16: 53507.41966 | R16: 47859.94603 | S16: 42808.53848 | T16: 38290.28487 | U16: 34248.91312 | V16: 30634.09045 | W16: 27400.79647 | X16: 24508.76249 | Y16: 3659303169 | Z16: 746796.5651
A17: =IF(ISBLANK(InfoPro!A10),"",InfoPro!A10) -> SC_819_A2 | B17: =IF(ISBLANK(InfoPro!B10),"",InfoPro!B10) -> PLANTA FV SAN FRANCISCO 4.9 MW | C17: =IF(ISBLANK(InfoPro!E10),"",InfoPro!E10) -> 4.9 | D17: =IF(ISBLANK(InfoPro!F10),"",InfoPro!F10) -> Solar FV | E17: =IF(ISBLANK(InfoPro!I10),"",YEAR(InfoPro!I10)-$G$3) -> 1 | F17: =IF(B17="","",VLOOKUP(D17,Tablas!$B$2:$E$13,2,FALSE)) -> 0.26 | G17: =IF(B17="","",VLOOKUP(D17,Tablas!$B$2:$G$13,6,FALSE)) -> 0 | H17: 11160.24 | I17: 1420.508828 | J17: 116817.1571 | K17: 104487.6182 | L17: 93459.40801 | M17: 83595.17711 | N17: 74772.07255 | O17: 66880.20801 | P17: 59821.29518 | Q17: 53507.41966 | R17: 47859.94603 | S17: 42808.53848 | T17: 38290.28487 | U17: 34248.91312 | V17: 30634.09045 | W17: 27400.79647 | X17: 24508.76249 | Y17: 3659303169 | Z17: 746796.5651
A18: =IF(ISBLANK(InfoPro!A11),"",InfoPro!A11) -> SC_804_A1 | B18: =IF(ISBLANK(InfoPro!B11),"",InfoPro!B11) -> PLANTA FV MONTECRISTO 90 MW | C18: =IF(ISBLANK(InfoPro!E11),"",InfoPro!E11) -> 90 | D18: =IF(ISBLANK(InfoPro!F11),"",InfoPro!F11) -> Solar FV | E18: =IF(ISBLANK(InfoPro!I11),"",YEAR(InfoPro!I11)-$G$3) -> 3 | F18: =IF(B18="","",VLOOKUP(D18,Tablas!$B$2:$E$13,2,FALSE)) -> 0.26 | G18: =IF(B18="","",VLOOKUP(D18,Tablas!$B$2:$G$13,6,FALSE)) -> 0 | H18: 204984 | I18: 26090.97847 | J18: 1716601.372 | K18: 1535421.62 | L18: 1373364.598 | M18: 1228411.984 | N18: 1098758.483 | O18: 982789.3406 | P18: 879060.2331 | Q18: 786279.2783 | R18: 703290.9466 | S18: 629061.6696 | T18: 562666.9674 | U18: 503279.9351 | V18: 450160.9437 | W18: 402648.4291 | X18: 360150.6521 | Y18: 5.377262206e+10 | Z18: 597473.5785
A19: =IF(ISBLANK(InfoPro!A12),"",InfoPro!A12) -> SC_804_A2 | B19: =IF(ISBLANK(InfoPro!B12),"",InfoPro!B12) -> PLANTA FV MONTECRISTO 90 MW | C19: =IF(ISBLANK(InfoPro!E12),"",InfoPro!E12) -> 90 | D19: =IF(ISBLANK(InfoPro!F12),"",InfoPro!F12) -> Solar FV | E19: =IF(ISBLANK(InfoPro!I12),"",YEAR(InfoPro!I12)-$G$3) -> 3 | F19: =IF(B19="","",VLOOKUP(D19,Tablas!$B$2:$E$13,2,FALSE)) -> 0.26 | G19: =IF(B19="","",VLOOKUP(D19,Tablas!$B$2:$G$13,6,FALSE)) -> 0 | H19: 204984 | I19: 26090.97847 | J19: 1716601.372 | K19: 1535421.62 | L19: 1373364.598 | M19: 1228411.984 | N19: 1098758.483 | O19: 982789.3406 | P19: 879060.2331 | Q19: 786279.2783 | R19: 703290.9466 | S19: 629061.6696 | T19: 562666.9674 | U19: 503279.9351 | V19: 450160.9437 | W19: 402648.4291 | X19: 360150.6521 | Y19: 5.377262206e+10 | Z19: 597473.5785
A20: =IF(ISBLANK(InfoPro!A13),"",InfoPro!A13) -> SC_1125_A1 | B20: =IF(ISBLANK(InfoPro!B13),"",InfoPro!B13) -> San Felipe Solar 80 MW | C20: =IF(ISBLANK(InfoPro!E13),"",InfoPro!E13) -> 80 | D20: =IF(ISBLANK(InfoPro!F13),"",InfoPro!F13) -> Solar FV | E20: =IF(ISBLANK(InfoPro!I13),"",YEAR(InfoPro!I13)-$G$3) -> 3 | F20: =IF(B20="","",VLOOKUP(D20,Tablas!$B$2:$E$13,2,FALSE)) -> 0.26 | G20: =IF(B20="","",VLOOKUP(D20,Tablas!$B$2:$G$13,6,FALSE)) -> 0 | H20: 182208 | I20: 23191.98086 | J20: 1525867.886 | K20: 1364819.218 | L20: 1220768.531 | M20: 1091921.763 | N20: 976674.207 | O20: 873590.525 | P20: 781386.8739 | Q20: 698914.914 | R20: 625147.5081 | S20: 559165.9285 | T20: 500148.4155 | U20: 447359.9423 | V20: 400143.0611 | W20: 357909.7147 | X20: 320133.913 | Y20: 4.779788628e+10 | Z20: 597473.5785
A21: =IF(ISBLANK(InfoPro!A14),"",InfoPro!A14) -> SC_1013_A1 | B21: =IF(ISBLANK(InfoPro!B14),"",InfoPro!B14) -> Amanecer | C21: =IF(ISBLANK(InfoPro!E14),"",InfoPro!E14) -> 150 | D21: =IF(ISBLANK(InfoPro!F14),"",InfoPro!F14) -> Solar FV | E21: =IF(ISBLANK(InfoPro!I14),"",YEAR(InfoPro!I14)-$G$3) -> 2 | F21: =IF(B21="","",VLOOKUP(D21,Tablas!$B$2:$E$13,2,FALSE)) -> 0.26 | G21: =IF(B21="","",VLOOKUP(D21,Tablas!$B$2:$G$13,6,FALSE)) -> 0 | H21: 341640 | I21: 43484.96412 | J21: 3198600.556 | K21: 2861002.286 | L21: 2559036.034 | M21: 2288940.996 | N21: 2047353.306 | O21: 1831264.138 | P21: 1637982.234 | Q21: 1465100.389 | R21: 1310465.464 | S21: 1172151.578 | T21: 1048436.116 | U21: 937778.279 | V21: 838799.8918 | W21: 750268.2395 | X21: 671080.7152 | Y21: 1.001963191e+11 | Z21: 667975.4607
A22: =IF(ISBLANK(InfoPro!A15),"",InfoPro!A15) -> SC_2299_A1 | B22: =IF(ISBLANK(InfoPro!B15),"",InfoPro!B15) -> Caribe | C22: =IF(ISBLANK(InfoPro!E15),"",InfoPro!E15) -> 55 | D22: =IF(ISBLANK(InfoPro!F15),"",InfoPro!F15) -> Solar FV | E22: =IF(ISBLANK(InfoPro!I15),"",YEAR(InfoPro!I15)-$G$3) -> 2 | F22: =IF(B22="","",VLOOKUP(D22,Tablas!$B$2:$E$13,2,FALSE)) -> 0.26 | G22: =IF(B22="","",VLOOKUP(D22,Tablas!$B$2:$G$13,6,FALSE)) -> 0 | H22: 125268 | I22: 15944.48684 | J22: 1172820.204 | K22: 1049034.172 | L22: 938313.2125 | M22: 839278.3654 | N22: 750696.2123 | O22: 671463.5173 | P22: 600593.4859 | Q22: 537203.4758 | R22: 480504.0034 | S22: 429788.9118 | T22: 384426.5759 | U22: 343852.0356 | V22: 307559.9603 | W22: 275098.3545 | X22: 246062.9289 | Y22: 3.673865034e+10 | Z22: 667975.4607
A23: =IF(ISBLANK(InfoPro!A16),"",InfoPro!A16) -> SC_2299_A2 | B23: =IF(ISBLANK(InfoPro!B16),"",InfoPro!B16) -> Caribe | C23: =IF(ISBLANK(InfoPro!E16),"",InfoPro!E16) -> 55 | D23: =IF(ISBLANK(InfoPro!F16),"",InfoPro!F16) -> Solar FV | E23: =IF(ISBLANK(InfoPro!I16),"",YEAR(InfoPro!I16)-$G$3) -> 2 | F23: =IF(B23="","",VLOOKUP(D23,Tablas!$B$2:$E$13,2,FALSE)) -> 0.26 | G23: =IF(B23="","",VLOOKUP(D23,Tablas!$B$2:$G$13,6,FALSE)) -> 0 | H23: 125268 | I23: 15944.48684 | J23: 1172820.204 | K23: 1049034.172 | L23: 938313.2125 | M23: 839278.3654 | N23: 750696.2123 | O23: 671463.5173 | P23: 600593.4859 | Q23: 537203.4758 | R23: 480504.0034 | S23: 429788.9118 | T23: 384426.5759 | U23: 343852.0356 | V23: 307559.9603 | W23: 275098.3545 | X23: 246062.9289 | Y23: 3.673865034e+10 | Z23: 667975.4607
A24: =IF(ISBLANK(InfoPro!A17),"",InfoPro!A17) -> SC_1138_A1 | B24: =IF(ISBLANK(InfoPro!B17),"",InfoPro!B17) -> Parque Solar La Virginia | C24: =IF(ISBLANK(InfoPro!E17),"",InfoPro!E17) -> 80 | D24: =IF(ISBLANK(InfoPro!F17),"",InfoPro!F17) -> Solar FV | E24: =IF(ISBLANK(InfoPro!I17),"",YEAR(InfoPro!I17)-$G$3) -> 2 | F24: =IF(B24="","",VLOOKUP(D24,Tablas!$B$2:$E$13,2,FALSE)) -> 0.26 | G24: =IF(B24="","",VLOOKUP(D24,Tablas!$B$2:$G$13,6,FALSE)) -> 0 | H24: 182208 | I24: 23191.98086 | J24: 1705920.296 | K24: 1525867.886 | L24: 1364819.218 | M24: 1220768.531 | N24: 1091921.763 | O24: 976674.207 | P24: 873590.525 | Q24: 781386.8739 | R24: 698914.914 | S24: 625147.5081 | T24: 559165.9285 | U24: 500148.4155 | V24: 447359.9423 | W24: 400143.0611 | X24: 357909.7147 | Y24: 5.343803686e+10 | Z24: 667975.4607
A25: =IF(ISBLANK(InfoPro!A18),"",InfoPro!A18) -> SC_904_A2 | B25: =IF(ISBLANK(InfoPro!B18),"",InfoPro!B18) -> Los Monos | C25: =IF(ISBLANK(InfoPro!E18),"",InfoPro!E18) -> 9.9 | D25: =IF(ISBLANK(InfoPro!F18),"",InfoPro!F18) -> Solar FV | E25: =IF(ISBLANK(InfoPro!I18),"",YEAR(InfoPro!I18)-$G$3) -> 2 | F25: =IF(B25="","",VLOOKUP(D25,Tablas!$B$2:$E$13,2,FALSE)) -> 0.26 | G25: =IF(B25="","",VLOOKUP(D25,Tablas!$B$2:$G$13,6,FALSE)) -> 0 | H25: 22548.24 | I25: 2870.007632 | J25: 211107.6367 | K25: 188826.1509 | L25: 168896.3782 | M25: 151070.1058 | N25: 135125.3182 | O25: 120863.4331 | P25: 108106.8275 | Q25: 96696.62564 | R25: 86490.72061 | S25: 77362.00413 | T25: 69196.78365 | U25: 61893.36642 | V25: 55360.79286 | W25: 49517.70381 | X25: 44291.3272 | Y25: 6612957061 | Z25: 667975.4607
A26: =IF(ISBLANK(InfoPro!A19),"",InfoPro!A19) -> SC_521_A1 | B26: =IF(ISBLANK(InfoPro!B19),"",InfoPro!B19) -> TR SOLAR 1 | C26: =IF(ISBLANK(InfoPro!E19),"",InfoPro!E19) -> 130 | D26: =IF(ISBLANK(InfoPro!F19),"",InfoPro!F19) -> Solar FV | E26: =IF(ISBLANK(InfoPro!I19),"",YEAR(InfoPro!I19)-$G$3) -> 3 | F26: =IF(B26="","",VLOOKUP(D26,Tablas!$B$2:$E$13,2,FALSE)) -> 0.26 | G26: =IF(B26="","",VLOOKUP(D26,Tablas!$B$2:$G$13,6,FALSE)) -> 0 | H26: 296088 | I26: 37686.9689 | J26: 2479535.315 | K26: 2217831.23 | L26: 1983748.864 | M26: 1774372.866 | N26: 1587095.586 | O26: 1419584.603 | P26: 1269753.67 | Q26: 1135736.735 | R26: 1015864.701 | S26: 908644.6338 | T26: 812741.1752 | U26: 726959.9062 | V26: 650232.4743 | W26: 581603.2865 | X26: 520217.6086 | Y26: 7.76715652e+10 | Z26: 597473.5785
A27: =IF(ISBLANK(InfoPro!A20),"",InfoPro!A20) -> SC_521_A2 | B27: =IF(ISBLANK(InfoPro!B20),"",InfoPro!B20) -> TR SOLAR 1 | C27: =IF(ISBLANK(InfoPro!E20),"",InfoPro!E20) -> 130 | D27: =IF(ISBLANK(InfoPro!F20),"",InfoPro!F20) -> Solar FV | E27: =IF(ISBLANK(InfoPro!I20),"",YEAR(InfoPro!I20)-$G$3) -> 3 | F27: =IF(B27="","",VLOOKUP(D27,Tablas!$B$2:$E$13,2,FALSE)) -> 0.26 | G27: =IF(B27="","",VLOOKUP(D27,Tablas!$B$2:$G$13,6,FALSE)) -> 0 | H27: 296088 | I27: 37686.9689 | J27: =IF($I27="","",(1/(1+$C$4)^(J$7+$E27))*$I27*$C$5) -> 2479535.315 | K27: 2217831.23 | L27: 1983748.864 | M27: 1774372.866 | N27: 1587095.586 | O27: 1419584.603 | P27: 1269753.67 | Q27: 1135736.735 | R27: 1015864.701 | S27: 908644.6338 | T27: 812741.1752 | U27: 726959.9062 | V27: 650232.4743 | W27: 581603.2865 | X27: 520217.6086 | Y27: 7.76715652e+10 | Z27: 597473.5785
A28: =IF(ISBLANK(InfoPro!A21),"",InfoPro!A21) -> SC_621_A1 | B28: =IF(ISBLANK(InfoPro!B21),"",InfoPro!B21) -> TR Solar 2 | C28: =IF(ISBLANK(InfoPro!E21),"",InfoPro!E21) -> 150 | D28: =IF(ISBLANK(InfoPro!F21),"",InfoPro!F21) -> Solar FV | E28: =IF(ISBLANK(InfoPro!I21),"",YEAR(InfoPro!I21)-$G$3) -> 3 | F28: =IF(B28="","",VLOOKUP(D28,Tablas!$B$2:$E$13,2,FALSE)) -> 0.26 | G28: =IF(B28="","",VLOOKUP(D28,Tablas!$B$2:$G$13,6,FALSE)) -> 0 | H28: 341640 | I28: 43484.96412 | J28: 2861002.286 | K28: 2559036.034 | L28: 2288940.996 | M28: 2047353.306 | N28: 1831264.138 | O28: 1637982.234 | P28: 1465100.389 | Q28: 1310465.464 | R28: 1172151.578 | S28: 1048436.116 | T28: 937778.279 | U28: 838799.8918 | V28: 750268.2395 | W28: 671080.7152 | X28: 600251.0869 | Y28: 8.962103677e+10 | Z28: 597473.5785
A29: =IF(ISBLANK(InfoPro!A22),"",InfoPro!A22) -> SC_621_A2 | B29: =IF(ISBLANK(InfoPro!B22),"",InfoPro!B22) -> TR Solar 2 | C29: =IF(ISBLANK(InfoPro!E22),"",InfoPro!E22) -> 150 | D29: =IF(ISBLANK(InfoPro!F22),"",InfoPro!F22) -> Solar FV | E29: =IF(ISBLANK(InfoPro!I22),"",YEAR(InfoPro!I22)-$G$3) -> 3 | F29: =IF(B29="","",VLOOKUP(D29,Tablas!$B$2:$E$13,2,FALSE)) -> 0.26 | G29: =IF(B29="","",VLOOKUP(D29,Tablas!$B$2:$G$13,6,FALSE)) -> 0 | H29: 341640 | I29: 43484.96412 | J29: 2861002.286 | K29: 2559036.034 | L29: 2288940.996 | M29: 2047353.306 | N29: 1831264.138 | O29: 1637982.234 | P29: 1465100.389 | Q29: 1310465.464 | R29: 1172151.578 | S29: 1048436.116 | T29: 937778.279 | U29: 838799.8918 | V29: 750268.2395 | W29: 671080.7152 | X29: 600251.0869 | Y29: 8.962103677e+10 | Z29: 597473.5785
A30: =IF(ISBLANK(InfoPro!A23),"",InfoPro!A23) -> SC_1298_A1 | B30: =IF(ISBLANK(InfoPro!B23),"",InfoPro!B23) -> Tucacas Solar | C30: =IF(ISBLANK(InfoPro!E23),"",InfoPro!E23) -> 150 | D30: =IF(ISBLANK(InfoPro!F23),"",InfoPro!F23) -> Solar FV | E30: =IF(ISBLANK(InfoPro!I23),"",YEAR(InfoPro!I23)-$G$3) -> 2 | F30: =IF(B30="","",VLOOKUP(D30,Tablas!$B$2:$E$13,2,FALSE)) -> 0.26 | G30: =IF(B30="","",VLOOKUP(D30,Tablas!$B$2:$G$13,6,FALSE)) -> 0 | H30: 341640 | I30: 43484.96412 | J30: 3198600.556 | K30: 2861002.286 | L30: 2559036.034 | M30: 2288940.996 | N30: 2047353.306 | O30: 1831264.138 | P30: 1637982.234 | Q30: 1465100.389 | R30: 1310465.464 | S30: 1172151.578 | T30: 1048436.116 | U30: 937778.279 | V30: 838799.8918 | W30: 750268.2395 | X30: 671080.7152 | Y30: 1.001963191e+11 | Z30: 667975.4607
A31: =IF(ISBLANK(InfoPro!A24),"",InfoPro!A24) -> SC_1362_A1 | B31: =IF(ISBLANK(InfoPro!B24),"",InfoPro!B24) -> AES Solar 3_100MW | C31: =IF(ISBLANK(InfoPro!E24),"",InfoPro!E24) -> 100 | D31: =IF(ISBLANK(InfoPro!F24),"",InfoPro!F24) -> Solar FV | E31: =IF(ISBLANK(InfoPro!I24),"",YEAR(InfoPro!I24)-$G$3) -> 2 | F31: =IF(B31="","",VLOOKUP(D31,Tablas!$B$2:$E$13,2,FALSE)) -> 0.26 | G31: =IF(B31="","",VLOOKUP(D31,Tablas!$B$2:$G$13,6,FALSE)) -> 0 | H31: 227760 | I31: 28989.97608 | J31: 2132400.371 | K31: 1907334.857 | L31: 1706024.023 | M31: 1525960.664 | N31: 1364902.204 | O31: 1220842.759 | P31: 1091988.156 | Q31: 976733.5924 | R31: 873643.6425 | S31: 781434.3851 | T31: 698957.4106 | U31: 625185.5194 | V31: 559199.9279 | W31: 500178.8264 | X31: 447387.1434 | Y31: 6.679754607e+10 | Z31: 667975.4607
A32: =IF(ISBLANK(InfoPro!A25),"",InfoPro!A25) -> SC_1362_A2 | B32: =IF(ISBLANK(InfoPro!B25),"",InfoPro!B25) -> AES Solar 3_100MW | C32: =IF(ISBLANK(InfoPro!E25),"",InfoPro!E25) -> 100 | D32: =IF(ISBLANK(InfoPro!F25),"",InfoPro!F25) -> Solar FV | E32: =IF(ISBLANK(InfoPro!I25),"",YEAR(InfoPro!I25)-$G$3) -> 2 | F32: =IF(B32="","",VLOOKUP(D32,Tablas!$B$2:$E$13,2,FALSE)) -> 0.26 | G32: =IF(B32="","",VLOOKUP(D32,Tablas!$B$2:$G$13,6,FALSE)) -> 0 | H32: 227760 | I32: 28989.97608 | J32: 2132400.371 | K32: 1907334.857 | L32: 1706024.023 | M32: 1525960.664 | N32: 1364902.204 | O32: 1220842.759 | P32: 1091988.156 | Q32: 976733.5924 | R32: 873643.6425 | S32: 781434.3851 | T32: 698957.4106 | U32: 625185.5194 | V32: 559199.9279 | W32: 500178.8264 | X32: 447387.1434 | Y32: 6.679754607e+10 | Z32: 667975.4607
A33: =IF(ISBLANK(InfoPro!A26),"",InfoPro!A26) -> SC_845_A1 | B33: =IF(ISBLANK(InfoPro!B26),"",InfoPro!B26) -> Pijaos | C33: =IF(ISBLANK(InfoPro!E26),"",InfoPro!E26) -> 19.9 | D33: =IF(ISBLANK(InfoPro!F26),"",InfoPro!F26) -> Solar FV | E33: =IF(ISBLANK(InfoPro!I26),"",YEAR(InfoPro!I26)-$G$3) -> 3 | F33: =IF(B33="","",VLOOKUP(D33,Tablas!$B$2:$E$13,2,FALSE)) -> 0.26 | G33: =IF(B33="","",VLOOKUP(D33,Tablas!$B$2:$G$13,6,FALSE)) -> 0 | H33: 45324.24 | I33: 5769.00524 | J33: 379559.6366 | K33: 339498.7805 | L33: 303666.1722 | M33: 271615.5386 | N33: 242947.709 | O33: 217305.6431 | P33: 194369.9849 | Q33: 173855.0849 | R33: 155505.4426 | S33: 139092.5247 | T33: 124411.9184 | U33: 111280.7856 | V33: 99535.58645 | W33: 89030.04154 | X33: 79633.31086 | Y33: 1.188972421e+10 | Z33: 597473.5785
A34: =IF(ISBLANK(InfoPro!A27),"",InfoPro!A27) -> SC_845_A2 | B34: =IF(ISBLANK(InfoPro!B27),"",InfoPro!B27) -> Pijaos | C34: =IF(ISBLANK(InfoPro!E27),"",InfoPro!E27) -> 19.9 | D34: =IF(ISBLANK(InfoPro!F27),"",InfoPro!F27) -> Solar FV | E34: =IF(ISBLANK(InfoPro!I27),"",YEAR(InfoPro!I27)-$G$3) -> 3 | F34: =IF(B34="","",VLOOKUP(D34,Tablas!$B$2:$E$13,2,FALSE)) -> 0.26 | G34: =IF(B34="","",VLOOKUP(D34,Tablas!$B$2:$G$13,6,FALSE)) -> 0 | H34: 45324.24 | I34: 5769.00524 | J34: 379559.6366 | K34: 339498.7805 | L34: 303666.1722 | M34: 271615.5386 | N34: 242947.709 | O34: 217305.6431 | P34: 194369.9849 | Q34: 173855.0849 | R34: 155505.4426 | S34: 139092.5247 | T34: 124411.9184 | U34: 111280.7856 | V34: 99535.58645 | W34: 89030.04154 | X34: 79633.31086 | Y34: 1.188972421e+10 | Z34: 597473.5785
A35: =IF(ISBLANK(InfoPro!A28),"",InfoPro!A28) -> SC_1413_A2 | B35: =IF(ISBLANK(InfoPro!B28),"",InfoPro!B28) -> CSF CONTINUA LA VIRGINIA 120MW | C35: =IF(ISBLANK(InfoPro!E28),"",InfoPro!E28) -> 120 | D35: =IF(ISBLANK(InfoPro!F28),"",InfoPro!F28) -> Solar FV | E35: =IF(ISBLANK(InfoPro!I28),"",YEAR(InfoPro!I28)-$G$3) -> 3 | F35: =IF(B35="","",VLOOKUP(D35,Tablas!$B$2:$E$13,2,FALSE)) -> 0.26 | G35: =IF(B35="","",VLOOKUP(D35,Tablas!$B$2:$G$13,6,FALSE)) -> 0 | H35: 273312 | I35: 34787.9713 | J35: 2288801.829 | K35: 2047228.827 | L35: 1831152.797 | M35: 1637882.645 | N35: 1465011.31 | O35: 1310385.788 | P35: 1172080.311 | Q35: 1048372.371 | R35: 937721.2621 | S35: 838748.8928 | T35: 750222.6232 | U35: 671039.9134 | V35: 600214.5916 | W35: 536864.5721 | X35: 480200.8695 | Y35: 7.169682941e+10 | Z35: 597473.5785
A36: =IF(ISBLANK(InfoPro!A29),"",InfoPro!A29) -> SC_976_A2 | B36: =IF(ISBLANK(InfoPro!B29),"",InfoPro!B29) -> Abirá | C36: =IF(ISBLANK(InfoPro!E29),"",InfoPro!E29) -> 9.9 | D36: =IF(ISBLANK(InfoPro!F29),"",InfoPro!F29) -> Solar FV | E36: =IF(ISBLANK(InfoPro!I29),"",YEAR(InfoPro!I29)-$G$3) -> 3 | F36: =IF(B36="","",VLOOKUP(D36,Tablas!$B$2:$E$13,2,FALSE)) -> 0.26 | G36: =IF(B36="","",VLOOKUP(D36,Tablas!$B$2:$G$13,6,FALSE)) -> 0 | H36: 22548.24 | I36: 2870.007632 | J36: 188826.1509 | K36: 168896.3782 | L36: 151070.1058 | M36: 135125.3182 | N36: 120863.4331 | O36: 108106.8275 | P36: 96696.62564 | Q36: 86490.72061 | R36: 77362.00413 | S36: 69196.78365 | T36: 61893.36642 | U36: 55360.79286 | V36: 49517.70381 | W36: 44291.3272 | X36: 39616.57174 | Y36: 5914988427 | Z36: 597473.5785
A37: =IF(ISBLANK(InfoPro!A30),"",InfoPro!A30) -> SC_1061_A1 | B37: =IF(ISBLANK(InfoPro!B30),"",InfoPro!B30) -> Siatá 19.9 | C37: =IF(ISBLANK(InfoPro!E30),"",InfoPro!E30) -> 19.9 | D37: =IF(ISBLANK(InfoPro!F30),"",InfoPro!F30) -> Solar FV | E37: =IF(ISBLANK(InfoPro!I30),"",YEAR(InfoPro!I30)-$G$3) -> 3 | F37: =IF(B37="","",VLOOKUP(D37,Tablas!$B$2:$E$13,2,FALSE)) -> 0.26 | G37: =IF(B37="","",VLOOKUP(D37,Tablas!$B$2:$G$13,6,FALSE)) -> 0 | H37: 45324.24 | I37: 5769.00524 | J37: 379559.6366 | K37: 339498.7805 | L37: 303666.1722 | M37: 271615.5386 | N37: 242947.709 | O37: 217305.6431 | P37: 194369.9849 | Q37: 173855.0849 | R37: 155505.4426 | S37: 139092.5247 | T37: 124411.9184 | U37: 111280.7856 | V37: 99535.58645 | W37: 89030.04154 | X37: 79633.31086 | Y37: 1.188972421e+10 | Z37: 597473.5785
A38: =IF(ISBLANK(InfoPro!A31),"",InfoPro!A31) -> SC_1061_A2 | B38: =IF(ISBLANK(InfoPro!B31),"",InfoPro!B31) -> Siatá 19.9 | C38: =IF(ISBLANK(InfoPro!E31),"",InfoPro!E31) -> 19.9 | D38: =IF(ISBLANK(InfoPro!F31),"",InfoPro!F31) -> Solar FV | E38: =IF(ISBLANK(InfoPro!I31),"",YEAR(InfoPro!I31)-$G$3) -> 3 | F38: =IF(B38="","",VLOOKUP(D38,Tablas!$B$2:$E$13,2,FALSE)) -> 0.26 | G38: =IF(B38="","",VLOOKUP(D38,Tablas!$B$2:$G$13,6,FALSE)) -> 0 | H38: 45324.24 | I38: 5769.00524 | J38: 379559.6366 | K38: 339498.7805 | L38: 303666.1722 | M38: 271615.5386 | N38: 242947.709 | O38: 217305.6431 | P38: 194369.9849 | Q38: 173855.0849 | R38: 155505.4426 | S38: 139092.5247 | T38: 124411.9184 | U38: 111280.7856 | V38: 99535.58645 | W38: 89030.04154 | X38: 79633.31086 | Y38: 1.188972421e+10 | Z38: 597473.5785
A39: =IF(ISBLANK(InfoPro!A32),"",InfoPro!A32) -> SC_848_A1 | B39: =IF(ISBLANK(InfoPro!B32),"",InfoPro!B32) -> PCH QUINCHIA | C39: =IF(ISBLANK(InfoPro!E32),"",InfoPro!E32) -> 2.4 | D39: =IF(ISBLANK(InfoPro!F32),"",InfoPro!F32) -> Hidraulica | E39: =IF(ISBLANK(InfoPro!I32),"",YEAR(InfoPro!I32)-$G$3) -> 0 | F39: =IF(B39="","",VLOOKUP(D39,Tablas!$B$2:$E$13,2,FALSE)) -> 0.6 | G39: =IF(B39="","",VLOOKUP(D39,Tablas!$B$2:$G$13,6,FALSE)) -> 0 | H39: 12614.4 | I39: 1605.598675 | J39: 147618.7422 | K39: 132038.2309 | L39: 118102.1744 | M39: 105637.0075 | N39: 94487.48434 | O39: 84514.74449 | P39: 75594.58362 | Q39: 67615.90664 | R39: 60479.34404 | S39: 54096.01435 | T39: 48386.41713 | U39: 43279.44287 | V39: 38711.48736 | W39: 34625.65953 | X39: 30971.07293 | Y39: 4624164331 | Z39: 1926735.138
A40: =IF(ISBLANK(InfoPro!A33),"",InfoPro!A33) -> SC_848_A2 | B40: =IF(ISBLANK(InfoPro!B33),"",InfoPro!B33) -> PCH QUINCHIA | C40: =IF(ISBLANK(InfoPro!E33),"",InfoPro!E33) -> 2.4 | D40: =IF(ISBLANK(InfoPro!F33),"",InfoPro!F33) -> Hidraulica | E40: =IF(ISBLANK(InfoPro!I33),"",YEAR(InfoPro!I33)-$G$3) -> 0 | F40: =IF(B40="","",VLOOKUP(D40,Tablas!$B$2:$E$13,2,FALSE)) -> 0.6 | G40: =IF(B40="","",VLOOKUP(D40,Tablas!$B$2:$G$13,6,FALSE)) -> 0 | H40: 12614.4 | I40: 1605.598675 | J40: 147618.7422 | K40: 132038.2309 | L40: 118102.1744 | M40: 105637.0075 | N40: 94487.48434 | O40: 84514.74449 | P40: 75594.58362 | Q40: 67615.90664 | R40: 60479.34404 | S40: 54096.01435 | T40: 48386.41713 | U40: 43279.44287 | V40: 38711.48736 | W40: 34625.65953 | X40: 30971.07293 | Y40: 4624164331 | Z40: 1926735.138
A41: =IF(ISBLANK(InfoPro!A34),"",InfoPro!A34) -> SC_1612_A1 | B41: =IF(ISBLANK(InfoPro!B34),"",InfoPro!B34) -> CSF CONTINUA ARMERO 90MW | C41: =IF(ISBLANK(InfoPro!E34),"",InfoPro!E34) -> 90 | D41: =IF(ISBLANK(InfoPro!F34),"",InfoPro!F34) -> Solar FV | E41: =IF(ISBLANK(InfoPro!I34),"",YEAR(InfoPro!I34)-$G$3) -> 1 | F41: =IF(B41="","",VLOOKUP(D41,Tablas!$B$2:$E$13,2,FALSE)) -> 0.26 | G41: =IF(B41="","",VLOOKUP(D41,Tablas!$B$2:$G$13,6,FALSE)) -> 0 | H41: 204984 | I41: 26090.97847 | J41: 2145621.253 | K41: 1919160.334 | L41: 1716601.372 | M41: 1535421.62 | N41: 1373364.598 | O41: 1228411.984 | P41: 1098758.483 | Q41: 982789.3406 | R41: 879060.2331 | S41: 786279.2783 | T41: 703290.9466 | U41: 629061.6696 | V41: 562666.9674 | W41: 503279.9351 | X41: 450160.9437 | Y41: 6.721169086e+10 | Z41: 746796.5651
A42: =IF(ISBLANK(InfoPro!A35),"",InfoPro!A35) -> SC_1612_A2 | B42: =IF(ISBLANK(InfoPro!B35),"",InfoPro!B35) -> CSF CONTINUA ARMERO 90MW | C42: =IF(ISBLANK(InfoPro!E35),"",InfoPro!E35) -> 90 | D42: =IF(ISBLANK(InfoPro!F35),"",InfoPro!F35) -> Solar FV | E42: =IF(ISBLANK(InfoPro!I35),"",YEAR(InfoPro!I35)-$G$3) -> 1 | F42: =IF(B42="","",VLOOKUP(D42,Tablas!$B$2:$E$13,2,FALSE)) -> 0.26 | G42: =IF(B42="","",VLOOKUP(D42,Tablas!$B$2:$G$13,6,FALSE)) -> 0 | H42: 204984 | I42: 26090.97847 | J42: 2145621.253 | K42: 1919160.334 | L42: 1716601.372 | M42: 1535421.62 | N42: 1373364.598 | O42: 1228411.984 | P42: 1098758.483 | Q42: 982789.3406 | R42: 879060.2331 | S42: 786279.2783 | T42: 703290.9466 | U42: 629061.6696 | V42: 562666.9674 | W42: 503279.9351 | X42: 450160.9437 | Y42: 6.721169086e+10 | Z42: 746796.5651
A43: =IF(ISBLANK(InfoPro!A36),"",InfoPro!A36) -> SC_753_A1 | B43: =IF(ISBLANK(InfoPro!B36),"",InfoPro!B36) -> PCH Quinchia A | C43: =IF(ISBLANK(InfoPro!E36),"",InfoPro!E36) -> 2.9 | D43: =IF(ISBLANK(InfoPro!F36),"",InfoPro!F36) -> Hidraulica | E43: =IF(ISBLANK(InfoPro!I36),"",YEAR(InfoPro!I36)-$G$3) -> 2 | F43: =IF(B43="","",VLOOKUP(D43,Tablas!$B$2:$E$13,2,FALSE)) -> 0.6 | G43: =IF(B43="","",VLOOKUP(D43,Tablas!$B$2:$G$13,6,FALSE)) -> 0 | H43: =IF(C43="","",+C43*F43*24*365) -> 15242.4 | I43: =IF(H43="","",+H43*($C$3-G43)) -> 1940.098399 | J43: =IF($I43="","",(1/(1+$C$4)^(J$7+$E43))*$I43*$C$5) -> 142706.794 | K43: 127644.7174 | L43: 114172.3769 | M43: 102121.9829 | N43: 91343.45521 | O43: 81702.55385 | P43: 73079.20738 | Q43: 65366.01734 | R43: 58466.92069 | S43: 52295.99346 | T43: 46776.38056 | U43: 41839.3386 | V43: 37423.37979 | W43: 33473.50607 | X43: 29940.52421 | Y43: =IF(X43="","",SUM(J43:X43)*$C$6) -> 4470297314 | Z43: =IF(C43=0,0,IF(Y43="","",Y43/(C43*1000))) -> 1541481.832
A44: =IF(ISBLANK(InfoPro!A37),"",InfoPro!A37) -> SC_753_A2 | B44: =IF(ISBLANK(InfoPro!B37),"",InfoPro!B37) -> PCH Quinchia A | C44: =IF(ISBLANK(InfoPro!E37),"",InfoPro!E37) -> 2.9 | D44: =IF(ISBLANK(InfoPro!F37),"",InfoPro!F37) -> Hidraulica | E44: =IF(ISBLANK(InfoPro!I37),"",YEAR(InfoPro!I37)-$G$3) -> 2 | F44: =IF(B44="","",VLOOKUP(D44,Tablas!$B$2:$E$13,2,FALSE)) -> 0.6 | G44: =IF(B44="","",VLOOKUP(D44,Tablas!$B$2:$G$13,6,FALSE)) -> 0 | H44: 15242.4 | I44: 1940.098399 | J44: 142706.794 | K44: 127644.7174 | L44: 114172.3769 | M44: 102121.9829 | N44: 91343.45521 | O44: 81702.55385 | P44: 73079.20738 | Q44: 65366.01734 | R44: 58466.92069 | S44: 52295.99346 | T44: 46776.38056 | U44: 41839.3386 | V44: 37423.37979 | W44: 33473.50607 | X44: 29940.52421 | Y44: 4470297314 | Z44: 1541481.832
A45: =IF(ISBLANK(InfoPro!A38),"",InfoPro!A38) -> SC_751_A1 | B45: =IF(ISBLANK(InfoPro!B38),"",InfoPro!B38) -> PCH Rico Medio | C45: =IF(ISBLANK(InfoPro!E38),"",InfoPro!E38) -> 12.8 | D45: =IF(ISBLANK(InfoPro!F38),"",InfoPro!F38) -> Hidraulica | E45: =IF(ISBLANK(InfoPro!I38),"",YEAR(InfoPro!I38)-$G$3) -> 2 | F45: =IF(B45="","",VLOOKUP(D45,Tablas!$B$2:$E$13,2,FALSE)) -> 0.6 | G45: =IF(B45="","",VLOOKUP(D45,Tablas!$B$2:$G$13,6,FALSE)) -> 0 | H45: 67276.8 | I45: 8563.192934 | J45: 629878.2633 | K45: 563397.3733 | L45: 503933.2498 | M45: 450745.3039 | N45: 403171.1126 | O45: 360618.1687 | P45: 322556.5015 | Q45: 288512.0765 | R45: 258060.8913 | S45: 230823.6953 | T45: 206461.2659 | U45: 184670.1842 | V45: 165179.0556 | W45: 147745.1302 | X45: 132151.2793 | Y45: 1.973096745e+10 | Z45: 1541481.832
A46: =IF(ISBLANK(InfoPro!A39),"",InfoPro!A39) -> SC_1649_A1 | B46: =IF(ISBLANK(InfoPro!B39),"",InfoPro!B39) -> Parque Solar Fotovoltaico La Virginia II | C46: =IF(ISBLANK(InfoPro!E39),"",InfoPro!E39) -> 100 | D46: =IF(ISBLANK(InfoPro!F39),"",InfoPro!F39) -> Solar FV | E46: =IF(ISBLANK(InfoPro!I39),"",YEAR(InfoPro!I39)-$G$3) -> 4 | F46: =IF(B46="","",VLOOKUP(D46,Tablas!$B$2:$E$13,2,FALSE)) -> 0.26 | G46: =IF(B46="","",VLOOKUP(D46,Tablas!$B$2:$G$13,6,FALSE)) -> 0 | H46: 227760 | I46: 28989.97608 | J46: 1706024.023 | K46: 1525960.664 | L46: 1364902.204 | M46: 1220842.759 | N46: 1091988.156 | O46: 976733.5924 | P46: 873643.6425 | Q46: 781434.3851 | R46: 698957.4106 | S46: 625185.5194 | T46: 559199.9279 | U46: 500178.8264 | V46: 447387.1434 | W46: 400167.3913 | X46: 357931.477 | Y46: 5.344128609e+10 | Z46: 534412.8609
A47: =IF(ISBLANK(InfoPro!A40),"",InfoPro!A40) -> SC_1658_A1 | B47: =IF(ISBLANK(InfoPro!B40),"",InfoPro!B40) -> Parque Solar Fotovoltaico La Virginia I | C47: =IF(ISBLANK(InfoPro!E40),"",InfoPro!E40) -> 100 | D47: =IF(ISBLANK(InfoPro!F40),"",InfoPro!F40) -> Solar FV | E47: =IF(ISBLANK(InfoPro!I40),"",YEAR(InfoPro!I40)-$G$3) -> 4 | F47: =IF(B47="","",VLOOKUP(D47,Tablas!$B$2:$E$13,2,FALSE)) -> 0.26 | G47: =IF(B47="","",VLOOKUP(D47,Tablas!$B$2:$G$13,6,FALSE)) -> 0 | H47: 227760 | I47: 28989.97608 | J47: 1706024.023 | K47: 1525960.664 | L47: 1364902.204 | M47: 1220842.759 | N47: 1091988.156 | O47: 976733.5924 | P47: 873643.6425 | Q47: 781434.3851 | R47: 698957.4106 | S47: 625185.5194 | T47: 559199.9279 | U47: 500178.8264 | V47: 447387.1434 | W47: 400167.3913 | X47: 357931.477 | Y47: 5.344128609e+10 | Z47: 534412.8609
A48: =IF(ISBLANK(InfoPro!A41),"",InfoPro!A41) -> SC_1341_A1 | B48: =IF(ISBLANK(InfoPro!B41),"",InfoPro!B41) -> COG.002.2022 ORQUIDEA_4.95MW | C48: =IF(ISBLANK(InfoPro!E41),"",InfoPro!E41) -> 4.95 | D48: =IF(ISBLANK(InfoPro!F41),"",InfoPro!F41) -> Solar FV | E48: =IF(ISBLANK(InfoPro!I41),"",YEAR(InfoPro!I41)-$G$3) -> 1 | F48: =IF(B48="","",VLOOKUP(D48,Tablas!$B$2:$E$13,2,FALSE)) -> 0.26 | G48: =IF(B48="","",VLOOKUP(D48,Tablas!$B$2:$G$13,6,FALSE)) -> 0 | H48: 11274.12 | I48: 1435.003816 | J48: 118009.1689 | K48: 105553.8183 | L48: 94413.07544 | M48: 84448.18912 | N48: 75535.05288 | O48: 67562.65911 | P48: 60431.71656 | Q48: 54053.41374 | R48: 48348.31282 | S48: 43245.36031 | T48: 38681.00206 | U48: 34598.39183 | V48: 30946.68321 | W48: 27680.39643 | X48: 24758.8519 | Y48: 3696642997 | Z48: 746796.5651
A49: =IF(ISBLANK(InfoPro!A42),"",InfoPro!A42) -> SC_1341_A2 | B49: =IF(ISBLANK(InfoPro!B42),"",InfoPro!B42) -> COG.002.2022 ORQUIDEA_4.95MW | C49: =IF(ISBLANK(InfoPro!E42),"",InfoPro!E42) -> 4.95 | D49: =IF(ISBLANK(InfoPro!F42),"",InfoPro!F42) -> Solar FV | E49: =IF(ISBLANK(InfoPro!I42),"",YEAR(InfoPro!I42)-$G$3) -> 1 | F49: =IF(B49="","",VLOOKUP(D49,Tablas!$B$2:$E$13,2,FALSE)) -> 0.26 | G49: =IF(B49="","",VLOOKUP(D49,Tablas!$B$2:$G$13,6,FALSE)) -> 0 | H49: 11274.12 | I49: 1435.003816 | J49: 118009.1689 | K49: 105553.8183 | L49: 94413.07544 | M49: 84448.18912 | N49: 75535.05288 | O49: 67562.65911 | P49: 60431.71656 | Q49: 54053.41374 | R49: 48348.31282 | S49: 43245.36031 | T49: 38681.00206 | U49: 34598.39183 | V49: 30946.68321 | W49: 27680.39643 | X49: 24758.8519 | Y49: 3696642997 | Z49: 746796.5651
A50: =IF(ISBLANK(InfoPro!A43),"",InfoPro!A43) -> SC_1605_A1 | B50: =IF(ISBLANK(InfoPro!B43),"",InfoPro!B43) -> Ocobo de 150 MW | C50: =IF(ISBLANK(InfoPro!E43),"",InfoPro!E43) -> 150 | D50: =IF(ISBLANK(InfoPro!F43),"",InfoPro!F43) -> Solar FV | E50: =IF(ISBLANK(InfoPro!I43),"",YEAR(InfoPro!I43)-$G$3) -> 3 | F50: =IF(B50="","",VLOOKUP(D50,Tablas!$B$2:$E$13,2,FALSE)) -> 0.26 | G50: =IF(B50="","",VLOOKUP(D50,Tablas!$B$2:$G$13,6,FALSE)) -> 0 | H50: 341640 | I50: 43484.96412 | J50: 2861002.286 | K50: 2559036.034 | L50: 2288940.996 | M50: 2047353.306 | N50: 1831264.138 | O50: 1637982.234 | P50: 1465100.389 | Q50: 1310465.464 | R50: 1172151.578 | S50: 1048436.116 | T50: 937778.279 | U50: 838799.8918 | V50: 750268.2395 | W50: 671080.7152 | X50: 600251.0869 | Y50: 8.962103677e+10 | Z50: 597473.5785
A51: =IF(ISBLANK(InfoPro!A44),"",InfoPro!A44) -> SC_1605_A2 | B51: =IF(ISBLANK(InfoPro!B44),"",InfoPro!B44) -> Ocobo de 150 MW | C51: =IF(ISBLANK(InfoPro!E44),"",InfoPro!E44) -> 150 | D51: =IF(ISBLANK(InfoPro!F44),"",InfoPro!F44) -> Solar FV | E51: =IF(ISBLANK(InfoPro!I44),"",YEAR(InfoPro!I44)-$G$3) -> 3 | F51: =IF(B51="","",VLOOKUP(D51,Tablas!$B$2:$E$13,2,FALSE)) -> 0.26 | G51: =IF(B51="","",VLOOKUP(D51,Tablas!$B$2:$G$13,6,FALSE)) -> 0 | H51: 341640 | I51: 43484.96412 | J51: 2861002.286 | K51: 2559036.034 | L51: 2288940.996 | M51: 2047353.306 | N51: 1831264.138 | O51: 1637982.234 | P51: 1465100.389 | Q51: 1310465.464 | R51: 1172151.578 | S51: 1048436.116 | T51: 937778.279 | U51: 838799.8918 | V51: 750268.2395 | W51: 671080.7152 | X51: 600251.0869 | Y51: 8.962103677e+10 | Z51: 597473.5785
A52: =IF(ISBLANK(InfoPro!A45),"",InfoPro!A45) -> SC_1735_A1 | B52: =IF(ISBLANK(InfoPro!B45),"",InfoPro!B45) -> TR SOLAR 15 | C52: =IF(ISBLANK(InfoPro!E45),"",InfoPro!E45) -> 150 | D52: =IF(ISBLANK(InfoPro!F45),"",InfoPro!F45) -> Solar FV | E52: =IF(ISBLANK(InfoPro!I45),"",YEAR(InfoPro!I45)-$G$3) -> 3 | F52: =IF(B52="","",VLOOKUP(D52,Tablas!$B$2:$E$13,2,FALSE)) -> 0.26 | G52: =IF(B52="","",VLOOKUP(D52,Tablas!$B$2:$G$13,6,FALSE)) -> 0 | H52: 341640 | I52: 43484.96412 | J52: 2861002.286 | K52: 2559036.034 | L52: 2288940.996 | M52: 2047353.306 | N52: 1831264.138 | O52: 1637982.234 | P52: 1465100.389 | Q52: 1310465.464 | R52: 1172151.578 | S52: 1048436.116 | T52: 937778.279 | U52: 838799.8918 | V52: 750268.2395 | W52: 671080.7152 | X52: 600251.0869 | Y52: 8.962103677e+10 | Z52: 597473.5785
A53: =IF(ISBLANK(InfoPro!A46),"",InfoPro!A46) -> SC_1735_A2 | B53: =IF(ISBLANK(InfoPro!B46),"",InfoPro!B46) -> TR SOLAR 15 | C53: =IF(ISBLANK(InfoPro!E46),"",InfoPro!E46) -> 150 | D53: =IF(ISBLANK(InfoPro!F46),"",InfoPro!F46) -> Solar FV | E53: =IF(ISBLANK(InfoPro!I46),"",YEAR(InfoPro!I46)-$G$3) -> 3 | F53: =IF(B53="","",VLOOKUP(D53,Tablas!$B$2:$E$13,2,FALSE)) -> 0.26 | G53: =IF(B53="","",VLOOKUP(D53,Tablas!$B$2:$G$13,6,FALSE)) -> 0 | H53: 341640 | I53: 43484.96412 | J53: 2861002.286 | K53: 2559036.034 | L53: 2288940.996 | M53: 2047353.306 | N53: 1831264.138 | O53: 1637982.234 | P53: 1465100.389 | Q53: 1310465.464 | R53: 1172151.578 | S53: 1048436.116 | T53: 937778.279 | U53: 838799.8918 | V53: 750268.2395 | W53: 671080.7152 | X53: 600251.0869 | Y53: 8.962103677e+10 | Z53: 597473.5785
A54: =IF(ISBLANK(InfoPro!A47),"",InfoPro!A47) -> SC_1796_A1 | B54: =IF(ISBLANK(InfoPro!B47),"",InfoPro!B47) -> COG.003.2022 TORREALBA 4.99 MW | C54: =IF(ISBLANK(InfoPro!E47),"",InfoPro!E47) -> 4.99 | D54: =IF(ISBLANK(InfoPro!F47),"",InfoPro!F47) -> Solar FV | E54: =IF(ISBLANK(InfoPro!I47),"",YEAR(InfoPro!I47)-$G$3) -> 1 | F54: =IF(B54="","",VLOOKUP(D54,Tablas!$B$2:$E$13,2,FALSE)) -> 0.26 | G54: =IF(B54="","",VLOOKUP(D54,Tablas!$B$2:$G$13,6,FALSE)) -> 0 | H54: 11365.224 | I54: 1446.599806 | J54: 118962.7784 | K54: 106406.7785 | L54: 95176.00938 | M54: 85130.59873 | N54: 76145.43715 | O54: 68108.61999 | P54: 60920.05366 | Q54: 54490.209 | R54: 48739.00626 | S54: 43594.81776 | T54: 38993.57582 | U54: 34877.97479 | V54: 31196.75742 | W54: 27904.0764 | X54: 24958.92344 | Y54: 3726514860 | Z54: 746796.5651
A55: =IF(ISBLANK(InfoPro!A48),"",InfoPro!A48) -> SC_1796_A2 | B55: =IF(ISBLANK(InfoPro!B48),"",InfoPro!B48) -> COG.003.2022 TORREALBA 4.99 MW | C55: =IF(ISBLANK(InfoPro!E48),"",InfoPro!E48) -> 4.99 | D55: =IF(ISBLANK(InfoPro!F48),"",InfoPro!F48) -> Solar FV | E55: =IF(ISBLANK(InfoPro!I48),"",YEAR(InfoPro!I48)-$G$3) -> 1 | F55: =IF(B55="","",VLOOKUP(D55,Tablas!$B$2:$E$13,2,FALSE)) -> 0.26 | G55: =IF(B55="","",VLOOKUP(D55,Tablas!$B$2:$G$13,6,FALSE)) -> 0 | H55: 11365.224 | I55: 1446.599806 | J55: 118962.7784 | K55: 106406.7785 | L55: 95176.00938 | M55: 85130.59873 | N55: 76145.43715 | O55: 68108.61999 | P55: 60920.05366 | Q55: 54490.209 | R55: 48739.00626 | S55: 43594.81776 | T55: 38993.57582 | U55: 34877.97479 | V55: 31196.75742 | W55: 27904.0764 | X55: 24958.92344 | Y55: 3726514860 | Z55: 746796.5651
A56: =IF(ISBLANK(InfoPro!A49),"",InfoPro!A49) -> SC_1895_A1 | B56: =IF(ISBLANK(InfoPro!B49),"",InfoPro!B49) -> Hatillo Solar | C56: =IF(ISBLANK(InfoPro!E49),"",InfoPro!E49) -> 200 | D56: =IF(ISBLANK(InfoPro!F49),"",InfoPro!F49) -> Solar FV | E56: =IF(ISBLANK(InfoPro!I49),"",YEAR(InfoPro!I49)-$G$3) -> 2 | F56: =IF(B56="","",VLOOKUP(D56,Tablas!$B$2:$E$13,2,FALSE)) -> 0.26 | G56: =IF(B56="","",VLOOKUP(D56,Tablas!$B$2:$G$13,6,FALSE)) -> 0 | H56: 455520 | I56: 57979.95216 | J56: 4264800.741 | K56: 3814669.715 | L56: 3412048.045 | M56: 3051921.329 | N56: 2729804.408 | O56: 2441685.517 | P56: 2183976.313 | Q56: 1953467.185 | R56: 1747287.285 | S56: 1562868.77 | T56: 1397914.821 | U56: 1250371.039 | V56: 1118399.856 | W56: 1000357.653 | X56: 894774.2869 | Y56: 1.335950921e+11 | Z56: 667975.4607
A57: =IF(ISBLANK(InfoPro!A50),"",InfoPro!A50) -> SC_1895_A2 | B57: =IF(ISBLANK(InfoPro!B50),"",InfoPro!B50) -> Hatillo Solar | C57: =IF(ISBLANK(InfoPro!E50),"",InfoPro!E50) -> 200 | D57: =IF(ISBLANK(InfoPro!F50),"",InfoPro!F50) -> Solar FV | E57: =IF(ISBLANK(InfoPro!I50),"",YEAR(InfoPro!I50)-$G$3) -> 2 | F57: =IF(B57="","",VLOOKUP(D57,Tablas!$B$2:$E$13,2,FALSE)) -> 0.26 | G57: =IF(B57="","",VLOOKUP(D57,Tablas!$B$2:$G$13,6,FALSE)) -> 0 | H57: 455520 | I57: 57979.95216 | J57: 4264800.741 | K57: 3814669.715 | L57: 3412048.045 | M57: 3051921.329 | N57: 2729804.408 | O57: 2441685.517 | P57: 2183976.313 | Q57: 1953467.185 | R57: 1747287.285 | S57: 1562868.77 | T57: 1397914.821 | U57: 1250371.039 | V57: 1118399.856 | W57: 1000357.653 | X57: 894774.2869 | Y57: 1.335950921e+11 | Z57: 667975.4607
A58: =IF(ISBLANK(InfoPro!A51),"",InfoPro!A51) -> SC_1826_A1 | B58: =IF(ISBLANK(InfoPro!B51),"",InfoPro!B51) -> Caldas Solar I 19,9 MW | C58: =IF(ISBLANK(InfoPro!E51),"",InfoPro!E51) -> 19.9 | D58: =IF(ISBLANK(InfoPro!F51),"",InfoPro!F51) -> Solar FV | E58: =IF(ISBLANK(InfoPro!I51),"",YEAR(InfoPro!I51)-$G$3) -> 1 | F58: =IF(B58="","",VLOOKUP(D58,Tablas!$B$2:$E$13,2,FALSE)) -> 0.26 | G58: =IF(B58="","",VLOOKUP(D58,Tablas!$B$2:$G$13,6,FALSE)) -> 0 | H58: 45324.24 | I58: 5769.00524 | J58: 474420.6992 | K58: 424347.6737 | L58: 379559.6366 | M58: 339498.7805 | N58: 303666.1722 | O58: 271615.5386 | P58: 242947.709 | Q58: 217305.6431 | R58: 194369.9849 | S58: 173855.0849 | T58: 155505.4426 | U58: 139092.5247 | V58: 124411.9184 | W58: 111280.7856 | X58: 99535.58645 | Y58: 1.486125165e+10 | Z58: 746796.5651
A59: =IF(ISBLANK(InfoPro!A52),"",InfoPro!A52) -> SC_1875_A1 | B59: =IF(ISBLANK(InfoPro!B52),"",InfoPro!B52) -> La Estrella | C59: =IF(ISBLANK(InfoPro!E52),"",InfoPro!E52) -> 60 | D59: =IF(ISBLANK(InfoPro!F52),"",InfoPro!F52) -> Solar FV | E59: =IF(ISBLANK(InfoPro!I52),"",YEAR(InfoPro!I52)-$G$3) -> 3 | F59: =IF(B59="","",VLOOKUP(D59,Tablas!$B$2:$E$13,2,FALSE)) -> 0.26 | G59: =IF(B59="","",VLOOKUP(D59,Tablas!$B$2:$G$13,6,FALSE)) -> 0 | H59: 136656 | I59: 17393.98565 | J59: 1144400.914 | K59: 1023614.414 | L59: 915576.3986 | M59: 818941.3225 | N59: 732505.6552 | O59: 655192.8938 | P59: 586040.1554 | Q59: 524186.1855 | R59: 468860.6311 | S59: 419374.4464 | T59: 375111.3116 | U59: 335519.9567 | V59: 300107.2958 | W59: 268432.2861 | X59: 240100.4348 | Y59: 3.584841471e+10 | Z59: 597473.5785
A60: =IF(ISBLANK(InfoPro!A53),"",InfoPro!A53) -> SC_1875_A2 | B60: =IF(ISBLANK(InfoPro!B53),"",InfoPro!B53) -> La Estrella | C60: =IF(ISBLANK(InfoPro!E53),"",InfoPro!E53) -> 60 | D60: =IF(ISBLANK(InfoPro!F53),"",InfoPro!F53) -> Solar FV | E60: =IF(ISBLANK(InfoPro!I53),"",YEAR(InfoPro!I53)-$G$3) -> 3 | F60: =IF(B60="","",VLOOKUP(D60,Tablas!$B$2:$E$13,2,FALSE)) -> 0.26 | G60: =IF(B60="","",VLOOKUP(D60,Tablas!$B$2:$G$13,6,FALSE)) -> 0 | H60: 136656 | I60: 17393.98565 | J60: =IF($I60="","",(1/(1+$C$4)^(J$7+$E60))*$I60*$C$5) -> 1144400.914 | K60: 1023614.414 | L60: 915576.3986 | M60: 818941.3225 | N60: 732505.6552 | O60: 655192.8938 | P60: 586040.1554 | Q60: 524186.1855 | R60: 468860.6311 | S60: 419374.4464 | T60: 375111.3116 | U60: 335519.9567 | V60: 300107.2958 | W60: 268432.2861 | X60: 240100.4348 | Y60: 3.584841471e+10 | Z60: 597473.5785
A61: =IF(ISBLANK(InfoPro!A54),"",InfoPro!A54) -> SC_2040_A1 | B61: =IF(ISBLANK(InfoPro!B54),"",InfoPro!B54) -> Parque Solar Fotovoltaico Caldas Solar II 19,9 MW | C61: =IF(ISBLANK(InfoPro!E54),"",InfoPro!E54) -> 19.9 | D61: =IF(ISBLANK(InfoPro!F54),"",InfoPro!F54) -> Solar FV | E61: =IF(ISBLANK(InfoPro!I54),"",YEAR(InfoPro!I54)-$G$3) -> 2 | F61: =IF(B61="","",VLOOKUP(D61,Tablas!$B$2:$E$13,2,FALSE)) -> 0.26 | G61: =IF(B61="","",VLOOKUP(D61,Tablas!$B$2:$G$13,6,FALSE)) -> 0 | H61: 45324.24 | I61: 5769.00524 | J61: 424347.6737 | K61: 379559.6366 | L61: 339498.7805 | M61: 303666.1722 | N61: 271615.5386 | O61: 242947.709 | P61: 217305.6431 | Q61: 194369.9849 | R61: 173855.0849 | S61: 155505.4426 | T61: 139092.5247 | U61: 124411.9184 | V61: 111280.7856 | W61: 99535.58645 | X61: 89030.04154 | Y61: 1.329271167e+10 | Z61: 667975.4607
A62: =IF(ISBLANK(InfoPro!A55),"",InfoPro!A55) -> SC_1798_A1 | B62: =IF(ISBLANK(InfoPro!B55),"",InfoPro!B55) -> Parque Solar El Capibara 130 MW | C62: =IF(ISBLANK(InfoPro!E55),"",InfoPro!E55) -> 130 | D62: =IF(ISBLANK(InfoPro!F55),"",InfoPro!F55) -> Solar FV | E62: =IF(ISBLANK(InfoPro!I55),"",YEAR(InfoPro!I55)-$G$3) -> 3 | F62: =IF(B62="","",VLOOKUP(D62,Tablas!$B$2:$E$13,2,FALSE)) -> 0.26 | G62: =IF(B62="","",VLOOKUP(D62,Tablas!$B$2:$G$13,6,FALSE)) -> 0 | H62: 296088 | I62: 37686.9689 | J62: 2479535.315 | K62: 2217831.23 | L62: 1983748.864 | M62: 1774372.866 | N62: 1587095.586 | O62: 1419584.603 | P62: 1269753.67 | Q62: 1135736.735 | R62: 1015864.701 | S62: 908644.6338 | T62: 812741.1752 | U62: 726959.9062 | V62: 650232.4743 | W62: 581603.2865 | X62: 520217.6086 | Y62: 7.76715652e+10 | Z62: 597473.5785
A63: =IF(ISBLANK(InfoPro!A56),"",InfoPro!A56) -> SC_1798_A2 | B63: =IF(ISBLANK(InfoPro!B56),"",InfoPro!B56) -> Parque Solar El Capibara 130 MW | C63: =IF(ISBLANK(InfoPro!E56),"",InfoPro!E56) -> 130 | D63: =IF(ISBLANK(InfoPro!F56),"",InfoPro!F56) -> Solar FV | E63: =IF(ISBLANK(InfoPro!I56),"",YEAR(InfoPro!I56)-$G$3) -> 3 | F63: =IF(B63="","",VLOOKUP(D63,Tablas!$B$2:$E$13,2,FALSE)) -> 0.26 | G63: =IF(B63="","",VLOOKUP(D63,Tablas!$B$2:$G$13,6,FALSE)) -> 0 | H63: 296088 | I63: 37686.9689 | J63: 2479535.315 | K63: 2217831.23 | L63: 1983748.864 | M63: 1774372.866 | N63: 1587095.586 | O63: 1419584.603 | P63: 1269753.67 | Q63: 1135736.735 | R63: 1015864.701 | S63: 908644.6338 | T63: 812741.1752 | U63: 726959.9062 | V63: 650232.4743 | W63: 581603.2865 | X63: 520217.6086 | Y63: 7.76715652e+10 | Z63: 597473.5785
A64: =IF(ISBLANK(InfoPro!A57),"",InfoPro!A57) -> SC_1802_A1 | B64: =IF(ISBLANK(InfoPro!B57),"",InfoPro!B57) -> Parque Solar El Capibara II 130 MW | C64: =IF(ISBLANK(InfoPro!E57),"",InfoPro!E57) -> 130 | D64: =IF(ISBLANK(InfoPro!F57),"",InfoPro!F57) -> Solar FV | E64: =IF(ISBLANK(InfoPro!I57),"",YEAR(InfoPro!I57)-$G$3) -> 3 | F64: =IF(B64="","",VLOOKUP(D64,Tablas!$B$2:$E$13,2,FALSE)) -> 0.26 | G64: =IF(B64="","",VLOOKUP(D64,Tablas!$B$2:$G$13,6,FALSE)) -> 0 | H64: 296088 | I64: 37686.9689 | J64: 2479535.315 | K64: 2217831.23 | L64: 1983748.864 | M64: 1774372.866 | N64: 1587095.586 | O64: 1419584.603 | P64: 1269753.67 | Q64: 1135736.735 | R64: 1015864.701 | S64: 908644.6338 | T64: 812741.1752 | U64: 726959.9062 | V64: 650232.4743 | W64: 581603.2865 | X64: 520217.6086 | Y64: 7.76715652e+10 | Z64: 597473.5785
A65: =IF(ISBLANK(InfoPro!A58),"",InfoPro!A58) -> SC_1802_A2 | B65: =IF(ISBLANK(InfoPro!B58),"",InfoPro!B58) -> Parque Solar El Capibara II 130 MW | C65: =IF(ISBLANK(InfoPro!E58),"",InfoPro!E58) -> 130 | D65: =IF(ISBLANK(InfoPro!F58),"",InfoPro!F58) -> Solar FV | E65: =IF(ISBLANK(InfoPro!I58),"",YEAR(InfoPro!I58)-$G$3) -> 3 | F65: =IF(B65="","",VLOOKUP(D65,Tablas!$B$2:$E$13,2,FALSE)) -> 0.26 | G65: =IF(B65="","",VLOOKUP(D65,Tablas!$B$2:$G$13,6,FALSE)) -> 0 | H65: 296088 | I65: 37686.9689 | J65: 2479535.315 | K65: 2217831.23 | L65: 1983748.864 | M65: 1774372.866 | N65: 1587095.586 | O65: 1419584.603 | P65: 1269753.67 | Q65: 1135736.735 | R65: 1015864.701 | S65: 908644.6338 | T65: 812741.1752 | U65: 726959.9062 | V65: 650232.4743 | W65: 581603.2865 | X65: 520217.6086 | Y65: 7.76715652e+10 | Z65: 597473.5785
A66: =IF(ISBLANK(InfoPro!A59),"",InfoPro!A59) -> SC_1791_A1 | B66: =IF(ISBLANK(InfoPro!B59),"",InfoPro!B59) -> COG.005.2022 GUANACASTE | C66: =IF(ISBLANK(InfoPro!E59),"",InfoPro!E59) -> 9.9 | D66: =IF(ISBLANK(InfoPro!F59),"",InfoPro!F59) -> Solar FV | E66: =IF(ISBLANK(InfoPro!I59),"",YEAR(InfoPro!I59)-$G$3) -> 1 | F66: =IF(B66="","",VLOOKUP(D66,Tablas!$B$2:$E$13,2,FALSE)) -> 0.26 | G66: =IF(B66="","",VLOOKUP(D66,Tablas!$B$2:$G$13,6,FALSE)) -> 0 | H66: 22548.24 | I66: 2870.007632 | J66: 236018.3378 | K66: 211107.6367 | L66: 188826.1509 | M66: 168896.3782 | N66: 151070.1058 | O66: 135125.3182 | P66: 120863.4331 | Q66: 108106.8275 | R66: 96696.62564 | S66: 86490.72061 | T66: 77362.00413 | U66: 69196.78365 | V66: 61893.36642 | W66: 55360.79286 | X66: 49517.70381 | Y66: 7393285994 | Z66: 746796.5651
A67: =IF(ISBLANK(InfoPro!A60),"",InfoPro!A60) -> SC_1791_A2 | B67: =IF(ISBLANK(InfoPro!B60),"",InfoPro!B60) -> COG.005.2022 GUANACASTE | C67: =IF(ISBLANK(InfoPro!E60),"",InfoPro!E60) -> 9.9 | D67: =IF(ISBLANK(InfoPro!F60),"",InfoPro!F60) -> Solar FV | E67: =IF(ISBLANK(InfoPro!I60),"",YEAR(InfoPro!I60)-$G$3) -> 1 | F67: =IF(B67="","",VLOOKUP(D67,Tablas!$B$2:$E$13,2,FALSE)) -> 0.26 | G67: =IF(B67="","",VLOOKUP(D67,Tablas!$B$2:$G$13,6,FALSE)) -> 0 | H67: 22548.24 | I67: 2870.007632 | J67: 236018.3378 | K67: 211107.6367 | L67: 188826.1509 | M67: 168896.3782 | N67: 151070.1058 | O67: 135125.3182 | P67: 120863.4331 | Q67: 108106.8275 | R67: 96696.62564 | S67: 86490.72061 | T67: 77362.00413 | U67: 69196.78365 | V67: 61893.36642 | W67: 55360.79286 | X67: 49517.70381 | Y67: 7393285994 | Z67: 746796.5651
A68: =IF(ISBLANK(InfoPro!A61),"",InfoPro!A61) -> SC_2139_A1 | B68: =IF(ISBLANK(InfoPro!B61),"",InfoPro!B61) -> LAS BRUJAS SOLAR_9.9MW | C68: =IF(ISBLANK(InfoPro!E61),"",InfoPro!E61) -> 9.9 | D68: =IF(ISBLANK(InfoPro!F61),"",InfoPro!F61) -> Solar FV | E68: =IF(ISBLANK(InfoPro!I61),"",YEAR(InfoPro!I61)-$G$3) -> 0 | F68: =IF(B68="","",VLOOKUP(D68,Tablas!$B$2:$E$13,2,FALSE)) -> 0.26 | G68: =IF(B68="","",VLOOKUP(D68,Tablas!$B$2:$G$13,6,FALSE)) -> 0 | H68: 22548.24 | I68: 2870.007632 | J68: 263868.5017 | K68: 236018.3378 | L68: 211107.6367 | M68: 188826.1509 | N68: 168896.3782 | O68: 151070.1058 | P68: 135125.3182 | Q68: 120863.4331 | R68: 108106.8275 | S68: 96696.62564 | T68: 86490.72061 | U68: 77362.00413 | V68: 69196.78365 | W68: 61893.36642 | X68: 55360.79286 | Y68: 8265693742 | Z68: 834918.5598
A69: =IF(ISBLANK(InfoPro!A62),"",InfoPro!A62) -> SC_2139_A2 | B69: =IF(ISBLANK(InfoPro!B62),"",InfoPro!B62) -> LAS BRUJAS SOLAR_9.9MW | C69: =IF(ISBLANK(InfoPro!E62),"",InfoPro!E62) -> 9.9 | D69: =IF(ISBLANK(InfoPro!F62),"",InfoPro!F62) -> Solar FV | E69: =IF(ISBLANK(InfoPro!I62),"",YEAR(InfoPro!I62)-$G$3) -> 0 | F69: =IF(B69="","",VLOOKUP(D69,Tablas!$B$2:$E$13,2,FALSE)) -> 0.26 | G69: =IF(B69="","",VLOOKUP(D69,Tablas!$B$2:$G$13,6,FALSE)) -> 0 | H69: 22548.24 | I69: 2870.007632 | J69: 263868.5017 | K69: 236018.3378 | L69: 211107.6367 | M69: 188826.1509 | N69: 168896.3782 | O69: 151070.1058 | P69: 135125.3182 | Q69: 120863.4331 | R69: 108106.8275 | S69: 96696.62564 | T69: 86490.72061 | U69: 77362.00413 | V69: 69196.78365 | W69: 61893.36642 | X69: 55360.79286 | Y69: 8265693742 | Z69: 834918.5598
A70: =IF(ISBLANK(InfoPro!A63),"",InfoPro!A63) -> SC_1900_A2 | B70: =IF(ISBLANK(InfoPro!B63),"",InfoPro!B63) -> PCH Salamina | C70: =IF(ISBLANK(InfoPro!E63),"",InfoPro!E63) -> 19.9 | D70: =IF(ISBLANK(InfoPro!F63),"",InfoPro!F63) -> Hidraulica | E70: =IF(ISBLANK(InfoPro!I63),"",YEAR(InfoPro!I63)-$G$3) -> 3 | F70: =IF(B70="","",VLOOKUP(D70,Tablas!$B$2:$E$13,2,FALSE)) -> 0.6 | G70: =IF(B70="","",VLOOKUP(D70,Tablas!$B$2:$G$13,6,FALSE)) -> 0 | H70: 104594.4 | I70: 13313.08902 | J70: 875906.8537 | K70: 783458.7243 | L70: 700768.0897 | M70: 626805.0892 | N70: 560648.5592 | O70: 501474.561 | P70: 448546.119 | Q70: 401204.042 | R70: 358858.7138 | S70: 320982.7494 | T70: 287104.427 | U70: 256801.813 | V70: 229697.5072 | W70: 205453.942 | X70: 183769.1789 | Y70: 2.74378251e+10 | Z70: 1378785.181
A71: =IF(ISBLANK(InfoPro!A64),"",InfoPro!A64) -> SC_1911_A1 | B71: =IF(ISBLANK(InfoPro!B64),"",InfoPro!B64) -> Heliconea | C71: =IF(ISBLANK(InfoPro!E64),"",InfoPro!E64) -> 60 | D71: =IF(ISBLANK(InfoPro!F64),"",InfoPro!F64) -> Solar FV | E71: =IF(ISBLANK(InfoPro!I64),"",YEAR(InfoPro!I64)-$G$3) -> 2 | F71: =IF(B71="","",VLOOKUP(D71,Tablas!$B$2:$E$13,2,FALSE)) -> 0.26 | G71: =IF(B71="","",VLOOKUP(D71,Tablas!$B$2:$G$13,6,FALSE)) -> 0 | H71: 136656 | I71: 17393.98565 | J71: 1279440.222 | K71: 1144400.914 | L71: 1023614.414 | M71: 915576.3986 | N71: 818941.3225 | O71: 732505.6552 | P71: 655192.8938 | Q71: 586040.1554 | R71: 524186.1855 | S71: 468860.6311 | T71: 419374.4464 | U71: 375111.3116 | V71: 335519.9567 | W71: 300107.2958 | X71: 268432.2861 | Y71: 4.007852764e+10 | Z71: 667975.4607
A72: =IF(ISBLANK(InfoPro!A65),"",InfoPro!A65) -> SC_1911_A2 | B72: =IF(ISBLANK(InfoPro!B65),"",InfoPro!B65) -> Heliconea | C72: =IF(ISBLANK(InfoPro!E65),"",InfoPro!E65) -> 60 | D72: =IF(ISBLANK(InfoPro!F65),"",InfoPro!F65) -> Solar FV | E72: =IF(ISBLANK(InfoPro!I65),"",YEAR(InfoPro!I65)-$G$3) -> 2 | F72: =IF(B72="","",VLOOKUP(D72,Tablas!$B$2:$E$13,2,FALSE)) -> 0.26 | G72: =IF(B72="","",VLOOKUP(D72,Tablas!$B$2:$G$13,6,FALSE)) -> 0 | H72: 136656 | I72: 17393.98565 | J72: 1279440.222 | K72: 1144400.914 | L72: 1023614.414 | M72: 915576.3986 | N72: 818941.3225 | O72: 732505.6552 | P72: 655192.8938 | Q72: 586040.1554 | R72: 524186.1855 | S72: 468860.6311 | T72: 419374.4464 | U72: 375111.3116 | V72: 335519.9567 | W72: 300107.2958 | X72: 268432.2861 | Y72: 4.007852764e+10 | Z72: 667975.4607
A73: =IF(ISBLANK(InfoPro!A66),"",InfoPro!A66) -> SC_2090_A1 | B73: =IF(ISBLANK(InfoPro!B66),"",InfoPro!B66) -> Autogenerador Solar Mariquita_5.1MW-0MW (AUTOGENERADOR) | C73: =IF(ISBLANK(InfoPro!E66),"",InfoPro!E66) -> 5.1 | D73: =IF(ISBLANK(InfoPro!F66),"",InfoPro!F66) -> Solar FV | E73: =IF(ISBLANK(InfoPro!I66),"",YEAR(InfoPro!I66)-$G$3) -> 1 | F73: =IF(B73="","",VLOOKUP(D73,Tablas!$B$2:$E$13,2,FALSE)) -> 0.26 | G73: =IF(B73="","",VLOOKUP(D73,Tablas!$B$2:$G$13,6,FALSE)) -> 0 | H73: 11615.76 | I73: 1478.48878 | J73: 121585.2043 | K73: 108752.4189 | L73: 97274.07773 | M73: 87007.22516 | N73: 77823.99388 | O73: 69610.01242 | P73: 62262.98069 | Q73: 55691.39597 | R73: 49813.41321 | S73: 44555.82577 | T73: 39853.15364 | U73: 35646.82794 | V73: 31884.46149 | W73: 28519.19632 | X73: 25509.12014 | Y73: 3808662482 | Z73: 746796.5651
A74: =IF(ISBLANK(InfoPro!A67),"",InfoPro!A67) -> SC_1917_A1 | B74: =IF(ISBLANK(InfoPro!B67),"",InfoPro!B67) -> Parque Solar La Victoria | C74: =IF(ISBLANK(InfoPro!E67),"",InfoPro!E67) -> 40 | D74: =IF(ISBLANK(InfoPro!F67),"",InfoPro!F67) -> Solar FV | E74: =IF(ISBLANK(InfoPro!I67),"",YEAR(InfoPro!I67)-$G$3) -> 3 | F74: =IF(B74="","",VLOOKUP(D74,Tablas!$B$2:$E$13,2,FALSE)) -> 0.26 | G74: =IF(B74="","",VLOOKUP(D74,Tablas!$B$2:$G$13,6,FALSE)) -> 0 | H74: 91104 | I74: 11595.99043 | J74: 762933.943 | K74: 682409.6091 | L74: 610384.2657 | M74: 545960.8817 | N74: 488337.1035 | O74: 436795.2625 | P74: 390693.4369 | Q74: 349457.457 | R74: 312573.754 | S74: 279582.9643 | T74: 250074.2077 | U74: 223679.9711 | V74: 200071.5305 | W74: 178954.8574 | X74: 160066.9565 | Y74: 2.389894314e+10 | Z74: 597473.5785
A75: =IF(ISBLANK(InfoPro!A68),"",InfoPro!A68) -> SC_1917_A2 | B75: =IF(ISBLANK(InfoPro!B68),"",InfoPro!B68) -> Parque Solar La Victoria | C75: =IF(ISBLANK(InfoPro!E68),"",InfoPro!E68) -> 40 | D75: =IF(ISBLANK(InfoPro!F68),"",InfoPro!F68) -> Solar FV | E75: =IF(ISBLANK(InfoPro!I68),"",YEAR(InfoPro!I68)-$G$3) -> 3 | F75: =IF(B75="","",VLOOKUP(D75,Tablas!$B$2:$E$13,2,FALSE)) -> 0.26 | G75: =IF(B75="","",VLOOKUP(D75,Tablas!$B$2:$G$13,6,FALSE)) -> 0 | H75: 91104 | I75: 11595.99043 | J75: 762933.943 | K75: 682409.6091 | L75: 610384.2657 | M75: 545960.8817 | N75: 488337.1035 | O75: 436795.2625 | P75: 390693.4369 | Q75: 349457.457 | R75: 312573.754 | S75: 279582.9643 | T75: 250074.2077 | U75: 223679.9711 | V75: 200071.5305 | W75: 178954.8574 | X75: 160066.9565 | Y75: 2.389894314e+10 | Z75: 597473.5785
A76: =IF(ISBLANK(InfoPro!A69),"",InfoPro!A69) -> SC_1817_A1 | B76: =IF(ISBLANK(InfoPro!B69),"",InfoPro!B69) -> COG.006.2022 CATLEYA | C76: =IF(ISBLANK(InfoPro!E69),"",InfoPro!E69) -> 9.9 | D76: =IF(ISBLANK(InfoPro!F69),"",InfoPro!F69) -> Solar FV | E76: =IF(ISBLANK(InfoPro!I69),"",YEAR(InfoPro!I69)-$G$3) -> 1 | F76: =IF(B76="","",VLOOKUP(D76,Tablas!$B$2:$E$13,2,FALSE)) -> 0.26 | G76: =IF(B76="","",VLOOKUP(D76,Tablas!$B$2:$G$13,6,FALSE)) -> 0 | H76: 22548.24 | I76: 2870.007632 | J76: 236018.3378 | K76: 211107.6367 | L76: 188826.1509 | M76: 168896.3782 | N76: 151070.1058 | O76: 135125.3182 | P76: 120863.4331 | Q76: 108106.8275 | R76: 96696.62564 | S76: 86490.72061 | T76: 77362.00413 | U76: 69196.78365 | V76: 61893.36642 | W76: 55360.79286 | X76: 49517.70381 | Y76: 7393285994 | Z76: 746796.5651
A77: =IF(ISBLANK(InfoPro!A70),"",InfoPro!A70) -> SC_1817_A2 | B77: =IF(ISBLANK(InfoPro!B70),"",InfoPro!B70) -> COG.006.2022 CATLEYA | C77: =IF(ISBLANK(InfoPro!E70),"",InfoPro!E70) -> 9.9 | D77: =IF(ISBLANK(InfoPro!F70),"",InfoPro!F70) -> Solar FV | E77: =IF(ISBLANK(InfoPro!I70),"",YEAR(InfoPro!I70)-$G$3) -> 1 | F77: =IF(B77="","",VLOOKUP(D77,Tablas!$B$2:$E$13,2,FALSE)) -> 0.26 | G77: =IF(B77="","",VLOOKUP(D77,Tablas!$B$2:$G$13,6,FALSE)) -> 0 | H77: 22548.24 | I77: 2870.007632 | J77: =IF($I77="","",(1/(1+$C$4)^(J$7+$E77))*$I77*$C$5) -> 236018.3378 | K77: 211107.6367 | L77: 188826.1509 | M77: 168896.3782 | N77: 151070.1058 | O77: 135125.3182 | P77: 120863.4331 | Q77: 108106.8275 | R77: 96696.62564 | S77: 86490.72061 | T77: 77362.00413 | U77: 69196.78365 | V77: 61893.36642 | W77: 55360.79286 | X77: 49517.70381 | Y77: 7393285994 | Z77: 746796.5651
A78: =IF(ISBLANK(InfoPro!A71),"",InfoPro!A71) -> SC_2177_A1 | B78: =IF(ISBLANK(InfoPro!B71),"",InfoPro!B71) -> Parque Solar Fotovoltaico Camelia 9,9 MW | C78: =IF(ISBLANK(InfoPro!E71),"",InfoPro!E71) -> 9.9 | D78: =IF(ISBLANK(InfoPro!F71),"",InfoPro!F71) -> Solar FV | E78: =IF(ISBLANK(InfoPro!I71),"",YEAR(InfoPro!I71)-$G$3) -> 1 | F78: =IF(B78="","",VLOOKUP(D78,Tablas!$B$2:$E$13,2,FALSE)) -> 0.26 | G78: =IF(B78="","",VLOOKUP(D78,Tablas!$B$2:$G$13,6,FALSE)) -> 0 | H78: 22548.24 | I78: 2870.007632 | J78: 236018.3378 | K78: 211107.6367 | L78: 188826.1509 | M78: 168896.3782 | N78: 151070.1058 | O78: 135125.3182 | P78: 120863.4331 | Q78: 108106.8275 | R78: 96696.62564 | S78: 86490.72061 | T78: 77362.00413 | U78: 69196.78365 | V78: 61893.36642 | W78: 55360.79286 | X78: 49517.70381 | Y78: 7393285994 | Z78: 746796.5651
A79: =IF(ISBLANK(InfoPro!A72),"",InfoPro!A72) -> SC_2177_A2 | B79: =IF(ISBLANK(InfoPro!B72),"",InfoPro!B72) -> Parque Solar Fotovoltaico Camelia 9,9 MW | C79: =IF(ISBLANK(InfoPro!E72),"",InfoPro!E72) -> 9.9 | D79: =IF(ISBLANK(InfoPro!F72),"",InfoPro!F72) -> Solar FV | E79: =IF(ISBLANK(InfoPro!I72),"",YEAR(InfoPro!I72)-$G$3) -> 1 | F79: =IF(B79="","",VLOOKUP(D79,Tablas!$B$2:$E$13,2,FALSE)) -> 0.26 | G79: =IF(B79="","",VLOOKUP(D79,Tablas!$B$2:$G$13,6,FALSE)) -> 0 | H79: 22548.24 | I79: 2870.007632 | J79: 236018.3378 | K79: 211107.6367 | L79: 188826.1509 | M79: 168896.3782 | N79: 151070.1058 | O79: 135125.3182 | P79: 120863.4331 | Q79: 108106.8275 | R79: 96696.62564 | S79: 86490.72061 | T79: 77362.00413 | U79: 69196.78365 | V79: 61893.36642 | W79: 55360.79286 | X79: 49517.70381 | Y79: 7393285994 | Z79: 746796.5651
A80: =IF(ISBLANK(InfoPro!A73),"",InfoPro!A73) -> SC_2062_A1 | B80: =IF(ISBLANK(InfoPro!B73),"",InfoPro!B73) -> Puerto Solar | C80: =IF(ISBLANK(InfoPro!E73),"",InfoPro!E73) -> 9.9 | D80: =IF(ISBLANK(InfoPro!F73),"",InfoPro!F73) -> Solar FV | E80: =IF(ISBLANK(InfoPro!I73),"",YEAR(InfoPro!I73)-$G$3) -> 1 | F80: =IF(B80="","",VLOOKUP(D80,Tablas!$B$2:$E$13,2,FALSE)) -> 0.26 | G80: =IF(B80="","",VLOOKUP(D80,Tablas!$B$2:$G$13,6,FALSE)) -> 0 | H80: 22548.24 | I80: 2870.007632 | J80: 236018.3378 | K80: 211107.6367 | L80: 188826.1509 | M80: 168896.3782 | N80: 151070.1058 | O80: 135125.3182 | P80: 120863.4331 | Q80: 108106.8275 | R80: 96696.62564 | S80: 86490.72061 | T80: 77362.00413 | U80: 69196.78365 | V80: 61893.36642 | W80: 55360.79286 | X80: 49517.70381 | Y80: 7393285994 | Z80: 746796.5651
A81: =IF(ISBLANK(InfoPro!A74),"",InfoPro!A74) -> SC_2062_A2 | B81: =IF(ISBLANK(InfoPro!B74),"",InfoPro!B74) -> Puerto Solar | C81: =IF(ISBLANK(InfoPro!E74),"",InfoPro!E74) -> 9.9 | D81: =IF(ISBLANK(InfoPro!F74),"",InfoPro!F74) -> Solar FV | E81: =IF(ISBLANK(InfoPro!I74),"",YEAR(InfoPro!I74)-$G$3) -> 1 | F81: =IF(B81="","",VLOOKUP(D81,Tablas!$B$2:$E$13,2,FALSE)) -> 0.26 | G81: =IF(B81="","",VLOOKUP(D81,Tablas!$B$2:$G$13,6,FALSE)) -> 0 | H81: 22548.24 | I81: 2870.007632 | J81: 236018.3378 | K81: 211107.6367 | L81: 188826.1509 | M81: 168896.3782 | N81: 151070.1058 | O81: 135125.3182 | P81: 120863.4331 | Q81: 108106.8275 | R81: 96696.62564 | S81: 86490.72061 | T81: 77362.00413 | U81: 69196.78365 | V81: 61893.36642 | W81: 55360.79286 | X81: 49517.70381 | Y81: 7393285994 | Z81: 746796.5651
A82: =IF(ISBLANK(InfoPro!A75),"",InfoPro!A75) -> SC_2178_A1 | B82: =IF(ISBLANK(InfoPro!B75),"",InfoPro!B75) -> Parque Solar Fotovoltaico Dalia 9,9 MW | C82: =IF(ISBLANK(InfoPro!E75),"",InfoPro!E75) -> 9.9 | D82: =IF(ISBLANK(InfoPro!F75),"",InfoPro!F75) -> Solar FV | E82: =IF(ISBLANK(InfoPro!I75),"",YEAR(InfoPro!I75)-$G$3) -> 1 | F82: =IF(B82="","",VLOOKUP(D82,Tablas!$B$2:$E$13,2,FALSE)) -> 0.26 | G82: =IF(B82="","",VLOOKUP(D82,Tablas!$B$2:$G$13,6,FALSE)) -> 0 | H82: 22548.24 | I82: 2870.007632 | J82: 236018.3378 | K82: 211107.6367 | L82: 188826.1509 | M82: 168896.3782 | N82: 151070.1058 | O82: 135125.3182 | P82: 120863.4331 | Q82: 108106.8275 | R82: 96696.62564 | S82: 86490.72061 | T82: 77362.00413 | U82: 69196.78365 | V82: 61893.36642 | W82: 55360.79286 | X82: 49517.70381 | Y82: 7393285994 | Z82: 746796.5651
A83: =IF(ISBLANK(InfoPro!A76),"",InfoPro!A76) -> SC_2178_A2 | B83: =IF(ISBLANK(InfoPro!B76),"",InfoPro!B76) -> Parque Solar Fotovoltaico Dalia 9,9 MW | C83: =IF(ISBLANK(InfoPro!E76),"",InfoPro!E76) -> 9.9 | D83: =IF(ISBLANK(InfoPro!F76),"",InfoPro!F76) -> Solar FV | E83: =IF(ISBLANK(InfoPro!I76),"",YEAR(InfoPro!I76)-$G$3) -> 1 | F83: =IF(B83="","",VLOOKUP(D83,Tablas!$B$2:$E$13,2,FALSE)) -> 0.26 | G83: =IF(B83="","",VLOOKUP(D83,Tablas!$B$2:$G$13,6,FALSE)) -> 0 | H83: 22548.24 | I83: 2870.007632 | J83: 236018.3378 | K83: 211107.6367 | L83: 188826.1509 | M83: 168896.3782 | N83: 151070.1058 | O83: 135125.3182 | P83: 120863.4331 | Q83: 108106.8275 | R83: 96696.62564 | S83: 86490.72061 | T83: 77362.00413 | U83: 69196.78365 | V83: 61893.36642 | W83: 55360.79286 | X83: 49517.70381 | Y83: 7393285994 | Z83: 746796.5651
A84: =IF(ISBLANK(InfoPro!A77),"",InfoPro!A77) -> SC_2102_A1 | B84: =IF(ISBLANK(InfoPro!B77),"",InfoPro!B77) -> Parque Solar Beltran 9,9 MW | C84: =IF(ISBLANK(InfoPro!E77),"",InfoPro!E77) -> 9.9 | D84: =IF(ISBLANK(InfoPro!F77),"",InfoPro!F77) -> Solar FV | E84: =IF(ISBLANK(InfoPro!I77),"",YEAR(InfoPro!I77)-$G$3) -> 2 | F84: =IF(B84="","",VLOOKUP(D84,Tablas!$B$2:$E$13,2,FALSE)) -> 0.26 | G84: =IF(B84="","",VLOOKUP(D84,Tablas!$B$2:$G$13,6,FALSE)) -> 0 | H84: 22548.24 | I84: 2870.007632 | J84: 211107.6367 | K84: 188826.1509 | L84: 168896.3782 | M84: 151070.1058 | N84: 135125.3182 | O84: 120863.4331 | P84: 108106.8275 | Q84: 96696.62564 | R84: 86490.72061 | S84: 77362.00413 | T84: 69196.78365 | U84: 61893.36642 | V84: 55360.79286 | W84: 49517.70381 | X84: 44291.3272 | Y84: 6612957061 | Z84: 667975.4607
A85: =IF(ISBLANK(InfoPro!A78),"",InfoPro!A78) -> SC_2102_A2 | B85: =IF(ISBLANK(InfoPro!B78),"",InfoPro!B78) -> Parque Solar Beltran 9,9 MW | C85: =IF(ISBLANK(InfoPro!E78),"",InfoPro!E78) -> 9.9 | D85: =IF(ISBLANK(InfoPro!F78),"",InfoPro!F78) -> Solar FV | E85: =IF(ISBLANK(InfoPro!I78),"",YEAR(InfoPro!I78)-$G$3) -> 2 | F85: =IF(B85="","",VLOOKUP(D85,Tablas!$B$2:$E$13,2,FALSE)) -> 0.26 | G85: =IF(B85="","",VLOOKUP(D85,Tablas!$B$2:$G$13,6,FALSE)) -> 0 | H85: 22548.24 | I85: 2870.007632 | J85: 211107.6367 | K85: 188826.1509 | L85: 168896.3782 | M85: 151070.1058 | N85: 135125.3182 | O85: 120863.4331 | P85: 108106.8275 | Q85: 96696.62564 | R85: 86490.72061 | S85: 77362.00413 | T85: 69196.78365 | U85: 61893.36642 | V85: 55360.79286 | W85: 49517.70381 | X85: 44291.3272 | Y85: 6612957061 | Z85: 667975.4607
A86: =IF(ISBLANK(InfoPro!A79),"",InfoPro!A79) -> SC_2296_A1 | B86: =IF(ISBLANK(InfoPro!B79),"",InfoPro!B79) -> Parque Solar San Mateo 80 MW | C86: =IF(ISBLANK(InfoPro!E79),"",InfoPro!E79) -> 80 | D86: =IF(ISBLANK(InfoPro!F79),"",InfoPro!F79) -> Solar FV | E86: =IF(ISBLANK(InfoPro!I79),"",YEAR(InfoPro!I79)-$G$3) -> 2 | F86: =IF(B86="","",VLOOKUP(D86,Tablas!$B$2:$E$13,2,FALSE)) -> 0.26 | G86: =IF(B86="","",VLOOKUP(D86,Tablas!$B$2:$G$13,6,FALSE)) -> 0 | H86: 182208 | I86: 23191.98086 | J86: 1705920.296 | K86: 1525867.886 | L86: 1364819.218 | M86: 1220768.531 | N86: 1091921.763 | O86: 976674.207 | P86: 873590.525 | Q86: 781386.8739 | R86: 698914.914 | S86: 625147.5081 | T86: 559165.9285 | U86: 500148.4155 | V86: 447359.9423 | W86: 400143.0611 | X86: 357909.7147 | Y86: 5.343803686e+10 | Z86: 667975.4607
A87: =IF(ISBLANK(InfoPro!A80),"",InfoPro!A80) -> SC_2081_A1 | B87: =IF(ISBLANK(InfoPro!B80),"",InfoPro!B80) -> Parque Solar Fotovoltaico El Encanto | C87: =IF(ISBLANK(InfoPro!E80),"",InfoPro!E80) -> 50 | D87: =IF(ISBLANK(InfoPro!F80),"",InfoPro!F80) -> Solar FV | E87: =IF(ISBLANK(InfoPro!I80),"",YEAR(InfoPro!I80)-$G$3) -> 5 | F87: =IF(B87="","",VLOOKUP(D87,Tablas!$B$2:$E$13,2,FALSE)) -> 0.26 | G87: =IF(B87="","",VLOOKUP(D87,Tablas!$B$2:$G$13,6,FALSE)) -> 0 | H87: 113880 | I87: 14494.98804 | J87: 762980.3322 | K87: 682451.1021 | L87: 610421.3794 | M87: 545994.0781 | N87: 488366.7962 | O87: 436821.8213 | P87: 390717.1926 | Q87: 349478.7053 | R87: 312592.7597 | S87: 279599.9639 | T87: 250089.4132 | U87: 223693.5717 | V87: 200083.6956 | W87: 178965.7385 | X87: 160076.6892 | Y87: 2.390039628e+10 | Z87: 478007.9256
A88: =IF(ISBLANK(InfoPro!A81),"",InfoPro!A81) -> SC_2081_A2 | B88: =IF(ISBLANK(InfoPro!B81),"",InfoPro!B81) -> Parque Solar Fotovoltaico El Encanto | C88: =IF(ISBLANK(InfoPro!E81),"",InfoPro!E81) -> 50 | D88: =IF(ISBLANK(InfoPro!F81),"",InfoPro!F81) -> Solar FV | E88: =IF(ISBLANK(InfoPro!I81),"",YEAR(InfoPro!I81)-$G$3) -> 5 | F88: =IF(B88="","",VLOOKUP(D88,Tablas!$B$2:$E$13,2,FALSE)) -> 0.26 | G88: =IF(B88="","",VLOOKUP(D88,Tablas!$B$2:$G$13,6,FALSE)) -> 0 | H88: 113880 | I88: 14494.98804 | J88: 762980.3322 | K88: 682451.1021 | L88: 610421.3794 | M88: 545994.0781 | N88: 488366.7962 | O88: 436821.8213 | P88: 390717.1926 | Q88: 349478.7053 | R88: 312592.7597 | S88: 279599.9639 | T88: 250089.4132 | U88: 223693.5717 | V88: 200083.6956 | W88: 178965.7385 | X88: 160076.6892 | Y88: 2.390039628e+10 | Z88: 478007.9256
A89: =IF(ISBLANK(InfoPro!A82),"",InfoPro!A82) -> SC_1679_A2 | B89: =IF(ISBLANK(InfoPro!B82),"",InfoPro!B82) -> PCH EL MOLINO | C89: =IF(ISBLANK(InfoPro!E82),"",InfoPro!E82) -> 19.9 | D89: =IF(ISBLANK(InfoPro!F82),"",InfoPro!F82) -> Hidraulica | E89: =IF(ISBLANK(InfoPro!I82),"",YEAR(InfoPro!I82)-$G$3) -> 3 | F89: =IF(B89="","",VLOOKUP(D89,Tablas!$B$2:$E$13,2,FALSE)) -> 0.6 | G89: =IF(B89="","",VLOOKUP(D89,Tablas!$B$2:$G$13,6,FALSE)) -> 0 | H89: 104594.4 | I89: 13313.08902 | J89: 875906.8537 | K89: 783458.7243 | L89: 700768.0897 | M89: 626805.0892 | N89: 560648.5592 | O89: 501474.561 | P89: 448546.119 | Q89: 401204.042 | R89: 358858.7138 | S89: 320982.7494 | T89: 287104.427 | U89: 256801.813 | V89: 229697.5072 | W89: 205453.942 | X89: 183769.1789 | Y89: 2.74378251e+10 | Z89: 1378785.181
A90: =IF(ISBLANK(InfoPro!A83),"",InfoPro!A83) -> SC_2229_A1 | B90: =IF(ISBLANK(InfoPro!B83),"",InfoPro!B83) -> El Silencio 120MW y su línea de evacuación de220kV | C90: =IF(ISBLANK(InfoPro!E83),"",InfoPro!E83) -> 120 | D90: =IF(ISBLANK(InfoPro!F83),"",InfoPro!F83) -> Solar FV | E90: =IF(ISBLANK(InfoPro!I83),"",YEAR(InfoPro!I83)-$G$3) -> 4 | F90: =IF(B90="","",VLOOKUP(D90,Tablas!$B$2:$E$13,2,FALSE)) -> 0.26 | G90: =IF(B90="","",VLOOKUP(D90,Tablas!$B$2:$G$13,6,FALSE)) -> 0 | H90: 273312 | I90: 34787.9713 | J90: 2047228.827 | K90: 1831152.797 | L90: 1637882.645 | M90: 1465011.31 | N90: 1310385.788 | O90: 1172080.311 | P90: 1048372.371 | Q90: 937721.2621 | R90: 838748.8928 | S90: 750222.6232 | T90: 671039.9134 | U90: 600214.5916 | V90: 536864.5721 | W90: 480200.8695 | X90: 429517.7724 | Y90: 6.41295433e+10 | Z90: 534412.8609
A91: =IF(ISBLANK(InfoPro!A84),"",InfoPro!A84) -> SC_1511_A1 | B91: =IF(ISBLANK(InfoPro!B84),"",InfoPro!B84) -> Planta Solar FV Ambalema | C91: =IF(ISBLANK(InfoPro!E84),"",InfoPro!E84) -> 7 | D91: =IF(ISBLANK(InfoPro!F84),"",InfoPro!F84) -> Solar FV | E91: =IF(ISBLANK(InfoPro!I84),"",YEAR(InfoPro!I84)-$G$3) -> 1 | F91: =IF(B91="","",VLOOKUP(D91,Tablas!$B$2:$E$13,2,FALSE)) -> 0.26 | G91: =IF(B91="","",VLOOKUP(D91,Tablas!$B$2:$G$13,6,FALSE)) -> 0 | H91: 15943.2 | I91: 2029.298326 | J91: 166881.653 | K91: 149268.0259 | L91: 133513.44 | M91: 119421.6816 | N91: 106817.2465 | O91: 95543.1543 | P91: 85458.99311 | Q91: 76439.17094 | R91: 68371.35147 | S91: 61155.05498 | T91: 54700.40696 | U91: 48927.01875 | V91: 43762.98636 | W91: 39143.99495 | X91: 35012.51785 | Y91: 5227575956 | Z91: 746796.5651
A92: =IF(ISBLANK(InfoPro!A85),"",InfoPro!A85) -> SC_1511_A2 | B92: =IF(ISBLANK(InfoPro!B85),"",InfoPro!B85) -> Planta Solar FV Ambalema | C92: =IF(ISBLANK(InfoPro!E85),"",InfoPro!E85) -> 7 | D92: =IF(ISBLANK(InfoPro!F85),"",InfoPro!F85) -> Solar FV | E92: =IF(ISBLANK(InfoPro!I85),"",YEAR(InfoPro!I85)-$G$3) -> 1 | F92: =IF(B92="","",VLOOKUP(D92,Tablas!$B$2:$E$13,2,FALSE)) -> 0.26 | G92: =IF(B92="","",VLOOKUP(D92,Tablas!$B$2:$G$13,6,FALSE)) -> 0 | H92: 15943.2 | I92: 2029.298326 | J92: 166881.653 | K92: 149268.0259 | L92: 133513.44 | M92: 119421.6816 | N92: 106817.2465 | O92: 95543.1543 | P92: 85458.99311 | Q92: 76439.17094 | R92: 68371.35147 | S92: 61155.05498 | T92: 54700.40696 | U92: 48927.01875 | V92: 43762.98636 | W92: 39143.99495 | X92: 35012.51785 | Y92: 5227575956 | Z92: 746796.5651
A93: =IF(ISBLANK(InfoPro!A86),"",InfoPro!A86) -> SC_1743_A1 | B93: =IF(ISBLANK(InfoPro!B86),"",InfoPro!B86) -> SOLAR FOTOVOLTAICO FRESNOS 60 MW | C93: =IF(ISBLANK(InfoPro!E86),"",InfoPro!E86) -> 60 | D93: =IF(ISBLANK(InfoPro!F86),"",InfoPro!F86) -> Solar FV | E93: =IF(ISBLANK(InfoPro!I86),"",YEAR(InfoPro!I86)-$G$3) -> 3 | F93: =IF(B93="","",VLOOKUP(D93,Tablas!$B$2:$E$13,2,FALSE)) -> 0.26 | G93: =IF(B93="","",VLOOKUP(D93,Tablas!$B$2:$G$13,6,FALSE)) -> 0 | H93: 136656 | I93: 17393.98565 | J93: 1144400.914 | K93: 1023614.414 | L93: 915576.3986 | M93: 818941.3225 | N93: 732505.6552 | O93: 655192.8938 | P93: 586040.1554 | Q93: 524186.1855 | R93: 468860.6311 | S93: 419374.4464 | T93: 375111.3116 | U93: 335519.9567 | V93: 300107.2958 | W93: 268432.2861 | X93: 240100.4348 | Y93: 3.584841471e+10 | Z93: 597473.5785
A94: =IF(ISBLANK(InfoPro!A87),"",InfoPro!A87) -> SC_1743_A2 | B94: =IF(ISBLANK(InfoPro!B87),"",InfoPro!B87) -> SOLAR FOTOVOLTAICO FRESNOS 60 MW | C94: =IF(ISBLANK(InfoPro!E87),"",InfoPro!E87) -> 60 | D94: =IF(ISBLANK(InfoPro!F87),"",InfoPro!F87) -> Solar FV | E94: =IF(ISBLANK(InfoPro!I87),"",YEAR(InfoPro!I87)-$G$3) -> 3 | F94: =IF(B94="","",VLOOKUP(D94,Tablas!$B$2:$E$13,2,FALSE)) -> 0.26 | G94: =IF(B94="","",VLOOKUP(D94,Tablas!$B$2:$G$13,6,FALSE)) -> 0 | H94: 136656 | I94: 17393.98565 | J94: =IF($I94="","",(1/(1+$C$4)^(J$7+$E94))*$I94*$C$5) -> 1144400.914 | K94: 1023614.414 | L94: 915576.3986 | M94: 818941.3225 | N94: 732505.6552 | O94: 655192.8938 | P94: 586040.1554 | Q94: 524186.1855 | R94: 468860.6311 | S94: 419374.4464 | T94: 375111.3116 | U94: 335519.9567 | V94: 300107.2958 | W94: 268432.2861 | X94: 240100.4348 | Y94: 3.584841471e+10 | Z94: 597473.5785
A95: =IF(ISBLANK(InfoPro!A88),"",InfoPro!A88) -> SC_1745_A2 | B95: =IF(ISBLANK(InfoPro!B88),"",InfoPro!B88) -> PARQUE SOLAR FOTOVOLTAICO CERESOS 9,9 MW | C95: =IF(ISBLANK(InfoPro!E88),"",InfoPro!E88) -> 9.9 | D95: =IF(ISBLANK(InfoPro!F88),"",InfoPro!F88) -> Solar FV | E95: =IF(ISBLANK(InfoPro!I88),"",YEAR(InfoPro!I88)-$G$3) -> 3 | F95: =IF(B95="","",VLOOKUP(D95,Tablas!$B$2:$E$13,2,FALSE)) -> 0.26 | G95: =IF(B95="","",VLOOKUP(D95,Tablas!$B$2:$G$13,6,FALSE)) -> 0 | H95: 22548.24 | I95: 2870.007632 | J95: 188826.1509 | K95: 168896.3782 | L95: 151070.1058 | M95: 135125.3182 | N95: 120863.4331 | O95: 108106.8275 | P95: 96696.62564 | Q95: 86490.72061 | R95: 77362.00413 | S95: 69196.78365 | T95: 61893.36642 | U95: 55360.79286 | V95: 49517.70381 | W95: 44291.3272 | X95: 39616.57174 | Y95: 5914988427 | Z95: 597473.5785
A96: =IF(ISBLANK(InfoPro!A89),"",InfoPro!A89) -> SC_1738_A1 | B96: =IF(ISBLANK(InfoPro!B89),"",InfoPro!B89) -> Parque Solar La Ponderosa | C96: =IF(ISBLANK(InfoPro!E89),"",InfoPro!E89) -> 99.99 | D96: =IF(ISBLANK(InfoPro!F89),"",InfoPro!F89) -> Solar FV | E96: =IF(ISBLANK(InfoPro!I89),"",YEAR(InfoPro!I89)-$G$3) -> 0 | F96: =IF(B96="","",VLOOKUP(D96,Tablas!$B$2:$E$13,2,FALSE)) -> 0.26 | G96: =IF(B96="","",VLOOKUP(D96,Tablas!$B$2:$G$13,6,FALSE)) -> 0 | H96: 227737.224 | I96: 28987.07708 | J96: 2665071.867 | K96: 2383785.212 | L96: 2132187.131 | M96: 1907144.124 | N96: 1705853.42 | O96: 1525808.068 | P96: 1364765.714 | Q96: 1220720.674 | R96: 1091878.957 | S96: 976635.919 | T96: 873556.2782 | U96: 781356.2417 | V96: 698887.5149 | W96: 625123.0008 | X96: 559144.0079 | Y96: 8.348350679e+10 | Z96: 834918.5598
A97: =IF(ISBLANK(InfoPro!A90),"",InfoPro!A90) -> SC_1738_A2 | B97: =IF(ISBLANK(InfoPro!B90),"",InfoPro!B90) -> Parque Solar La Ponderosa | C97: =IF(ISBLANK(InfoPro!E90),"",InfoPro!E90) -> 99.99 | D97: =IF(ISBLANK(InfoPro!F90),"",InfoPro!F90) -> Solar FV | E97: =IF(ISBLANK(InfoPro!I90),"",YEAR(InfoPro!I90)-$G$3) -> 0 | F97: =IF(B97="","",VLOOKUP(D97,Tablas!$B$2:$E$13,2,FALSE)) -> 0.26 | G97: =IF(B97="","",VLOOKUP(D97,Tablas!$B$2:$G$13,6,FALSE)) -> 0 | H97: 227737.224 | I97: 28987.07708 | J97: 2665071.867 | K97: 2383785.212 | L97: 2132187.131 | M97: 1907144.124 | N97: 1705853.42 | O97: 1525808.068 | P97: 1364765.714 | Q97: 1220720.674 | R97: 1091878.957 | S97: 976635.919 | T97: 873556.2782 | U97: 781356.2417 | V97: 698887.5149 | W97: 625123.0008 | X97: 559144.0079 | Y97: 8.348350679e+10 | Z97: 834918.5598
A98: =IF(ISBLANK(InfoPro!A91),"",InfoPro!A91) ->  | B98: =IF(ISBLANK(InfoPro!B91),"",InfoPro!B91) ->  | C98: =IF(ISBLANK(InfoPro!E91),"",InfoPro!E91) ->  | D98: =IF(ISBLANK(InfoPro!F91),"",InfoPro!F91) ->  | E98: =IF(ISBLANK(InfoPro!I91),"",YEAR(InfoPro!I91)-$G$3) ->  | F98: =IF(B98="","",VLOOKUP(D98,Tablas!$B$2:$E$13,2,FALSE)) ->  | G98: =IF(B98="","",VLOOKUP(D98,Tablas!$B$2:$G$13,6,FALSE)) -> 
A99: =IF(ISBLANK(InfoPro!A92),"",InfoPro!A92) ->  | B99: =IF(ISBLANK(InfoPro!B92),"",InfoPro!B92) ->  | C99: =IF(ISBLANK(InfoPro!E92),"",InfoPro!E92) ->  | D99: =IF(ISBLANK(InfoPro!F92),"",InfoPro!F92) ->  | E99: =IF(ISBLANK(InfoPro!I92),"",YEAR(InfoPro!I92)-$G$3) ->  | F99: =IF(B99="","",VLOOKUP(D99,Tablas!$B$2:$E$13,2,FALSE)) ->  | G99: =IF(B99="","",VLOOKUP(D99,Tablas!$B$2:$G$13,6,FALSE)) -> 
A100: =IF(ISBLANK(InfoPro!A93),"",InfoPro!A93) ->  | B100: =IF(ISBLANK(InfoPro!B93),"",InfoPro!B93) ->  | C100: =IF(ISBLANK(InfoPro!E93),"",InfoPro!E93) ->  | D100: =IF(ISBLANK(InfoPro!F93),"",InfoPro!F93) ->  | E100: =IF(ISBLANK(InfoPro!I93),"",YEAR(InfoPro!I93)-$G$3) ->  | F100: =IF(B100="","",VLOOKUP(D100,Tablas!$B$2:$E$13,2,FALSE)) ->  | G100: =IF(B100="","",VLOOKUP(D100,Tablas!$B$2:$G$13,6,FALSE)) -> 
A104: =IF(ISBLANK(InfoPro!A94),"",InfoPro!A94) ->  | B104: =IF(ISBLANK(InfoPro!B94),"",InfoPro!B94) ->  | C104: =IF(ISBLANK(InfoPro!E94),"",InfoPro!E94) ->  | D104: =IF(ISBLANK(InfoPro!F94),"",InfoPro!F94) ->  | E104: =IF(ISBLANK(InfoPro!I94),"",YEAR(InfoPro!I94)-$G$3) ->  | F104: =IF(B104="","",VLOOKUP(D104,Tablas!$B$2:$E$13,2,FALSE)) ->  | G104: =IF(B104="","",VLOOKUP(D104,Tablas!$B$2:$G$13,6,FALSE)) -> 
A105: =IF(ISBLANK(InfoPro!A95),"",InfoPro!A95) ->  | B105: =IF(ISBLANK(InfoPro!B95),"",InfoPro!B95) ->  | C105: =IF(ISBLANK(InfoPro!E95),"",InfoPro!E95) ->  | D105: =IF(ISBLANK(InfoPro!F95),"",InfoPro!F95) ->  | E105: =IF(ISBLANK(InfoPro!I95),"",YEAR(InfoPro!I95)-$G$3) ->  | F105: =IF(B105="","",VLOOKUP(D105,Tablas!$B$2:$E$13,2,FALSE)) ->  | G105: =IF(B105="","",VLOOKUP(D105,Tablas!$B$2:$G$13,6,FALSE)) -> 
A106: =IF(ISBLANK(InfoPro!A96),"",InfoPro!A96) ->  | B106: =IF(ISBLANK(InfoPro!B96),"",InfoPro!B96) ->  | C106: =IF(ISBLANK(InfoPro!E96),"",InfoPro!E96) ->  | D106: =IF(ISBLANK(InfoPro!F96),"",InfoPro!F96) ->  | E106: =IF(ISBLANK(InfoPro!I96),"",YEAR(InfoPro!I96)-$G$3) ->  | F106: =IF(B106="","",VLOOKUP(D106,Tablas!$B$2:$E$13,2,FALSE)) ->  | G106: =IF(B106="","",VLOOKUP(D106,Tablas!$B$2:$G$13,6,FALSE)) -> 
A107: =IF(ISBLANK(InfoPro!A97),"",InfoPro!A97) ->  | B107: =IF(ISBLANK(InfoPro!B97),"",InfoPro!B97) ->  | C107: =IF(ISBLANK(InfoPro!E97),"",InfoPro!E97) ->  | D107: =IF(ISBLANK(InfoPro!F97),"",InfoPro!F97) ->  | E107: =IF(ISBLANK(InfoPro!I97),"",YEAR(InfoPro!I97)-$G$3) ->  | F107: =IF(B107="","",VLOOKUP(D107,Tablas!$B$2:$E$13,2,FALSE)) ->  | G107: =IF(B107="","",VLOOKUP(D107,Tablas!$B$2:$G$13,6,FALSE)) ->  | H107: =IF(C107="","",+C107*F107*24*365) ->  | I107: =IF(H107="","",+H107*($C$3-G107)) ->  | Y107: =IF(X107="","",SUM(J107:X107)*$C$6) ->  | Z107: =IF(C107=0,0,IF(Y107="","",Y107/(C107*1000))) -> 
A108: =IF(ISBLANK(InfoPro!A98),"",InfoPro!A98) ->  | B108: =IF(ISBLANK(InfoPro!B98),"",InfoPro!B98) ->  | C108: =IF(ISBLANK(InfoPro!E98),"",InfoPro!E98) ->  | D108: =IF(ISBLANK(InfoPro!F98),"",InfoPro!F98) ->  | E108: =IF(ISBLANK(InfoPro!I98),"",YEAR(InfoPro!I98)-$G$3) ->  | F108: =IF(B108="","",VLOOKUP(D108,Tablas!$B$2:$E$13,2,FALSE)) ->  | G108: =IF(B108="","",VLOOKUP(D108,Tablas!$B$2:$G$13,6,FALSE)) -> 
A109: =IF(ISBLANK(InfoPro!A99),"",InfoPro!A99) ->  | B109: =IF(ISBLANK(InfoPro!B99),"",InfoPro!B99) ->  | C109: =IF(ISBLANK(InfoPro!E99),"",InfoPro!E99) ->  | D109: =IF(ISBLANK(InfoPro!F99),"",InfoPro!F99) ->  | E109: =IF(ISBLANK(InfoPro!I99),"",YEAR(InfoPro!I99)-$G$3) ->  | F109: =IF(B109="","",VLOOKUP(D109,Tablas!$B$2:$E$13,2,FALSE)) ->  | G109: =IF(B109="","",VLOOKUP(D109,Tablas!$B$2:$G$13,6,FALSE)) -> 
A110: =IF(ISBLANK(InfoPro!A100),"",InfoPro!A100) ->  | B110: =IF(ISBLANK(InfoPro!B100),"",InfoPro!B100) ->  | C110: =IF(ISBLANK(InfoPro!E100),"",InfoPro!E100) ->  | D110: =IF(ISBLANK(InfoPro!F100),"",InfoPro!F100) ->  | E110: =IF(ISBLANK(InfoPro!I100),"",YEAR(InfoPro!I100)-$G$3) ->  | F110: =IF(B110="","",VLOOKUP(D110,Tablas!$B$2:$E$13,2,FALSE)) ->  | G110: =IF(B110="","",VLOOKUP(D110,Tablas!$B$2:$G$13,6,FALSE)) -> 
A111: =IF(ISBLANK(InfoPro!A101),"",InfoPro!A101) ->  | B111: =IF(ISBLANK(InfoPro!B101),"",InfoPro!B101) ->  | C111: =IF(ISBLANK(InfoPro!E101),"",InfoPro!E101) ->  | D111: =IF(ISBLANK(InfoPro!F101),"",InfoPro!F101) ->  | E111: =IF(ISBLANK(InfoPro!I101),"",YEAR(InfoPro!I101)-$G$3) ->  | F111: =IF(B111="","",VLOOKUP(D111,Tablas!$B$2:$E$13,2,FALSE)) ->  | G111: =IF(B111="","",VLOOKUP(D111,Tablas!$B$2:$G$13,6,FALSE)) ->  | J111: =IF($I111="","",(1/(1+$C$4)^(J$7+$E111))*$I111*$C$5) -> 
A112: =IF(ISBLANK(InfoPro!A102),"",InfoPro!A102) ->  | B112: =IF(ISBLANK(InfoPro!B102),"",InfoPro!B102) ->  | C112: =IF(ISBLANK(InfoPro!E102),"",InfoPro!E102) ->  | D112: =IF(ISBLANK(InfoPro!F102),"",InfoPro!F102) ->  | E112: =IF(ISBLANK(InfoPro!I102),"",YEAR(InfoPro!I102)-$G$3) ->  | F112: =IF(B112="","",VLOOKUP(D112,Tablas!$B$2:$E$13,2,FALSE)) ->  | G112: =IF(B112="","",VLOOKUP(D112,Tablas!$B$2:$G$13,6,FALSE)) -> 
A113: =IF(ISBLANK(InfoPro!A103),"",InfoPro!A103) ->  | B113: =IF(ISBLANK(InfoPro!B103),"",InfoPro!B103) ->  | C113: =IF(ISBLANK(InfoPro!E103),"",InfoPro!E103) ->  | D113: =IF(ISBLANK(InfoPro!F103),"",InfoPro!F103) ->  | E113: =IF(ISBLANK(InfoPro!I103),"",YEAR(InfoPro!I103)-$G$3) ->  | F113: =IF(B113="","",VLOOKUP(D113,Tablas!$B$2:$E$13,2,FALSE)) ->  | G113: =IF(B113="","",VLOOKUP(D113,Tablas!$B$2:$G$13,6,FALSE)) -> 
A114: =IF(ISBLANK(InfoPro!A104),"",InfoPro!A104) ->  | B114: =IF(ISBLANK(InfoPro!B104),"",InfoPro!B104) ->  | C114: =IF(ISBLANK(InfoPro!E104),"",InfoPro!E104) ->  | D114: =IF(ISBLANK(InfoPro!F104),"",InfoPro!F104) ->  | E114: =IF(ISBLANK(InfoPro!I104),"",YEAR(InfoPro!I104)-$G$3) ->  | F114: =IF(B114="","",VLOOKUP(D114,Tablas!$B$2:$E$13,2,FALSE)) ->  | G114: =IF(B114="","",VLOOKUP(D114,Tablas!$B$2:$G$13,6,FALSE)) -> 
A115: =IF(ISBLANK(InfoPro!A105),"",InfoPro!A105) ->  | B115: =IF(ISBLANK(InfoPro!B105),"",InfoPro!B105) ->  | C115: =IF(ISBLANK(InfoPro!E105),"",InfoPro!E105) ->  | D115: =IF(ISBLANK(InfoPro!F105),"",InfoPro!F105) ->  | E115: =IF(ISBLANK(InfoPro!I105),"",YEAR(InfoPro!I105)-$G$3) ->  | F115: =IF(B115="","",VLOOKUP(D115,Tablas!$B$2:$E$13,2,FALSE)) ->  | G115: =IF(B115="","",VLOOKUP(D115,Tablas!$B$2:$G$13,6,FALSE)) -> 
A116: =IF(ISBLANK(InfoPro!A106),"",InfoPro!A106) ->  | B116: =IF(ISBLANK(InfoPro!B106),"",InfoPro!B106) ->  | C116: =IF(ISBLANK(InfoPro!E106),"",InfoPro!E106) ->  | D116: =IF(ISBLANK(InfoPro!F106),"",InfoPro!F106) ->  | E116: =IF(ISBLANK(InfoPro!I106),"",YEAR(InfoPro!I106)-$G$3) ->  | F116: =IF(B116="","",VLOOKUP(D116,Tablas!$B$2:$E$13,2,FALSE)) ->  | G116: =IF(B116="","",VLOOKUP(D116,Tablas!$B$2:$G$13,6,FALSE)) -> 
A117: =IF(ISBLANK(InfoPro!A107),"",InfoPro!A107) ->  | B117: =IF(ISBLANK(InfoPro!B107),"",InfoPro!B107) ->  | C117: =IF(ISBLANK(InfoPro!E107),"",InfoPro!E107) ->  | D117: =IF(ISBLANK(InfoPro!F107),"",InfoPro!F107) ->  | E117: =IF(ISBLANK(InfoPro!I107),"",YEAR(InfoPro!I107)-$G$3) ->  | F117: =IF(B117="","",VLOOKUP(D117,Tablas!$B$2:$E$13,2,FALSE)) ->  | G117: =IF(B117="","",VLOOKUP(D117,Tablas!$B$2:$G$13,6,FALSE)) -> 
A118: =IF(ISBLANK(InfoPro!A108),"",InfoPro!A108) ->  | B118: =IF(ISBLANK(InfoPro!B108),"",InfoPro!B108) ->  | C118: =IF(ISBLANK(InfoPro!E108),"",InfoPro!E108) ->  | D118: =IF(ISBLANK(InfoPro!F108),"",InfoPro!F108) ->  | E118: =IF(ISBLANK(InfoPro!I108),"",YEAR(InfoPro!I108)-$G$3) ->  | F118: =IF(B118="","",VLOOKUP(D118,Tablas!$B$2:$E$13,2,FALSE)) ->  | G118: =IF(B118="","",VLOOKUP(D118,Tablas!$B$2:$G$13,6,FALSE)) -> 
A119: =IF(ISBLANK(InfoPro!A109),"",InfoPro!A109) ->  | B119: =IF(ISBLANK(InfoPro!B109),"",InfoPro!B109) ->  | C119: =IF(ISBLANK(InfoPro!E109),"",InfoPro!E109) ->  | D119: =IF(ISBLANK(InfoPro!F109),"",InfoPro!F109) ->  | E119: =IF(ISBLANK(InfoPro!I109),"",YEAR(InfoPro!I109)-$G$3) ->  | F119: =IF(B119="","",VLOOKUP(D119,Tablas!$B$2:$E$13,2,FALSE)) ->  | G119: =IF(B119="","",VLOOKUP(D119,Tablas!$B$2:$G$13,6,FALSE)) -> 
A120: =IF(ISBLANK(InfoPro!A110),"",InfoPro!A110) ->  | B120: =IF(ISBLANK(InfoPro!B110),"",InfoPro!B110) ->  | C120: =IF(ISBLANK(InfoPro!E110),"",InfoPro!E110) ->  | D120: =IF(ISBLANK(InfoPro!F110),"",InfoPro!F110) ->  | E120: =IF(ISBLANK(InfoPro!I110),"",YEAR(InfoPro!I110)-$G$3) ->  | F120: =IF(B120="","",VLOOKUP(D120,Tablas!$B$2:$E$13,2,FALSE)) ->  | G120: =IF(B120="","",VLOOKUP(D120,Tablas!$B$2:$G$13,6,FALSE)) -> 
A121: =IF(ISBLANK(InfoPro!A111),"",InfoPro!A111) ->  | B121: =IF(ISBLANK(InfoPro!B111),"",InfoPro!B111) ->  | C121: =IF(ISBLANK(InfoPro!E111),"",InfoPro!E111) ->  | D121: =IF(ISBLANK(InfoPro!F111),"",InfoPro!F111) ->  | E121: =IF(ISBLANK(InfoPro!I111),"",YEAR(InfoPro!I111)-$G$3) ->  | F121: =IF(B121="","",VLOOKUP(D121,Tablas!$B$2:$E$13,2,FALSE)) ->  | G121: =IF(B121="","",VLOOKUP(D121,Tablas!$B$2:$G$13,6,FALSE)) -> 
A122: =IF(ISBLANK(InfoPro!A112),"",InfoPro!A112) ->  | B122: =IF(ISBLANK(InfoPro!B112),"",InfoPro!B112) ->  | C122: =IF(ISBLANK(InfoPro!E112),"",InfoPro!E112) ->  | D122: =IF(ISBLANK(InfoPro!F112),"",InfoPro!F112) ->  | E122: =IF(ISBLANK(InfoPro!I112),"",YEAR(InfoPro!I112)-$G$3) ->  | F122: =IF(B122="","",VLOOKUP(D122,Tablas!$B$2:$E$13,2,FALSE)) ->  | G122: =IF(B122="","",VLOOKUP(D122,Tablas!$B$2:$G$13,6,FALSE)) ->  | H122: =IF(C122="","",+C122*F122*24*365) ->  | I122: =IF(H122="","",+H122*($C$3-G122)) ->  | J122: =IF($I122="","",(1/(1+$C$4)^(J$7+$E122))*$I122*$C$5) ->  | Y122: =IF(X122="","",SUM(J122:X122)*$C$6) ->  | Z122: =IF(C122=0,0,IF(Y122="","",Y122/(C122*1000))) -> 
A123: =IF(ISBLANK(InfoPro!A113),"",InfoPro!A113) ->  | B123: =IF(ISBLANK(InfoPro!B113),"",InfoPro!B113) ->  | C123: =IF(ISBLANK(InfoPro!E113),"",InfoPro!E113) ->  | D123: =IF(ISBLANK(InfoPro!F113),"",InfoPro!F113) ->  | E123: =IF(ISBLANK(InfoPro!I113),"",YEAR(InfoPro!I113)-$G$3) ->  | F123: =IF(B123="","",VLOOKUP(D123,Tablas!$B$2:$E$13,2,FALSE)) ->  | G123: =IF(B123="","",VLOOKUP(D123,Tablas!$B$2:$G$13,6,FALSE)) -> 
A124: =IF(ISBLANK(InfoPro!A114),"",InfoPro!A114) ->  | B124: =IF(ISBLANK(InfoPro!B114),"",InfoPro!B114) ->  | C124: =IF(ISBLANK(InfoPro!E114),"",InfoPro!E114) ->  | D124: =IF(ISBLANK(InfoPro!F114),"",InfoPro!F114) ->  | E124: =IF(ISBLANK(InfoPro!I114),"",YEAR(InfoPro!I114)-$G$3) ->  | F124: =IF(B124="","",VLOOKUP(D124,Tablas!$B$2:$E$13,2,FALSE)) ->  | G124: =IF(B124="","",VLOOKUP(D124,Tablas!$B$2:$G$13,6,FALSE)) -> 
A125: =IF(ISBLANK(InfoPro!A115),"",InfoPro!A115) ->  | B125: =IF(ISBLANK(InfoPro!B115),"",InfoPro!B115) ->  | C125: =IF(ISBLANK(InfoPro!E115),"",InfoPro!E115) ->  | D125: =IF(ISBLANK(InfoPro!F115),"",InfoPro!F115) ->  | E125: =IF(ISBLANK(InfoPro!I115),"",YEAR(InfoPro!I115)-$G$3) ->  | F125: =IF(B125="","",VLOOKUP(D125,Tablas!$B$2:$E$13,2,FALSE)) ->  | G125: =IF(B125="","",VLOOKUP(D125,Tablas!$B$2:$G$13,6,FALSE)) -> 
A126: =IF(ISBLANK(InfoPro!A116),"",InfoPro!A116) ->  | B126: =IF(ISBLANK(InfoPro!B116),"",InfoPro!B116) ->  | C126: =IF(ISBLANK(InfoPro!E116),"",InfoPro!E116) ->  | D126: =IF(ISBLANK(InfoPro!F116),"",InfoPro!F116) ->  | E126: =IF(ISBLANK(InfoPro!I116),"",YEAR(InfoPro!I116)-$G$3) ->  | F126: =IF(B126="","",VLOOKUP(D126,Tablas!$B$2:$E$13,2,FALSE)) ->  | G126: =IF(B126="","",VLOOKUP(D126,Tablas!$B$2:$G$13,6,FALSE)) -> 
A127: =IF(ISBLANK(InfoPro!A117),"",InfoPro!A117) ->  | B127: =IF(ISBLANK(InfoPro!B117),"",InfoPro!B117) ->  | C127: =IF(ISBLANK(InfoPro!E117),"",InfoPro!E117) ->  | D127: =IF(ISBLANK(InfoPro!F117),"",InfoPro!F117) ->  | E127: =IF(ISBLANK(InfoPro!I117),"",YEAR(InfoPro!I117)-$G$3) ->  | F127: =IF(B127="","",VLOOKUP(D127,Tablas!$B$2:$E$13,2,FALSE)) ->  | G127: =IF(B127="","",VLOOKUP(D127,Tablas!$B$2:$G$13,6,FALSE)) -> 
A128: =IF(ISBLANK(InfoPro!A118),"",InfoPro!A118) ->  | B128: =IF(ISBLANK(InfoPro!B118),"",InfoPro!B118) ->  | C128: =IF(ISBLANK(InfoPro!E118),"",InfoPro!E118) ->  | D128: =IF(ISBLANK(InfoPro!F118),"",InfoPro!F118) ->  | E128: =IF(ISBLANK(InfoPro!I118),"",YEAR(InfoPro!I118)-$G$3) ->  | F128: =IF(B128="","",VLOOKUP(D128,Tablas!$B$2:$E$13,2,FALSE)) ->  | G128: =IF(B128="","",VLOOKUP(D128,Tablas!$B$2:$G$13,6,FALSE)) -> 
A129: =IF(ISBLANK(InfoPro!A119),"",InfoPro!A119) ->  | B129: =IF(ISBLANK(InfoPro!B119),"",InfoPro!B119) ->  | C129: =IF(ISBLANK(InfoPro!E119),"",InfoPro!E119) ->  | D129: =IF(ISBLANK(InfoPro!F119),"",InfoPro!F119) ->  | E129: =IF(ISBLANK(InfoPro!I119),"",YEAR(InfoPro!I119)-$G$3) ->  | F129: =IF(B129="","",VLOOKUP(D129,Tablas!$B$2:$E$13,2,FALSE)) ->  | G129: =IF(B129="","",VLOOKUP(D129,Tablas!$B$2:$G$13,6,FALSE)) ->  | J129: =IF($I129="","",(1/(1+$C$4)^(J$7+$E129))*$I129*$C$5) -> 
A130: =IF(ISBLANK(InfoPro!A120),"",InfoPro!A120) ->  | B130: =IF(ISBLANK(InfoPro!B120),"",InfoPro!B120) ->  | C130: =IF(ISBLANK(InfoPro!E120),"",InfoPro!E120) ->  | D130: =IF(ISBLANK(InfoPro!F120),"",InfoPro!F120) ->  | E130: =IF(ISBLANK(InfoPro!I120),"",YEAR(InfoPro!I120)-$G$3) ->  | F130: =IF(B130="","",VLOOKUP(D130,Tablas!$B$2:$E$13,2,FALSE)) ->  | G130: =IF(B130="","",VLOOKUP(D130,Tablas!$B$2:$G$13,6,FALSE)) -> 
A131: =IF(ISBLANK(InfoPro!A121),"",InfoPro!A121) ->  | B131: =IF(ISBLANK(InfoPro!B121),"",InfoPro!B121) ->  | C131: =IF(ISBLANK(InfoPro!E121),"",InfoPro!E121) ->  | D131: =IF(ISBLANK(InfoPro!F121),"",InfoPro!F121) ->  | E131: =IF(ISBLANK(InfoPro!I121),"",YEAR(InfoPro!I121)-$G$3) ->  | F131: =IF(B131="","",VLOOKUP(D131,Tablas!$B$2:$E$13,2,FALSE)) ->  | G131: =IF(B131="","",VLOOKUP(D131,Tablas!$B$2:$G$13,6,FALSE)) -> 
A132: =IF(ISBLANK(InfoPro!A122),"",InfoPro!A122) ->  | B132: =IF(ISBLANK(InfoPro!B122),"",InfoPro!B122) ->  | C132: =IF(ISBLANK(InfoPro!E122),"",InfoPro!E122) ->  | D132: =IF(ISBLANK(InfoPro!F122),"",InfoPro!F122) ->  | E132: =IF(ISBLANK(InfoPro!I122),"",YEAR(InfoPro!I122)-$G$3) ->  | F132: =IF(B132="","",VLOOKUP(D132,Tablas!$B$2:$E$13,2,FALSE)) ->  | G132: =IF(B132="","",VLOOKUP(D132,Tablas!$B$2:$G$13,6,FALSE)) -> 
A133: =IF(ISBLANK(InfoPro!A123),"",InfoPro!A123) ->  | B133: =IF(ISBLANK(InfoPro!B123),"",InfoPro!B123) ->  | C133: =IF(ISBLANK(InfoPro!E123),"",InfoPro!E123) ->  | D133: =IF(ISBLANK(InfoPro!F123),"",InfoPro!F123) ->  | E133: =IF(ISBLANK(InfoPro!I123),"",YEAR(InfoPro!I123)-$G$3) ->  | F133: =IF(B133="","",VLOOKUP(D133,Tablas!$B$2:$E$13,2,FALSE)) ->  | G133: =IF(B133="","",VLOOKUP(D133,Tablas!$B$2:$G$13,6,FALSE)) -> 
A134: =IF(ISBLANK(InfoPro!A124),"",InfoPro!A124) ->  | B134: =IF(ISBLANK(InfoPro!B124),"",InfoPro!B124) ->  | C134: =IF(ISBLANK(InfoPro!E124),"",InfoPro!E124) ->  | D134: =IF(ISBLANK(InfoPro!F124),"",InfoPro!F124) ->  | E134: =IF(ISBLANK(InfoPro!I124),"",YEAR(InfoPro!I124)-$G$3) ->  | F134: =IF(B134="","",VLOOKUP(D134,Tablas!$B$2:$E$13,2,FALSE)) ->  | G134: =IF(B134="","",VLOOKUP(D134,Tablas!$B$2:$G$13,6,FALSE)) -> 
A135: =IF(ISBLANK(InfoPro!A125),"",InfoPro!A125) ->  | B135: =IF(ISBLANK(InfoPro!B125),"",InfoPro!B125) ->  | C135: =IF(ISBLANK(InfoPro!E125),"",InfoPro!E125) ->  | D135: =IF(ISBLANK(InfoPro!F125),"",InfoPro!F125) ->  | E135: =IF(ISBLANK(InfoPro!I125),"",YEAR(InfoPro!I125)-$G$3) ->  | F135: =IF(B135="","",VLOOKUP(D135,Tablas!$B$2:$E$13,2,FALSE)) ->  | G135: =IF(B135="","",VLOOKUP(D135,Tablas!$B$2:$G$13,6,FALSE)) -> 
A136: =IF(ISBLANK(InfoPro!A126),"",InfoPro!A126) ->  | B136: =IF(ISBLANK(InfoPro!B126),"",InfoPro!B126) ->  | C136: =IF(ISBLANK(InfoPro!E126),"",InfoPro!E126) ->  | D136: =IF(ISBLANK(InfoPro!F126),"",InfoPro!F126) ->  | E136: =IF(ISBLANK(InfoPro!I126),"",YEAR(InfoPro!I126)-$G$3) ->  | F136: =IF(B136="","",VLOOKUP(D136,Tablas!$B$2:$E$13,2,FALSE)) ->  | G136: =IF(B136="","",VLOOKUP(D136,Tablas!$B$2:$G$13,6,FALSE)) -> 
A137: =IF(ISBLANK(InfoPro!A127),"",InfoPro!A127) ->  | B137: =IF(ISBLANK(InfoPro!B127),"",InfoPro!B127) ->  | C137: =IF(ISBLANK(InfoPro!E127),"",InfoPro!E127) ->  | D137: =IF(ISBLANK(InfoPro!F127),"",InfoPro!F127) ->  | E137: =IF(ISBLANK(InfoPro!I127),"",YEAR(InfoPro!I127)-$G$3) ->  | F137: =IF(B137="","",VLOOKUP(D137,Tablas!$B$2:$E$13,2,FALSE)) ->  | G137: =IF(B137="","",VLOOKUP(D137,Tablas!$B$2:$G$13,6,FALSE)) -> 
A138: =IF(ISBLANK(InfoPro!A128),"",InfoPro!A128) ->  | B138: =IF(ISBLANK(InfoPro!B128),"",InfoPro!B128) ->  | C138: =IF(ISBLANK(InfoPro!E128),"",InfoPro!E128) ->  | D138: =IF(ISBLANK(InfoPro!F128),"",InfoPro!F128) ->  | E138: =IF(ISBLANK(InfoPro!I128),"",YEAR(InfoPro!I128)-$G$3) ->  | F138: =IF(B138="","",VLOOKUP(D138,Tablas!$B$2:$E$13,2,FALSE)) ->  | G138: =IF(B138="","",VLOOKUP(D138,Tablas!$B$2:$G$13,6,FALSE)) ->  | H138: =IF(C138="","",+C138*F138*24*365) ->  | I138: =IF(H138="","",+H138*($C$3-G138)) ->  | Y138: =IF(X138="","",SUM(J138:X138)*$C$6) ->  | Z138: =IF(C138=0,0,IF(Y138="","",Y138/(C138*1000))) -> 
A139: =IF(ISBLANK(InfoPro!A129),"",InfoPro!A129) ->  | B139: =IF(ISBLANK(InfoPro!B129),"",InfoPro!B129) ->  | C139: =IF(ISBLANK(InfoPro!E129),"",InfoPro!E129) ->  | D139: =IF(ISBLANK(InfoPro!F129),"",InfoPro!F129) ->  | E139: =IF(ISBLANK(InfoPro!I129),"",YEAR(InfoPro!I129)-$G$3) ->  | F139: =IF(B139="","",VLOOKUP(D139,Tablas!$B$2:$E$13,2,FALSE)) ->  | G139: =IF(B139="","",VLOOKUP(D139,Tablas!$B$2:$G$13,6,FALSE)) -> 
A140: =IF(ISBLANK(InfoPro!A130),"",InfoPro!A130) ->  | B140: =IF(ISBLANK(InfoPro!B130),"",InfoPro!B130) ->  | C140: =IF(ISBLANK(InfoPro!E130),"",InfoPro!E130) ->  | D140: =IF(ISBLANK(InfoPro!F130),"",InfoPro!F130) ->  | E140: =IF(ISBLANK(InfoPro!I130),"",YEAR(InfoPro!I130)-$G$3) ->  | F140: =IF(B140="","",VLOOKUP(D140,Tablas!$B$2:$E$13,2,FALSE)) ->  | G140: =IF(B140="","",VLOOKUP(D140,Tablas!$B$2:$G$13,6,FALSE)) -> 
A141: =IF(ISBLANK(InfoPro!A131),"",InfoPro!A131) ->  | B141: =IF(ISBLANK(InfoPro!B131),"",InfoPro!B131) ->  | C141: =IF(ISBLANK(InfoPro!E131),"",InfoPro!E131) ->  | D141: =IF(ISBLANK(InfoPro!F131),"",InfoPro!F131) ->  | E141: =IF(ISBLANK(InfoPro!I131),"",YEAR(InfoPro!I131)-$G$3) ->  | F141: =IF(B141="","",VLOOKUP(D141,Tablas!$B$2:$E$13,2,FALSE)) ->  | G141: =IF(B141="","",VLOOKUP(D141,Tablas!$B$2:$G$13,6,FALSE)) -> 
A142: =IF(ISBLANK(InfoPro!A132),"",InfoPro!A132) ->  | B142: =IF(ISBLANK(InfoPro!B132),"",InfoPro!B132) ->  | C142: =IF(ISBLANK(InfoPro!E132),"",InfoPro!E132) ->  | D142: =IF(ISBLANK(InfoPro!F132),"",InfoPro!F132) ->  | E142: =IF(ISBLANK(InfoPro!I132),"",YEAR(InfoPro!I132)-$G$3) ->  | F142: =IF(B142="","",VLOOKUP(D142,Tablas!$B$2:$E$13,2,FALSE)) ->  | G142: =IF(B142="","",VLOOKUP(D142,Tablas!$B$2:$G$13,6,FALSE)) -> 
A143: =IF(ISBLANK(InfoPro!A133),"",InfoPro!A133) ->  | B143: =IF(ISBLANK(InfoPro!B133),"",InfoPro!B133) ->  | C143: =IF(ISBLANK(InfoPro!E133),"",InfoPro!E133) ->  | D143: =IF(ISBLANK(InfoPro!F133),"",InfoPro!F133) ->  | E143: =IF(ISBLANK(InfoPro!I133),"",YEAR(InfoPro!I133)-$G$3) ->  | F143: =IF(B143="","",VLOOKUP(D143,Tablas!$B$2:$E$13,2,FALSE)) ->  | G143: =IF(B143="","",VLOOKUP(D143,Tablas!$B$2:$G$13,6,FALSE)) -> 
A144: =IF(ISBLANK(InfoPro!A134),"",InfoPro!A134) ->  | B144: =IF(ISBLANK(InfoPro!B134),"",InfoPro!B134) ->  | C144: =IF(ISBLANK(InfoPro!E134),"",InfoPro!E134) ->  | D144: =IF(ISBLANK(InfoPro!F134),"",InfoPro!F134) ->  | E144: =IF(ISBLANK(InfoPro!I134),"",YEAR(InfoPro!I134)-$G$3) ->  | F144: =IF(B144="","",VLOOKUP(D144,Tablas!$B$2:$E$13,2,FALSE)) ->  | G144: =IF(B144="","",VLOOKUP(D144,Tablas!$B$2:$G$13,6,FALSE)) -> 
A145: =IF(ISBLANK(InfoPro!A135),"",InfoPro!A135) ->  | B145: =IF(ISBLANK(InfoPro!B135),"",InfoPro!B135) ->  | C145: =IF(ISBLANK(InfoPro!E135),"",InfoPro!E135) ->  | D145: =IF(ISBLANK(InfoPro!F135),"",InfoPro!F135) ->  | E145: =IF(ISBLANK(InfoPro!I135),"",YEAR(InfoPro!I135)-$G$3) ->  | F145: =IF(B145="","",VLOOKUP(D145,Tablas!$B$2:$E$13,2,FALSE)) ->  | G145: =IF(B145="","",VLOOKUP(D145,Tablas!$B$2:$G$13,6,FALSE)) -> 
A146: =IF(ISBLANK(InfoPro!A113),"",InfoPro!A113) ->  | B146: =IF(ISBLANK(InfoPro!B113),"",InfoPro!B113) ->  | C146: =IF(ISBLANK(InfoPro!E113),"",InfoPro!E113) ->  | D146: =IF(ISBLANK(InfoPro!F113),"",InfoPro!F113) ->  | E146: =IF(ISBLANK(InfoPro!I113),"",YEAR(InfoPro!I113)-$G$3) ->  | F146: =IF(B146="","",VLOOKUP(D146,Tablas!$B$2:$E$13,2,FALSE)) ->  | G146: =IF(B146="","",VLOOKUP(D146,Tablas!$B$2:$G$13,6,FALSE)) ->  | H146: =IF(C146="","",+C146*F146*24*365) ->  | I146: =IF(H146="","",+H146*($C$3-G146)) ->  | J146: =IF($I146="","",(1/(1+$C$4)^(J$7+$E146))*$I146*$C$5) ->  | Y146: =IF(X146="","",SUM(J146:X146)*$C$6) ->  | Z146: =IF(C146=0,0,IF(Y146="","",Y146/(C146*1000))) -> 
A147: =IF(ISBLANK(InfoPro!A114),"",InfoPro!A114) ->  | B147: =IF(ISBLANK(InfoPro!B114),"",InfoPro!B114) ->  | C147: =IF(ISBLANK(InfoPro!E114),"",InfoPro!E114) ->  | D147: =IF(ISBLANK(InfoPro!F114),"",InfoPro!F114) ->  | E147: =IF(ISBLANK(InfoPro!I114),"",YEAR(InfoPro!I114)-$G$3) ->  | F147: =IF(B147="","",VLOOKUP(D147,Tablas!$B$2:$E$13,2,FALSE)) ->  | G147: =IF(B147="","",VLOOKUP(D147,Tablas!$B$2:$G$13,6,FALSE)) -> 
A148: =IF(ISBLANK(InfoPro!A115),"",InfoPro!A115) ->  | B148: =IF(ISBLANK(InfoPro!B115),"",InfoPro!B115) ->  | C148: =IF(ISBLANK(InfoPro!E115),"",InfoPro!E115) ->  | D148: =IF(ISBLANK(InfoPro!F115),"",InfoPro!F115) ->  | E148: =IF(ISBLANK(InfoPro!I115),"",YEAR(InfoPro!I115)-$G$3) ->  | F148: =IF(B148="","",VLOOKUP(D148,Tablas!$B$2:$E$13,2,FALSE)) ->  | G148: =IF(B148="","",VLOOKUP(D148,Tablas!$B$2:$G$13,6,FALSE)) -> 
A149: =IF(ISBLANK(InfoPro!A116),"",InfoPro!A116) ->  | B149: =IF(ISBLANK(InfoPro!B116),"",InfoPro!B116) ->  | C149: =IF(ISBLANK(InfoPro!E116),"",InfoPro!E116) ->  | D149: =IF(ISBLANK(InfoPro!F116),"",InfoPro!F116) ->  | E149: =IF(ISBLANK(InfoPro!I116),"",YEAR(InfoPro!I116)-$G$3) ->  | F149: =IF(B149="","",VLOOKUP(D149,Tablas!$B$2:$E$13,2,FALSE)) ->  | G149: =IF(B149="","",VLOOKUP(D149,Tablas!$B$2:$G$13,6,FALSE)) ->  | J149: =IF($I149="","",(1/(1+$C$4)^(J$7+$E149))*$I149*$C$5) -> 
A150: =IF(ISBLANK(InfoPro!A117),"",InfoPro!A117) ->  | B150: =IF(ISBLANK(InfoPro!B117),"",InfoPro!B117) ->  | C150: =IF(ISBLANK(InfoPro!E117),"",InfoPro!E117) ->  | D150: =IF(ISBLANK(InfoPro!F117),"",InfoPro!F117) ->  | E150: =IF(ISBLANK(InfoPro!I117),"",YEAR(InfoPro!I117)-$G$3) ->  | F150: =IF(B150="","",VLOOKUP(D150,Tablas!$B$2:$E$13,2,FALSE)) ->  | G150: =IF(B150="","",VLOOKUP(D150,Tablas!$B$2:$G$13,6,FALSE)) -> 
A151: =IF(ISBLANK(InfoPro!A118),"",InfoPro!A118) ->  | B151: =IF(ISBLANK(InfoPro!B118),"",InfoPro!B118) ->  | C151: =IF(ISBLANK(InfoPro!E118),"",InfoPro!E118) ->  | D151: =IF(ISBLANK(InfoPro!F118),"",InfoPro!F118) ->  | E151: =IF(ISBLANK(InfoPro!I118),"",YEAR(InfoPro!I118)-$G$3) ->  | F151: =IF(B151="","",VLOOKUP(D151,Tablas!$B$2:$E$13,2,FALSE)) ->  | G151: =IF(B151="","",VLOOKUP(D151,Tablas!$B$2:$G$13,6,FALSE)) -> 
A152: =IF(ISBLANK(InfoPro!A119),"",InfoPro!A119) ->  | B152: =IF(ISBLANK(InfoPro!B119),"",InfoPro!B119) ->  | C152: =IF(ISBLANK(InfoPro!E119),"",InfoPro!E119) ->  | D152: =IF(ISBLANK(InfoPro!F119),"",InfoPro!F119) ->  | E152: =IF(ISBLANK(InfoPro!I119),"",YEAR(InfoPro!I119)-$G$3) ->  | F152: =IF(B152="","",VLOOKUP(D152,Tablas!$B$2:$E$13,2,FALSE)) ->  | G152: =IF(B152="","",VLOOKUP(D152,Tablas!$B$2:$G$13,6,FALSE)) -> 
A153: =IF(ISBLANK(InfoPro!A120),"",InfoPro!A120) ->  | B153: =IF(ISBLANK(InfoPro!B120),"",InfoPro!B120) ->  | C153: =IF(ISBLANK(InfoPro!E120),"",InfoPro!E120) ->  | D153: =IF(ISBLANK(InfoPro!F120),"",InfoPro!F120) ->  | E153: =IF(ISBLANK(InfoPro!I120),"",YEAR(InfoPro!I120)-$G$3) ->  | F153: =IF(B153="","",VLOOKUP(D153,Tablas!$B$2:$E$13,2,FALSE)) ->  | G153: =IF(B153="","",VLOOKUP(D153,Tablas!$B$2:$G$13,6,FALSE)) -> 
A154: =IF(ISBLANK(InfoPro!A121),"",InfoPro!A121) ->  | B154: =IF(ISBLANK(InfoPro!B121),"",InfoPro!B121) ->  | C154: =IF(ISBLANK(InfoPro!E121),"",InfoPro!E121) ->  | D154: =IF(ISBLANK(InfoPro!F121),"",InfoPro!F121) ->  | E154: =IF(ISBLANK(InfoPro!I121),"",YEAR(InfoPro!I121)-$G$3) ->  | F154: =IF(B154="","",VLOOKUP(D154,Tablas!$B$2:$E$13,2,FALSE)) ->  | G154: =IF(B154="","",VLOOKUP(D154,Tablas!$B$2:$G$13,6,FALSE)) -> 
A155: =IF(ISBLANK(InfoPro!A122),"",InfoPro!A122) ->  | B155: =IF(ISBLANK(InfoPro!B122),"",InfoPro!B122) ->  | C155: =IF(ISBLANK(InfoPro!E122),"",InfoPro!E122) ->  | D155: =IF(ISBLANK(InfoPro!F122),"",InfoPro!F122) ->  | E155: =IF(ISBLANK(InfoPro!I122),"",YEAR(InfoPro!I122)-$G$3) ->  | F155: =IF(B155="","",VLOOKUP(D155,Tablas!$B$2:$E$13,2,FALSE)) ->  | G155: =IF(B155="","",VLOOKUP(D155,Tablas!$B$2:$G$13,6,FALSE)) -> 
A156: =IF(ISBLANK(InfoPro!A123),"",InfoPro!A123) ->  | B156: =IF(ISBLANK(InfoPro!B123),"",InfoPro!B123) ->  | C156: =IF(ISBLANK(InfoPro!E123),"",InfoPro!E123) ->  | D156: =IF(ISBLANK(InfoPro!F123),"",InfoPro!F123) ->  | E156: =IF(ISBLANK(InfoPro!I123),"",YEAR(InfoPro!I123)-$G$3) ->  | F156: =IF(B156="","",VLOOKUP(D156,Tablas!$B$2:$E$13,2,FALSE)) ->  | G156: =IF(B156="","",VLOOKUP(D156,Tablas!$B$2:$G$13,6,FALSE)) -> 
A157: =IF(ISBLANK(InfoPro!A124),"",InfoPro!A124) ->  | B157: =IF(ISBLANK(InfoPro!B124),"",InfoPro!B124) ->  | C157: =IF(ISBLANK(InfoPro!E124),"",InfoPro!E124) ->  | D157: =IF(ISBLANK(InfoPro!F124),"",InfoPro!F124) ->  | E157: =IF(ISBLANK(InfoPro!I124),"",YEAR(InfoPro!I124)-$G$3) ->  | F157: =IF(B157="","",VLOOKUP(D157,Tablas!$B$2:$E$13,2,FALSE)) ->  | G157: =IF(B157="","",VLOOKUP(D157,Tablas!$B$2:$G$13,6,FALSE)) -> 
A158: =IF(ISBLANK(InfoPro!A125),"",InfoPro!A125) ->  | B158: =IF(ISBLANK(InfoPro!B125),"",InfoPro!B125) ->  | C158: =IF(ISBLANK(InfoPro!E125),"",InfoPro!E125) ->  | D158: =IF(ISBLANK(InfoPro!F125),"",InfoPro!F125) ->  | E158: =IF(ISBLANK(InfoPro!I125),"",YEAR(InfoPro!I125)-$G$3) ->  | F158: =IF(B158="","",VLOOKUP(D158,Tablas!$B$2:$E$13,2,FALSE)) ->  | G158: =IF(B158="","",VLOOKUP(D158,Tablas!$B$2:$G$13,6,FALSE)) -> 
A159: =IF(ISBLANK(InfoPro!A126),"",InfoPro!A126) ->  | B159: =IF(ISBLANK(InfoPro!B126),"",InfoPro!B126) ->  | C159: =IF(ISBLANK(InfoPro!E126),"",InfoPro!E126) ->  | D159: =IF(ISBLANK(InfoPro!F126),"",InfoPro!F126) ->  | E159: =IF(ISBLANK(InfoPro!I126),"",YEAR(InfoPro!I126)-$G$3) ->  | F159: =IF(B159="","",VLOOKUP(D159,Tablas!$B$2:$E$13,2,FALSE)) ->  | G159: =IF(B159="","",VLOOKUP(D159,Tablas!$B$2:$G$13,6,FALSE)) -> 
A160: =IF(ISBLANK(InfoPro!A127),"",InfoPro!A127) ->  | B160: =IF(ISBLANK(InfoPro!B127),"",InfoPro!B127) ->  | C160: =IF(ISBLANK(InfoPro!E127),"",InfoPro!E127) ->  | D160: =IF(ISBLANK(InfoPro!F127),"",InfoPro!F127) ->  | E160: =IF(ISBLANK(InfoPro!I127),"",YEAR(InfoPro!I127)-$G$3) ->  | F160: =IF(B160="","",VLOOKUP(D160,Tablas!$B$2:$E$13,2,FALSE)) ->  | G160: =IF(B160="","",VLOOKUP(D160,Tablas!$B$2:$G$13,6,FALSE)) -> 
A161: =IF(ISBLANK(InfoPro!A128),"",InfoPro!A128) ->  | B161: =IF(ISBLANK(InfoPro!B128),"",InfoPro!B128) ->  | C161: =IF(ISBLANK(InfoPro!E128),"",InfoPro!E128) ->  | D161: =IF(ISBLANK(InfoPro!F128),"",InfoPro!F128) ->  | E161: =IF(ISBLANK(InfoPro!I128),"",YEAR(InfoPro!I128)-$G$3) ->  | F161: =IF(B161="","",VLOOKUP(D161,Tablas!$B$2:$E$13,2,FALSE)) ->  | G161: =IF(B161="","",VLOOKUP(D161,Tablas!$B$2:$G$13,6,FALSE)) -> 
A162: =IF(ISBLANK(InfoPro!A129),"",InfoPro!A129) ->  | B162: =IF(ISBLANK(InfoPro!B129),"",InfoPro!B129) ->  | C162: =IF(ISBLANK(InfoPro!E129),"",InfoPro!E129) ->  | D162: =IF(ISBLANK(InfoPro!F129),"",InfoPro!F129) ->  | E162: =IF(ISBLANK(InfoPro!I129),"",YEAR(InfoPro!I129)-$G$3) ->  | F162: =IF(B162="","",VLOOKUP(D162,Tablas!$B$2:$E$13,2,FALSE)) ->  | G162: =IF(B162="","",VLOOKUP(D162,Tablas!$B$2:$G$13,6,FALSE)) -> 
A163: =IF(ISBLANK(InfoPro!A130),"",InfoPro!A130) ->  | B163: =IF(ISBLANK(InfoPro!B130),"",InfoPro!B130) ->  | C163: =IF(ISBLANK(InfoPro!E130),"",InfoPro!E130) ->  | D163: =IF(ISBLANK(InfoPro!F130),"",InfoPro!F130) ->  | E163: =IF(ISBLANK(InfoPro!I130),"",YEAR(InfoPro!I130)-$G$3) ->  | F163: =IF(B163="","",VLOOKUP(D163,Tablas!$B$2:$E$13,2,FALSE)) ->  | G163: =IF(B163="","",VLOOKUP(D163,Tablas!$B$2:$G$13,6,FALSE)) -> 
A164: =IF(ISBLANK(InfoPro!A131),"",InfoPro!A131) ->  | B164: =IF(ISBLANK(InfoPro!B131),"",InfoPro!B131) ->  | C164: =IF(ISBLANK(InfoPro!E131),"",InfoPro!E131) ->  | D164: =IF(ISBLANK(InfoPro!F131),"",InfoPro!F131) ->  | E164: =IF(ISBLANK(InfoPro!I131),"",YEAR(InfoPro!I131)-$G$3) ->  | F164: =IF(B164="","",VLOOKUP(D164,Tablas!$B$2:$E$13,2,FALSE)) ->  | G164: =IF(B164="","",VLOOKUP(D164,Tablas!$B$2:$G$13,6,FALSE)) -> 
A165: =IF(ISBLANK(InfoPro!A132),"",InfoPro!A132) ->  | B165: =IF(ISBLANK(InfoPro!B132),"",InfoPro!B132) ->  | C165: =IF(ISBLANK(InfoPro!E132),"",InfoPro!E132) ->  | D165: =IF(ISBLANK(InfoPro!F132),"",InfoPro!F132) ->  | E165: =IF(ISBLANK(InfoPro!I132),"",YEAR(InfoPro!I132)-$G$3) ->  | F165: =IF(B165="","",VLOOKUP(D165,Tablas!$B$2:$E$13,2,FALSE)) ->  | G165: =IF(B165="","",VLOOKUP(D165,Tablas!$B$2:$G$13,6,FALSE)) -> 
A166: =IF(ISBLANK(InfoPro!A133),"",InfoPro!A133) ->  | B166: =IF(ISBLANK(InfoPro!B133),"",InfoPro!B133) ->  | C166: =IF(ISBLANK(InfoPro!E133),"",InfoPro!E133) ->  | D166: =IF(ISBLANK(InfoPro!F133),"",InfoPro!F133) ->  | E166: =IF(ISBLANK(InfoPro!I133),"",YEAR(InfoPro!I133)-$G$3) ->  | F166: =IF(B166="","",VLOOKUP(D166,Tablas!$B$2:$E$13,2,FALSE)) ->  | G166: =IF(B166="","",VLOOKUP(D166,Tablas!$B$2:$G$13,6,FALSE)) ->  | J166: =IF($I166="","",(1/(1+$C$4)^(J$7+$E166))*$I166*$C$5) -> 
A167: =IF(ISBLANK(InfoPro!A134),"",InfoPro!A134) ->  | B167: =IF(ISBLANK(InfoPro!B134),"",InfoPro!B134) ->  | C167: =IF(ISBLANK(InfoPro!E134),"",InfoPro!E134) ->  | D167: =IF(ISBLANK(InfoPro!F134),"",InfoPro!F134) ->  | E167: =IF(ISBLANK(InfoPro!I134),"",YEAR(InfoPro!I134)-$G$3) ->  | F167: =IF(B167="","",VLOOKUP(D167,Tablas!$B$2:$E$13,2,FALSE)) ->  | G167: =IF(B167="","",VLOOKUP(D167,Tablas!$B$2:$G$13,6,FALSE)) -> 
A168: =IF(ISBLANK(InfoPro!A135),"",InfoPro!A135) ->  | B168: =IF(ISBLANK(InfoPro!B135),"",InfoPro!B135) ->  | C168: =IF(ISBLANK(InfoPro!E135),"",InfoPro!E135) ->  | D168: =IF(ISBLANK(InfoPro!F135),"",InfoPro!F135) ->  | E168: =IF(ISBLANK(InfoPro!I135),"",YEAR(InfoPro!I135)-$G$3) ->  | F168: =IF(B168="","",VLOOKUP(D168,Tablas!$B$2:$E$13,2,FALSE)) ->  | G168: =IF(B168="","",VLOOKUP(D168,Tablas!$B$2:$G$13,6,FALSE)) -> 
A169: =IF(ISBLANK(InfoPro!A136),"",InfoPro!A136) ->  | B169: =IF(ISBLANK(InfoPro!B136),"",InfoPro!B136) ->  | C169: =IF(ISBLANK(InfoPro!E136),"",InfoPro!E136) ->  | D169: =IF(ISBLANK(InfoPro!F136),"",InfoPro!F136) ->  | E169: =IF(ISBLANK(InfoPro!I136),"",YEAR(InfoPro!I136)-$G$3) ->  | F169: =IF(B169="","",VLOOKUP(D169,Tablas!$B$2:$E$13,2,FALSE)) ->  | G169: =IF(B169="","",VLOOKUP(D169,Tablas!$B$2:$G$13,6,FALSE)) -> 
A170: =IF(ISBLANK(InfoPro!A137),"",InfoPro!A137) ->  | B170: =IF(ISBLANK(InfoPro!B137),"",InfoPro!B137) ->  | C170: =IF(ISBLANK(InfoPro!E137),"",InfoPro!E137) ->  | D170: =IF(ISBLANK(InfoPro!F137),"",InfoPro!F137) ->  | E170: =IF(ISBLANK(InfoPro!I137),"",YEAR(InfoPro!I137)-$G$3) ->  | F170: =IF(B170="","",VLOOKUP(D170,Tablas!$B$2:$E$13,2,FALSE)) ->  | G170: =IF(B170="","",VLOOKUP(D170,Tablas!$B$2:$G$13,6,FALSE)) -> 
A171: =IF(ISBLANK(InfoPro!A138),"",InfoPro!A138) ->  | B171: =IF(ISBLANK(InfoPro!B138),"",InfoPro!B138) ->  | C171: =IF(ISBLANK(InfoPro!E138),"",InfoPro!E138) ->  | D171: =IF(ISBLANK(InfoPro!F138),"",InfoPro!F138) ->  | E171: =IF(ISBLANK(InfoPro!I138),"",YEAR(InfoPro!I138)-$G$3) ->  | F171: =IF(B171="","",VLOOKUP(D171,Tablas!$B$2:$E$13,2,FALSE)) ->  | G171: =IF(B171="","",VLOOKUP(D171,Tablas!$B$2:$G$13,6,FALSE)) -> 
A172: =IF(ISBLANK(InfoPro!A139),"",InfoPro!A139) ->  | B172: =IF(ISBLANK(InfoPro!B139),"",InfoPro!B139) ->  | C172: =IF(ISBLANK(InfoPro!E139),"",InfoPro!E139) ->  | D172: =IF(ISBLANK(InfoPro!F139),"",InfoPro!F139) ->  | E172: =IF(ISBLANK(InfoPro!I139),"",YEAR(InfoPro!I139)-$G$3) ->  | F172: =IF(B172="","",VLOOKUP(D172,Tablas!$B$2:$E$13,2,FALSE)) ->  | G172: =IF(B172="","",VLOOKUP(D172,Tablas!$B$2:$G$13,6,FALSE)) -> 
A173: =IF(ISBLANK(InfoPro!A140),"",InfoPro!A140) ->  | B173: =IF(ISBLANK(InfoPro!B140),"",InfoPro!B140) ->  | C173: =IF(ISBLANK(InfoPro!E140),"",InfoPro!E140) ->  | D173: =IF(ISBLANK(InfoPro!F140),"",InfoPro!F140) ->  | E173: =IF(ISBLANK(InfoPro!I140),"",YEAR(InfoPro!I140)-$G$3) ->  | F173: =IF(B173="","",VLOOKUP(D173,Tablas!$B$2:$E$13,2,FALSE)) ->  | G173: =IF(B173="","",VLOOKUP(D173,Tablas!$B$2:$G$13,6,FALSE)) -> 
A174: =IF(ISBLANK(InfoPro!A141),"",InfoPro!A141) ->  | B174: =IF(ISBLANK(InfoPro!B141),"",InfoPro!B141) ->  | C174: =IF(ISBLANK(InfoPro!E141),"",InfoPro!E141) ->  | D174: =IF(ISBLANK(InfoPro!F141),"",InfoPro!F141) ->  | E174: =IF(ISBLANK(InfoPro!I141),"",YEAR(InfoPro!I141)-$G$3) ->  | F174: =IF(B174="","",VLOOKUP(D174,Tablas!$B$2:$E$13,2,FALSE)) ->  | G174: =IF(B174="","",VLOOKUP(D174,Tablas!$B$2:$G$13,6,FALSE)) -> 
A175: =IF(ISBLANK(InfoPro!A142),"",InfoPro!A142) ->  | B175: =IF(ISBLANK(InfoPro!B142),"",InfoPro!B142) ->  | C175: =IF(ISBLANK(InfoPro!E142),"",InfoPro!E142) ->  | D175: =IF(ISBLANK(InfoPro!F142),"",InfoPro!F142) ->  | E175: =IF(ISBLANK(InfoPro!I142),"",YEAR(InfoPro!I142)-$G$3) ->  | F175: =IF(B175="","",VLOOKUP(D175,Tablas!$B$2:$E$13,2,FALSE)) ->  | G175: =IF(B175="","",VLOOKUP(D175,Tablas!$B$2:$G$13,6,FALSE)) ->  | H175: =IF(C175="","",+C175*F175*24*365) ->  | I175: =IF(H175="","",+H175*($C$3-G175)) ->  | Y175: =IF(X175="","",SUM(J175:X175)*$C$6) ->  | Z175: =IF(C175=0,0,IF(Y175="","",Y175/(C175*1000))) -> 
A176: =IF(ISBLANK(InfoPro!A143),"",InfoPro!A143) ->  | B176: =IF(ISBLANK(InfoPro!B143),"",InfoPro!B143) ->  | C176: =IF(ISBLANK(InfoPro!E143),"",InfoPro!E143) ->  | D176: =IF(ISBLANK(InfoPro!F143),"",InfoPro!F143) ->  | E176: =IF(ISBLANK(InfoPro!I143),"",YEAR(InfoPro!I143)-$G$3) ->  | F176: =IF(B176="","",VLOOKUP(D176,Tablas!$B$2:$E$13,2,FALSE)) ->  | G176: =IF(B176="","",VLOOKUP(D176,Tablas!$B$2:$G$13,6,FALSE)) ->  | H176: =IF(C176="","",+C176*F176*24*365) ->  | I176: =IF(H176="","",+H176*($C$3-G176)) ->  | J176: =IF($I176="","",(1/(1+$C$4)^(J$7+$E176))*$I176*$C$5) ->  | Y176: =IF(X176="","",SUM(J176:X176)*$C$6) ->  | Z176: =IF(C176=0,0,IF(Y176="","",Y176/(C176*1000))) -> 
A177: =IF(ISBLANK(InfoPro!A144),"",InfoPro!A144) ->  | B177: =IF(ISBLANK(InfoPro!B144),"",InfoPro!B144) ->  | C177: =IF(ISBLANK(InfoPro!E144),"",InfoPro!E144) ->  | D177: =IF(ISBLANK(InfoPro!F144),"",InfoPro!F144) ->  | E177: =IF(ISBLANK(InfoPro!I144),"",YEAR(InfoPro!I144)-$G$3) ->  | F177: =IF(B177="","",VLOOKUP(D177,Tablas!$B$2:$E$13,2,FALSE)) ->  | G177: =IF(B177="","",VLOOKUP(D177,Tablas!$B$2:$G$13,6,FALSE)) -> 
A178: =IF(ISBLANK(InfoPro!A145),"",InfoPro!A145) ->  | B178: =IF(ISBLANK(InfoPro!B145),"",InfoPro!B145) ->  | C178: =IF(ISBLANK(InfoPro!E145),"",InfoPro!E145) ->  | D178: =IF(ISBLANK(InfoPro!F145),"",InfoPro!F145) ->  | E178: =IF(ISBLANK(InfoPro!I145),"",YEAR(InfoPro!I145)-$G$3) ->  | F178: =IF(B178="","",VLOOKUP(D178,Tablas!$B$2:$E$13,2,FALSE)) ->  | G178: =IF(B178="","",VLOOKUP(D178,Tablas!$B$2:$G$13,6,FALSE)) -> 
A179: =IF(ISBLANK(InfoPro!A146),"",InfoPro!A146) ->  | B179: =IF(ISBLANK(InfoPro!B146),"",InfoPro!B146) ->  | C179: =IF(ISBLANK(InfoPro!E146),"",InfoPro!E146) ->  | D179: =IF(ISBLANK(InfoPro!F146),"",InfoPro!F146) ->  | E179: =IF(ISBLANK(InfoPro!I146),"",YEAR(InfoPro!I146)-$G$3) ->  | F179: =IF(B179="","",VLOOKUP(D179,Tablas!$B$2:$E$13,2,FALSE)) ->  | G179: =IF(B179="","",VLOOKUP(D179,Tablas!$B$2:$G$13,6,FALSE)) -> 
A180: =IF(ISBLANK(InfoPro!A147),"",InfoPro!A147) ->  | B180: =IF(ISBLANK(InfoPro!B147),"",InfoPro!B147) ->  | C180: =IF(ISBLANK(InfoPro!E147),"",InfoPro!E147) ->  | D180: =IF(ISBLANK(InfoPro!F147),"",InfoPro!F147) ->  | E180: =IF(ISBLANK(InfoPro!I147),"",YEAR(InfoPro!I147)-$G$3) ->  | F180: =IF(B180="","",VLOOKUP(D180,Tablas!$B$2:$E$13,2,FALSE)) ->  | G180: =IF(B180="","",VLOOKUP(D180,Tablas!$B$2:$G$13,6,FALSE)) -> 
A181: =IF(ISBLANK(InfoPro!A148),"",InfoPro!A148) ->  | B181: =IF(ISBLANK(InfoPro!B148),"",InfoPro!B148) ->  | C181: =IF(ISBLANK(InfoPro!E148),"",InfoPro!E148) ->  | D181: =IF(ISBLANK(InfoPro!F148),"",InfoPro!F148) ->  | E181: =IF(ISBLANK(InfoPro!I148),"",YEAR(InfoPro!I148)-$G$3) ->  | F181: =IF(B181="","",VLOOKUP(D181,Tablas!$B$2:$E$13,2,FALSE)) ->  | G181: =IF(B181="","",VLOOKUP(D181,Tablas!$B$2:$G$13,6,FALSE)) -> 
A182: =IF(ISBLANK(InfoPro!A149),"",InfoPro!A149) ->  | B182: =IF(ISBLANK(InfoPro!B149),"",InfoPro!B149) ->  | C182: =IF(ISBLANK(InfoPro!E149),"",InfoPro!E149) ->  | D182: =IF(ISBLANK(InfoPro!F149),"",InfoPro!F149) ->  | E182: =IF(ISBLANK(InfoPro!I149),"",YEAR(InfoPro!I149)-$G$3) ->  | F182: =IF(B182="","",VLOOKUP(D182,Tablas!$B$2:$E$13,2,FALSE)) ->  | G182: =IF(B182="","",VLOOKUP(D182,Tablas!$B$2:$G$13,6,FALSE)) -> 
A183: =IF(ISBLANK(InfoPro!A150),"",InfoPro!A150) ->  | B183: =IF(ISBLANK(InfoPro!B150),"",InfoPro!B150) ->  | C183: =IF(ISBLANK(InfoPro!E150),"",InfoPro!E150) ->  | D183: =IF(ISBLANK(InfoPro!F150),"",InfoPro!F150) ->  | E183: =IF(ISBLANK(InfoPro!I150),"",YEAR(InfoPro!I150)-$G$3) ->  | F183: =IF(B183="","",VLOOKUP(D183,Tablas!$B$2:$E$13,2,FALSE)) ->  | G183: =IF(B183="","",VLOOKUP(D183,Tablas!$B$2:$G$13,6,FALSE)) -> 
A184: =IF(ISBLANK(InfoPro!A151),"",InfoPro!A151) ->  | B184: =IF(ISBLANK(InfoPro!B151),"",InfoPro!B151) ->  | C184: =IF(ISBLANK(InfoPro!E151),"",InfoPro!E151) ->  | D184: =IF(ISBLANK(InfoPro!F151),"",InfoPro!F151) ->  | E184: =IF(ISBLANK(InfoPro!I151),"",YEAR(InfoPro!I151)-$G$3) ->  | F184: =IF(B184="","",VLOOKUP(D184,Tablas!$B$2:$E$13,2,FALSE)) ->  | G184: =IF(B184="","",VLOOKUP(D184,Tablas!$B$2:$G$13,6,FALSE)) -> 
A185: =IF(ISBLANK(InfoPro!A152),"",InfoPro!A152) ->  | B185: =IF(ISBLANK(InfoPro!B152),"",InfoPro!B152) ->  | C185: =IF(ISBLANK(InfoPro!E152),"",InfoPro!E152) ->  | D185: =IF(ISBLANK(InfoPro!F152),"",InfoPro!F152) ->  | E185: =IF(ISBLANK(InfoPro!I152),"",YEAR(InfoPro!I152)-$G$3) ->  | F185: =IF(B185="","",VLOOKUP(D185,Tablas!$B$2:$E$13,2,FALSE)) ->  | G185: =IF(B185="","",VLOOKUP(D185,Tablas!$B$2:$G$13,6,FALSE)) -> 
A186: =IF(ISBLANK(InfoPro!A153),"",InfoPro!A153) ->  | B186: =IF(ISBLANK(InfoPro!B153),"",InfoPro!B153) ->  | C186: =IF(ISBLANK(InfoPro!E153),"",InfoPro!E153) ->  | D186: =IF(ISBLANK(InfoPro!F153),"",InfoPro!F153) ->  | E186: =IF(ISBLANK(InfoPro!I153),"",YEAR(InfoPro!I153)-$G$3) ->  | F186: =IF(B186="","",VLOOKUP(D186,Tablas!$B$2:$E$13,2,FALSE)) ->  | G186: =IF(B186="","",VLOOKUP(D186,Tablas!$B$2:$G$13,6,FALSE)) -> 
A187: =IF(ISBLANK(InfoPro!A154),"",InfoPro!A154) ->  | B187: =IF(ISBLANK(InfoPro!B154),"",InfoPro!B154) ->  | C187: =IF(ISBLANK(InfoPro!E154),"",InfoPro!E154) ->  | D187: =IF(ISBLANK(InfoPro!F154),"",InfoPro!F154) ->  | E187: =IF(ISBLANK(InfoPro!I154),"",YEAR(InfoPro!I154)-$G$3) ->  | F187: =IF(B187="","",VLOOKUP(D187,Tablas!$B$2:$E$13,2,FALSE)) ->  | G187: =IF(B187="","",VLOOKUP(D187,Tablas!$B$2:$G$13,6,FALSE)) -> 
A188: =IF(ISBLANK(InfoPro!A155),"",InfoPro!A155) ->  | B188: =IF(ISBLANK(InfoPro!B155),"",InfoPro!B155) ->  | C188: =IF(ISBLANK(InfoPro!E155),"",InfoPro!E155) ->  | D188: =IF(ISBLANK(InfoPro!F155),"",InfoPro!F155) ->  | E188: =IF(ISBLANK(InfoPro!I155),"",YEAR(InfoPro!I155)-$G$3) ->  | F188: =IF(B188="","",VLOOKUP(D188,Tablas!$B$2:$E$13,2,FALSE)) ->  | G188: =IF(B188="","",VLOOKUP(D188,Tablas!$B$2:$G$13,6,FALSE)) -> 
A189: =IF(ISBLANK(InfoPro!A156),"",InfoPro!A156) ->  | B189: =IF(ISBLANK(InfoPro!B156),"",InfoPro!B156) ->  | C189: =IF(ISBLANK(InfoPro!E156),"",InfoPro!E156) ->  | D189: =IF(ISBLANK(InfoPro!F156),"",InfoPro!F156) ->  | E189: =IF(ISBLANK(InfoPro!I156),"",YEAR(InfoPro!I156)-$G$3) ->  | F189: =IF(B189="","",VLOOKUP(D189,Tablas!$B$2:$E$13,2,FALSE)) ->  | G189: =IF(B189="","",VLOOKUP(D189,Tablas!$B$2:$G$13,6,FALSE)) -> 
A190: =IF(ISBLANK(InfoPro!A157),"",InfoPro!A157) ->  | B190: =IF(ISBLANK(InfoPro!B157),"",InfoPro!B157) ->  | C190: =IF(ISBLANK(InfoPro!E157),"",InfoPro!E157) ->  | D190: =IF(ISBLANK(InfoPro!F157),"",InfoPro!F157) ->  | E190: =IF(ISBLANK(InfoPro!I157),"",YEAR(InfoPro!I157)-$G$3) ->  | F190: =IF(B190="","",VLOOKUP(D190,Tablas!$B$2:$E$13,2,FALSE)) ->  | G190: =IF(B190="","",VLOOKUP(D190,Tablas!$B$2:$G$13,6,FALSE)) -> 
A191: =IF(ISBLANK(InfoPro!A158),"",InfoPro!A158) ->  | B191: =IF(ISBLANK(InfoPro!B158),"",InfoPro!B158) ->  | C191: =IF(ISBLANK(InfoPro!E158),"",InfoPro!E158) ->  | D191: =IF(ISBLANK(InfoPro!F158),"",InfoPro!F158) ->  | E191: =IF(ISBLANK(InfoPro!I158),"",YEAR(InfoPro!I158)-$G$3) ->  | F191: =IF(B191="","",VLOOKUP(D191,Tablas!$B$2:$E$13,2,FALSE)) ->  | G191: =IF(B191="","",VLOOKUP(D191,Tablas!$B$2:$G$13,6,FALSE)) -> 
A192: =IF(ISBLANK(InfoPro!A159),"",InfoPro!A159) ->  | B192: =IF(ISBLANK(InfoPro!B159),"",InfoPro!B159) ->  | C192: =IF(ISBLANK(InfoPro!E159),"",InfoPro!E159) ->  | D192: =IF(ISBLANK(InfoPro!F159),"",InfoPro!F159) ->  | E192: =IF(ISBLANK(InfoPro!I159),"",YEAR(InfoPro!I159)-$G$3) ->  | F192: =IF(B192="","",VLOOKUP(D192,Tablas!$B$2:$E$13,2,FALSE)) ->  | G192: =IF(B192="","",VLOOKUP(D192,Tablas!$B$2:$G$13,6,FALSE)) -> 
A193: =IF(ISBLANK(InfoPro!A160),"",InfoPro!A160) ->  | B193: =IF(ISBLANK(InfoPro!B160),"",InfoPro!B160) ->  | C193: =IF(ISBLANK(InfoPro!E160),"",InfoPro!E160) ->  | D193: =IF(ISBLANK(InfoPro!F160),"",InfoPro!F160) ->  | E193: =IF(ISBLANK(InfoPro!I160),"",YEAR(InfoPro!I160)-$G$3) ->  | F193: =IF(B193="","",VLOOKUP(D193,Tablas!$B$2:$E$13,2,FALSE)) ->  | G193: =IF(B193="","",VLOOKUP(D193,Tablas!$B$2:$G$13,6,FALSE)) ->  | J193: =IF($I193="","",(1/(1+$C$4)^(J$7+$E193))*$I193*$C$5) -> 
A194: =IF(ISBLANK(InfoPro!A161),"",InfoPro!A161) ->  | B194: =IF(ISBLANK(InfoPro!B161),"",InfoPro!B161) ->  | C194: =IF(ISBLANK(InfoPro!E161),"",InfoPro!E161) ->  | D194: =IF(ISBLANK(InfoPro!F161),"",InfoPro!F161) ->  | E194: =IF(ISBLANK(InfoPro!I161),"",YEAR(InfoPro!I161)-$G$3) ->  | F194: =IF(B194="","",VLOOKUP(D194,Tablas!$B$2:$E$13,2,FALSE)) ->  | G194: =IF(B194="","",VLOOKUP(D194,Tablas!$B$2:$G$13,6,FALSE)) -> 
A195: =IF(ISBLANK(InfoPro!A162),"",InfoPro!A162) ->  | B195: =IF(ISBLANK(InfoPro!B162),"",InfoPro!B162) ->  | C195: =IF(ISBLANK(InfoPro!E162),"",InfoPro!E162) ->  | D195: =IF(ISBLANK(InfoPro!F162),"",InfoPro!F162) ->  | E195: =IF(ISBLANK(InfoPro!I162),"",YEAR(InfoPro!I162)-$G$3) ->  | F195: =IF(B195="","",VLOOKUP(D195,Tablas!$B$2:$E$13,2,FALSE)) ->  | G195: =IF(B195="","",VLOOKUP(D195,Tablas!$B$2:$G$13,6,FALSE)) -> 
A196: =IF(ISBLANK(InfoPro!A163),"",InfoPro!A163) ->  | B196: =IF(ISBLANK(InfoPro!B163),"",InfoPro!B163) ->  | C196: =IF(ISBLANK(InfoPro!E163),"",InfoPro!E163) ->  | D196: =IF(ISBLANK(InfoPro!F163),"",InfoPro!F163) ->  | E196: =IF(ISBLANK(InfoPro!I163),"",YEAR(InfoPro!I163)-$G$3) ->  | F196: =IF(B196="","",VLOOKUP(D196,Tablas!$B$2:$E$13,2,FALSE)) ->  | G196: =IF(B196="","",VLOOKUP(D196,Tablas!$B$2:$G$13,6,FALSE)) -> 
A197: =IF(ISBLANK(InfoPro!A164),"",InfoPro!A164) ->  | B197: =IF(ISBLANK(InfoPro!B164),"",InfoPro!B164) ->  | C197: =IF(ISBLANK(InfoPro!E164),"",InfoPro!E164) ->  | D197: =IF(ISBLANK(InfoPro!F164),"",InfoPro!F164) ->  | E197: =IF(ISBLANK(InfoPro!I164),"",YEAR(InfoPro!I164)-$G$3) ->  | F197: =IF(B197="","",VLOOKUP(D197,Tablas!$B$2:$E$13,2,FALSE)) ->  | G197: =IF(B197="","",VLOOKUP(D197,Tablas!$B$2:$G$13,6,FALSE)) -> 
A198: =IF(ISBLANK(InfoPro!A165),"",InfoPro!A165) ->  | B198: =IF(ISBLANK(InfoPro!B165),"",InfoPro!B165) ->  | C198: =IF(ISBLANK(InfoPro!E165),"",InfoPro!E165) ->  | D198: =IF(ISBLANK(InfoPro!F165),"",InfoPro!F165) ->  | E198: =IF(ISBLANK(InfoPro!I165),"",YEAR(InfoPro!I165)-$G$3) ->  | F198: =IF(B198="","",VLOOKUP(D198,Tablas!$B$2:$E$13,2,FALSE)) ->  | G198: =IF(B198="","",VLOOKUP(D198,Tablas!$B$2:$G$13,6,FALSE)) -> 
A199: =IF(ISBLANK(InfoPro!A166),"",InfoPro!A166) ->  | B199: =IF(ISBLANK(InfoPro!B166),"",InfoPro!B166) ->  | C199: =IF(ISBLANK(InfoPro!E166),"",InfoPro!E166) ->  | D199: =IF(ISBLANK(InfoPro!F166),"",InfoPro!F166) ->  | E199: =IF(ISBLANK(InfoPro!I166),"",YEAR(InfoPro!I166)-$G$3) ->  | F199: =IF(B199="","",VLOOKUP(D199,Tablas!$B$2:$E$13,2,FALSE)) ->  | G199: =IF(B199="","",VLOOKUP(D199,Tablas!$B$2:$G$13,6,FALSE)) -> 
A200: =IF(ISBLANK(InfoPro!A167),"",InfoPro!A167) ->  | B200: =IF(ISBLANK(InfoPro!B167),"",InfoPro!B167) ->  | C200: =IF(ISBLANK(InfoPro!E167),"",InfoPro!E167) ->  | D200: =IF(ISBLANK(InfoPro!F167),"",InfoPro!F167) ->  | E200: =IF(ISBLANK(InfoPro!I167),"",YEAR(InfoPro!I167)-$G$3) ->  | F200: =IF(B200="","",VLOOKUP(D200,Tablas!$B$2:$E$13,2,FALSE)) ->  | G200: =IF(B200="","",VLOOKUP(D200,Tablas!$B$2:$G$13,6,FALSE)) -> 
A201: =IF(ISBLANK(InfoPro!A168),"",InfoPro!A168) ->  | B201: =IF(ISBLANK(InfoPro!B168),"",InfoPro!B168) ->  | C201: =IF(ISBLANK(InfoPro!E168),"",InfoPro!E168) ->  | D201: =IF(ISBLANK(InfoPro!F168),"",InfoPro!F168) ->  | E201: =IF(ISBLANK(InfoPro!I168),"",YEAR(InfoPro!I168)-$G$3) ->  | F201: =IF(B201="","",VLOOKUP(D201,Tablas!$B$2:$E$13,2,FALSE)) ->  | G201: =IF(B201="","",VLOOKUP(D201,Tablas!$B$2:$G$13,6,FALSE)) -> 
A202: =IF(ISBLANK(InfoPro!A169),"",InfoPro!A169) ->  | B202: =IF(ISBLANK(InfoPro!B169),"",InfoPro!B169) ->  | C202: =IF(ISBLANK(InfoPro!E169),"",InfoPro!E169) ->  | D202: =IF(ISBLANK(InfoPro!F169),"",InfoPro!F169) ->  | E202: =IF(ISBLANK(InfoPro!I169),"",YEAR(InfoPro!I169)-$G$3) ->  | F202: =IF(B202="","",VLOOKUP(D202,Tablas!$B$2:$E$13,2,FALSE)) ->  | G202: =IF(B202="","",VLOOKUP(D202,Tablas!$B$2:$G$13,6,FALSE)) -> 
A203: =IF(ISBLANK(InfoPro!A170),"",InfoPro!A170) ->  | B203: =IF(ISBLANK(InfoPro!B170),"",InfoPro!B170) ->  | C203: =IF(ISBLANK(InfoPro!E170),"",InfoPro!E170) ->  | D203: =IF(ISBLANK(InfoPro!F170),"",InfoPro!F170) ->  | E203: =IF(ISBLANK(InfoPro!I170),"",YEAR(InfoPro!I170)-$G$3) ->  | F203: =IF(B203="","",VLOOKUP(D203,Tablas!$B$2:$E$13,2,FALSE)) ->  | G203: =IF(B203="","",VLOOKUP(D203,Tablas!$B$2:$G$13,6,FALSE)) -> 
A204: =IF(ISBLANK(InfoPro!A171),"",InfoPro!A171) ->  | B204: =IF(ISBLANK(InfoPro!B171),"",InfoPro!B171) ->  | C204: =IF(ISBLANK(InfoPro!E171),"",InfoPro!E171) ->  | D204: =IF(ISBLANK(InfoPro!F171),"",InfoPro!F171) ->  | E204: =IF(ISBLANK(InfoPro!I171),"",YEAR(InfoPro!I171)-$G$3) ->  | F204: =IF(B204="","",VLOOKUP(D204,Tablas!$B$2:$E$13,2,FALSE)) ->  | G204: =IF(B204="","",VLOOKUP(D204,Tablas!$B$2:$G$13,6,FALSE)) -> 
A205: =IF(ISBLANK(InfoPro!A172),"",InfoPro!A172) ->  | B205: =IF(ISBLANK(InfoPro!B172),"",InfoPro!B172) ->  | C205: =IF(ISBLANK(InfoPro!E172),"",InfoPro!E172) ->  | D205: =IF(ISBLANK(InfoPro!F172),"",InfoPro!F172) ->  | E205: =IF(ISBLANK(InfoPro!I172),"",YEAR(InfoPro!I172)-$G$3) ->  | F205: =IF(B205="","",VLOOKUP(D205,Tablas!$B$2:$E$13,2,FALSE)) ->  | G205: =IF(B205="","",VLOOKUP(D205,Tablas!$B$2:$G$13,6,FALSE)) -> 
... 44 more rows

Sheet EC-RP
B2: Precio promedio de bolsa | C2: 192057 | D2: COP/MWh
B3: Tasa de descuento | C3: 0.118 | F3: Año de Referencia | H3: 2023
F4: Mínimo | H4: =MIN(Z8:Z399) -> 977781.7803
J6: 0 | K6: 1 | L6: 2 | M6: 3 | N6: 4 | O6: 5 | P6: 6 | Q6: 7 | R6: 8 | S6: 9 | T6: 10 | U6: 11 | V6: 12 | W6: 13 | X6: 14
A7: Codigo | B7: Nombre | C7: capacidad | D7: Tecnologia | E7: Año de entrada | F7: FP | G7: Precio de oferta | H7: Desviacion | I7: Produccion media/a MWh/a | J7: Flujo Descontado 0 | K7: Flujo Descontado 1 | L7: Flujo Descontado 2 | M7: Flujo Descontado 3 | N7: Flujo Descontado 4 | O7: Flujo Descontado 5 | P7: Flujo Descontado 6 | Q7: Flujo Descontado 7 | R7: Flujo Descontado 8 | S7: Flujo Descontado 9 | T7: Flujo Descontado 10 | U7: Flujo Descontado 11 | V7: Flujo Descontado 12 | W7: Flujo Descontado 13 | X7: Flujo Descontado 14 | Y7: VPN | Z7: Beneficio/kW
A8: =IF(ISBLANK(InfoPro!A2),"",InfoPro!A2) -> SC_150_A1 | B8: =IF(ISBLANK(InfoPro!B2),"",InfoPro!B2) -> La Estrella 80 MW | C8: =IF(ISBLANK(InfoPro!E2),"",InfoPro!E2) -> 80 | D8: =IF(ISBLANK(InfoPro!F2),"",InfoPro!F2) -> Solar FV | E8: =IF(ISBLANK(InfoPro!I2),"",YEAR(InfoPro!I2)-$H$3) -> 3 | F8: =IF(B8="","",VLOOKUP(D8,Tablas!$B$2:$E$13,2,FALSE)) -> 0.26 | G8: =IF(B8="","",VLOOKUP(D8,Tablas!$B$2:$H$13,7,FALSE)) -> 83577.2 | H8: =IF(B8="","",($C$2-(G8))/$C$2) -> 0.564831274 | I8: =IF(C8="","",+C8*F8*24*365) -> 182208 | J8: =IF($I8="","",(1/(1+$C$3)^(J$6+$E8))*$I8*$C$2*$H8) -> 1.414460768e+10 | K8: =IF($I8="","",(1/(1+$C$3)^(K$6+$E8))*$I8*$C$2*$H8) -> 1.265170634e+10 | L8: 1.131637418e+10 | M8: 1.012198048e+10 | N8: 9053649808 | O8: 8098076751 | P8: 7243360242 | Q8: 6478855315 | R8: 5795040532 | S8: 5183399403 | T8: 4636314314 | U8: 4146971658 | V8: 3709276975 | W8: 3317779048 | X8: =IF($I8="","",(1/(1+$C$3)^(X$6+$E8))*$I8*$C$2*$H8) -> 2967602010 | Y8: =IF(X8="","",SUM(J8:X8)) -> 1.088649947e+11 | Z8: =IF(C8=0,0,IF(Y8="","",Y8/(C8*1000))) -> 1360812.434
A9: =IF(ISBLANK(InfoPro!A3),"",InfoPro!A3) -> SC_201_A1 | B9: =IF(ISBLANK(InfoPro!B3),"",InfoPro!B3) -> PARQUE SOLAR PUERTA DE ORO - 300 MW | C9: =IF(ISBLANK(InfoPro!E3),"",InfoPro!E3) -> 300 | D9: =IF(ISBLANK(InfoPro!F3),"",InfoPro!F3) -> Solar FV | E9: =IF(ISBLANK(InfoPro!I3),"",YEAR(InfoPro!I3)-$H$3) -> 2 | F9: =IF(B9="","",VLOOKUP(D9,Tablas!$B$2:$E$13,2,FALSE)) -> 0.26 | G9: =IF(B9="","",VLOOKUP(D9,Tablas!$B$2:$H$13,7,FALSE)) -> 83577.2 | H9: =IF(B9="","",($C$2-(G9))/$C$2) -> 0.564831274 | I9: =IF(C9="","",+C9*F9*24*365) -> 683280 | J9: =IF($I9="","",(1/(1+$C$3)^(J$6+$E9))*$I9*$C$2*$H9) -> 5.930126771e+10 | K9: 5.304227881e+10 | L9: 4.744389876e+10 | M9: 4.243640318e+10 | N9: 3.795742682e+10 | O9: 3.395118678e+10 | P9: 3.036778782e+10 | Q9: 2.716260091e+10 | R9: 2.429570743e+10 | S9: 2.1731402e+10 | T9: 1.943774776e+10 | U9: 1.738617868e+10 | V9: 1.555114372e+10 | W9: 1.390978866e+10 | X9: 1.244167143e+10 | Y9: =IF(X9="","",SUM(J9:X9)) -> 4.564164905e+11 | Z9: =IF(C9=0,0,IF(Y9="","",Y9/(C9*1000))) -> 1521388.302
A10: =IF(ISBLANK(InfoPro!A4),"",InfoPro!A4) -> SC_489_A1 | B10: =IF(ISBLANK(InfoPro!B4),"",InfoPro!B4) -> PARQUE SOLAR VIRGINIA 300 MW | C10: =IF(ISBLANK(InfoPro!E4),"",InfoPro!E4) -> 300 | D10: =IF(ISBLANK(InfoPro!F4),"",InfoPro!F4) -> Solar FV | E10: =IF(ISBLANK(InfoPro!I4),"",YEAR(InfoPro!I4)-$H$3) -> 3 | F10: =IF(B10="","",VLOOKUP(D10,Tablas!$B$2:$E$13,2,FALSE)) -> 0.26 | G10: =IF(B10="","",VLOOKUP(D10,Tablas!$B$2:$H$13,7,FALSE)) -> 83577.2 | H10: 0.564831274 | I10: 683280 | J10: 5.304227881e+10 | K10: 4.744389876e+10 | L10: 4.243640318e+10 | M10: 3.795742682e+10 | N10: 3.395118678e+10 | O10: 3.036778782e+10 | P10: 2.716260091e+10 | Q10: 2.429570743e+10 | R10: 2.1731402e+10 | S10: 1.943774776e+10 | T10: 1.738617868e+10 | U10: 1.555114372e+10 | V10: 1.390978866e+10 | W10: 1.244167143e+10 | X10: 1.112850754e+10 | Y10: 4.082437303e+11 | Z10: 1360812.434
A11: =IF(ISBLANK(InfoPro!A5),"",InfoPro!A5) -> SC_564_A1 | B11: =IF(ISBLANK(InfoPro!B5),"",InfoPro!B5) -> Marte 100 MW | C11: =IF(ISBLANK(InfoPro!E5),"",InfoPro!E5) -> 100 | D11: =IF(ISBLANK(InfoPro!F5),"",InfoPro!F5) -> Solar FV | E11: =IF(ISBLANK(InfoPro!I5),"",YEAR(InfoPro!I5)-$H$3) -> 2 | F11: =IF(B11="","",VLOOKUP(D11,Tablas!$B$2:$E$13,2,FALSE)) -> 0.26 | G11: =IF(B11="","",VLOOKUP(D11,Tablas!$B$2:$H$13,7,FALSE)) -> 83577.2 | H11: 0.564831274 | I11: 227760 | J11: 1.976708924e+10 | K11: 1.76807596e+10 | L11: 1.581463292e+10 | M11: 1.414546773e+10 | N11: 1.265247561e+10 | O11: 1.131706226e+10 | P11: 1.012259594e+10 | Q11: 9054200303 | R11: 8098569144 | S11: 7243800666 | T11: 6479249254 | U11: 5795392892 | V11: 5183714573 | W11: 4636596219 | X11: 4147223809 | Y11: 1.521388302e+11 | Z11: 1521388.302
A12: =IF(ISBLANK(InfoPro!A6),"",InfoPro!A6) -> SC_752_A1 | B12: =IF(ISBLANK(InfoPro!B6),"",InfoPro!B6) -> El Triunfo 19,9MW | C12: =IF(ISBLANK(InfoPro!E6),"",InfoPro!E6) -> 19.9 | D12: =IF(ISBLANK(InfoPro!F6),"",InfoPro!F6) -> Solar FV | E12: =IF(ISBLANK(InfoPro!I6),"",YEAR(InfoPro!I6)-$H$3) -> 2 | F12: =IF(B12="","",VLOOKUP(D12,Tablas!$B$2:$E$13,2,FALSE)) -> 0.26 | G12: =IF(B12="","",VLOOKUP(D12,Tablas!$B$2:$H$13,7,FALSE)) -> 83577.2 | H12: 0.564831274 | I12: 45324.24 | J12: 3933650758 | K12: 3518471161 | L12: 3147111951 | M12: 2814948078 | N12: 2517842646 | O12: 2252095390 | P12: 2014396592 | Q12: 1801785860 | R12: 1611615260 | S12: 1441516332 | T12: 1289370601 | U12: 1153283186 | V12: 1031559200 | W12: 922682647.6 | X12: 825297538.1 | Y12: 3.02756272e+10 | Z12: 1521388.302
A13: =IF(ISBLANK(InfoPro!A7),"",InfoPro!A7) -> SC_729_A1 | B13: =IF(ISBLANK(InfoPro!B7),"",InfoPro!B7) -> PLANTA FV DOÑA JUANA_4.3MW | C13: =IF(ISBLANK(InfoPro!E7),"",InfoPro!E7) -> 4.3 | D13: =IF(ISBLANK(InfoPro!F7),"",InfoPro!F7) -> Solar FV | E13: =IF(ISBLANK(InfoPro!I7),"",YEAR(InfoPro!I7)-$H$3) -> 2 | F13: =IF(B13="","",VLOOKUP(D13,Tablas!$B$2:$E$13,2,FALSE)) -> 0.26 | G13: =IF(B13="","",VLOOKUP(D13,Tablas!$B$2:$H$13,7,FALSE)) -> 83577.2 | H13: 0.564831274 | I13: 9793.68 | J13: 849984837.2 | K13: 760272663 | L13: 680029215.5 | M13: 608255112.3 | N13: 544056451.1 | O13: 486633677.2 | P13: 435271625.4 | Q13: 389330613 | R13: 348238473.2 | S13: 311483428.6 | T13: 278607717.9 | U13: 249201894.4 | V13: 222899726.6 | W13: 199373637.4 | X13: 178330623.8 | Y13: 6541969697 | Z13: 1521388.302
A14: =IF(ISBLANK(InfoPro!A8),"",InfoPro!A8) -> SC_729_A2 | B14: =IF(ISBLANK(InfoPro!B8),"",InfoPro!B8) -> PLANTA FV DOÑA JUANA_4.3MW | C14: =IF(ISBLANK(InfoPro!E8),"",InfoPro!E8) -> 4.3 | D14: =IF(ISBLANK(InfoPro!F8),"",InfoPro!F8) -> Solar FV | E14: =IF(ISBLANK(InfoPro!I8),"",YEAR(InfoPro!I8)-$H$3) -> 2 | F14: =IF(B14="","",VLOOKUP(D14,Tablas!$B$2:$E$13,2,FALSE)) -> 0.26 | G14: =IF(B14="","",VLOOKUP(D14,Tablas!$B$2:$H$13,7,FALSE)) -> 83577.2 | H14: 0.564831274 | I14: 9793.68 | J14: 849984837.2 | K14: 760272663 | L14: 680029215.5 | M14: 608255112.3 | N14: 544056451.1 | O14: 486633677.2 | P14: 435271625.4 | Q14: 389330613 | R14: 348238473.2 | S14: 311483428.6 | T14: 278607717.9 | U14: 249201894.4 | V14: 222899726.6 | W14: 199373637.4 | X14: 178330623.8 | Y14: 6541969697 | Z14: 1521388.302
A15: =IF(ISBLANK(InfoPro!A9),"",InfoPro!A9) -> SC_819_A1 | B15: =IF(ISBLANK(InfoPro!B9),"",InfoPro!B9) -> PLANTA FV SAN FRANCISCO 4.9 MW | C15: =IF(ISBLANK(InfoPro!E9),"",InfoPro!E9) -> 4.9 | D15: =IF(ISBLANK(InfoPro!F9),"",InfoPro!F9) -> Solar FV | E15: =IF(ISBLANK(InfoPro!I9),"",YEAR(InfoPro!I9)-$H$3) -> 1 | F15: =IF(B15="","",VLOOKUP(D15,Tablas!$B$2:$E$13,2,FALSE)) -> 0.26 | G15: =IF(B15="","",VLOOKUP(D15,Tablas!$B$2:$H$13,7,FALSE)) -> 83577.2 | H15: 0.564831274 | I15: 11160.24 | J15: 1082880683 | K15: 968587372.6 | L15: 866357220.6 | M15: 774917013.1 | N15: 693127918.7 | O15: 619971304.7 | P15: 554536050.7 | Q15: 496007201 | R15: 443655814.8 | S15: 396829888.1 | T15: 354946232.6 | U15: 317483213.4 | V15: 283974251.7 | W15: 254002014.1 | X15: 227193214.7 | Y15: 8334469393 | Z15: 1700912.121
A16: =IF(ISBLANK(InfoPro!A10),"",InfoPro!A10) -> SC_819_A2 | B16: =IF(ISBLANK(InfoPro!B10),"",InfoPro!B10) -> PLANTA FV SAN FRANCISCO 4.9 MW | C16: =IF(ISBLANK(InfoPro!E10),"",InfoPro!E10) -> 4.9 | D16: =IF(ISBLANK(InfoPro!F10),"",InfoPro!F10) -> Solar FV | E16: =IF(ISBLANK(InfoPro!I10),"",YEAR(InfoPro!I10)-$H$3) -> 1 | F16: =IF(B16="","",VLOOKUP(D16,Tablas!$B$2:$E$13,2,FALSE)) -> 0.26 | G16: =IF(B16="","",VLOOKUP(D16,Tablas!$B$2:$H$13,7,FALSE)) -> 83577.2 | H16: 0.564831274 | I16: 11160.24 | J16: 1082880683 | K16: 968587372.6 | L16: 866357220.6 | M16: 774917013.1 | N16: 693127918.7 | O16: 619971304.7 | P16: 554536050.7 | Q16: 496007201 | R16: 443655814.8 | S16: 396829888.1 | T16: 354946232.6 | U16: 317483213.4 | V16: 283974251.7 | W16: 254002014.1 | X16: 227193214.7 | Y16: 8334469393 | Z16: 1700912.121
A17: =IF(ISBLANK(InfoPro!A11),"",InfoPro!A11) -> SC_804_A1 | B17: =IF(ISBLANK(InfoPro!B11),"",InfoPro!B11) -> PLANTA FV MONTECRISTO 90 MW | C17: =IF(ISBLANK(InfoPro!E11),"",InfoPro!E11) -> 90 | D17: =IF(ISBLANK(InfoPro!F11),"",InfoPro!F11) -> Solar FV | E17: =IF(ISBLANK(InfoPro!I11),"",YEAR(InfoPro!I11)-$H$3) -> 3 | F17: =IF(B17="","",VLOOKUP(D17,Tablas!$B$2:$E$13,2,FALSE)) -> 0.26 | G17: =IF(B17="","",VLOOKUP(D17,Tablas!$B$2:$H$13,7,FALSE)) -> 83577.2 | H17: 0.564831274 | I17: 204984 | J17: 1.591268364e+10 | K17: 1.423316963e+10 | L17: 1.273092095e+10 | M17: 1.138722805e+10 | N17: 1.018535603e+10 | O17: 9110336345 | P17: 8148780273 | Q17: 7288712230 | R17: 6519420599 | S17: 5831324328 | T17: 5215853603 | U17: 4665343115 | V17: 4172936597 | W17: 3732501428 | X17: 3338552262 | Y17: 1.224731191e+11 | Z17: 1360812.434
A18: =IF(ISBLANK(InfoPro!A12),"",InfoPro!A12) -> SC_804_A2 | B18: =IF(ISBLANK(InfoPro!B12),"",InfoPro!B12) -> PLANTA FV MONTECRISTO 90 MW | C18: =IF(ISBLANK(InfoPro!E12),"",InfoPro!E12) -> 90 | D18: =IF(ISBLANK(InfoPro!F12),"",InfoPro!F12) -> Solar FV | E18: =IF(ISBLANK(InfoPro!I12),"",YEAR(InfoPro!I12)-$H$3) -> 3 | F18: =IF(B18="","",VLOOKUP(D18,Tablas!$B$2:$E$13,2,FALSE)) -> 0.26 | G18: =IF(B18="","",VLOOKUP(D18,Tablas!$B$2:$H$13,7,FALSE)) -> 83577.2 | H18: 0.564831274 | I18: 204984 | J18: 1.591268364e+10 | K18: 1.423316963e+10 | L18: 1.273092095e+10 | M18: 1.138722805e+10 | N18: 1.018535603e+10 | O18: 9110336345 | P18: 8148780273 | Q18: 7288712230 | R18: 6519420599 | S18: 5831324328 | T18: 5215853603 | U18: 4665343115 | V18: 4172936597 | W18: 3732501428 | X18: 3338552262 | Y18: 1.224731191e+11 | Z18: 1360812.434
A19: =IF(ISBLANK(InfoPro!A13),"",InfoPro!A13) -> SC_1125_A1 | B19: =IF(ISBLANK(InfoPro!B13),"",InfoPro!B13) -> San Felipe Solar 80 MW | C19: =IF(ISBLANK(InfoPro!E13),"",InfoPro!E13) -> 80 | D19: =IF(ISBLANK(InfoPro!F13),"",InfoPro!F13) -> Solar FV | E19: =IF(ISBLANK(InfoPro!I13),"",YEAR(InfoPro!I13)-$H$3) -> 3 | F19: =IF(B19="","",VLOOKUP(D19,Tablas!$B$2:$E$13,2,FALSE)) -> 0.26 | G19: =IF(B19="","",VLOOKUP(D19,Tablas!$B$2:$H$13,7,FALSE)) -> 83577.2 | H19: 0.564831274 | I19: 182208 | J19: 1.414460768e+10 | K19: 1.265170634e+10 | L19: 1.131637418e+10 | M19: 1.012198048e+10 | N19: 9053649808 | O19: 8098076751 | P19: 7243360242 | Q19: 6478855315 | R19: 5795040532 | S19: 5183399403 | T19: 4636314314 | U19: 4146971658 | V19: 3709276975 | W19: 3317779048 | X19: 2967602010 | Y19: 1.088649947e+11 | Z19: 1360812.434
A20: =IF(ISBLANK(InfoPro!A14),"",InfoPro!A14) -> SC_1013_A1 | B20: =IF(ISBLANK(InfoPro!B14),"",InfoPro!B14) -> Amanecer | C20: =IF(ISBLANK(InfoPro!E14),"",InfoPro!E14) -> 150 | D20: =IF(ISBLANK(InfoPro!F14),"",InfoPro!F14) -> Solar FV | E20: =IF(ISBLANK(InfoPro!I14),"",YEAR(InfoPro!I14)-$H$3) -> 2 | F20: =IF(B20="","",VLOOKUP(D20,Tablas!$B$2:$E$13,2,FALSE)) -> 0.26 | G20: =IF(B20="","",VLOOKUP(D20,Tablas!$B$2:$H$13,7,FALSE)) -> 83577.2 | H20: 0.564831274 | I20: 341640 | J20: 2.965063386e+10 | K20: 2.652113941e+10 | L20: 2.372194938e+10 | M20: 2.121820159e+10 | N20: 1.897871341e+10 | O20: 1.697559339e+10 | P20: 1.518389391e+10 | Q20: 1.358130045e+10 | R20: 1.214785372e+10 | S20: 1.0865701e+10 | T20: 9718873880 | U20: 8693089338 | V20: 7775571859 | W20: 6954894328 | X20: 6220835714 | Y20: 2.282082452e+11 | Z20: 1521388.302
A21: =IF(ISBLANK(InfoPro!A15),"",InfoPro!A15) -> SC_2299_A1 | B21: =IF(ISBLANK(InfoPro!B15),"",InfoPro!B15) -> Caribe | C21: =IF(ISBLANK(InfoPro!E15),"",InfoPro!E15) -> 55 | D21: =IF(ISBLANK(InfoPro!F15),"",InfoPro!F15) -> Solar FV | E21: =IF(ISBLANK(InfoPro!I15),"",YEAR(InfoPro!I15)-$H$3) -> 2 | F21: =IF(B21="","",VLOOKUP(D21,Tablas!$B$2:$E$13,2,FALSE)) -> 0.26 | G21: =IF(B21="","",VLOOKUP(D21,Tablas!$B$2:$H$13,7,FALSE)) -> 83577.2 | H21: 0.564831274 | I21: 125268 | J21: 1.087189908e+10 | K21: 9724417782 | L21: 8698048106 | M21: 7780007250 | N21: 6958861583 | O21: 6224384243 | P21: 5567427766 | Q21: 4979810167 | R21: 4454213029 | S21: 3984090366 | T21: 3563587089 | U21: 3187466091 | V21: 2851043015 | W21: 2550127920 | X21: 2280973095 | Y21: 8.367635658e+10 | Z21: 1521388.302
A22: =IF(ISBLANK(InfoPro!A16),"",InfoPro!A16) -> SC_2299_A2 | B22: =IF(ISBLANK(InfoPro!B16),"",InfoPro!B16) -> Caribe | C22: =IF(ISBLANK(InfoPro!E16),"",InfoPro!E16) -> 55 | D22: =IF(ISBLANK(InfoPro!F16),"",InfoPro!F16) -> Solar FV | E22: =IF(ISBLANK(InfoPro!I16),"",YEAR(InfoPro!I16)-$H$3) -> 2 | F22: =IF(B22="","",VLOOKUP(D22,Tablas!$B$2:$E$13,2,FALSE)) -> 0.26 | G22: =IF(B22="","",VLOOKUP(D22,Tablas!$B$2:$H$13,7,FALSE)) -> 83577.2 | H22: 0.564831274 | I22: 125268 | J22: 1.087189908e+10 | K22: 9724417782 | L22: 8698048106 | M22: 7780007250 | N22: 6958861583 | O22: 6224384243 | P22: 5567427766 | Q22: 4979810167 | R22: 4454213029 | S22: 3984090366 | T22: 3563587089 | U22: 3187466091 | V22: 2851043015 | W22: 2550127920 | X22: 2280973095 | Y22: 8.367635658e+10 | Z22: 1521388.302
A23: =IF(ISBLANK(InfoPro!A17),"",InfoPro!A17) -> SC_1138_A1 | B23: =IF(ISBLANK(InfoPro!B17),"",InfoPro!B17) -> Parque Solar La Virginia | C23: =IF(ISBLANK(InfoPro!E17),"",InfoPro!E17) -> 80 | D23: =IF(ISBLANK(InfoPro!F17),"",InfoPro!F17) -> Solar FV | E23: =IF(ISBLANK(InfoPro!I17),"",YEAR(InfoPro!I17)-$H$3) -> 2 | F23: =IF(B23="","",VLOOKUP(D23,Tablas!$B$2:$E$13,2,FALSE)) -> 0.26 | G23: =IF(B23="","",VLOOKUP(D23,Tablas!$B$2:$H$13,7,FALSE)) -> 83577.2 | H23: 0.564831274 | I23: 182208 | J23: 1.581367139e+10 | K23: 1.414460768e+10 | L23: 1.265170634e+10 | M23: 1.131637418e+10 | N23: 1.012198048e+10 | O23: 9053649808 | P23: 8098076751 | Q23: 7243360242 | R23: 6478855315 | S23: 5795040532 | T23: 5183399403 | U23: 4636314314 | V23: 4146971658 | W23: 3709276975 | X23: 3317779048 | Y23: 1.217110641e+11 | Z23: 1521388.302
A24: =IF(ISBLANK(InfoPro!A18),"",InfoPro!A18) -> SC_904_A2 | B24: =IF(ISBLANK(InfoPro!B18),"",InfoPro!B18) -> Los Monos | C24: =IF(ISBLANK(InfoPro!E18),"",InfoPro!E18) -> 9.9 | D24: =IF(ISBLANK(InfoPro!F18),"",InfoPro!F18) -> Solar FV | E24: =IF(ISBLANK(InfoPro!I18),"",YEAR(InfoPro!I18)-$H$3) -> 2 | F24: =IF(B24="","",VLOOKUP(D24,Tablas!$B$2:$E$13,2,FALSE)) -> 0.26 | G24: =IF(B24="","",VLOOKUP(D24,Tablas!$B$2:$H$13,7,FALSE)) -> 83577.2 | H24: 0.564831274 | I24: 22548.24 | J24: 1956941835 | K24: 1750395201 | L24: 1565648659 | M24: 1400401305 | N24: 1252595085 | O24: 1120389164 | P24: 1002136998 | Q24: 896365830 | R24: 801758345.3 | S24: 717136265.9 | T24: 641445676.1 | U24: 573743896.3 | V24: 513187742.7 | W24: 459023025.7 | X24: 410575157.1 | Y24: 1.506174419e+10 | Z24: 1521388.302
A25: =IF(ISBLANK(InfoPro!A19),"",InfoPro!A19) -> SC_521_A1 | B25: =IF(ISBLANK(InfoPro!B19),"",InfoPro!B19) -> TR SOLAR 1 | C25: =IF(ISBLANK(InfoPro!E19),"",InfoPro!E19) -> 130 | D25: =IF(ISBLANK(InfoPro!F19),"",InfoPro!F19) -> Solar FV | E25: =IF(ISBLANK(InfoPro!I19),"",YEAR(InfoPro!I19)-$H$3) -> 3 | F25: =IF(B25="","",VLOOKUP(D25,Tablas!$B$2:$E$13,2,FALSE)) -> 0.26 | G25: =IF(B25="","",VLOOKUP(D25,Tablas!$B$2:$H$13,7,FALSE)) -> 83577.2 | H25: 0.564831274 | I25: 296088 | J25: 2.298498749e+10 | K25: 2.05590228e+10 | L25: 1.838910805e+10 | M25: 1.644821829e+10 | N25: 1.471218094e+10 | O25: 1.315937472e+10 | P25: 1.177046039e+10 | Q25: 1.052813989e+10 | R25: 9416940865 | S25: 8423024030 | T25: 7534010760 | U25: 6738828945 | V25: 6027575085 | W25: 5391390952 | X25: 4822353267 | Y25: 1.769056165e+11 | Z25: 1360812.434
A26: =IF(ISBLANK(InfoPro!A20),"",InfoPro!A20) -> SC_521_A2 | B26: =IF(ISBLANK(InfoPro!B20),"",InfoPro!B20) -> TR SOLAR 1 | C26: =IF(ISBLANK(InfoPro!E20),"",InfoPro!E20) -> 130 | D26: =IF(ISBLANK(InfoPro!F20),"",InfoPro!F20) -> Solar FV | E26: =IF(ISBLANK(InfoPro!I20),"",YEAR(InfoPro!I20)-$H$3) -> 3 | F26: =IF(B26="","",VLOOKUP(D26,Tablas!$B$2:$E$13,2,FALSE)) -> 0.26 | G26: =IF(B26="","",VLOOKUP(D26,Tablas!$B$2:$H$13,7,FALSE)) -> 83577.2 | H26: 0.564831274 | I26: 296088 | J26: =IF($I26="","",(1/(1+$C$3)^(J$6+$E26))*$I26*$C$2*$H26) -> 2.298498749e+10 | K26: 2.05590228e+10 | L26: 1.838910805e+10 | M26: 1.644821829e+10 | N26: 1.471218094e+10 | O26: 1.315937472e+10 | P26: 1.177046039e+10 | Q26: 1.052813989e+10 | R26: 9416940865 | S26: 8423024030 | T26: 7534010760 | U26: 6738828945 | V26: 6027575085 | W26: 5391390952 | X26: 4822353267 | Y26: 1.769056165e+11 | Z26: 1360812.434
A27: =IF(ISBLANK(InfoPro!A21),"",InfoPro!A21) -> SC_621_A1 | B27: =IF(ISBLANK(InfoPro!B21),"",InfoPro!B21) -> TR Solar 2 | C27: =IF(ISBLANK(InfoPro!E21),"",InfoPro!E21) -> 150 | D27: =IF(ISBLANK(InfoPro!F21),"",InfoPro!F21) -> Solar FV | E27: =IF(ISBLANK(InfoPro!I21),"",YEAR(InfoPro!I21)-$H$3) -> 3 | F27: =IF(B27="","",VLOOKUP(D27,Tablas!$B$2:$E$13,2,FALSE)) -> 0.26 | G27: =IF(B27="","",VLOOKUP(D27,Tablas!$B$2:$H$13,7,FALSE)) -> 83577.2 | H27: 0.564831274 | I27: 341640 | J27: 2.652113941e+10 | K27: 2.372194938e+10 | L27: 2.121820159e+10 | M27: 1.897871341e+10 | N27: 1.697559339e+10 | O27: 1.518389391e+10 | P27: 1.358130045e+10 | Q27: 1.214785372e+10 | R27: 1.0865701e+10 | S27: 9718873880 | T27: 8693089338 | U27: 7775571859 | V27: 6954894328 | W27: 6220835714 | X27: 5564253769 | Y27: 2.041218651e+11 | Z27: 1360812.434
A28: =IF(ISBLANK(InfoPro!A22),"",InfoPro!A22) -> SC_621_A2 | B28: =IF(ISBLANK(InfoPro!B22),"",InfoPro!B22) -> TR Solar 2 | C28: =IF(ISBLANK(InfoPro!E22),"",InfoPro!E22) -> 150 | D28: =IF(ISBLANK(InfoPro!F22),"",InfoPro!F22) -> Solar FV | E28: =IF(ISBLANK(InfoPro!I22),"",YEAR(InfoPro!I22)-$H$3) -> 3 | F28: =IF(B28="","",VLOOKUP(D28,Tablas!$B$2:$E$13,2,FALSE)) -> 0.26 | G28: =IF(B28="","",VLOOKUP(D28,Tablas!$B$2:$H$13,7,FALSE)) -> 83577.2 | H28: 0.564831274 | I28: 341640 | J28: 2.652113941e+10 | K28: 2.372194938e+10 | L28: 2.121820159e+10 | M28: 1.897871341e+10 | N28: 1.697559339e+10 | O28: 1.518389391e+10 | P28: 1.358130045e+10 | Q28: 1.214785372e+10 | R28: 1.0865701e+10 | S28: 9718873880 | T28: 8693089338 | U28: 7775571859 | V28: 6954894328 | W28: 6220835714 | X28: 5564253769 | Y28: 2.041218651e+11 | Z28: 1360812.434
A29: =IF(ISBLANK(InfoPro!A23),"",InfoPro!A23) -> SC_1298_A1 | B29: =IF(ISBLANK(InfoPro!B23),"",InfoPro!B23) -> Tucacas Solar | C29: =IF(ISBLANK(InfoPro!E23),"",InfoPro!E23) -> 150 | D29: =IF(ISBLANK(InfoPro!F23),"",InfoPro!F23) -> Solar FV | E29: =IF(ISBLANK(InfoPro!I23),"",YEAR(InfoPro!I23)-$H$3) -> 2 | F29: =IF(B29="","",VLOOKUP(D29,Tablas!$B$2:$E$13,2,FALSE)) -> 0.26 | G29: =IF(B29="","",VLOOKUP(D29,Tablas!$B$2:$H$13,7,FALSE)) -> 83577.2 | H29: 0.564831274 | I29: 341640 | J29: 2.965063386e+10 | K29: 2.652113941e+10 | L29: 2.372194938e+10 | M29: 2.121820159e+10 | N29: 1.897871341e+10 | O29: 1.697559339e+10 | P29: 1.518389391e+10 | Q29: 1.358130045e+10 | R29: 1.214785372e+10 | S29: 1.0865701e+10 | T29: 9718873880 | U29: 8693089338 | V29: 7775571859 | W29: 6954894328 | X29: 6220835714 | Y29: 2.282082452e+11 | Z29: 1521388.302
A30: =IF(ISBLANK(InfoPro!A24),"",InfoPro!A24) -> SC_1362_A1 | B30: =IF(ISBLANK(InfoPro!B24),"",InfoPro!B24) -> AES Solar 3_100MW | C30: =IF(ISBLANK(InfoPro!E24),"",InfoPro!E24) -> 100 | D30: =IF(ISBLANK(InfoPro!F24),"",InfoPro!F24) -> Solar FV | E30: =IF(ISBLANK(InfoPro!I24),"",YEAR(InfoPro!I24)-$H$3) -> 2 | F30: =IF(B30="","",VLOOKUP(D30,Tablas!$B$2:$E$13,2,FALSE)) -> 0.26 | G30: =IF(B30="","",VLOOKUP(D30,Tablas!$B$2:$H$13,7,FALSE)) -> 83577.2 | H30: 0.564831274 | I30: 227760 | J30: 1.976708924e+10 | K30: 1.76807596e+10 | L30: 1.581463292e+10 | M30: 1.414546773e+10 | N30: 1.265247561e+10 | O30: 1.131706226e+10 | P30: 1.012259594e+10 | Q30: 9054200303 | R30: 8098569144 | S30: 7243800666 | T30: 6479249254 | U30: 5795392892 | V30: 5183714573 | W30: 4636596219 | X30: 4147223809 | Y30: 1.521388302e+11 | Z30: 1521388.302
A31: =IF(ISBLANK(InfoPro!A25),"",InfoPro!A25) -> SC_1362_A2 | B31: =IF(ISBLANK(InfoPro!B25),"",InfoPro!B25) -> AES Solar 3_100MW | C31: =IF(ISBLANK(InfoPro!E25),"",InfoPro!E25) -> 100 | D31: =IF(ISBLANK(InfoPro!F25),"",InfoPro!F25) -> Solar FV | E31: =IF(ISBLANK(InfoPro!I25),"",YEAR(InfoPro!I25)-$H$3) -> 2 | F31: =IF(B31="","",VLOOKUP(D31,Tablas!$B$2:$E$13,2,FALSE)) -> 0.26 | G31: =IF(B31="","",VLOOKUP(D31,Tablas!$B$2:$H$13,7,FALSE)) -> 83577.2 | H31: 0.564831274 | I31: 227760 | J31: 1.976708924e+10 | K31: 1.76807596e+10 | L31: 1.581463292e+10 | M31: 1.414546773e+10 | N31: 1.265247561e+10 | O31: 1.131706226e+10 | P31: 1.012259594e+10 | Q31: 9054200303 | R31: 8098569144 | S31: 7243800666 | T31: 6479249254 | U31: 5795392892 | V31: 5183714573 | W31: 4636596219 | X31: 4147223809 | Y31: 1.521388302e+11 | Z31: 1521388.302
A32: =IF(ISBLANK(InfoPro!A26),"",InfoPro!A26) -> SC_845_A1 | B32: =IF(ISBLANK(InfoPro!B26),"",InfoPro!B26) -> Pijaos | C32: =IF(ISBLANK(InfoPro!E26),"",InfoPro!E26) -> 19.9 | D32: =IF(ISBLANK(InfoPro!F26),"",InfoPro!F26) -> Solar FV | E32: =IF(ISBLANK(InfoPro!I26),"",YEAR(InfoPro!I26)-$H$3) -> 3 | F32: =IF(B32="","",VLOOKUP(D32,Tablas!$B$2:$E$13,2,FALSE)) -> 0.26 | G32: =IF(B32="","",VLOOKUP(D32,Tablas!$B$2:$H$13,7,FALSE)) -> 83577.2 | H32: 0.564831274 | I32: 45324.24 | J32: 3518471161 | K32: 3147111951 | L32: 2814948078 | M32: 2517842646 | N32: 2252095390 | O32: 2014396592 | P32: 1801785860 | Q32: 1611615260 | R32: 1441516332 | S32: 1289370601 | T32: 1153283186 | U32: 1031559200 | V32: 922682647.6 | W32: 825297538.1 | X32: 738191000.1 | Y32: 2.708016744e+10 | Z32: 1360812.434
A33: =IF(ISBLANK(InfoPro!A27),"",InfoPro!A27) -> SC_845_A2 | B33: =IF(ISBLANK(InfoPro!B27),"",InfoPro!B27) -> Pijaos | C33: =IF(ISBLANK(InfoPro!E27),"",InfoPro!E27) -> 19.9 | D33: =IF(ISBLANK(InfoPro!F27),"",InfoPro!F27) -> Solar FV | E33: =IF(ISBLANK(InfoPro!I27),"",YEAR(InfoPro!I27)-$H$3) -> 3 | F33: =IF(B33="","",VLOOKUP(D33,Tablas!$B$2:$E$13,2,FALSE)) -> 0.26 | G33: =IF(B33="","",VLOOKUP(D33,Tablas!$B$2:$H$13,7,FALSE)) -> 83577.2 | H33: 0.564831274 | I33: 45324.24 | J33: 3518471161 | K33: 3147111951 | L33: 2814948078 | M33: 2517842646 | N33: 2252095390 | O33: 2014396592 | P33: 1801785860 | Q33: 1611615260 | R33: 1441516332 | S33: 1289370601 | T33: 1153283186 | U33: 1031559200 | V33: 922682647.6 | W33: 825297538.1 | X33: 738191000.1 | Y33: 2.708016744e+10 | Z33: 1360812.434
A34: =IF(ISBLANK(InfoPro!A28),"",InfoPro!A28) -> SC_1413_A2 | B34: =IF(ISBLANK(InfoPro!B28),"",InfoPro!B28) -> CSF CONTINUA LA VIRGINIA 120MW | C34: =IF(ISBLANK(InfoPro!E28),"",InfoPro!E28) -> 120 | D34: =IF(ISBLANK(InfoPro!F28),"",InfoPro!F28) -> Solar FV | E34: =IF(ISBLANK(InfoPro!I28),"",YEAR(InfoPro!I28)-$H$3) -> 3 | F34: =IF(B34="","",VLOOKUP(D34,Tablas!$B$2:$E$13,2,FALSE)) -> 0.26 | G34: =IF(B34="","",VLOOKUP(D34,Tablas!$B$2:$H$13,7,FALSE)) -> 83577.2 | H34: 0.564831274 | I34: 273312 | J34: 2.121691152e+10 | K34: 1.89775595e+10 | L34: 1.697456127e+10 | M34: 1.518297073e+10 | N34: 1.358047471e+10 | O34: 1.214711513e+10 | P34: 1.086504036e+10 | Q34: 9718282973 | R34: 8692560799 | S34: 7775099104 | T34: 6954471471 | U34: 6220457487 | V34: 5563915463 | W34: 4976668571 | X34: 4451403015 | Y34: 1.632974921e+11 | Z34: 1360812.434
A35: =IF(ISBLANK(InfoPro!A29),"",InfoPro!A29) -> SC_976_A2 | B35: =IF(ISBLANK(InfoPro!B29),"",InfoPro!B29) -> Abirá | C35: =IF(ISBLANK(InfoPro!E29),"",InfoPro!E29) -> 9.9 | D35: =IF(ISBLANK(InfoPro!F29),"",InfoPro!F29) -> Solar FV | E35: =IF(ISBLANK(InfoPro!I29),"",YEAR(InfoPro!I29)-$H$3) -> 3 | F35: =IF(B35="","",VLOOKUP(D35,Tablas!$B$2:$E$13,2,FALSE)) -> 0.26 | G35: =IF(B35="","",VLOOKUP(D35,Tablas!$B$2:$H$13,7,FALSE)) -> 83577.2 | H35: 0.564831274 | I35: 22548.24 | J35: 1750395201 | K35: 1565648659 | L35: 1400401305 | M35: 1252595085 | N35: 1120389164 | O35: 1002136998 | P35: 896365830 | Q35: 801758345.3 | R35: 717136265.9 | S35: 641445676.1 | T35: 573743896.3 | U35: 513187742.7 | V35: 459023025.7 | W35: 410575157.1 | X35: 367240748.8 | Y35: 1.34720431e+10 | Z35: 1360812.434
A36: =IF(ISBLANK(InfoPro!A30),"",InfoPro!A30) -> SC_1061_A1 | B36: =IF(ISBLANK(InfoPro!B30),"",InfoPro!B30) -> Siatá 19.9 | C36: =IF(ISBLANK(InfoPro!E30),"",InfoPro!E30) -> 19.9 | D36: =IF(ISBLANK(InfoPro!F30),"",InfoPro!F30) -> Solar FV | E36: =IF(ISBLANK(InfoPro!I30),"",YEAR(InfoPro!I30)-$H$3) -> 3 | F36: =IF(B36="","",VLOOKUP(D36,Tablas!$B$2:$E$13,2,FALSE)) -> 0.26 | G36: =IF(B36="","",VLOOKUP(D36,Tablas!$B$2:$H$13,7,FALSE)) -> 83577.2 | H36: 0.564831274 | I36: 45324.24 | J36: 3518471161 | K36: 3147111951 | L36: 2814948078 | M36: 2517842646 | N36: 2252095390 | O36: 2014396592 | P36: 1801785860 | Q36: 1611615260 | R36: 1441516332 | S36: 1289370601 | T36: 1153283186 | U36: 1031559200 | V36: 922682647.6 | W36: 825297538.1 | X36: 738191000.1 | Y36: 2.708016744e+10 | Z36: 1360812.434
A37: =IF(ISBLANK(InfoPro!A31),"",InfoPro!A31) -> SC_1061_A2 | B37: =IF(ISBLANK(InfoPro!B31),"",InfoPro!B31) -> Siatá 19.9 | C37: =IF(ISBLANK(InfoPro!E31),"",InfoPro!E31) -> 19.9 | D37: =IF(ISBLANK(InfoPro!F31),"",InfoPro!F31) -> Solar FV | E37: =IF(ISBLANK(InfoPro!I31),"",YEAR(InfoPro!I31)-$H$3) -> 3 | F37: =IF(B37="","",VLOOKUP(D37,Tablas!$B$2:$E$13,2,FALSE)) -> 0.26 | G37: =IF(B37="","",VLOOKUP(D37,Tablas!$B$2:$H$13,7,FALSE)) -> 83577.2 | H37: 0.564831274 | I37: 45324.24 | J37: 3518471161 | K37: 3147111951 | L37: 2814948078 | M37: 2517842646 | N37: 2252095390 | O37: 2014396592 | P37: 1801785860 | Q37: 1611615260 | R37: 1441516332 | S37: 1289370601 | T37: 1153283186 | U37: 1031559200 | V37: 922682647.6 | W37: 825297538.1 | X37: 738191000.1 | Y37: 2.708016744e+10 | Z37: 1360812.434
A38: =IF(ISBLANK(InfoPro!A32),"",InfoPro!A32) -> SC_848_A1 | B38: =IF(ISBLANK(InfoPro!B32),"",InfoPro!B32) -> PCH QUINCHIA | C38: =IF(ISBLANK(InfoPro!E32),"",InfoPro!E32) -> 2.4 | D38: =IF(ISBLANK(InfoPro!F32),"",InfoPro!F32) -> Hidraulica | E38: =IF(ISBLANK(InfoPro!I32),"",YEAR(InfoPro!I32)-$H$3) -> 0 | F38: =IF(B38="","",VLOOKUP(D38,Tablas!$B$2:$E$13,2,FALSE)) -> 0.6 | G38: =IF(B38="","",VLOOKUP(D38,Tablas!$B$2:$H$13,7,FALSE)) -> 158280.5 | H38: 0.1758670603 | I38: 12614.4 | J38: 426070281.6 | K38: 381100430.8 | L38: 340876950.6 | M38: 304898882.5 | N38: 272718141.7 | O38: 243933937.2 | P38: 218187779.2 | Q38: 195159015.4 | R38: 174560836.7 | S38: 156136705.4 | T38: 139657160.5 | U38: 124916959.3 | V38: 111732521.7 | W38: 99939643.76 | X38: 89391452.38 | Y38: 3279280699 | Z38: 1366366.958
A39: =IF(ISBLANK(InfoPro!A33),"",InfoPro!A33) -> SC_848_A2 | B39: =IF(ISBLANK(InfoPro!B33),"",InfoPro!B33) -> PCH QUINCHIA | C39: =IF(ISBLANK(InfoPro!E33),"",InfoPro!E33) -> 2.4 | D39: =IF(ISBLANK(InfoPro!F33),"",InfoPro!F33) -> Hidraulica | E39: =IF(ISBLANK(InfoPro!I33),"",YEAR(InfoPro!I33)-$H$3) -> 0 | F39: =IF(B39="","",VLOOKUP(D39,Tablas!$B$2:$E$13,2,FALSE)) -> 0.6 | G39: =IF(B39="","",VLOOKUP(D39,Tablas!$B$2:$H$13,7,FALSE)) -> 158280.5 | H39: 0.1758670603 | I39: 12614.4 | J39: 426070281.6 | K39: 381100430.8 | L39: 340876950.6 | M39: 304898882.5 | N39: 272718141.7 | O39: 243933937.2 | P39: 218187779.2 | Q39: 195159015.4 | R39: 174560836.7 | S39: 156136705.4 | T39: 139657160.5 | U39: 124916959.3 | V39: 111732521.7 | W39: 99939643.76 | X39: 89391452.38 | Y39: 3279280699 | Z39: 1366366.958
A40: =IF(ISBLANK(InfoPro!A34),"",InfoPro!A34) -> SC_1612_A1 | B40: =IF(ISBLANK(InfoPro!B34),"",InfoPro!B34) -> CSF CONTINUA ARMERO 90MW | C40: =IF(ISBLANK(InfoPro!E34),"",InfoPro!E34) -> 90 | D40: =IF(ISBLANK(InfoPro!F34),"",InfoPro!F34) -> Solar FV | E40: =IF(ISBLANK(InfoPro!I34),"",YEAR(InfoPro!I34)-$H$3) -> 1 | F40: =IF(B40="","",VLOOKUP(D40,Tablas!$B$2:$E$13,2,FALSE)) -> 0.26 | G40: =IF(B40="","",VLOOKUP(D40,Tablas!$B$2:$H$13,7,FALSE)) -> 83577.2 | H40: 0.564831274 | I40: 204984 | J40: 1.988964519e+10 | K40: 1.779038031e+10 | L40: 1.591268364e+10 | M40: 1.423316963e+10 | N40: 1.273092095e+10 | O40: 1.138722805e+10 | P40: 1.018535603e+10 | Q40: 9110336345 | R40: 8148780273 | S40: 7288712230 | T40: 6519420599 | U40: 5831324328 | V40: 5215853603 | W40: 4665343115 | X40: 4172936597 | Y40: 1.530820909e+11 | Z40: 1700912.121
A41: =IF(ISBLANK(InfoPro!A35),"",InfoPro!A35) -> SC_1612_A2 | B41: =IF(ISBLANK(InfoPro!B35),"",InfoPro!B35) -> CSF CONTINUA ARMERO 90MW | C41: =IF(ISBLANK(InfoPro!E35),"",InfoPro!E35) -> 90 | D41: =IF(ISBLANK(InfoPro!F35),"",InfoPro!F35) -> Solar FV | E41: =IF(ISBLANK(InfoPro!I35),"",YEAR(InfoPro!I35)-$H$3) -> 1 | F41: =IF(B41="","",VLOOKUP(D41,Tablas!$B$2:$E$13,2,FALSE)) -> 0.26 | G41: =IF(B41="","",VLOOKUP(D41,Tablas!$B$2:$H$13,7,FALSE)) -> 83577.2 | H41: 0.564831274 | I41: 204984 | J41: 1.988964519e+10 | K41: 1.779038031e+10 | L41: 1.591268364e+10 | M41: 1.423316963e+10 | N41: 1.273092095e+10 | O41: 1.138722805e+10 | P41: 1.018535603e+10 | Q41: 9110336345 | R41: 8148780273 | S41: 7288712230 | T41: 6519420599 | U41: 5831324328 | V41: 5215853603 | W41: 4665343115 | X41: 4172936597 | Y41: 1.530820909e+11 | Z41: 1700912.121
A42: =IF(ISBLANK(InfoPro!A36),"",InfoPro!A36) -> SC_753_A1 | B42: =IF(ISBLANK(InfoPro!B36),"",InfoPro!B36) -> PCH Quinchia A | C42: =IF(ISBLANK(InfoPro!E36),"",InfoPro!E36) -> 2.9 | D42: =IF(ISBLANK(InfoPro!F36),"",InfoPro!F36) -> Hidraulica | E42: =IF(ISBLANK(InfoPro!I36),"",YEAR(InfoPro!I36)-$H$3) -> 2 | F42: =IF(B42="","",VLOOKUP(D42,Tablas!$B$2:$E$13,2,FALSE)) -> 0.6 | G42: =IF(B42="","",VLOOKUP(D42,Tablas!$B$2:$H$13,7,FALSE)) -> 158280.5 | H42: 0.1758670603 | I42: 15242.4 | J42: 411892982 | K42: 368419483 | L42: 329534421.3 | M42: 294753507.4 | N42: 263643566.5 | O42: 235817143.6 | P42: 210927677.6 | Q42: 188665185.7 | R42: 168752402.3 | S42: 150941325.8 | T42: 135010130.4 | U42: 120760402.9 | V42: 108014671.6 | W42: 96614196.45 | X42: 86416991.46 | Y42: 3170164088 | Z42: 1093160.03
A43: =IF(ISBLANK(InfoPro!A37),"",InfoPro!A37) -> SC_753_A2 | B43: =IF(ISBLANK(InfoPro!B37),"",InfoPro!B37) -> PCH Quinchia A | C43: =IF(ISBLANK(InfoPro!E37),"",InfoPro!E37) -> 2.9 | D43: =IF(ISBLANK(InfoPro!F37),"",InfoPro!F37) -> Hidraulica | E43: =IF(ISBLANK(InfoPro!I37),"",YEAR(InfoPro!I37)-$H$3) -> 2 | F43: =IF(B43="","",VLOOKUP(D43,Tablas!$B$2:$E$13,2,FALSE)) -> 0.6 | G43: =IF(B43="","",VLOOKUP(D43,Tablas!$B$2:$H$13,7,FALSE)) -> 158280.5 | H43: 0.1758670603 | I43: 15242.4 | J43: =IF($I43="","",(1/(1+$C$3)^(J$6+$E43))*$I43*$C$2*$H43) -> 411892982 | K43: 368419483 | L43: 329534421.3 | M43: 294753507.4 | N43: 263643566.5 | O43: 235817143.6 | P43: 210927677.6 | Q43: 188665185.7 | R43: 168752402.3 | S43: 150941325.8 | T43: 135010130.4 | U43: 120760402.9 | V43: 108014671.6 | W43: 96614196.45 | X43: 86416991.46 | Y43: 3170164088 | Z43: 1093160.03
A44: =IF(ISBLANK(InfoPro!A38),"",InfoPro!A38) -> SC_751_A1 | B44: =IF(ISBLANK(InfoPro!B38),"",InfoPro!B38) -> PCH Rico Medio | C44: =IF(ISBLANK(InfoPro!E38),"",InfoPro!E38) -> 12.8 | D44: =IF(ISBLANK(InfoPro!F38),"",InfoPro!F38) -> Hidraulica | E44: =IF(ISBLANK(InfoPro!I38),"",YEAR(InfoPro!I38)-$H$3) -> 2 | F44: =IF(B44="","",VLOOKUP(D44,Tablas!$B$2:$E$13,2,FALSE)) -> 0.6 | G44: =IF(B44="","",VLOOKUP(D44,Tablas!$B$2:$H$13,7,FALSE)) -> 158280.5 | H44: 0.1758670603 | I44: 67276.8 | J44: 1818010403 | K44: 1626127373 | L44: 1454496756 | M44: 1300980998 | N44: 1163668156 | O44: 1040848082 | P44: 930991128.9 | Q44: 832729095.6 | R44: 744838189.3 | S44: 666223782.9 | T44: 595906782.6 | U44: 533011433.4 | V44: 476754412.7 | W44: 426435074 | X44: 381426720.9 | Y44: 1.399244839e+10 | Z44: 1093160.03
A45: =IF(ISBLANK(InfoPro!A39),"",InfoPro!A39) -> SC_1649_A1 | B45: =IF(ISBLANK(InfoPro!B39),"",InfoPro!B39) -> Parque Solar Fotovoltaico La Virginia II | C45: =IF(ISBLANK(InfoPro!E39),"",InfoPro!E39) -> 100 | D45: =IF(ISBLANK(InfoPro!F39),"",InfoPro!F39) -> Solar FV | E45: =IF(ISBLANK(InfoPro!I39),"",YEAR(InfoPro!I39)-$H$3) -> 4 | F45: =IF(B45="","",VLOOKUP(D45,Tablas!$B$2:$E$13,2,FALSE)) -> 0.26 | G45: =IF(B45="","",VLOOKUP(D45,Tablas!$B$2:$H$13,7,FALSE)) -> 83577.2 | H45: 0.564831274 | I45: 227760 | J45: 1.581463292e+10 | K45: 1.414546773e+10 | L45: 1.265247561e+10 | M45: 1.131706226e+10 | N45: 1.012259594e+10 | O45: 9054200303 | P45: 8098569144 | Q45: 7243800666 | R45: 6479249254 | S45: 5795392892 | T45: 5183714573 | U45: 4636596219 | V45: 4147223809 | W45: 3709502513 | X45: 3317980781 | Y45: 1.217184646e+11 | Z45: 1217184.646
A46: =IF(ISBLANK(InfoPro!A40),"",InfoPro!A40) -> SC_1658_A1 | B46: =IF(ISBLANK(InfoPro!B40),"",InfoPro!B40) -> Parque Solar Fotovoltaico La Virginia I | C46: =IF(ISBLANK(InfoPro!E40),"",InfoPro!E40) -> 100 | D46: =IF(ISBLANK(InfoPro!F40),"",InfoPro!F40) -> Solar FV | E46: =IF(ISBLANK(InfoPro!I40),"",YEAR(InfoPro!I40)-$H$3) -> 4 | F46: =IF(B46="","",VLOOKUP(D46,Tablas!$B$2:$E$13,2,FALSE)) -> 0.26 | G46: =IF(B46="","",VLOOKUP(D46,Tablas!$B$2:$H$13,7,FALSE)) -> 83577.2 | H46: 0.564831274 | I46: 227760 | J46: 1.581463292e+10 | K46: 1.414546773e+10 | L46: 1.265247561e+10 | M46: 1.131706226e+10 | N46: 1.012259594e+10 | O46: 9054200303 | P46: 8098569144 | Q46: 7243800666 | R46: 6479249254 | S46: 5795392892 | T46: 5183714573 | U46: 4636596219 | V46: 4147223809 | W46: 3709502513 | X46: 3317980781 | Y46: 1.217184646e+11 | Z46: 1217184.646
A47: =IF(ISBLANK(InfoPro!A41),"",InfoPro!A41) -> SC_1341_A1 | B47: =IF(ISBLANK(InfoPro!B41),"",InfoPro!B41) -> COG.002.2022 ORQUIDEA_4.95MW | C47: =IF(ISBLANK(InfoPro!E41),"",InfoPro!E41) -> 4.95 | D47: =IF(ISBLANK(InfoPro!F41),"",InfoPro!F41) -> Solar FV | E47: =IF(ISBLANK(InfoPro!I41),"",YEAR(InfoPro!I41)-$H$3) -> 1 | F47: =IF(B47="","",VLOOKUP(D47,Tablas!$B$2:$E$13,2,FALSE)) -> 0.26 | G47: =IF(B47="","",VLOOKUP(D47,Tablas!$B$2:$H$13,7,FALSE)) -> 83577.2 | H47: 0.564831274 | I47: 11274.12 | J47: 1093930485 | K47: 978470917.3 | L47: 875197600.4 | M47: 782824329.5 | N47: 700200652.5 | O47: 626297542.5 | P47: 560194581.8 | Q47: 501068499 | R47: 448182915 | S47: 400879172.6 | T47: 358568132.9 | U47: 320722838.1 | V47: 286871948.2 | W47: 256593871.3 | X47: 229511512.8 | Y47: 8419514999 | Z47: 1700912.121
A48: =IF(ISBLANK(InfoPro!A42),"",InfoPro!A42) -> SC_1341_A2 | B48: =IF(ISBLANK(InfoPro!B42),"",InfoPro!B42) -> COG.002.2022 ORQUIDEA_4.95MW | C48: =IF(ISBLANK(InfoPro!E42),"",InfoPro!E42) -> 4.95 | D48: =IF(ISBLANK(InfoPro!F42),"",InfoPro!F42) -> Solar FV | E48: =IF(ISBLANK(InfoPro!I42),"",YEAR(InfoPro!I42)-$H$3) -> 1 | F48: =IF(B48="","",VLOOKUP(D48,Tablas!$B$2:$E$13,2,FALSE)) -> 0.26 | G48: =IF(B48="","",VLOOKUP(D48,Tablas!$B$2:$H$13,7,FALSE)) -> 83577.2 | H48: 0.564831274 | I48: 11274.12 | J48: 1093930485 | K48: 978470917.3 | L48: 875197600.4 | M48: 782824329.5 | N48: 700200652.5 | O48: 626297542.5 | P48: 560194581.8 | Q48: 501068499 | R48: 448182915 | S48: 400879172.6 | T48: 358568132.9 | U48: 320722838.1 | V48: 286871948.2 | W48: 256593871.3 | X48: 229511512.8 | Y48: 8419514999 | Z48: 1700912.121
A49: =IF(ISBLANK(InfoPro!A43),"",InfoPro!A43) -> SC_1605_A1 | B49: =IF(ISBLANK(InfoPro!B43),"",InfoPro!B43) -> Ocobo de 150 MW | C49: =IF(ISBLANK(InfoPro!E43),"",InfoPro!E43) -> 150 | D49: =IF(ISBLANK(InfoPro!F43),"",InfoPro!F43) -> Solar FV | E49: =IF(ISBLANK(InfoPro!I43),"",YEAR(InfoPro!I43)-$H$3) -> 3 | F49: =IF(B49="","",VLOOKUP(D49,Tablas!$B$2:$E$13,2,FALSE)) -> 0.26 | G49: =IF(B49="","",VLOOKUP(D49,Tablas!$B$2:$H$13,7,FALSE)) -> 83577.2 | H49: 0.564831274 | I49: 341640 | J49: 2.652113941e+10 | K49: 2.372194938e+10 | L49: 2.121820159e+10 | M49: 1.897871341e+10 | N49: 1.697559339e+10 | O49: 1.518389391e+10 | P49: 1.358130045e+10 | Q49: 1.214785372e+10 | R49: 1.0865701e+10 | S49: 9718873880 | T49: 8693089338 | U49: 7775571859 | V49: 6954894328 | W49: 6220835714 | X49: 5564253769 | Y49: 2.041218651e+11 | Z49: 1360812.434
A50: =IF(ISBLANK(InfoPro!A44),"",InfoPro!A44) -> SC_1605_A2 | B50: =IF(ISBLANK(InfoPro!B44),"",InfoPro!B44) -> Ocobo de 150 MW | C50: =IF(ISBLANK(InfoPro!E44),"",InfoPro!E44) -> 150 | D50: =IF(ISBLANK(InfoPro!F44),"",InfoPro!F44) -> Solar FV | E50: =IF(ISBLANK(InfoPro!I44),"",YEAR(InfoPro!I44)-$H$3) -> 3 | F50: =IF(B50="","",VLOOKUP(D50,Tablas!$B$2:$E$13,2,FALSE)) -> 0.26 | G50: =IF(B50="","",VLOOKUP(D50,Tablas!$B$2:$H$13,7,FALSE)) -> 83577.2 | H50: 0.564831274 | I50: 341640 | J50: 2.652113941e+10 | K50: 2.372194938e+10 | L50: 2.121820159e+10 | M50: 1.897871341e+10 | N50: 1.697559339e+10 | O50: 1.518389391e+10 | P50: 1.358130045e+10 | Q50: 1.214785372e+10 | R50: 1.0865701e+10 | S50: 9718873880 | T50: 8693089338 | U50: 7775571859 | V50: 6954894328 | W50: 6220835714 | X50: 5564253769 | Y50: 2.041218651e+11 | Z50: 1360812.434
A51: =IF(ISBLANK(InfoPro!A45),"",InfoPro!A45) -> SC_1735_A1 | B51: =IF(ISBLANK(InfoPro!B45),"",InfoPro!B45) -> TR SOLAR 15 | C51: =IF(ISBLANK(InfoPro!E45),"",InfoPro!E45) -> 150 | D51: =IF(ISBLANK(InfoPro!F45),"",InfoPro!F45) -> Solar FV | E51: =IF(ISBLANK(InfoPro!I45),"",YEAR(InfoPro!I45)-$H$3) -> 3 | F51: =IF(B51="","",VLOOKUP(D51,Tablas!$B$2:$E$13,2,FALSE)) -> 0.26 | G51: =IF(B51="","",VLOOKUP(D51,Tablas!$B$2:$H$13,7,FALSE)) -> 83577.2 | H51: 0.564831274 | I51: 341640 | J51: 2.652113941e+10 | K51: 2.372194938e+10 | L51: 2.121820159e+10 | M51: 1.897871341e+10 | N51: 1.697559339e+10 | O51: 1.518389391e+10 | P51: 1.358130045e+10 | Q51: 1.214785372e+10 | R51: 1.0865701e+10 | S51: 9718873880 | T51: 8693089338 | U51: 7775571859 | V51: 6954894328 | W51: 6220835714 | X51: 5564253769 | Y51: 2.041218651e+11 | Z51: 1360812.434
A52: =IF(ISBLANK(InfoPro!A46),"",InfoPro!A46) -> SC_1735_A2 | B52: =IF(ISBLANK(InfoPro!B46),"",InfoPro!B46) -> TR SOLAR 15 | C52: =IF(ISBLANK(InfoPro!E46),"",InfoPro!E46) -> 150 | D52: =IF(ISBLANK(InfoPro!F46),"",InfoPro!F46) -> Solar FV | E52: =IF(ISBLANK(InfoPro!I46),"",YEAR(InfoPro!I46)-$H$3) -> 3 | F52: =IF(B52="","",VLOOKUP(D52,Tablas!$B$2:$E$13,2,FALSE)) -> 0.26 | G52: =IF(B52="","",VLOOKUP(D52,Tablas!$B$2:$H$13,7,FALSE)) -> 83577.2 | H52: 0.564831274 | I52: 341640 | J52: 2.652113941e+10 | K52: 2.372194938e+10 | L52: 2.121820159e+10 | M52: 1.897871341e+10 | N52: 1.697559339e+10 | O52: 1.518389391e+10 | P52: 1.358130045e+10 | Q52: 1.214785372e+10 | R52: 1.0865701e+10 | S52: 9718873880 | T52: 8693089338 | U52: 7775571859 | V52: 6954894328 | W52: 6220835714 | X52: 5564253769 | Y52: 2.041218651e+11 | Z52: 1360812.434
A53: =IF(ISBLANK(InfoPro!A47),"",InfoPro!A47) -> SC_1796_A1 | B53: =IF(ISBLANK(InfoPro!B47),"",InfoPro!B47) -> COG.003.2022 TORREALBA 4.99 MW | C53: =IF(ISBLANK(InfoPro!E47),"",InfoPro!E47) -> 4.99 | D53: =IF(ISBLANK(InfoPro!F47),"",InfoPro!F47) -> Solar FV | E53: =IF(ISBLANK(InfoPro!I47),"",YEAR(InfoPro!I47)-$H$3) -> 1 | F53: =IF(B53="","",VLOOKUP(D53,Tablas!$B$2:$E$13,2,FALSE)) -> 0.26 | G53: =IF(B53="","",VLOOKUP(D53,Tablas!$B$2:$H$13,7,FALSE)) -> 83577.2 | H53: 0.564831274 | I53: 11365.224 | J53: 1102770328 | K53: 986377752.9 | L53: 882269904.2 | M53: 789150182.7 | N53: 705858839.6 | O53: 631358532.8 | P53: 564721406.8 | Q53: 505117537.3 | R53: 451804595.1 | S53: 404118600.3 | T53: 361465653.2 | U53: 323314537.8 | V53: 289190105.3 | W53: 258667357.2 | X53: 231366151.3 | Y53: 8487551484 | Z53: 1700912.121
A54: =IF(ISBLANK(InfoPro!A48),"",InfoPro!A48) -> SC_1796_A2 | B54: =IF(ISBLANK(InfoPro!B48),"",InfoPro!B48) -> COG.003.2022 TORREALBA 4.99 MW | C54: =IF(ISBLANK(InfoPro!E48),"",InfoPro!E48) -> 4.99 | D54: =IF(ISBLANK(InfoPro!F48),"",InfoPro!F48) -> Solar FV | E54: =IF(ISBLANK(InfoPro!I48),"",YEAR(InfoPro!I48)-$H$3) -> 1 | F54: =IF(B54="","",VLOOKUP(D54,Tablas!$B$2:$E$13,2,FALSE)) -> 0.26 | G54: =IF(B54="","",VLOOKUP(D54,Tablas!$B$2:$H$13,7,FALSE)) -> 83577.2 | H54: 0.564831274 | I54: 11365.224 | J54: 1102770328 | K54: 986377752.9 | L54: 882269904.2 | M54: 789150182.7 | N54: 705858839.6 | O54: 631358532.8 | P54: 564721406.8 | Q54: 505117537.3 | R54: 451804595.1 | S54: 404118600.3 | T54: 361465653.2 | U54: 323314537.8 | V54: 289190105.3 | W54: 258667357.2 | X54: 231366151.3 | Y54: 8487551484 | Z54: 1700912.121
A55: =IF(ISBLANK(InfoPro!A49),"",InfoPro!A49) -> SC_1895_A1 | B55: =IF(ISBLANK(InfoPro!B49),"",InfoPro!B49) -> Hatillo Solar | C55: =IF(ISBLANK(InfoPro!E49),"",InfoPro!E49) -> 200 | D55: =IF(ISBLANK(InfoPro!F49),"",InfoPro!F49) -> Solar FV | E55: =IF(ISBLANK(InfoPro!I49),"",YEAR(InfoPro!I49)-$H$3) -> 2 | F55: =IF(B55="","",VLOOKUP(D55,Tablas!$B$2:$E$13,2,FALSE)) -> 0.26 | G55: =IF(B55="","",VLOOKUP(D55,Tablas!$B$2:$H$13,7,FALSE)) -> 83577.2 | H55: 0.564831274 | I55: 455520 | J55: 3.953417847e+10 | K55: 3.536151921e+10 | L55: 3.162926584e+10 | M55: 2.829093546e+10 | N55: 2.530495121e+10 | O55: 2.263412452e+10 | P55: 2.024519188e+10 | Q55: 1.810840061e+10 | R55: 1.619713829e+10 | S55: 1.448760133e+10 | T55: 1.295849851e+10 | U55: 1.159078578e+10 | V55: 1.036742915e+10 | W55: 9273192438 | X55: 8294447619 | Y55: 3.042776603e+11 | Z55: 1521388.302
A56: =IF(ISBLANK(InfoPro!A50),"",InfoPro!A50) -> SC_1895_A2 | B56: =IF(ISBLANK(InfoPro!B50),"",InfoPro!B50) -> Hatillo Solar | C56: =IF(ISBLANK(InfoPro!E50),"",InfoPro!E50) -> 200 | D56: =IF(ISBLANK(InfoPro!F50),"",InfoPro!F50) -> Solar FV | E56: =IF(ISBLANK(InfoPro!I50),"",YEAR(InfoPro!I50)-$H$3) -> 2 | F56: =IF(B56="","",VLOOKUP(D56,Tablas!$B$2:$E$13,2,FALSE)) -> 0.26 | G56: =IF(B56="","",VLOOKUP(D56,Tablas!$B$2:$H$13,7,FALSE)) -> 83577.2 | H56: 0.564831274 | I56: 455520 | J56: 3.953417847e+10 | K56: 3.536151921e+10 | L56: 3.162926584e+10 | M56: 2.829093546e+10 | N56: 2.530495121e+10 | O56: 2.263412452e+10 | P56: 2.024519188e+10 | Q56: 1.810840061e+10 | R56: 1.619713829e+10 | S56: 1.448760133e+10 | T56: 1.295849851e+10 | U56: 1.159078578e+10 | V56: 1.036742915e+10 | W56: 9273192438 | X56: 8294447619 | Y56: 3.042776603e+11 | Z56: 1521388.302
A57: =IF(ISBLANK(InfoPro!A51),"",InfoPro!A51) -> SC_1826_A1 | B57: =IF(ISBLANK(InfoPro!B51),"",InfoPro!B51) -> Caldas Solar I 19,9 MW | C57: =IF(ISBLANK(InfoPro!E51),"",InfoPro!E51) -> 19.9 | D57: =IF(ISBLANK(InfoPro!F51),"",InfoPro!F51) -> Solar FV | E57: =IF(ISBLANK(InfoPro!I51),"",YEAR(InfoPro!I51)-$H$3) -> 1 | F57: =IF(B57="","",VLOOKUP(D57,Tablas!$B$2:$E$13,2,FALSE)) -> 0.26 | G57: =IF(B57="","",VLOOKUP(D57,Tablas!$B$2:$H$13,7,FALSE)) -> 83577.2 | H57: 0.564831274 | I57: 45324.24 | J57: 4397821548 | K57: 3933650758 | L57: 3518471161 | M57: 3147111951 | N57: 2814948078 | O57: 2517842646 | P57: 2252095390 | Q57: 2014396592 | R57: 1801785860 | S57: 1611615260 | T57: 1441516332 | U57: 1289370601 | V57: 1153283186 | W57: 1031559200 | X57: 922682647.6 | Y57: 3.384815121e+10 | Z57: 1700912.121
A58: =IF(ISBLANK(InfoPro!A52),"",InfoPro!A52) -> SC_1875_A1 | B58: =IF(ISBLANK(InfoPro!B52),"",InfoPro!B52) -> La Estrella | C58: =IF(ISBLANK(InfoPro!E52),"",InfoPro!E52) -> 60 | D58: =IF(ISBLANK(InfoPro!F52),"",InfoPro!F52) -> Solar FV | E58: =IF(ISBLANK(InfoPro!I52),"",YEAR(InfoPro!I52)-$H$3) -> 3 | F58: =IF(B58="","",VLOOKUP(D58,Tablas!$B$2:$E$13,2,FALSE)) -> 0.26 | G58: =IF(B58="","",VLOOKUP(D58,Tablas!$B$2:$H$13,7,FALSE)) -> 83577.2 | H58: 0.564831274 | I58: 136656 | J58: 1.060845576e+10 | K58: 9488779752 | L58: 8487280637 | M58: 7591485364 | N58: 6790237356 | O58: 6073557563 | P58: 5432520182 | Q58: 4859141486 | R58: 4346280399 | S58: 3887549552 | T58: 3477235735 | U58: 3110228744 | V58: 2781957731 | W58: 2488334286 | X58: 2225701508 | Y58: 8.164874606e+10 | Z58: 1360812.434
A59: =IF(ISBLANK(InfoPro!A53),"",InfoPro!A53) -> SC_1875_A2 | B59: =IF(ISBLANK(InfoPro!B53),"",InfoPro!B53) -> La Estrella | C59: =IF(ISBLANK(InfoPro!E53),"",InfoPro!E53) -> 60 | D59: =IF(ISBLANK(InfoPro!F53),"",InfoPro!F53) -> Solar FV | E59: =IF(ISBLANK(InfoPro!I53),"",YEAR(InfoPro!I53)-$H$3) -> 3 | F59: =IF(B59="","",VLOOKUP(D59,Tablas!$B$2:$E$13,2,FALSE)) -> 0.26 | G59: =IF(B59="","",VLOOKUP(D59,Tablas!$B$2:$H$13,7,FALSE)) -> 83577.2 | H59: 0.564831274 | I59: 136656 | J59: 1.060845576e+10 | K59: 9488779752 | L59: 8487280637 | M59: 7591485364 | N59: 6790237356 | O59: 6073557563 | P59: 5432520182 | Q59: 4859141486 | R59: 4346280399 | S59: 3887549552 | T59: 3477235735 | U59: 3110228744 | V59: 2781957731 | W59: 2488334286 | X59: 2225701508 | Y59: 8.164874606e+10 | Z59: 1360812.434
A60: =IF(ISBLANK(InfoPro!A54),"",InfoPro!A54) -> SC_2040_A1 | B60: =IF(ISBLANK(InfoPro!B54),"",InfoPro!B54) -> Parque Solar Fotovoltaico Caldas Solar II 19,9 MW | C60: =IF(ISBLANK(InfoPro!E54),"",InfoPro!E54) -> 19.9 | D60: =IF(ISBLANK(InfoPro!F54),"",InfoPro!F54) -> Solar FV | E60: =IF(ISBLANK(InfoPro!I54),"",YEAR(InfoPro!I54)-$H$3) -> 2 | F60: =IF(B60="","",VLOOKUP(D60,Tablas!$B$2:$E$13,2,FALSE)) -> 0.26 | G60: =IF(B60="","",VLOOKUP(D60,Tablas!$B$2:$H$13,7,FALSE)) -> 83577.2 | H60: 0.564831274 | I60: 45324.24 | J60: =IF($I60="","",(1/(1+$C$3)^(J$6+$E60))*$I60*$C$2*$H60) -> 3933650758 | K60: 3518471161 | L60: 3147111951 | M60: 2814948078 | N60: 2517842646 | O60: 2252095390 | P60: 2014396592 | Q60: 1801785860 | R60: 1611615260 | S60: 1441516332 | T60: 1289370601 | U60: 1153283186 | V60: 1031559200 | W60: 922682647.6 | X60: 825297538.1 | Y60: 3.02756272e+10 | Z60: 1521388.302
A61: =IF(ISBLANK(InfoPro!A55),"",InfoPro!A55) -> SC_1798_A1 | B61: =IF(ISBLANK(InfoPro!B55),"",InfoPro!B55) -> Parque Solar El Capibara 130 MW | C61: =IF(ISBLANK(InfoPro!E55),"",InfoPro!E55) -> 130 | D61: =IF(ISBLANK(InfoPro!F55),"",InfoPro!F55) -> Solar FV | E61: =IF(ISBLANK(InfoPro!I55),"",YEAR(InfoPro!I55)-$H$3) -> 3 | F61: =IF(B61="","",VLOOKUP(D61,Tablas!$B$2:$E$13,2,FALSE)) -> 0.26 | G61: =IF(B61="","",VLOOKUP(D61,Tablas!$B$2:$H$13,7,FALSE)) -> 83577.2 | H61: 0.564831274 | I61: 296088 | J61: 2.298498749e+10 | K61: 2.05590228e+10 | L61: 1.838910805e+10 | M61: 1.644821829e+10 | N61: 1.471218094e+10 | O61: 1.315937472e+10 | P61: 1.177046039e+10 | Q61: 1.052813989e+10 | R61: 9416940865 | S61: 8423024030 | T61: 7534010760 | U61: 6738828945 | V61: 6027575085 | W61: 5391390952 | X61: 4822353267 | Y61: 1.769056165e+11 | Z61: 1360812.434
A62: =IF(ISBLANK(InfoPro!A56),"",InfoPro!A56) -> SC_1798_A2 | B62: =IF(ISBLANK(InfoPro!B56),"",InfoPro!B56) -> Parque Solar El Capibara 130 MW | C62: =IF(ISBLANK(InfoPro!E56),"",InfoPro!E56) -> 130 | D62: =IF(ISBLANK(InfoPro!F56),"",InfoPro!F56) -> Solar FV | E62: =IF(ISBLANK(InfoPro!I56),"",YEAR(InfoPro!I56)-$H$3) -> 3 | F62: =IF(B62="","",VLOOKUP(D62,Tablas!$B$2:$E$13,2,FALSE)) -> 0.26 | G62: =IF(B62="","",VLOOKUP(D62,Tablas!$B$2:$H$13,7,FALSE)) -> 83577.2 | H62: 0.564831274 | I62: 296088 | J62: 2.298498749e+10 | K62: 2.05590228e+10 | L62: 1.838910805e+10 | M62: 1.644821829e+10 | N62: 1.471218094e+10 | O62: 1.315937472e+10 | P62: 1.177046039e+10 | Q62: 1.052813989e+10 | R62: 9416940865 | S62: 8423024030 | T62: 7534010760 | U62: 6738828945 | V62: 6027575085 | W62: 5391390952 | X62: 4822353267 | Y62: 1.769056165e+11 | Z62: 1360812.434
A63: =IF(ISBLANK(InfoPro!A57),"",InfoPro!A57) -> SC_1802_A1 | B63: =IF(ISBLANK(InfoPro!B57),"",InfoPro!B57) -> Parque Solar El Capibara II 130 MW | C63: =IF(ISBLANK(InfoPro!E57),"",InfoPro!E57) -> 130 | D63: =IF(ISBLANK(InfoPro!F57),"",InfoPro!F57) -> Solar FV | E63: =IF(ISBLANK(InfoPro!I57),"",YEAR(InfoPro!I57)-$H$3) -> 3 | F63: =IF(B63="","",VLOOKUP(D63,Tablas!$B$2:$E$13,2,FALSE)) -> 0.26 | G63: =IF(B63="","",VLOOKUP(D63,Tablas!$B$2:$H$13,7,FALSE)) -> 83577.2 | H63: 0.564831274 | I63: 296088 | J63: 2.298498749e+10 | K63: 2.05590228e+10 | L63: 1.838910805e+10 | M63: 1.644821829e+10 | N63: 1.471218094e+10 | O63: 1.315937472e+10 | P63: 1.177046039e+10 | Q63: 1.052813989e+10 | R63: 9416940865 | S63: 8423024030 | T63: 7534010760 | U63: 6738828945 | V63: 6027575085 | W63: 5391390952 | X63: 4822353267 | Y63: 1.769056165e+11 | Z63: 1360812.434
A64: =IF(ISBLANK(InfoPro!A58),"",InfoPro!A58) -> SC_1802_A2 | B64: =IF(ISBLANK(InfoPro!B58),"",InfoPro!B58) -> Parque Solar El Capibara II 130 MW | C64: =IF(ISBLANK(InfoPro!E58),"",InfoPro!E58) -> 130 | D64: =IF(ISBLANK(InfoPro!F58),"",InfoPro!F58) -> Solar FV | E64: =IF(ISBLANK(InfoPro!I58),"",YEAR(InfoPro!I58)-$H$3) -> 3 | F64: =IF(B64="","",VLOOKUP(D64,Tablas!$B$2:$E$13,2,FALSE)) -> 0.26 | G64: =IF(B64="","",VLOOKUP(D64,Tablas!$B$2:$H$13,7,FALSE)) -> 83577.2 | H64: 0.564831274 | I64: 296088 | J64: 2.298498749e+10 | K64: 2.05590228e+10 | L64: 1.838910805e+10 | M64: 1.644821829e+10 | N64: 1.471218094e+10 | O64: 1.315937472e+10 | P64: 1.177046039e+10 | Q64: 1.052813989e+10 | R64: 9416940865 | S64: 8423024030 | T64: 7534010760 | U64: 6738828945 | V64: 6027575085 | W64: 5391390952 | X64: 4822353267 | Y64: 1.769056165e+11 | Z64: 1360812.434
A65: =IF(ISBLANK(InfoPro!A59),"",InfoPro!A59) -> SC_1791_A1 | B65: =IF(ISBLANK(InfoPro!B59),"",InfoPro!B59) -> COG.005.2022 GUANACASTE | C65: =IF(ISBLANK(InfoPro!E59),"",InfoPro!E59) -> 9.9 | D65: =IF(ISBLANK(InfoPro!F59),"",InfoPro!F59) -> Solar FV | E65: =IF(ISBLANK(InfoPro!I59),"",YEAR(InfoPro!I59)-$H$3) -> 1 | F65: =IF(B65="","",VLOOKUP(D65,Tablas!$B$2:$E$13,2,FALSE)) -> 0.26 | G65: =IF(B65="","",VLOOKUP(D65,Tablas!$B$2:$H$13,7,FALSE)) -> 83577.2 | H65: 0.564831274 | I65: 22548.24 | J65: 2187860971 | K65: 1956941835 | L65: 1750395201 | M65: 1565648659 | N65: 1400401305 | O65: 1252595085 | P65: 1120389164 | Q65: 1002136998 | R65: 896365830 | S65: 801758345.3 | T65: 717136265.9 | U65: 641445676.1 | V65: 573743896.3 | W65: 513187742.7 | X65: 459023025.7 | Y65: 1.683903e+10 | Z65: 1700912.121
A66: =IF(ISBLANK(InfoPro!A60),"",InfoPro!A60) -> SC_1791_A2 | B66: =IF(ISBLANK(InfoPro!B60),"",InfoPro!B60) -> COG.005.2022 GUANACASTE | C66: =IF(ISBLANK(InfoPro!E60),"",InfoPro!E60) -> 9.9 | D66: =IF(ISBLANK(InfoPro!F60),"",InfoPro!F60) -> Solar FV | E66: =IF(ISBLANK(InfoPro!I60),"",YEAR(InfoPro!I60)-$H$3) -> 1 | F66: =IF(B66="","",VLOOKUP(D66,Tablas!$B$2:$E$13,2,FALSE)) -> 0.26 | G66: =IF(B66="","",VLOOKUP(D66,Tablas!$B$2:$H$13,7,FALSE)) -> 83577.2 | H66: 0.564831274 | I66: 22548.24 | J66: 2187860971 | K66: 1956941835 | L66: 1750395201 | M66: 1565648659 | N66: 1400401305 | O66: 1252595085 | P66: 1120389164 | Q66: 1002136998 | R66: 896365830 | S66: 801758345.3 | T66: 717136265.9 | U66: 641445676.1 | V66: 573743896.3 | W66: 513187742.7 | X66: 459023025.7 | Y66: 1.683903e+10 | Z66: 1700912.121
A67: =IF(ISBLANK(InfoPro!A61),"",InfoPro!A61) -> SC_2139_A1 | B67: =IF(ISBLANK(InfoPro!B61),"",InfoPro!B61) -> LAS BRUJAS SOLAR_9.9MW | C67: =IF(ISBLANK(InfoPro!E61),"",InfoPro!E61) -> 9.9 | D67: =IF(ISBLANK(InfoPro!F61),"",InfoPro!F61) -> Solar FV | E67: =IF(ISBLANK(InfoPro!I61),"",YEAR(InfoPro!I61)-$H$3) -> 0 | F67: =IF(B67="","",VLOOKUP(D67,Tablas!$B$2:$E$13,2,FALSE)) -> 0.26 | G67: =IF(B67="","",VLOOKUP(D67,Tablas!$B$2:$H$13,7,FALSE)) -> 83577.2 | H67: 0.564831274 | I67: 22548.24 | J67: 2446028566 | K67: 2187860971 | L67: 1956941835 | M67: 1750395201 | N67: 1565648659 | O67: 1400401305 | P67: 1252595085 | Q67: 1120389164 | R67: 1002136998 | S67: 896365830 | T67: 801758345.3 | U67: 717136265.9 | V67: 641445676.1 | W67: 573743896.3 | X67: 513187742.7 | Y67: 1.882603554e+10 | Z67: 1901619.751
A68: =IF(ISBLANK(InfoPro!A62),"",InfoPro!A62) -> SC_2139_A2 | B68: =IF(ISBLANK(InfoPro!B62),"",InfoPro!B62) -> LAS BRUJAS SOLAR_9.9MW | C68: =IF(ISBLANK(InfoPro!E62),"",InfoPro!E62) -> 9.9 | D68: =IF(ISBLANK(InfoPro!F62),"",InfoPro!F62) -> Solar FV | E68: =IF(ISBLANK(InfoPro!I62),"",YEAR(InfoPro!I62)-$H$3) -> 0 | F68: =IF(B68="","",VLOOKUP(D68,Tablas!$B$2:$E$13,2,FALSE)) -> 0.26 | G68: =IF(B68="","",VLOOKUP(D68,Tablas!$B$2:$H$13,7,FALSE)) -> 83577.2 | H68: 0.564831274 | I68: 22548.24 | J68: 2446028566 | K68: 2187860971 | L68: 1956941835 | M68: 1750395201 | N68: 1565648659 | O68: 1400401305 | P68: 1252595085 | Q68: 1120389164 | R68: 1002136998 | S68: 896365830 | T68: 801758345.3 | U68: 717136265.9 | V68: 641445676.1 | W68: 573743896.3 | X68: 513187742.7 | Y68: 1.882603554e+10 | Z68: 1901619.751
A69: =IF(ISBLANK(InfoPro!A63),"",InfoPro!A63) -> SC_1900_A2 | B69: =IF(ISBLANK(InfoPro!B63),"",InfoPro!B63) -> PCH Salamina | C69: =IF(ISBLANK(InfoPro!E63),"",InfoPro!E63) -> 19.9 | D69: =IF(ISBLANK(InfoPro!F63),"",InfoPro!F63) -> Hidraulica | E69: =IF(ISBLANK(InfoPro!I63),"",YEAR(InfoPro!I63)-$H$3) -> 3 | F69: =IF(B69="","",VLOOKUP(D69,Tablas!$B$2:$E$13,2,FALSE)) -> 0.6 | G69: =IF(B69="","",VLOOKUP(D69,Tablas!$B$2:$H$13,7,FALSE)) -> 158280.5 | H69: 0.1758670603 | I69: 104594.4 | J69: 2528119900 | K69: 2261287925 | L69: 2022618896 | M69: 1809140336 | N69: 1618193503 | O69: 1447400271 | P69: 1294633516 | Q69: 1157990622 | R69: 1035769787 | S69: 926448826 | T69: 828666212.9 | U69: 741204126 | V69: 662973279.1 | W69: 592999355.2 | X69: 530410872.2 | Y69: 1.945785743e+10 | Z69: 977781.7803
A70: =IF(ISBLANK(InfoPro!A64),"",InfoPro!A64) -> SC_1911_A1 | B70: =IF(ISBLANK(InfoPro!B64),"",InfoPro!B64) -> Heliconea | C70: =IF(ISBLANK(InfoPro!E64),"",InfoPro!E64) -> 60 | D70: =IF(ISBLANK(InfoPro!F64),"",InfoPro!F64) -> Solar FV | E70: =IF(ISBLANK(InfoPro!I64),"",YEAR(InfoPro!I64)-$H$3) -> 2 | F70: =IF(B70="","",VLOOKUP(D70,Tablas!$B$2:$E$13,2,FALSE)) -> 0.26 | G70: =IF(B70="","",VLOOKUP(D70,Tablas!$B$2:$H$13,7,FALSE)) -> 83577.2 | H70: 0.564831274 | I70: 136656 | J70: 1.186025354e+10 | K70: 1.060845576e+10 | L70: 9488779752 | M70: 8487280637 | N70: 7591485364 | O70: 6790237356 | P70: 6073557563 | Q70: 5432520182 | R70: 4859141486 | S70: 4346280399 | T70: 3887549552 | U70: 3477235735 | V70: 3110228744 | W70: 2781957731 | X70: 2488334286 | Y70: 9.128329809e+10 | Z70: 1521388.302
A71: =IF(ISBLANK(InfoPro!A65),"",InfoPro!A65) -> SC_1911_A2 | B71: =IF(ISBLANK(InfoPro!B65),"",InfoPro!B65) -> Heliconea | C71: =IF(ISBLANK(InfoPro!E65),"",InfoPro!E65) -> 60 | D71: =IF(ISBLANK(InfoPro!F65),"",InfoPro!F65) -> Solar FV | E71: =IF(ISBLANK(InfoPro!I65),"",YEAR(InfoPro!I65)-$H$3) -> 2 | F71: =IF(B71="","",VLOOKUP(D71,Tablas!$B$2:$E$13,2,FALSE)) -> 0.26 | G71: =IF(B71="","",VLOOKUP(D71,Tablas!$B$2:$H$13,7,FALSE)) -> 83577.2 | H71: 0.564831274 | I71: 136656 | J71: 1.186025354e+10 | K71: 1.060845576e+10 | L71: 9488779752 | M71: 8487280637 | N71: 7591485364 | O71: 6790237356 | P71: 6073557563 | Q71: 5432520182 | R71: 4859141486 | S71: 4346280399 | T71: 3887549552 | U71: 3477235735 | V71: 3110228744 | W71: 2781957731 | X71: 2488334286 | Y71: 9.128329809e+10 | Z71: 1521388.302
A72: =IF(ISBLANK(InfoPro!A66),"",InfoPro!A66) -> SC_2090_A1 | B72: =IF(ISBLANK(InfoPro!B66),"",InfoPro!B66) -> Autogenerador Solar Mariquita_5.1MW-0MW (AUTOGENERADOR) | C72: =IF(ISBLANK(InfoPro!E66),"",InfoPro!E66) -> 5.1 | D72: =IF(ISBLANK(InfoPro!F66),"",InfoPro!F66) -> Solar FV | E72: =IF(ISBLANK(InfoPro!I66),"",YEAR(InfoPro!I66)-$H$3) -> 1 | F72: =IF(B72="","",VLOOKUP(D72,Tablas!$B$2:$E$13,2,FALSE)) -> 0.26 | G72: =IF(B72="","",VLOOKUP(D72,Tablas!$B$2:$H$13,7,FALSE)) -> 83577.2 | H72: 0.564831274 | I72: 11615.76 | J72: 1127079894 | K72: 1008121551 | L72: 901718739.8 | M72: 806546278.9 | N72: 721418854.1 | O72: 645276255.9 | P72: 577170175.2 | Q72: 516252392.9 | R72: 461764215.5 | S72: 413027026.3 | T72: 369433833.9 | U72: 330441711.9 | V72: 295565037.5 | W72: 264369443.2 | X72: 236466407.2 | Y72: 8674651818 | Z72: 1700912.121
A73: =IF(ISBLANK(InfoPro!A67),"",InfoPro!A67) -> SC_1917_A1 | B73: =IF(ISBLANK(InfoPro!B67),"",InfoPro!B67) -> Parque Solar La Victoria | C73: =IF(ISBLANK(InfoPro!E67),"",InfoPro!E67) -> 40 | D73: =IF(ISBLANK(InfoPro!F67),"",InfoPro!F67) -> Solar FV | E73: =IF(ISBLANK(InfoPro!I67),"",YEAR(InfoPro!I67)-$H$3) -> 3 | F73: =IF(B73="","",VLOOKUP(D73,Tablas!$B$2:$E$13,2,FALSE)) -> 0.26 | G73: =IF(B73="","",VLOOKUP(D73,Tablas!$B$2:$H$13,7,FALSE)) -> 83577.2 | H73: =IF(B73="","",($C$2-(G73))/$C$2) -> 0.564831274 | I73: =IF(C73="","",+C73*F73*24*365) -> 91104 | J73: 7072303842 | K73: 6325853168 | L73: 5658187091 | M73: 5060990242 | N73: 4526824904 | O73: 4049038376 | P73: 3621680121 | Q73: 3239427658 | R73: 2897520266 | S73: 2591699701 | T73: 2318157157 | U73: 2073485829 | V73: 1854638488 | W73: 1658889524 | X73: 1483801005 | Y73: =IF(X73="","",SUM(J73:X73)) -> 5.443249737e+10 | Z73: =IF(C73=0,0,IF(Y73="","",Y73/(C73*1000))) -> 1360812.434
A74: =IF(ISBLANK(InfoPro!A68),"",InfoPro!A68) -> SC_1917_A2 | B74: =IF(ISBLANK(InfoPro!B68),"",InfoPro!B68) -> Parque Solar La Victoria | C74: =IF(ISBLANK(InfoPro!E68),"",InfoPro!E68) -> 40 | D74: =IF(ISBLANK(InfoPro!F68),"",InfoPro!F68) -> Solar FV | E74: =IF(ISBLANK(InfoPro!I68),"",YEAR(InfoPro!I68)-$H$3) -> 3 | F74: =IF(B74="","",VLOOKUP(D74,Tablas!$B$2:$E$13,2,FALSE)) -> 0.26 | G74: =IF(B74="","",VLOOKUP(D74,Tablas!$B$2:$H$13,7,FALSE)) -> 83577.2 | H74: 0.564831274 | I74: 91104 | J74: 7072303842 | K74: 6325853168 | L74: 5658187091 | M74: 5060990242 | N74: 4526824904 | O74: 4049038376 | P74: 3621680121 | Q74: 3239427658 | R74: 2897520266 | S74: 2591699701 | T74: 2318157157 | U74: 2073485829 | V74: 1854638488 | W74: 1658889524 | X74: 1483801005 | Y74: 5.443249737e+10 | Z74: 1360812.434
A75: =IF(ISBLANK(InfoPro!A69),"",InfoPro!A69) -> SC_1817_A1 | B75: =IF(ISBLANK(InfoPro!B69),"",InfoPro!B69) -> COG.006.2022 CATLEYA | C75: =IF(ISBLANK(InfoPro!E69),"",InfoPro!E69) -> 9.9 | D75: =IF(ISBLANK(InfoPro!F69),"",InfoPro!F69) -> Solar FV | E75: =IF(ISBLANK(InfoPro!I69),"",YEAR(InfoPro!I69)-$H$3) -> 1 | F75: =IF(B75="","",VLOOKUP(D75,Tablas!$B$2:$E$13,2,FALSE)) -> 0.26 | G75: =IF(B75="","",VLOOKUP(D75,Tablas!$B$2:$H$13,7,FALSE)) -> 83577.2 | H75: 0.564831274 | I75: 22548.24 | J75: 2187860971 | K75: 1956941835 | L75: 1750395201 | M75: 1565648659 | N75: 1400401305 | O75: 1252595085 | P75: 1120389164 | Q75: 1002136998 | R75: 896365830 | S75: 801758345.3 | T75: 717136265.9 | U75: 641445676.1 | V75: 573743896.3 | W75: 513187742.7 | X75: 459023025.7 | Y75: 1.683903e+10 | Z75: 1700912.121
A76: =IF(ISBLANK(InfoPro!A70),"",InfoPro!A70) -> SC_1817_A2 | B76: =IF(ISBLANK(InfoPro!B70),"",InfoPro!B70) -> COG.006.2022 CATLEYA | C76: =IF(ISBLANK(InfoPro!E70),"",InfoPro!E70) -> 9.9 | D76: =IF(ISBLANK(InfoPro!F70),"",InfoPro!F70) -> Solar FV | E76: =IF(ISBLANK(InfoPro!I70),"",YEAR(InfoPro!I70)-$H$3) -> 1 | F76: =IF(B76="","",VLOOKUP(D76,Tablas!$B$2:$E$13,2,FALSE)) -> 0.26 | G76: =IF(B76="","",VLOOKUP(D76,Tablas!$B$2:$H$13,7,FALSE)) -> 83577.2 | H76: 0.564831274 | I76: 22548.24 | J76: 2187860971 | K76: 1956941835 | L76: 1750395201 | M76: 1565648659 | N76: 1400401305 | O76: 1252595085 | P76: 1120389164 | Q76: 1002136998 | R76: 896365830 | S76: 801758345.3 | T76: 717136265.9 | U76: 641445676.1 | V76: 573743896.3 | W76: 513187742.7 | X76: 459023025.7 | Y76: 1.683903e+10 | Z76: 1700912.121
A77: =IF(ISBLANK(InfoPro!A71),"",InfoPro!A71) -> SC_2177_A1 | B77: =IF(ISBLANK(InfoPro!B71),"",InfoPro!B71) -> Parque Solar Fotovoltaico Camelia 9,9 MW | C77: =IF(ISBLANK(InfoPro!E71),"",InfoPro!E71) -> 9.9 | D77: =IF(ISBLANK(InfoPro!F71),"",InfoPro!F71) -> Solar FV | E77: =IF(ISBLANK(InfoPro!I71),"",YEAR(InfoPro!I71)-$H$3) -> 1 | F77: =IF(B77="","",VLOOKUP(D77,Tablas!$B$2:$E$13,2,FALSE)) -> 0.26 | G77: =IF(B77="","",VLOOKUP(D77,Tablas!$B$2:$H$13,7,FALSE)) -> 83577.2 | H77: 0.564831274 | I77: 22548.24 | J77: =IF($I77="","",(1/(1+$C$3)^(J$6+$E77))*$I77*$C$2*$H77) -> 2187860971 | K77: 1956941835 | L77: 1750395201 | M77: 1565648659 | N77: 1400401305 | O77: 1252595085 | P77: 1120389164 | Q77: 1002136998 | R77: 896365830 | S77: 801758345.3 | T77: 717136265.9 | U77: 641445676.1 | V77: 573743896.3 | W77: 513187742.7 | X77: 459023025.7 | Y77: 1.683903e+10 | Z77: 1700912.121
A78: =IF(ISBLANK(InfoPro!A72),"",InfoPro!A72) -> SC_2177_A2 | B78: =IF(ISBLANK(InfoPro!B72),"",InfoPro!B72) -> Parque Solar Fotovoltaico Camelia 9,9 MW | C78: =IF(ISBLANK(InfoPro!E72),"",InfoPro!E72) -> 9.9 | D78: =IF(ISBLANK(InfoPro!F72),"",InfoPro!F72) -> Solar FV | E78: =IF(ISBLANK(InfoPro!I72),"",YEAR(InfoPro!I72)-$H$3) -> 1 | F78: =IF(B78="","",VLOOKUP(D78,Tablas!$B$2:$E$13,2,FALSE)) -> 0.26 | G78: =IF(B78="","",VLOOKUP(D78,Tablas!$B$2:$H$13,7,FALSE)) -> 83577.2 | H78: 0.564831274 | I78: 22548.24 | J78: 2187860971 | K78: 1956941835 | L78: 1750395201 | M78: 1565648659 | N78: 1400401305 | O78: 1252595085 | P78: 1120389164 | Q78: 1002136998 | R78: 896365830 | S78: 801758345.3 | T78: 717136265.9 | U78: 641445676.1 | V78: 573743896.3 | W78: 513187742.7 | X78: 459023025.7 | Y78: 1.683903e+10 | Z78: 1700912.121
A79: =IF(ISBLANK(InfoPro!A73),"",InfoPro!A73) -> SC_2062_A1 | B79: =IF(ISBLANK(InfoPro!B73),"",InfoPro!B73) -> Puerto Solar | C79: =IF(ISBLANK(InfoPro!E73),"",InfoPro!E73) -> 9.9 | D79: =IF(ISBLANK(InfoPro!F73),"",InfoPro!F73) -> Solar FV | E79: =IF(ISBLANK(InfoPro!I73),"",YEAR(InfoPro!I73)-$H$3) -> 1 | F79: =IF(B79="","",VLOOKUP(D79,Tablas!$B$2:$E$13,2,FALSE)) -> 0.26 | G79: =IF(B79="","",VLOOKUP(D79,Tablas!$B$2:$H$13,7,FALSE)) -> 83577.2 | H79: 0.564831274 | I79: 22548.24 | J79: 2187860971 | K79: 1956941835 | L79: 1750395201 | M79: 1565648659 | N79: 1400401305 | O79: 1252595085 | P79: 1120389164 | Q79: 1002136998 | R79: 896365830 | S79: 801758345.3 | T79: 717136265.9 | U79: 641445676.1 | V79: 573743896.3 | W79: 513187742.7 | X79: 459023025.7 | Y79: 1.683903e+10 | Z79: 1700912.121
A80: =IF(ISBLANK(InfoPro!A74),"",InfoPro!A74) -> SC_2062_A2 | B80: =IF(ISBLANK(InfoPro!B74),"",InfoPro!B74) -> Puerto Solar | C80: =IF(ISBLANK(InfoPro!E74),"",InfoPro!E74) -> 9.9 | D80: =IF(ISBLANK(InfoPro!F74),"",InfoPro!F74) -> Solar FV | E80: =IF(ISBLANK(InfoPro!I74),"",YEAR(InfoPro!I74)-$H$3) -> 1 | F80: =IF(B80="","",VLOOKUP(D80,Tablas!$B$2:$E$13,2,FALSE)) -> 0.26 | G80: =IF(B80="","",VLOOKUP(D80,Tablas!$B$2:$H$13,7,FALSE)) -> 83577.2 | H80: 0.564831274 | I80: 22548.24 | J80: 2187860971 | K80: 1956941835 | L80: 1750395201 | M80: 1565648659 | N80: 1400401305 | O80: 1252595085 | P80: 1120389164 | Q80: 1002136998 | R80: 896365830 | S80: 801758345.3 | T80: 717136265.9 | U80: 641445676.1 | V80: 573743896.3 | W80: 513187742.7 | X80: 459023025.7 | Y80: 1.683903e+10 | Z80: 1700912.121
A81: =IF(ISBLANK(InfoPro!A75),"",InfoPro!A75) -> SC_2178_A1 | B81: =IF(ISBLANK(InfoPro!B75),"",InfoPro!B75) -> Parque Solar Fotovoltaico Dalia 9,9 MW | C81: =IF(ISBLANK(InfoPro!E75),"",InfoPro!E75) -> 9.9 | D81: =IF(ISBLANK(InfoPro!F75),"",InfoPro!F75) -> Solar FV | E81: =IF(ISBLANK(InfoPro!I75),"",YEAR(InfoPro!I75)-$H$3) -> 1 | F81: =IF(B81="","",VLOOKUP(D81,Tablas!$B$2:$E$13,2,FALSE)) -> 0.26 | G81: =IF(B81="","",VLOOKUP(D81,Tablas!$B$2:$H$13,7,FALSE)) -> 83577.2 | H81: 0.564831274 | I81: 22548.24 | J81: 2187860971 | K81: 1956941835 | L81: 1750395201 | M81: 1565648659 | N81: 1400401305 | O81: 1252595085 | P81: 1120389164 | Q81: 1002136998 | R81: 896365830 | S81: 801758345.3 | T81: 717136265.9 | U81: 641445676.1 | V81: 573743896.3 | W81: 513187742.7 | X81: 459023025.7 | Y81: 1.683903e+10 | Z81: 1700912.121
A82: =IF(ISBLANK(InfoPro!A76),"",InfoPro!A76) -> SC_2178_A2 | B82: =IF(ISBLANK(InfoPro!B76),"",InfoPro!B76) -> Parque Solar Fotovoltaico Dalia 9,9 MW | C82: =IF(ISBLANK(InfoPro!E76),"",InfoPro!E76) -> 9.9 | D82: =IF(ISBLANK(InfoPro!F76),"",InfoPro!F76) -> Solar FV | E82: =IF(ISBLANK(InfoPro!I76),"",YEAR(InfoPro!I76)-$H$3) -> 1 | F82: =IF(B82="","",VLOOKUP(D82,Tablas!$B$2:$E$13,2,FALSE)) -> 0.26 | G82: =IF(B82="","",VLOOKUP(D82,Tablas!$B$2:$H$13,7,FALSE)) -> 83577.2 | H82: 0.564831274 | I82: 22548.24 | J82: 2187860971 | K82: 1956941835 | L82: 1750395201 | M82: 1565648659 | N82: 1400401305 | O82: 1252595085 | P82: 1120389164 | Q82: 1002136998 | R82: 896365830 | S82: 801758345.3 | T82: 717136265.9 | U82: 641445676.1 | V82: 573743896.3 | W82: 513187742.7 | X82: 459023025.7 | Y82: 1.683903e+10 | Z82: 1700912.121
A83: =IF(ISBLANK(InfoPro!A77),"",InfoPro!A77) -> SC_2102_A1 | B83: =IF(ISBLANK(InfoPro!B77),"",InfoPro!B77) -> Parque Solar Beltran 9,9 MW | C83: =IF(ISBLANK(InfoPro!E77),"",InfoPro!E77) -> 9.9 | D83: =IF(ISBLANK(InfoPro!F77),"",InfoPro!F77) -> Solar FV | E83: =IF(ISBLANK(InfoPro!I77),"",YEAR(InfoPro!I77)-$H$3) -> 2 | F83: =IF(B83="","",VLOOKUP(D83,Tablas!$B$2:$E$13,2,FALSE)) -> 0.26 | G83: =IF(B83="","",VLOOKUP(D83,Tablas!$B$2:$H$13,7,FALSE)) -> 83577.2 | H83: 0.564831274 | I83: 22548.24 | J83: 1956941835 | K83: 1750395201 | L83: 1565648659 | M83: 1400401305 | N83: 1252595085 | O83: 1120389164 | P83: 1002136998 | Q83: 896365830 | R83: 801758345.3 | S83: 717136265.9 | T83: 641445676.1 | U83: 573743896.3 | V83: 513187742.7 | W83: 459023025.7 | X83: 410575157.1 | Y83: 1.506174419e+10 | Z83: 1521388.302
A84: =IF(ISBLANK(InfoPro!A78),"",InfoPro!A78) -> SC_2102_A2 | B84: =IF(ISBLANK(InfoPro!B78),"",InfoPro!B78) -> Parque Solar Beltran 9,9 MW | C84: =IF(ISBLANK(InfoPro!E78),"",InfoPro!E78) -> 9.9 | D84: =IF(ISBLANK(InfoPro!F78),"",InfoPro!F78) -> Solar FV | E84: =IF(ISBLANK(InfoPro!I78),"",YEAR(InfoPro!I78)-$H$3) -> 2 | F84: =IF(B84="","",VLOOKUP(D84,Tablas!$B$2:$E$13,2,FALSE)) -> 0.26 | G84: =IF(B84="","",VLOOKUP(D84,Tablas!$B$2:$H$13,7,FALSE)) -> 83577.2 | H84: 0.564831274 | I84: 22548.24 | J84: 1956941835 | K84: 1750395201 | L84: 1565648659 | M84: 1400401305 | N84: 1252595085 | O84: 1120389164 | P84: 1002136998 | Q84: 896365830 | R84: 801758345.3 | S84: 717136265.9 | T84: 641445676.1 | U84: 573743896.3 | V84: 513187742.7 | W84: 459023025.7 | X84: 410575157.1 | Y84: 1.506174419e+10 | Z84: 1521388.302
A85: =IF(ISBLANK(InfoPro!A79),"",InfoPro!A79) -> SC_2296_A1 | B85: =IF(ISBLANK(InfoPro!B79),"",InfoPro!B79) -> Parque Solar San Mateo 80 MW | C85: =IF(ISBLANK(InfoPro!E79),"",InfoPro!E79) -> 80 | D85: =IF(ISBLANK(InfoPro!F79),"",InfoPro!F79) -> Solar FV | E85: =IF(ISBLANK(InfoPro!I79),"",YEAR(InfoPro!I79)-$H$3) -> 2 | F85: =IF(B85="","",VLOOKUP(D85,Tablas!$B$2:$E$13,2,FALSE)) -> 0.26 | G85: =IF(B85="","",VLOOKUP(D85,Tablas!$B$2:$H$13,7,FALSE)) -> 83577.2 | H85: 0.564831274 | I85: 182208 | J85: 1.581367139e+10 | K85: 1.414460768e+10 | L85: 1.265170634e+10 | M85: 1.131637418e+10 | N85: 1.012198048e+10 | O85: 9053649808 | P85: 8098076751 | Q85: 7243360242 | R85: 6478855315 | S85: 5795040532 | T85: 5183399403 | U85: 4636314314 | V85: 4146971658 | W85: 3709276975 | X85: 3317779048 | Y85: 1.217110641e+11 | Z85: 1521388.302
A86: =IF(ISBLANK(InfoPro!A80),"",InfoPro!A80) -> SC_2081_A1 | B86: =IF(ISBLANK(InfoPro!B80),"",InfoPro!B80) -> Parque Solar Fotovoltaico El Encanto | C86: =IF(ISBLANK(InfoPro!E80),"",InfoPro!E80) -> 50 | D86: =IF(ISBLANK(InfoPro!F80),"",InfoPro!F80) -> Solar FV | E86: =IF(ISBLANK(InfoPro!I80),"",YEAR(InfoPro!I80)-$H$3) -> 5 | F86: =IF(B86="","",VLOOKUP(D86,Tablas!$B$2:$E$13,2,FALSE)) -> 0.26 | G86: =IF(B86="","",VLOOKUP(D86,Tablas!$B$2:$H$13,7,FALSE)) -> 83577.2 | H86: 0.564831274 | I86: 113880 | J86: 7072733864 | K86: 6326237803 | L86: 5658531130 | M86: 5061297969 | N86: 4527100152 | O86: 4049284572 | P86: 3621900333 | Q86: 3239624627 | R86: 2897696446 | S86: 2591857286 | T86: 2318298109 | U86: 2073611905 | V86: 1854751256 | W86: 1658990390 | X86: 1483891226 | Y86: 5.443580707e+10 | Z86: 1088716.141
A87: =IF(ISBLANK(InfoPro!A81),"",InfoPro!A81) -> SC_2081_A2 | B87: =IF(ISBLANK(InfoPro!B81),"",InfoPro!B81) -> Parque Solar Fotovoltaico El Encanto | C87: =IF(ISBLANK(InfoPro!E81),"",InfoPro!E81) -> 50 | D87: =IF(ISBLANK(InfoPro!F81),"",InfoPro!F81) -> Solar FV | E87: =IF(ISBLANK(InfoPro!I81),"",YEAR(InfoPro!I81)-$H$3) -> 5 | F87: =IF(B87="","",VLOOKUP(D87,Tablas!$B$2:$E$13,2,FALSE)) -> 0.26 | G87: =IF(B87="","",VLOOKUP(D87,Tablas!$B$2:$H$13,7,FALSE)) -> 83577.2 | H87: 0.564831274 | I87: 113880 | J87: 7072733864 | K87: 6326237803 | L87: 5658531130 | M87: 5061297969 | N87: 4527100152 | O87: 4049284572 | P87: 3621900333 | Q87: 3239624627 | R87: 2897696446 | S87: 2591857286 | T87: 2318298109 | U87: 2073611905 | V87: 1854751256 | W87: 1658990390 | X87: 1483891226 | Y87: 5.443580707e+10 | Z87: 1088716.141
A88: =IF(ISBLANK(InfoPro!A82),"",InfoPro!A82) -> SC_1679_A2 | B88: =IF(ISBLANK(InfoPro!B82),"",InfoPro!B82) -> PCH EL MOLINO | C88: =IF(ISBLANK(InfoPro!E82),"",InfoPro!E82) -> 19.9 | D88: =IF(ISBLANK(InfoPro!F82),"",InfoPro!F82) -> Hidraulica | E88: =IF(ISBLANK(InfoPro!I82),"",YEAR(InfoPro!I82)-$H$3) -> 3 | F88: =IF(B88="","",VLOOKUP(D88,Tablas!$B$2:$E$13,2,FALSE)) -> 0.6 | G88: =IF(B88="","",VLOOKUP(D88,Tablas!$B$2:$H$13,7,FALSE)) -> 158280.5 | H88: 0.1758670603 | I88: 104594.4 | J88: 2528119900 | K88: 2261287925 | L88: 2022618896 | M88: 1809140336 | N88: 1618193503 | O88: 1447400271 | P88: 1294633516 | Q88: 1157990622 | R88: 1035769787 | S88: 926448826 | T88: 828666212.9 | U88: 741204126 | V88: 662973279.1 | W88: 592999355.2 | X88: 530410872.2 | Y88: 1.945785743e+10 | Z88: 977781.7803
A89: =IF(ISBLANK(InfoPro!A83),"",InfoPro!A83) -> SC_2229_A1 | B89: =IF(ISBLANK(InfoPro!B83),"",InfoPro!B83) -> El Silencio 120MW y su línea de evacuación de220kV | C89: =IF(ISBLANK(InfoPro!E83),"",InfoPro!E83) -> 120 | D89: =IF(ISBLANK(InfoPro!F83),"",InfoPro!F83) -> Solar FV | E89: =IF(ISBLANK(InfoPro!I83),"",YEAR(InfoPro!I83)-$H$3) -> 4 | F89: =IF(B89="","",VLOOKUP(D89,Tablas!$B$2:$E$13,2,FALSE)) -> 0.26 | G89: =IF(B89="","",VLOOKUP(D89,Tablas!$B$2:$H$13,7,FALSE)) -> 83577.2 | H89: 0.564831274 | I89: 273312 | J89: 1.89775595e+10 | K89: 1.697456127e+10 | L89: 1.518297073e+10 | M89: 1.358047471e+10 | N89: 1.214711513e+10 | O89: 1.086504036e+10 | P89: 9718282973 | Q89: 8692560799 | R89: 7775099104 | S89: 6954471471 | T89: 6220457487 | U89: 5563915463 | V89: 4976668571 | W89: 4451403015 | X89: 3981576937 | Y89: 1.460621575e+11 | Z89: 1217184.646
A90: =IF(ISBLANK(InfoPro!A84),"",InfoPro!A84) -> SC_1511_A1 | B90: =IF(ISBLANK(InfoPro!B84),"",InfoPro!B84) -> Planta Solar FV Ambalema | C90: =IF(ISBLANK(InfoPro!E84),"",InfoPro!E84) -> 7 | D90: =IF(ISBLANK(InfoPro!F84),"",InfoPro!F84) -> Solar FV | E90: =IF(ISBLANK(InfoPro!I84),"",YEAR(InfoPro!I84)-$H$3) -> 1 | F90: =IF(B90="","",VLOOKUP(D90,Tablas!$B$2:$E$13,2,FALSE)) -> 0.26 | G90: =IF(B90="","",VLOOKUP(D90,Tablas!$B$2:$H$13,7,FALSE)) -> 83577.2 | H90: 0.564831274 | I90: 15943.2 | J90: 1546972404 | K90: 1383696247 | L90: 1237653172 | M90: 1107024304 | N90: 990182740.9 | O90: 885673292.4 | P90: 792194358.2 | Q90: 708581715.7 | R90: 633794021.2 | S90: 566899840.1 | T90: 507066046.6 | U90: 453547447.8 | V90: 405677502.5 | W90: 362860020.1 | X90: 324561735.3 | Y90: 1.190638485e+10 | Z90: 1700912.121
A91: =IF(ISBLANK(InfoPro!A85),"",InfoPro!A85) -> SC_1511_A2 | B91: =IF(ISBLANK(InfoPro!B85),"",InfoPro!B85) -> Planta Solar FV Ambalema | C91: =IF(ISBLANK(InfoPro!E85),"",InfoPro!E85) -> 7 | D91: =IF(ISBLANK(InfoPro!F85),"",InfoPro!F85) -> Solar FV | E91: =IF(ISBLANK(InfoPro!I85),"",YEAR(InfoPro!I85)-$H$3) -> 1 | F91: =IF(B91="","",VLOOKUP(D91,Tablas!$B$2:$E$13,2,FALSE)) -> 0.26 | G91: =IF(B91="","",VLOOKUP(D91,Tablas!$B$2:$H$13,7,FALSE)) -> 83577.2 | H91: 0.564831274 | I91: 15943.2 | J91: 1546972404 | K91: 1383696247 | L91: 1237653172 | M91: 1107024304 | N91: 990182740.9 | O91: 885673292.4 | P91: 792194358.2 | Q91: 708581715.7 | R91: 633794021.2 | S91: 566899840.1 | T91: 507066046.6 | U91: 453547447.8 | V91: 405677502.5 | W91: 362860020.1 | X91: 324561735.3 | Y91: 1.190638485e+10 | Z91: 1700912.121
A92: =IF(ISBLANK(InfoPro!A86),"",InfoPro!A86) -> SC_1743_A1 | B92: =IF(ISBLANK(InfoPro!B86),"",InfoPro!B86) -> SOLAR FOTOVOLTAICO FRESNOS 60 MW | C92: =IF(ISBLANK(InfoPro!E86),"",InfoPro!E86) -> 60 | D92: =IF(ISBLANK(InfoPro!F86),"",InfoPro!F86) -> Solar FV | E92: =IF(ISBLANK(InfoPro!I86),"",YEAR(InfoPro!I86)-$H$3) -> 3 | F92: =IF(B92="","",VLOOKUP(D92,Tablas!$B$2:$E$13,2,FALSE)) -> 0.26 | G92: =IF(B92="","",VLOOKUP(D92,Tablas!$B$2:$H$13,7,FALSE)) -> 83577.2 | H92: 0.564831274 | I92: 136656 | J92: 1.060845576e+10 | K92: 9488779752 | L92: 8487280637 | M92: 7591485364 | N92: 6790237356 | O92: 6073557563 | P92: 5432520182 | Q92: 4859141486 | R92: 4346280399 | S92: 3887549552 | T92: 3477235735 | U92: 3110228744 | V92: 2781957731 | W92: 2488334286 | X92: 2225701508 | Y92: 8.164874606e+10 | Z92: 1360812.434
A93: =IF(ISBLANK(InfoPro!A87),"",InfoPro!A87) -> SC_1743_A2 | B93: =IF(ISBLANK(InfoPro!B87),"",InfoPro!B87) -> SOLAR FOTOVOLTAICO FRESNOS 60 MW | C93: =IF(ISBLANK(InfoPro!E87),"",InfoPro!E87) -> 60 | D93: =IF(ISBLANK(InfoPro!F87),"",InfoPro!F87) -> Solar FV | E93: =IF(ISBLANK(InfoPro!I87),"",YEAR(InfoPro!I87)-$H$3) -> 3 | F93: =IF(B93="","",VLOOKUP(D93,Tablas!$B$2:$E$13,2,FALSE)) -> 0.26 | G93: =IF(B93="","",VLOOKUP(D93,Tablas!$B$2:$H$13,7,FALSE)) -> 83577.2 | H93: 0.564831274 | I93: 136656 | J93: 1.060845576e+10 | K93: 9488779752 | L93: 8487280637 | M93: 7591485364 | N93: 6790237356 | O93: 6073557563 | P93: 5432520182 | Q93: 4859141486 | R93: 4346280399 | S93: 3887549552 | T93: 3477235735 | U93: 3110228744 | V93: 2781957731 | W93: 2488334286 | X93: 2225701508 | Y93: 8.164874606e+10 | Z93: 1360812.434
A94: =IF(ISBLANK(InfoPro!A88),"",InfoPro!A88) -> SC_1745_A2 | B94: =IF(ISBLANK(InfoPro!B88),"",InfoPro!B88) -> PARQUE SOLAR FOTOVOLTAICO CERESOS 9,9 MW | C94: =IF(ISBLANK(InfoPro!E88),"",InfoPro!E88) -> 9.9 | D94: =IF(ISBLANK(InfoPro!F88),"",InfoPro!F88) -> Solar FV | E94: =IF(ISBLANK(InfoPro!I88),"",YEAR(InfoPro!I88)-$H$3) -> 3 | F94: =IF(B94="","",VLOOKUP(D94,Tablas!$B$2:$E$13,2,FALSE)) -> 0.26 | G94: =IF(B94="","",VLOOKUP(D94,Tablas!$B$2:$H$13,7,FALSE)) -> 83577.2 | H94: 0.564831274 | I94: 22548.24 | J94: =IF($I94="","",(1/(1+$C$3)^(J$6+$E94))*$I94*$C$2*$H94) -> 1750395201 | K94: 1565648659 | L94: 1400401305 | M94: 1252595085 | N94: 1120389164 | O94: 1002136998 | P94: 896365830 | Q94: 801758345.3 | R94: 717136265.9 | S94: 641445676.1 | T94: 573743896.3 | U94: 513187742.7 | V94: 459023025.7 | W94: 410575157.1 | X94: 367240748.8 | Y94: 1.34720431e+10 | Z94: 1360812.434
A95: =IF(ISBLANK(InfoPro!A89),"",InfoPro!A89) -> SC_1738_A1 | B95: =IF(ISBLANK(InfoPro!B89),"",InfoPro!B89) -> Parque Solar La Ponderosa | C95: =IF(ISBLANK(InfoPro!E89),"",InfoPro!E89) -> 99.99 | D95: =IF(ISBLANK(InfoPro!F89),"",InfoPro!F89) -> Solar FV | E95: =IF(ISBLANK(InfoPro!I89),"",YEAR(InfoPro!I89)-$H$3) -> 0 | F95: =IF(B95="","",VLOOKUP(D95,Tablas!$B$2:$E$13,2,FALSE)) -> 0.26 | G95: =IF(B95="","",VLOOKUP(D95,Tablas!$B$2:$H$13,7,FALSE)) -> 83577.2 | H95: 0.564831274 | I95: 227737.224 | J95: 2.470488851e+10 | K95: 2.209739581e+10 | L95: 1.976511253e+10 | M95: 1.767899153e+10 | N95: 1.581305146e+10 | O95: 1.414405318e+10 | P95: 1.265121036e+10 | Q95: 1.131593055e+10 | R95: 1.012158368e+10 | S95: 9053294883 | T95: 8097759287 | U95: 7243076285 | V95: 6478601329 | W95: 5794813353 | X95: 5183196201 | Y95: 1.901429589e+11 | Z95: 1901619.751
A96: =IF(ISBLANK(InfoPro!A90),"",InfoPro!A90) -> SC_1738_A2 | B96: =IF(ISBLANK(InfoPro!B90),"",InfoPro!B90) -> Parque Solar La Ponderosa | C96: =IF(ISBLANK(InfoPro!E90),"",InfoPro!E90) -> 99.99 | D96: =IF(ISBLANK(InfoPro!F90),"",InfoPro!F90) -> Solar FV | E96: =IF(ISBLANK(InfoPro!I90),"",YEAR(InfoPro!I90)-$H$3) -> 0 | F96: =IF(B96="","",VLOOKUP(D96,Tablas!$B$2:$E$13,2,FALSE)) -> 0.26 | G96: =IF(B96="","",VLOOKUP(D96,Tablas!$B$2:$H$13,7,FALSE)) -> 83577.2 | H96: 0.564831274 | I96: 227737.224 | J96: 2.470488851e+10 | K96: 2.209739581e+10 | L96: 1.976511253e+10 | M96: 1.767899153e+10 | N96: 1.581305146e+10 | O96: 1.414405318e+10 | P96: 1.265121036e+10 | Q96: 1.131593055e+10 | R96: 1.012158368e+10 | S96: 9053294883 | T96: 8097759287 | U96: 7243076285 | V96: 6478601329 | W96: 5794813353 | X96: 5183196201 | Y96: 1.901429589e+11 | Z96: 1901619.751
A97: =IF(ISBLANK(InfoPro!A91),"",InfoPro!A91) ->  | B97: =IF(ISBLANK(InfoPro!B91),"",InfoPro!B91) ->  | C97: =IF(ISBLANK(InfoPro!E91),"",InfoPro!E91) ->  | D97: =IF(ISBLANK(InfoPro!F91),"",InfoPro!F91) ->  | E97: =IF(ISBLANK(InfoPro!I91),"",YEAR(InfoPro!I91)-$H$3) ->  | F97: =IF(B97="","",VLOOKUP(D97,Tablas!$B$2:$E$13,2,FALSE)) ->  | G97: =IF(B97="","",VLOOKUP(D97,Tablas!$B$2:$H$13,7,FALSE)) -> 
A98: =IF(ISBLANK(InfoPro!A92),"",InfoPro!A92) ->  | B98: =IF(ISBLANK(InfoPro!B92),"",InfoPro!B92) ->  | C98: =IF(ISBLANK(InfoPro!E92),"",InfoPro!E92) ->  | D98: =IF(ISBLANK(InfoPro!F92),"",InfoPro!F92) ->  | E98: =IF(ISBLANK(InfoPro!I92),"",YEAR(InfoPro!I92)-$H$3) ->  | F98: =IF(B98="","",VLOOKUP(D98,Tablas!$B$2:$E$13,2,FALSE)) ->  | G98: =IF(B98="","",VLOOKUP(D98,Tablas!$B$2:$H$13,7,FALSE)) -> 
A99: =IF(ISBLANK(InfoPro!A93),"",InfoPro!A93) ->  | B99: =IF(ISBLANK(InfoPro!B93),"",InfoPro!B93) ->  | C99: =IF(ISBLANK(InfoPro!E93),"",InfoPro!E93) ->  | D99: =IF(ISBLANK(InfoPro!F93),"",InfoPro!F93) ->  | E99: =IF(ISBLANK(InfoPro!I93),"",YEAR(InfoPro!I93)-$H$3) ->  | F99: =IF(B99="","",VLOOKUP(D99,Tablas!$B$2:$E$13,2,FALSE)) ->  | G99: =IF(B99="","",VLOOKUP(D99,Tablas!$B$2:$H$13,7,FALSE)) -> 
A104: =IF(ISBLANK(InfoPro!A95),"",InfoPro!A95) ->  | B104: =IF(ISBLANK(InfoPro!B95),"",InfoPro!B95) ->  | C104: =IF(ISBLANK(InfoPro!E95),"",InfoPro!E95) ->  | D104: =IF(ISBLANK(InfoPro!F95),"",InfoPro!F95) ->  | E104: =IF(ISBLANK(InfoPro!I95),"",YEAR(InfoPro!I95)-$H$3) ->  | F104: =IF(B104="","",VLOOKUP(D104,Tablas!$B$2:$E$13,2,FALSE)) ->  | G104: =IF(B104="","",VLOOKUP(D104,Tablas!$B$2:$H$13,7,FALSE)) -> 
A105: =IF(ISBLANK(InfoPro!A96),"",InfoPro!A96) ->  | B105: =IF(ISBLANK(InfoPro!B96),"",InfoPro!B96) ->  | C105: =IF(ISBLANK(InfoPro!E96),"",InfoPro!E96) ->  | D105: =IF(ISBLANK(InfoPro!F96),"",InfoPro!F96) ->  | E105: =IF(ISBLANK(InfoPro!I96),"",YEAR(InfoPro!I96)-$H$3) ->  | F105: =IF(B105="","",VLOOKUP(D105,Tablas!$B$2:$E$13,2,FALSE)) ->  | G105: =IF(B105="","",VLOOKUP(D105,Tablas!$B$2:$H$13,7,FALSE)) -> 
A106: =IF(ISBLANK(InfoPro!A97),"",InfoPro!A97) ->  | B106: =IF(ISBLANK(InfoPro!B97),"",InfoPro!B97) ->  | C106: =IF(ISBLANK(InfoPro!E97),"",InfoPro!E97) ->  | D106: =IF(ISBLANK(InfoPro!F97),"",InfoPro!F97) ->  | E106: =IF(ISBLANK(InfoPro!I97),"",YEAR(InfoPro!I97)-$H$3) ->  | F106: =IF(B106="","",VLOOKUP(D106,Tablas!$B$2:$E$13,2,FALSE)) ->  | G106: =IF(B106="","",VLOOKUP(D106,Tablas!$B$2:$H$13,7,FALSE)) -> 
A107: =IF(ISBLANK(InfoPro!A98),"",InfoPro!A98) ->  | B107: =IF(ISBLANK(InfoPro!B98),"",InfoPro!B98) ->  | C107: =IF(ISBLANK(InfoPro!E98),"",InfoPro!E98) ->  | D107: =IF(ISBLANK(InfoPro!F98),"",InfoPro!F98) ->  | E107: =IF(ISBLANK(InfoPro!I98),"",YEAR(InfoPro!I98)-$H$3) ->  | F107: =IF(B107="","",VLOOKUP(D107,Tablas!$B$2:$E$13,2,FALSE)) ->  | G107: =IF(B107="","",VLOOKUP(D107,Tablas!$B$2:$H$13,7,FALSE)) -> 
A108: =IF(ISBLANK(InfoPro!A99),"",InfoPro!A99) ->  | B108: =IF(ISBLANK(InfoPro!B99),"",InfoPro!B99) ->  | C108: =IF(ISBLANK(InfoPro!E99),"",InfoPro!E99) ->  | D108: =IF(ISBLANK(InfoPro!F99),"",InfoPro!F99) ->  | E108: =IF(ISBLANK(InfoPro!I99),"",YEAR(InfoPro!I99)-$H$3) ->  | F108: =IF(B108="","",VLOOKUP(D108,Tablas!$B$2:$E$13,2,FALSE)) ->  | G108: =IF(B108="","",VLOOKUP(D108,Tablas!$B$2:$H$13,7,FALSE)) -> 
A109: =IF(ISBLANK(InfoPro!A100),"",InfoPro!A100) ->  | B109: =IF(ISBLANK(InfoPro!B100),"",InfoPro!B100) ->  | C109: =IF(ISBLANK(InfoPro!E100),"",InfoPro!E100) ->  | D109: =IF(ISBLANK(InfoPro!F100),"",InfoPro!F100) ->  | E109: =IF(ISBLANK(InfoPro!I100),"",YEAR(InfoPro!I100)-$H$3) ->  | F109: =IF(B109="","",VLOOKUP(D109,Tablas!$B$2:$E$13,2,FALSE)) ->  | G109: =IF(B109="","",VLOOKUP(D109,Tablas!$B$2:$H$13,7,FALSE)) -> 
A110: =IF(ISBLANK(InfoPro!A101),"",InfoPro!A101) ->  | B110: =IF(ISBLANK(InfoPro!B101),"",InfoPro!B101) ->  | C110: =IF(ISBLANK(InfoPro!E101),"",InfoPro!E101) ->  | D110: =IF(ISBLANK(InfoPro!F101),"",InfoPro!F101) ->  | E110: =IF(ISBLANK(InfoPro!I101),"",YEAR(InfoPro!I101)-$H$3) ->  | F110: =IF(B110="","",VLOOKUP(D110,Tablas!$B$2:$E$13,2,FALSE)) ->  | G110: =IF(B110="","",VLOOKUP(D110,Tablas!$B$2:$H$13,7,FALSE)) -> 
A111: =IF(ISBLANK(InfoPro!A102),"",InfoPro!A102) ->  | B111: =IF(ISBLANK(InfoPro!B102),"",InfoPro!B102) ->  | C111: =IF(ISBLANK(InfoPro!E102),"",InfoPro!E102) ->  | D111: =IF(ISBLANK(InfoPro!F102),"",InfoPro!F102) ->  | E111: =IF(ISBLANK(InfoPro!I102),"",YEAR(InfoPro!I102)-$H$3) ->  | F111: =IF(B111="","",VLOOKUP(D111,Tablas!$B$2:$E$13,2,FALSE)) ->  | G111: =IF(B111="","",VLOOKUP(D111,Tablas!$B$2:$H$13,7,FALSE)) ->  | J111: =IF($I111="","",(1/(1+$C$3)^(J$6+$E111))*$I111*$C$2*$H111) -> 
A112: =IF(ISBLANK(InfoPro!A103),"",InfoPro!A103) ->  | B112: =IF(ISBLANK(InfoPro!B103),"",InfoPro!B103) ->  | C112: =IF(ISBLANK(InfoPro!E103),"",InfoPro!E103) ->  | D112: =IF(ISBLANK(InfoPro!F103),"",InfoPro!F103) ->  | E112: =IF(ISBLANK(InfoPro!I103),"",YEAR(InfoPro!I103)-$H$3) ->  | F112: =IF(B112="","",VLOOKUP(D112,Tablas!$B$2:$E$13,2,FALSE)) ->  | G112: =IF(B112="","",VLOOKUP(D112,Tablas!$B$2:$H$13,7,FALSE)) -> 
A113: =IF(ISBLANK(InfoPro!A104),"",InfoPro!A104) ->  | B113: =IF(ISBLANK(InfoPro!B104),"",InfoPro!B104) ->  | C113: =IF(ISBLANK(InfoPro!E104),"",InfoPro!E104) ->  | D113: =IF(ISBLANK(InfoPro!F104),"",InfoPro!F104) ->  | E113: =IF(ISBLANK(InfoPro!I104),"",YEAR(InfoPro!I104)-$H$3) ->  | F113: =IF(B113="","",VLOOKUP(D113,Tablas!$B$2:$E$13,2,FALSE)) ->  | G113: =IF(B113="","",VLOOKUP(D113,Tablas!$B$2:$H$13,7,FALSE)) -> 
A114: =IF(ISBLANK(InfoPro!A105),"",InfoPro!A105) ->  | B114: =IF(ISBLANK(InfoPro!B105),"",InfoPro!B105) ->  | C114: =IF(ISBLANK(InfoPro!E105),"",InfoPro!E105) ->  | D114: =IF(ISBLANK(InfoPro!F105),"",InfoPro!F105) ->  | E114: =IF(ISBLANK(InfoPro!I105),"",YEAR(InfoPro!I105)-$H$3) ->  | F114: =IF(B114="","",VLOOKUP(D114,Tablas!$B$2:$E$13,2,FALSE)) ->  | G114: =IF(B114="","",VLOOKUP(D114,Tablas!$B$2:$H$13,7,FALSE)) -> 
A115: =IF(ISBLANK(InfoPro!A106),"",InfoPro!A106) ->  | B115: =IF(ISBLANK(InfoPro!B106),"",InfoPro!B106) ->  | C115: =IF(ISBLANK(InfoPro!E106),"",InfoPro!E106) ->  | D115: =IF(ISBLANK(InfoPro!F106),"",InfoPro!F106) ->  | E115: =IF(ISBLANK(InfoPro!I106),"",YEAR(InfoPro!I106)-$H$3) ->  | F115: =IF(B115="","",VLOOKUP(D115,Tablas!$B$2:$E$13,2,FALSE)) ->  | G115: =IF(B115="","",VLOOKUP(D115,Tablas!$B$2:$H$13,7,FALSE)) -> 
A116: =IF(ISBLANK(InfoPro!A107),"",InfoPro!A107) ->  | B116: =IF(ISBLANK(InfoPro!B107),"",InfoPro!B107) ->  | C116: =IF(ISBLANK(InfoPro!E107),"",InfoPro!E107) ->  | D116: =IF(ISBLANK(InfoPro!F107),"",InfoPro!F107) ->  | E116: =IF(ISBLANK(InfoPro!I107),"",YEAR(InfoPro!I107)-$H$3) ->  | F116: =IF(B116="","",VLOOKUP(D116,Tablas!$B$2:$E$13,2,FALSE)) ->  | G116: =IF(B116="","",VLOOKUP(D116,Tablas!$B$2:$H$13,7,FALSE)) -> 
A117: =IF(ISBLANK(InfoPro!A108),"",InfoPro!A108) ->  | B117: =IF(ISBLANK(InfoPro!B108),"",InfoPro!B108) ->  | C117: =IF(ISBLANK(InfoPro!E108),"",InfoPro!E108) ->  | D117: =IF(ISBLANK(InfoPro!F108),"",InfoPro!F108) ->  | E117: =IF(ISBLANK(InfoPro!I108),"",YEAR(InfoPro!I108)-$H$3) ->  | F117: =IF(B117="","",VLOOKUP(D117,Tablas!$B$2:$E$13,2,FALSE)) ->  | G117: =IF(B117="","",VLOOKUP(D117,Tablas!$B$2:$H$13,7,FALSE)) -> 
A118: =IF(ISBLANK(InfoPro!A109),"",InfoPro!A109) ->  | B118: =IF(ISBLANK(InfoPro!B109),"",InfoPro!B109) ->  | C118: =IF(ISBLANK(InfoPro!E109),"",InfoPro!E109) ->  | D118: =IF(ISBLANK(InfoPro!F109),"",InfoPro!F109) ->  | E118: =IF(ISBLANK(InfoPro!I109),"",YEAR(InfoPro!I109)-$H$3) ->  | F118: =IF(B118="","",VLOOKUP(D118,Tablas!$B$2:$E$13,2,FALSE)) ->  | G118: =IF(B118="","",VLOOKUP(D118,Tablas!$B$2:$H$13,7,FALSE)) -> 
A119: =IF(ISBLANK(InfoPro!A110),"",InfoPro!A110) ->  | B119: =IF(ISBLANK(InfoPro!B110),"",InfoPro!B110) ->  | C119: =IF(ISBLANK(InfoPro!E110),"",InfoPro!E110) ->  | D119: =IF(ISBLANK(InfoPro!F110),"",InfoPro!F110) ->  | E119: =IF(ISBLANK(InfoPro!I110),"",YEAR(InfoPro!I110)-$H$3) ->  | F119: =IF(B119="","",VLOOKUP(D119,Tablas!$B$2:$E$13,2,FALSE)) ->  | G119: =IF(B119="","",VLOOKUP(D119,Tablas!$B$2:$H$13,7,FALSE)) -> 
A120: =IF(ISBLANK(InfoPro!A111),"",InfoPro!A111) ->  | B120: =IF(ISBLANK(InfoPro!B111),"",InfoPro!B111) ->  | C120: =IF(ISBLANK(InfoPro!E111),"",InfoPro!E111) ->  | D120: =IF(ISBLANK(InfoPro!F111),"",InfoPro!F111) ->  | E120: =IF(ISBLANK(InfoPro!I111),"",YEAR(InfoPro!I111)-$H$3) ->  | F120: =IF(B120="","",VLOOKUP(D120,Tablas!$B$2:$E$13,2,FALSE)) ->  | G120: =IF(B120="","",VLOOKUP(D120,Tablas!$B$2:$H$13,7,FALSE)) -> 
A121: =IF(ISBLANK(InfoPro!A112),"",InfoPro!A112) ->  | B121: =IF(ISBLANK(InfoPro!B112),"",InfoPro!B112) ->  | C121: =IF(ISBLANK(InfoPro!E112),"",InfoPro!E112) ->  | D121: =IF(ISBLANK(InfoPro!F112),"",InfoPro!F112) ->  | E121: =IF(ISBLANK(InfoPro!I112),"",YEAR(InfoPro!I112)-$H$3) ->  | F121: =IF(B121="","",VLOOKUP(D121,Tablas!$B$2:$E$13,2,FALSE)) ->  | G121: =IF(B121="","",VLOOKUP(D121,Tablas!$B$2:$H$13,7,FALSE)) -> 
A122: =IF(ISBLANK(InfoPro!A113),"",InfoPro!A113) ->  | B122: =IF(ISBLANK(InfoPro!B113),"",InfoPro!B113) ->  | C122: =IF(ISBLANK(InfoPro!E113),"",InfoPro!E113) ->  | D122: =IF(ISBLANK(InfoPro!F113),"",InfoPro!F113) ->  | E122: =IF(ISBLANK(InfoPro!I113),"",YEAR(InfoPro!I113)-$H$3) ->  | F122: =IF(B122="","",VLOOKUP(D122,Tablas!$B$2:$E$13,2,FALSE)) ->  | G122: =IF(B122="","",VLOOKUP(D122,Tablas!$B$2:$H$13,7,FALSE)) -> 
A123: =IF(ISBLANK(InfoPro!A114),"",InfoPro!A114) ->  | B123: =IF(ISBLANK(InfoPro!B114),"",InfoPro!B114) ->  | C123: =IF(ISBLANK(InfoPro!E114),"",InfoPro!E114) ->  | D123: =IF(ISBLANK(InfoPro!F114),"",InfoPro!F114) ->  | E123: =IF(ISBLANK(InfoPro!I114),"",YEAR(InfoPro!I114)-$H$3) ->  | F123: =IF(B123="","",VLOOKUP(D123,Tablas!$B$2:$E$13,2,FALSE)) ->  | G123: =IF(B123="","",VLOOKUP(D123,Tablas!$B$2:$H$13,7,FALSE)) -> 
A124: =IF(ISBLANK(InfoPro!A115),"",InfoPro!A115) ->  | B124: =IF(ISBLANK(InfoPro!B115),"",InfoPro!B115) ->  | C124: =IF(ISBLANK(InfoPro!E115),"",InfoPro!E115) ->  | D124: =IF(ISBLANK(InfoPro!F115),"",InfoPro!F115) ->  | E124: =IF(ISBLANK(InfoPro!I115),"",YEAR(InfoPro!I115)-$H$3) ->  | F124: =IF(B124="","",VLOOKUP(D124,Tablas!$B$2:$E$13,2,FALSE)) ->  | G124: =IF(B124="","",VLOOKUP(D124,Tablas!$B$2:$H$13,7,FALSE)) -> 
A125: =IF(ISBLANK(InfoPro!A116),"",InfoPro!A116) ->  | B125: =IF(ISBLANK(InfoPro!B116),"",InfoPro!B116) ->  | C125: =IF(ISBLANK(InfoPro!E116),"",InfoPro!E116) ->  | D125: =IF(ISBLANK(InfoPro!F116),"",InfoPro!F116) ->  | E125: =IF(ISBLANK(InfoPro!I116),"",YEAR(InfoPro!I116)-$H$3) ->  | F125: =IF(B125="","",VLOOKUP(D125,Tablas!$B$2:$E$13,2,FALSE)) ->  | G125: =IF(B125="","",VLOOKUP(D125,Tablas!$B$2:$H$13,7,FALSE)) -> 
A126: =IF(ISBLANK(InfoPro!A117),"",InfoPro!A117) ->  | B126: =IF(ISBLANK(InfoPro!B117),"",InfoPro!B117) ->  | C126: =IF(ISBLANK(InfoPro!E117),"",InfoPro!E117) ->  | D126: =IF(ISBLANK(InfoPro!F117),"",InfoPro!F117) ->  | E126: =IF(ISBLANK(InfoPro!I117),"",YEAR(InfoPro!I117)-$H$3) ->  | F126: =IF(B126="","",VLOOKUP(D126,Tablas!$B$2:$E$13,2,FALSE)) ->  | G126: =IF(B126="","",VLOOKUP(D126,Tablas!$B$2:$H$13,7,FALSE)) -> 
A127: =IF(ISBLANK(InfoPro!A102),"",InfoPro!A102) ->  | B127: =IF(ISBLANK(InfoPro!B102),"",InfoPro!B102) ->  | C127: =IF(ISBLANK(InfoPro!E102),"",InfoPro!E102) ->  | D127: =IF(ISBLANK(InfoPro!F102),"",InfoPro!F102) ->  | E127: =IF(ISBLANK(InfoPro!I102),"",YEAR(InfoPro!I102)-$H$3) ->  | F127: =IF(B127="","",VLOOKUP(D127,Tablas!$B$2:$E$13,2,FALSE)) ->  | G127: =IF(B127="","",VLOOKUP(D127,Tablas!$B$2:$H$13,7,FALSE)) ->  | H127: =IF(B127="","",($C$2-(G127))/$C$2) ->  | I127: =IF(C127="","",+C127*F127*24*365) ->  | J127: =IF($I127="","",(1/(1+$C$3)^(J$6+$E127))*$I127*$C$2*$H127) ->  | X127: =IF($I127="","",(1/(1+$C$3)^(X$6+$E127))*$I127*$C$2*$H127) ->  | Y127: =IF(X127="","",SUM(J127:X127)) ->  | Z127: =IF(C127=0,0,IF(Y127="","",Y127/(C127*1000))) -> 
A128: =IF(ISBLANK(InfoPro!A103),"",InfoPro!A103) ->  | B128: =IF(ISBLANK(InfoPro!B103),"",InfoPro!B103) ->  | C128: =IF(ISBLANK(InfoPro!E103),"",InfoPro!E103) ->  | D128: =IF(ISBLANK(InfoPro!F103),"",InfoPro!F103) ->  | E128: =IF(ISBLANK(InfoPro!I103),"",YEAR(InfoPro!I103)-$H$3) ->  | F128: =IF(B128="","",VLOOKUP(D128,Tablas!$B$2:$E$13,2,FALSE)) ->  | G128: =IF(B128="","",VLOOKUP(D128,Tablas!$B$2:$H$13,7,FALSE)) -> 
A129: =IF(ISBLANK(InfoPro!A104),"",InfoPro!A104) ->  | B129: =IF(ISBLANK(InfoPro!B104),"",InfoPro!B104) ->  | C129: =IF(ISBLANK(InfoPro!E104),"",InfoPro!E104) ->  | D129: =IF(ISBLANK(InfoPro!F104),"",InfoPro!F104) ->  | E129: =IF(ISBLANK(InfoPro!I104),"",YEAR(InfoPro!I104)-$H$3) ->  | F129: =IF(B129="","",VLOOKUP(D129,Tablas!$B$2:$E$13,2,FALSE)) ->  | G129: =IF(B129="","",VLOOKUP(D129,Tablas!$B$2:$H$13,7,FALSE)) -> 
A130: =IF(ISBLANK(InfoPro!A105),"",InfoPro!A105) ->  | B130: =IF(ISBLANK(InfoPro!B105),"",InfoPro!B105) ->  | C130: =IF(ISBLANK(InfoPro!E105),"",InfoPro!E105) ->  | D130: =IF(ISBLANK(InfoPro!F105),"",InfoPro!F105) ->  | E130: =IF(ISBLANK(InfoPro!I105),"",YEAR(InfoPro!I105)-$H$3) ->  | F130: =IF(B130="","",VLOOKUP(D130,Tablas!$B$2:$E$13,2,FALSE)) ->  | G130: =IF(B130="","",VLOOKUP(D130,Tablas!$B$2:$H$13,7,FALSE)) -> 
A131: =IF(ISBLANK(InfoPro!A106),"",InfoPro!A106) ->  | B131: =IF(ISBLANK(InfoPro!B106),"",InfoPro!B106) ->  | C131: =IF(ISBLANK(InfoPro!E106),"",InfoPro!E106) ->  | D131: =IF(ISBLANK(InfoPro!F106),"",InfoPro!F106) ->  | E131: =IF(ISBLANK(InfoPro!I106),"",YEAR(InfoPro!I106)-$H$3) ->  | F131: =IF(B131="","",VLOOKUP(D131,Tablas!$B$2:$E$13,2,FALSE)) ->  | G131: =IF(B131="","",VLOOKUP(D131,Tablas!$B$2:$H$13,7,FALSE)) -> 
A132: =IF(ISBLANK(InfoPro!A107),"",InfoPro!A107) ->  | B132: =IF(ISBLANK(InfoPro!B107),"",InfoPro!B107) ->  | C132: =IF(ISBLANK(InfoPro!E107),"",InfoPro!E107) ->  | D132: =IF(ISBLANK(InfoPro!F107),"",InfoPro!F107) ->  | E132: =IF(ISBLANK(InfoPro!I107),"",YEAR(InfoPro!I107)-$H$3) ->  | F132: =IF(B132="","",VLOOKUP(D132,Tablas!$B$2:$E$13,2,FALSE)) ->  | G132: =IF(B132="","",VLOOKUP(D132,Tablas!$B$2:$H$13,7,FALSE)) -> 
A133: =IF(ISBLANK(InfoPro!A108),"",InfoPro!A108) ->  | B133: =IF(ISBLANK(InfoPro!B108),"",InfoPro!B108) ->  | C133: =IF(ISBLANK(InfoPro!E108),"",InfoPro!E108) ->  | D133: =IF(ISBLANK(InfoPro!F108),"",InfoPro!F108) ->  | E133: =IF(ISBLANK(InfoPro!I108),"",YEAR(InfoPro!I108)-$H$3) ->  | F133: =IF(B133="","",VLOOKUP(D133,Tablas!$B$2:$E$13,2,FALSE)) ->  | G133: =IF(B133="","",VLOOKUP(D133,Tablas!$B$2:$H$13,7,FALSE)) -> 
A134: =IF(ISBLANK(InfoPro!A106),"",InfoPro!A106) ->  | B134: =IF(ISBLANK(InfoPro!B106),"",InfoPro!B106) ->  | C134: =IF(ISBLANK(InfoPro!E106),"",InfoPro!E106) ->  | D134: =IF(ISBLANK(InfoPro!F106),"",InfoPro!F106) ->  | E134: =IF(ISBLANK(InfoPro!I106),"",YEAR(InfoPro!I106)-$H$3) ->  | F134: =IF(B134="","",VLOOKUP(D134,Tablas!$B$2:$E$13,2,FALSE)) ->  | G134: =IF(B134="","",VLOOKUP(D134,Tablas!$B$2:$H$13,7,FALSE)) ->  | H134: =IF(B134="","",($C$2-(G134))/$C$2) ->  | I134: =IF(C134="","",+C134*F134*24*365) ->  | J134: =IF($I134="","",(1/(1+$C$3)^(J$6+$E134))*$I134*$C$2*$H134) ->  | Y134: =IF(X134="","",SUM(J134:X134)) ->  | Z134: =IF(C134=0,0,IF(Y134="","",Y134/(C134*1000))) -> 
A135: =IF(ISBLANK(InfoPro!A107),"",InfoPro!A107) ->  | B135: =IF(ISBLANK(InfoPro!B107),"",InfoPro!B107) ->  | C135: =IF(ISBLANK(InfoPro!E107),"",InfoPro!E107) ->  | D135: =IF(ISBLANK(InfoPro!F107),"",InfoPro!F107) ->  | E135: =IF(ISBLANK(InfoPro!I107),"",YEAR(InfoPro!I107)-$H$3) ->  | F135: =IF(B135="","",VLOOKUP(D135,Tablas!$B$2:$E$13,2,FALSE)) ->  | G135: =IF(B135="","",VLOOKUP(D135,Tablas!$B$2:$H$13,7,FALSE)) -> 
A136: =IF(ISBLANK(InfoPro!A108),"",InfoPro!A108) ->  | B136: =IF(ISBLANK(InfoPro!B108),"",InfoPro!B108) ->  | C136: =IF(ISBLANK(InfoPro!E108),"",InfoPro!E108) ->  | D136: =IF(ISBLANK(InfoPro!F108),"",InfoPro!F108) ->  | E136: =IF(ISBLANK(InfoPro!I108),"",YEAR(InfoPro!I108)-$H$3) ->  | F136: =IF(B136="","",VLOOKUP(D136,Tablas!$B$2:$E$13,2,FALSE)) ->  | G136: =IF(B136="","",VLOOKUP(D136,Tablas!$B$2:$H$13,7,FALSE)) -> 
A137: =IF(ISBLANK(InfoPro!A109),"",InfoPro!A109) ->  | B137: =IF(ISBLANK(InfoPro!B109),"",InfoPro!B109) ->  | C137: =IF(ISBLANK(InfoPro!E109),"",InfoPro!E109) ->  | D137: =IF(ISBLANK(InfoPro!F109),"",InfoPro!F109) ->  | E137: =IF(ISBLANK(InfoPro!I109),"",YEAR(InfoPro!I109)-$H$3) ->  | F137: =IF(B137="","",VLOOKUP(D137,Tablas!$B$2:$E$13,2,FALSE)) ->  | G137: =IF(B137="","",VLOOKUP(D137,Tablas!$B$2:$H$13,7,FALSE)) -> 
A138: =IF(ISBLANK(InfoPro!A110),"",InfoPro!A110) ->  | B138: =IF(ISBLANK(InfoPro!B110),"",InfoPro!B110) ->  | C138: =IF(ISBLANK(InfoPro!E110),"",InfoPro!E110) ->  | D138: =IF(ISBLANK(InfoPro!F110),"",InfoPro!F110) ->  | E138: =IF(ISBLANK(InfoPro!I110),"",YEAR(InfoPro!I110)-$H$3) ->  | F138: =IF(B138="","",VLOOKUP(D138,Tablas!$B$2:$E$13,2,FALSE)) ->  | G138: =IF(B138="","",VLOOKUP(D138,Tablas!$B$2:$H$13,7,FALSE)) -> 
A139: =IF(ISBLANK(InfoPro!A111),"",InfoPro!A111) ->  | B139: =IF(ISBLANK(InfoPro!B111),"",InfoPro!B111) ->  | C139: =IF(ISBLANK(InfoPro!E111),"",InfoPro!E111) ->  | D139: =IF(ISBLANK(InfoPro!F111),"",InfoPro!F111) ->  | E139: =IF(ISBLANK(InfoPro!I111),"",YEAR(InfoPro!I111)-$H$3) ->  | F139: =IF(B139="","",VLOOKUP(D139,Tablas!$B$2:$E$13,2,FALSE)) ->  | G139: =IF(B139="","",VLOOKUP(D139,Tablas!$B$2:$H$13,7,FALSE)) -> 
A140: =IF(ISBLANK(InfoPro!A112),"",InfoPro!A112) ->  | B140: =IF(ISBLANK(InfoPro!B112),"",InfoPro!B112) ->  | C140: =IF(ISBLANK(InfoPro!E112),"",InfoPro!E112) ->  | D140: =IF(ISBLANK(InfoPro!F112),"",InfoPro!F112) ->  | E140: =IF(ISBLANK(InfoPro!I112),"",YEAR(InfoPro!I112)-$H$3) ->  | F140: =IF(B140="","",VLOOKUP(D140,Tablas!$B$2:$E$13,2,FALSE)) ->  | G140: =IF(B140="","",VLOOKUP(D140,Tablas!$B$2:$H$13,7,FALSE)) -> 
A141: =IF(ISBLANK(InfoPro!A109),"",InfoPro!A109) ->  | B141: =IF(ISBLANK(InfoPro!B109),"",InfoPro!B109) ->  | C141: =IF(ISBLANK(InfoPro!E109),"",InfoPro!E109) ->  | D141: =IF(ISBLANK(InfoPro!F109),"",InfoPro!F109) ->  | E141: =IF(ISBLANK(InfoPro!I109),"",YEAR(InfoPro!I109)-$H$3) ->  | F141: =IF(B141="","",VLOOKUP(D141,Tablas!$B$2:$E$13,2,FALSE)) ->  | G141: =IF(B141="","",VLOOKUP(D141,Tablas!$B$2:$H$13,7,FALSE)) ->  | H141: =IF(B141="","",($C$2-(G141))/$C$2) ->  | I141: =IF(C141="","",+C141*F141*24*365) ->  | J141: =IF($I141="","",(1/(1+$C$3)^(J$6+$E141))*$I141*$C$2*$H141) ->  | Y141: =IF(X141="","",SUM(J141:X141)) ->  | Z141: =IF(C141=0,0,IF(Y141="","",Y141/(C141*1000))) -> 
A142: =IF(ISBLANK(InfoPro!A110),"",InfoPro!A110) ->  | B142: =IF(ISBLANK(InfoPro!B110),"",InfoPro!B110) ->  | C142: =IF(ISBLANK(InfoPro!E110),"",InfoPro!E110) ->  | D142: =IF(ISBLANK(InfoPro!F110),"",InfoPro!F110) ->  | E142: =IF(ISBLANK(InfoPro!I110),"",YEAR(InfoPro!I110)-$H$3) ->  | F142: =IF(B142="","",VLOOKUP(D142,Tablas!$B$2:$E$13,2,FALSE)) ->  | G142: =IF(B142="","",VLOOKUP(D142,Tablas!$B$2:$H$13,7,FALSE)) -> 
A143: =IF(ISBLANK(InfoPro!A111),"",InfoPro!A111) ->  | B143: =IF(ISBLANK(InfoPro!B111),"",InfoPro!B111) ->  | C143: =IF(ISBLANK(InfoPro!E111),"",InfoPro!E111) ->  | D143: =IF(ISBLANK(InfoPro!F111),"",InfoPro!F111) ->  | E143: =IF(ISBLANK(InfoPro!I111),"",YEAR(InfoPro!I111)-$H$3) ->  | F143: =IF(B143="","",VLOOKUP(D143,Tablas!$B$2:$E$13,2,FALSE)) ->  | G143: =IF(B143="","",VLOOKUP(D143,Tablas!$B$2:$H$13,7,FALSE)) -> 
A144: =IF(ISBLANK(InfoPro!A112),"",InfoPro!A112) ->  | B144: =IF(ISBLANK(InfoPro!B112),"",InfoPro!B112) ->  | C144: =IF(ISBLANK(InfoPro!E112),"",InfoPro!E112) ->  | D144: =IF(ISBLANK(InfoPro!F112),"",InfoPro!F112) ->  | E144: =IF(ISBLANK(InfoPro!I112),"",YEAR(InfoPro!I112)-$H$3) ->  | F144: =IF(B144="","",VLOOKUP(D144,Tablas!$B$2:$E$13,2,FALSE)) ->  | G144: =IF(B144="","",VLOOKUP(D144,Tablas!$B$2:$H$13,7,FALSE)) -> 
A145: =IF(ISBLANK(InfoPro!A113),"",InfoPro!A113) ->  | B145: =IF(ISBLANK(InfoPro!B113),"",InfoPro!B113) ->  | C145: =IF(ISBLANK(InfoPro!E113),"",InfoPro!E113) ->  | D145: =IF(ISBLANK(InfoPro!F113),"",InfoPro!F113) ->  | E145: =IF(ISBLANK(InfoPro!I113),"",YEAR(InfoPro!I113)-$H$3) ->  | F145: =IF(B145="","",VLOOKUP(D145,Tablas!$B$2:$E$13,2,FALSE)) ->  | G145: =IF(B145="","",VLOOKUP(D145,Tablas!$B$2:$H$13,7,FALSE)) -> 
A146: =IF(ISBLANK(InfoPro!A114),"",InfoPro!A114) ->  | B146: =IF(ISBLANK(InfoPro!B114),"",InfoPro!B114) ->  | C146: =IF(ISBLANK(InfoPro!E114),"",InfoPro!E114) ->  | D146: =IF(ISBLANK(InfoPro!F114),"",InfoPro!F114) ->  | E146: =IF(ISBLANK(InfoPro!I114),"",YEAR(InfoPro!I114)-$H$3) ->  | F146: =IF(B146="","",VLOOKUP(D146,Tablas!$B$2:$E$13,2,FALSE)) ->  | G146: =IF(B146="","",VLOOKUP(D146,Tablas!$B$2:$H$13,7,FALSE)) -> 
A147: =IF(ISBLANK(InfoPro!A115),"",InfoPro!A115) ->  | B147: =IF(ISBLANK(InfoPro!B115),"",InfoPro!B115) ->  | C147: =IF(ISBLANK(InfoPro!E115),"",InfoPro!E115) ->  | D147: =IF(ISBLANK(InfoPro!F115),"",InfoPro!F115) ->  | E147: =IF(ISBLANK(InfoPro!I115),"",YEAR(InfoPro!I115)-$H$3) ->  | F147: =IF(B147="","",VLOOKUP(D147,Tablas!$B$2:$E$13,2,FALSE)) ->  | G147: =IF(B147="","",VLOOKUP(D147,Tablas!$B$2:$H$13,7,FALSE)) -> 
